Workbook

Sheet Zał.1_WPF_bazowy
B1: WIELOLETNIA PROGNOZA FINANSOWA MIASTA BRZEZINY NA LATA 2016-2019 WRAZ Z PROGNOZĄ DŁUGU NA LATA 2016-2024 | E1: Wykonanie | G1: Plan 3 kw. | H1: Wykonanie | I1: ="" ->  | J1: Załącznik nr 1 do Uchwały Nr XX/129/2016 Rady Miasta Brzeziny z dnia 28 stycznia 2016 roku
A2: X | B2: Lp. | C2: Nazwy serii (rysunki) | D2: Wyszczególnienie | E2: =+F2-1 -> 2013 | F2: =+G2-1 -> 2014 | G2: =+H2 -> 2015 | H2: =+I2-1 -> 2015 | I2: =+DaneZrodlowe!$N$1 -> 2016 | J2: =+I2+1 -> 2017 | K2: =+J2+1 -> 2018 | L2: 2019 | M2: 2020 | N2: 2021 | O2: 2022 | P2: 2023 | Q2: 2024
A3: x | B3: 1 | C3: Dochody ogółem | D3: Dochody ogółem | E3: =36897999.47 -> 36897999.47 | F3: =38775186.08 -> 38775186.08 | G3: =36552514.89 -> 36552514.89 | H3: =36552514.89 -> 36552514.89 | I3: =32174588 -> 32174588 | J3: =33100000 -> 33100000 | K3: =34100000 -> 34100000 | L3: =35100000 -> 35100000 | M3: =36100000 -> 36100000 | N3: =37100000 -> 37100000 | O3: =38100000 -> 38100000 | P3: =39100000 -> 39100000 | Q3: =40100000 -> 40100000
A4: x | B4: 1.1 | C4: Dochody bieżące | D4: Dochody bieżące | E4: =32301173.26 -> 32301173.26 | F4: =34105017.52 -> 34105017.52 | G4: =33742971.45 -> 33742971.45 | H4: =33742971.45 -> 33742971.45 | I4: =32044588 -> 32044588 | J4: =33100000 -> 33100000 | K4: =34100000 -> 34100000 | L4: =35100000 -> 35100000 | M4: =36100000 -> 36100000 | N4: =37100000 -> 37100000 | O4: =38100000 -> 38100000 | P4: =39100000 -> 39100000 | Q4: =40100000 -> 40100000
B5: 1.1.1 | C5: dochody z tytułu udziału we wpływach z podatku dochodowego od osób fizycznych | D5: dochody z tytułu udziału we wpływach z podatku dochodowego od osób fizycznych | E5: =6476099 -> 6476099 | F5: =7136023 -> 7136023 | G5: =7700000 -> 7700000 | H5: =7700000 -> 7700000 | I5: =8400000 -> 8400000 | J5: =9000000 -> 9000000 | K5: =9500000 -> 9500000 | L5: =10000000 -> 10000000 | M5: =0 -> 0 | N5: =0 -> 0 | O5: =0 -> 0 | P5: =0 -> 0 | Q5: =0 -> 0
B6: 1.1.2 | C6: dochody z tytułu udziału we wpływach z podatku dochodowego od osób prawnych | D6: dochody z tytułu udziału we wpływach z podatku dochodowego od osób prawnych | E6: =175600.93 -> 175600.93 | F6: =175787.56 -> 175787.56 | G6: =140000 -> 140000 | H6: 140000 | I6: 140000 | J6: 140000 | K6: 140000 | L6: 140000 | M6: =0 -> 0 | N6: =0 -> 0 | O6: =0 -> 0 | P6: =0 -> 0 | Q6: =0 -> 0
B7: 1.1.3 | C7: podatki i opłaty | D7: podatki i opłaty | E7: =5289523.02 -> 5289523.02 | F7: =7010289.27 -> 7010289.27 | G7: =7628751 -> 7628751 | H7: =7628751 -> 7628751 | I7: =7223150 -> 7223150 | J7: =7300000 -> 7300000 | K7: =7400000 -> 7400000 | L7: =7500000 -> 7500000 | M7: =0 -> 0 | N7: =0 -> 0 | O7: =0 -> 0 | P7: =0 -> 0 | Q7: =0 -> 0
B8: 1.1.3.1 | C8: z podatku od nieruchomości | D8: z podatku od nieruchomości | E8: =3824840.21 -> 3824840.21 | F8: =4237030.5 -> 4237030.5 | G8: =4769505 -> 4769505 | H8: =4769505 -> 4769505 | I8: =4400000 -> 4400000 | J8: =4500000 -> 4500000 | K8: =4600000 -> 4600000 | L8: =4700000 -> 4700000 | M8: =0 -> 0 | N8: =0 -> 0 | O8: =0 -> 0 | P8: =0 -> 0 | Q8: =0 -> 0
B9: 1.1.4 | C9: z subwencji ogólnej | D9: z subwencji ogólnej | E9: =7466452 -> 7466452 | F9: =8308307 -> 8308307 | G9: =9112541 -> 9112541 | H9: =9112541 -> 9112541 | I9: =9238483 -> 9238483 | J9: =9300000 -> 9300000 | K9: =9400000 -> 9400000 | L9: =9500000 -> 9500000 | M9: =0 -> 0 | N9: =0 -> 0 | O9: =0 -> 0 | P9: =0 -> 0 | Q9: =0 -> 0
B10: 1.1.5 | C10: z tytułu dotacji i środków przeznaczonych na cele bieżące | D10: z tytułu dotacji i środków przeznaczonych na cele bieżące | E10: =8685748.05 -> 8685748.05 | F10: =8330252.43 -> 8330252.43 | G10: =6570203.45 -> 6570203.45 | H10: =6570203.45 -> 6570203.45 | I10: =5085967 -> 5085967 | J10: =5100000 -> 5100000 | K10: =5200000 -> 5200000 | L10: =5300000 -> 5300000 | M10: =0 -> 0 | N10: =0 -> 0 | O10: =0 -> 0 | P10: =0 -> 0 | Q10: =0 -> 0
A11: x | B11: 1.2 | C11: Dochody majątkowe | D11: Dochody majątkowe, w tym | E11: =4596826.21 -> 4596826.21 | F11: =4670168.56 -> 4670168.56 | G11: =2809543.44 -> 2809543.44 | H11: =2809543.44 -> 2809543.44 | I11: =130000 -> 130000 | J11: =0 -> 0 | K11: =0 -> 0 | L11: =0 -> 0 | M11: =0 -> 0 | N11: =0 -> 0 | O11: =0 -> 0 | P11: =0 -> 0 | Q11: =0 -> 0
A12: x | B12: 1.2.1 | C12: ze sprzedaży majątku | D12: ze sprzedaży majątku | E12: =198768.84 -> 198768.84 | F12: =243965.6 -> 243965.6 | G12: =21000 -> 21000 | H12: =21000 -> 21000 | I12: =120000 -> 120000 | J12: =0 -> 0 | K12: =0 -> 0 | L12: =0 -> 0 | M12: =0 -> 0 | N12: =0 -> 0 | O12: =0 -> 0 | P12: =0 -> 0 | Q12: =0 -> 0
B13: 1.2.2 | C13: z tytułu dotacji oraz środków przeznaczonych na inwestycje | D13: z tytułu dotacji oraz środków przeznaczonych na inwestycje | E13: =4223796.09 -> 4223796.09 | F13: =4326916.96 -> 4326916.96 | G13: =2773543.44 -> 2773543.44 | H13: =2773543.44 -> 2773543.44 | I13: =0 -> 0 | J13: =0 -> 0 | K13: =0 -> 0 | L13: =0 -> 0 | M13: =0 -> 0 | N13: =0 -> 0 | O13: =0 -> 0 | P13: =0 -> 0 | Q13: =0 -> 0
A14: x | B14: 2 | C14: Wydatki ogółem | D14: Wydatki ogółem | E14: =37003938.3 -> 37003938.3 | F14: =37365699.93 -> 37365699.93 | G14: =42482913.27 -> 42482913.27 | H14: =42482913.27 -> 42482913.27 | I14: =32174588 -> 32174588 | J14: =31621796 -> 31621796 | K14: =32421796 -> 32421796 | L14: =33239996 -> 33239996 | M14: =33889996 -> 33889996 | N14: =34889996 -> 34889996 | O14: =35849996 -> 35849996 | P14: =36682000 -> 36682000 | Q14: =36681616 -> 36681616
A15: x | B15: 2.1 | C15: Wydatki bieżące | D15: Wydatki bieżące, w tym: | E15: =30174248.7 -> 30174248.7 | F15: =31284204.73 -> 31284204.73 | G15: =31963540.27 -> 31963540.27 | H15: =31963540.27 -> 31963540.27 | I15: =29810588 -> 29810588 | J15: =30200000 -> 30200000 | K15: =30700000 -> 30700000 | L15: =31200000 -> 31200000 | M15: =31700000 -> 31700000 | N15: =32200000 -> 32200000 | O15: =32700000 -> 32700000 | P15: =33200000 -> 33200000 | Q15: =33700000 -> 33700000
A16: x | B16: 2.1.1 | C16: z tytułu poręczeń i gwarancji | D16: z tytułu poręczeń i gwarancji | E16: =0 -> 0 | F16: =0 -> 0 | G16: =28000 -> 28000 | H16: =28000 -> 28000 | I16: =113000 -> 113000 | J16: =114000 -> 114000 | K16: =116000 -> 116000 | L16: =117000 -> 117000 | M16: =119000 -> 119000 | N16: =121000 -> 121000 | O16: =123000 -> 123000 | P16: =126000 -> 126000 | Q16: =128000 -> 128000
A17: x | B17: 2.1.1.1 | C17: w tym: gwarancje i poręczenia podlegające wyłączeniu z limitu spłaty zobowiązań, o którym mowa w art. 243 ustawy | D17: w tym: gwarancje i poręczenia podlegające wyłączeniu z limitu spłaty zobowiązań, o którym mowa w art. 243 ustawy | E17: =0 -> 0 | F17: =0 -> 0 | G17: =0 -> 0 | H17: =0 -> 0 | I17: =0 -> 0 | J17: =0 -> 0 | K17: =0 -> 0 | L17: =0 -> 0 | M17: =0 -> 0 | N17: =0 -> 0 | O17: =0 -> 0 | P17: =0 -> 0 | Q17: =0 -> 0
B18: 2.1.2 | C18: na spłatę przejętych zobowiązań samodzielnego publicznego zakładu opieki zdrowotnej przekształconego na zasadach określonych w przepisach o działalności leczniczej, w wysokości w jakiej nie podlegają sfinansowaniu dotacją z budżetu państwa | D18: na spłatę przejętych zobowiązań samodzielnego publicznego zakładu opieki zdrowotnej przekształconego na zasadach określonych w przepisach o działalności leczniczej, w wysokości w jakiej nie podlegają sfinansowaniu dotacją z budżetu państwa | E18: =0 -> 0 | F18: =0 -> 0 | G18: =0 -> 0 | H18: =0 -> 0 | I18: =0 -> 0 | J18: =0 -> 0 | K18: =0 -> 0 | L18: =0 -> 0 | M18: =0 -> 0 | N18: =0 -> 0 | O18: =0 -> 0 | P18: =0 -> 0 | Q18: =0 -> 0
A19: x | B19: 2.1.3 | C19: wydatki na obsługę długu, w tym: | D19: wydatki na obsługę długu, w tym: | E19: =657163.7 -> 657163.7 | F19: =563582.46 -> 563582.46 | G19: =480000 -> 480000 | H19: =480000 -> 480000 | I19: =505000 -> 505000 | J19: =500000 -> 500000 | K19: =470000 -> 470000 | L19: =440000 -> 440000 | M19: =380000 -> 380000 | N19: =300000 -> 300000 | O19: =210000 -> 210000 | P19: =130000 -> 130000 | Q19: =40000 -> 40000
A20: x | B20: 2.1.3.1 | C20: odsetki i dyskonto określone w art. 243 ust. 1 ustawy, w tym: | D20: odsetki i dyskonto określone w art. 243 ust. 1 ustawy, w tym: | E20: =657163.7 -> 657163.7 | F20: =563582.46 -> 563582.46 | G20: =475000 -> 475000 | H20: =475000 -> 475000 | I20: =500000 -> 500000 | J20: =500000 -> 500000 | K20: =470000 -> 470000 | L20: =440000 -> 440000 | M20: =380000 -> 380000 | N20: =300000 -> 300000 | O20: =210000 -> 210000 | P20: =130000 -> 130000 | Q20: =40000 -> 40000
A21: x | B21: 2.1.3.1.1 | C21: odsetki i dyskonto podlegające wyłączeniu z limitu spłaty zobowiązań, o którym mowa w art. 243 ustawy, w terminie nie dłuższym niż 90 dni po zakończeniu programu, projektu lub zadania i otrzymaniu refundacji z tych środków (bez odsetek i dyskonta od zobowiązań na wkład krajowy) | D21: odsetki i dyskonto podlegające wyłączeniu z limitu spłaty zobowiązań, o którym mowa w art. 243 ustawy, w terminie nie dłuższym niż 90 dni po zakończeniu programu, projektu lub zadania i otrzymaniu refundacji z tych środków (bez odsetek i dyskonta od zobowiązań na wkład krajowy) | E21: =0 -> 0 | F21: =0 -> 0 | G21: =0 -> 0 | H21: =0 -> 0 | I21: =0 -> 0 | J21: =0 -> 0 | K21: =0 -> 0 | L21: =0 -> 0 | M21: =0 -> 0 | N21: =0 -> 0 | O21: =0 -> 0 | P21: =0 -> 0 | Q21: =0 -> 0
A22: x | B22: 2.1.3.1.2 | C22: odsetki i dyskonto podlegające wyłączeniu z limitu spłaty zobowiązań, o którym mowa w art. 243 ustawy, z tytułu zobowiązań zaciągniętych na wkład krajowy | D22: odsetki i dyskonto podlegające wyłączeniu z limitu spłaty zobowiązań, o którym mowa w art. 243 ustawy, z tytułu zobowiązań zaciągniętych na wkład krajowy | E22: =0 -> 0 | F22: =0 -> 0 | G22: =0 -> 0 | H22: =0 -> 0 | I22: =0 -> 0 | J22: =0 -> 0 | K22: =0 -> 0 | L22: =0 -> 0 | M22: =0 -> 0 | N22: =0 -> 0 | O22: =0 -> 0 | P22: =0 -> 0 | Q22: =0 -> 0
A23: x | B23: 2.2 | C23: Wydatki majątkowe | D23: Wydatki majątkowe | E23: =6829689.6 -> 6829689.6 | F23: =6081495.2 -> 6081495.2 | G23: =10519373 -> 10519373 | H23: =10519373 -> 10519373 | I23: =2364000 -> 2364000 | J23: =1421796 -> 1421796 | K23: =1721796 -> 1721796 | L23: =2039996 -> 2039996 | M23: =2189996 -> 2189996 | N23: =2689996 -> 2689996 | O23: =3149996 -> 3149996 | P23: =3482000 -> 3482000 | Q23: =2981616 -> 2981616
A24: x | B24: 3 | C24: Wynik budżetu | D24: Wynik budżetu | E24: =-105938.83 -> -105938.83 | F24: =1409486.15 -> 1409486.15 | G24: =-5930398.38 -> -5930398.38 | H24: =-5930398.38 -> -5930398.38 | I24: =0 -> 0 | J24: =1478204 -> 1478204 | K24: =1678204 -> 1678204 | L24: =1860004 -> 1860004 | M24: =2210004 -> 2210004 | N24: =2210004 -> 2210004 | O24: =2250004 -> 2250004 | P24: =2418000 -> 2418000 | Q24: =3418384 -> 3418384
A25: x | B25: 4 | C25: Przychody budżetu | D25: Przychody budżetu | E25: =7317411.22 -> 7317411.22 | F25: =5010437.51 -> 5010437.51 | G25: =6846090.38 -> 6846090.38 | H25: =6846090.38 -> 6846090.38 | I25: =1215692 -> 1215692 | J25: =0 -> 0 | K25: =0 -> 0 | L25: =0 -> 0 | M25: =0 -> 0 | N25: =0 -> 0 | O25: =0 -> 0 | P25: =0 -> 0 | Q25: =0 -> 0
A26: x | B26: 4.1 | C26: Nadwyżka budżetowa z lat ubiegłych | D26: Nadwyżka budżetowa z lat ubiegłych | E26: =0 -> 0 | F26: =0 -> 0 | G26: =0 -> 0 | H26: =0 -> 0 | I26: =0 -> 0 | J26: =0 -> 0 | K26: =0 -> 0 | L26: =0 -> 0 | M26: =0 -> 0 | N26: =0 -> 0 | O26: =0 -> 0 | P26: =0 -> 0 | Q26: =0 -> 0
A27: x | B27: 4.1.1 | C27: w tym na pokrycie deficytu budżetu | D27: w tym na pokrycie deficytu budżetu | E27: =0 -> 0 | F27: =0 -> 0 | G27: =0 -> 0 | H27: =0 -> 0 | I27: =0 -> 0 | J27: =0 -> 0 | K27: =0 -> 0 | L27: =0 -> 0 | M27: =0 -> 0 | N27: =0 -> 0 | O27: =0 -> 0 | P27: =0 -> 0 | Q27: =0 -> 0
A28: x | B28: 4.2 | C28: Wolne środki, o których mowa w art. 217 ust.2 pkt 6 ustawy | D28: Wolne środki, o których mowa w art. 217 ust.2 pkt 6 ustawy | E28: =2607411.22 -> 2607411.22 | F28: =2502437.51 -> 2502437.51 | G28: =4393398.38 -> 4393398.38 | H28: =4393398.38 -> 4393398.38 | I28: =0 -> 0 | J28: =0 -> 0 | K28: =0 -> 0 | L28: =0 -> 0 | M28: =0 -> 0 | N28: =0 -> 0 | O28: =0 -> 0 | P28: =0 -> 0 | Q28: =0 -> 0
A29: x | B29: 4.2.1 | C29: w tym na pokrycie deficytu budżetu | D29: w tym na pokrycie deficytu budżetu | E29: =105938.83 -> 105938.83 | F29: =2502437.51 -> 2502437.51 | G29: =4393398.38 -> 4393398.38 | H29: =4393398.38 -> 4393398.38 | I29: =0 -> 0 | J29: =0 -> 0 | K29: =0 -> 0 | L29: =0 -> 0 | M29: =0 -> 0 | N29: =0 -> 0 | O29: =0 -> 0 | P29: =0 -> 0 | Q29: =0 -> 0
A30: x | B30: 4.3 | C30: Kredyty, pożyczki, emisja papierów wartościowych | D30: Kredyty, pożyczki, emisja papierów wartościowych | E30: =4710000 -> 4710000 | F30: =2508000 -> 2508000 | G30: =2452692 -> 2452692 | H30: =2452692 -> 2452692 | I30: =1215692 -> 1215692 | J30: =0 -> 0 | K30: =0 -> 0 | L30: =0 -> 0 | M30: =0 -> 0 | N30: =0 -> 0 | O30: =0 -> 0 | P30: =0 -> 0 | Q30: =0 -> 0
A31: x | B31: 4.3.1 | C31: w tym na pokrycie deficytu budżetu | D31: w tym na pokrycie deficytu budżetu | E31: =0 -> 0 | F31: =0 -> 0 | G31: =1537000 -> 1537000 | H31: =1537000 -> 1537000 | I31: =0 -> 0 | J31: =0 -> 0 | K31: =0 -> 0 | L31: =0 -> 0 | M31: =0 -> 0 | N31: =0 -> 0 | O31: =0 -> 0 | P31: =0 -> 0 | Q31: =0 -> 0
A32: x | B32: 4.4 | C32: Inne przychody niezwiązane z zaciągnięciem długu | D32: Inne przychody niezwiązane z zaciągnięciem długu | E32: =0 -> 0 | F32: =0 -> 0 | G32: =0 -> 0 | H32: =0 -> 0 | I32: =0 -> 0 | J32: =0 -> 0 | K32: =0 -> 0 | L32: =0 -> 0 | M32: =0 -> 0 | N32: =0 -> 0 | O32: =0 -> 0 | P32: =0 -> 0 | Q32: =0 -> 0
A33: x | B33: 4.4.1 | C33: w tym na pokrycie deficytu budżetu | D33: w tym na pokrycie deficytu budżetu | E33: =0 -> 0 | F33: =0 -> 0 | G33: =0 -> 0 | H33: =0 -> 0 | I33: =0 -> 0 | J33: =0 -> 0 | K33: =0 -> 0 | L33: =0 -> 0 | M33: =0 -> 0 | N33: =0 -> 0 | O33: =0 -> 0 | P33: =0 -> 0 | Q33: =0 -> 0
A34: x | B34: 5 | C34: Rozchody budżetu | D34: Rozchody budżetu | E34: =1903176.7 -> 1903176.7 | F34: =2026525.28 -> 2026525.28 | G34: =915692 -> 915692 | H34: =915692 -> 915692 | I34: =1215692 -> 1215692 | J34: =1478204 -> 1478204 | K34: =1678204 -> 1678204 | L34: =1860004 -> 1860004 | M34: =2210004 -> 2210004 | N34: =2210004 -> 2210004 | O34: =2250004 -> 2250004 | P34: =2418000 -> 2418000 | Q34: =3418384 -> 3418384
A35: x | B35: 5.1 | C35: Spłaty rat kapitałowych kredytów i pożyczek oraz wykup papierów wartościowych | D35: Spłaty rat kapitałowych kredytów i pożyczek oraz wykup papierów wartościowych | E35: =1903176.7 -> 1903176.7 | F35: =2026525.28 -> 2026525.28 | G35: =915692 -> 915692 | H35: =915692 -> 915692 | I35: =1215692 -> 1215692 | J35: =1478204 -> 1478204 | K35: =1678204 -> 1678204 | L35: =1860004 -> 1860004 | M35: =2210004 -> 2210004 | N35: =2210004 -> 2210004 | O35: =2250004 -> 2250004 | P35: =2418000 -> 2418000 | Q35: =3418384 -> 3418384
A36: x | B36: 5.1.1 | C36: w tym łączna kwota przypadających na dany rok kwot ustawowych wyłączeń z limitu spłaty zobowiązań, o którym mowa w art. 243 ustawy, z tego: | D36: w tym łączna kwota przypadających na dany rok kwot ustawowych wyłączeń z limitu spłaty zobowiązań, o którym mowa w art. 243 ustawy, z tego: | E36: =0 -> 0 | F36: =0 -> 0 | G36: =0 -> 0 | H36: =0 -> 0 | I36: =0 -> 0 | J36: =0 -> 0 | K36: =0 -> 0 | L36: =0 -> 0 | M36: =0 -> 0 | N36: =0 -> 0 | O36: =0 -> 0 | P36: =0 -> 0 | Q36: =0 -> 0
A37: x | B37: 5.1.1.1 | C37: kwota przypadających na dany rok kwot ustawowych wyłączeń określonych w art. 243 ust. 3 ustawy | D37: kwota przypadających na dany rok kwot ustawowych wyłączeń określonych w art. 243 ust. 3 ustawy | E37: =0 -> 0 | F37: =0 -> 0 | G37: =0 -> 0 | H37: =0 -> 0 | I37: =0 -> 0 | J37: =0 -> 0 | K37: =0 -> 0 | L37: =0 -> 0 | M37: =0 -> 0 | N37: =0 -> 0 | O37: =0 -> 0 | P37: =0 -> 0 | Q37: =0 -> 0
A38: x | B38: 5.1.1.2 | C38: kwota przypadających na dany rok kwot ustawowych wyłączeń określonych w art. 243 ust. 3a ustawy | D38: kwota przypadających na dany rok kwot ustawowych wyłączeń określonych w art. 243 ust. 3a ustawy | E38: =0 -> 0 | F38: =0 -> 0 | G38: =0 -> 0 | H38: =0 -> 0 | I38: =0 -> 0 | J38: =0 -> 0 | K38: =0 -> 0 | L38: =0 -> 0 | M38: =0 -> 0 | N38: =0 -> 0 | O38: =0 -> 0 | P38: =0 -> 0 | Q38: =0 -> 0
A39: x | B39: 5.1.1.3 | C39: kwota przypadających na dany rok kwot ustawowych wyłączeń innych niż określone w art. 243 ustawy | D39: kwota przypadających na dany rok kwot ustawowych wyłączeń innych niż określone w art. 243 ustawy | E39: =0 -> 0 | F39: =0 -> 0 | G39: =0 -> 0 | H39: =0 -> 0 | I39: =0 -> 0 | J39: =0 -> 0 | K39: =0 -> 0 | L39: =0 -> 0 | M39: =0 -> 0 | N39: =0 -> 0 | O39: =0 -> 0 | P39: =0 -> 0 | Q39: =0 -> 0
B40: 5.2 | C40: Inne rozchody niezwiązane ze spłatą długu | D40: Inne rozchody niezwiązane ze spłatą długu | E40: =0 -> 0 | F40: =0 -> 0 | G40: =0 -> 0 | H40: =0 -> 0 | I40: =0 -> 0 | J40: =0 -> 0 | K40: =0 -> 0 | L40: =0 -> 0 | M40: =0 -> 0 | N40: =0 -> 0 | O40: =0 -> 0 | P40: =0 -> 0 | Q40: =0 -> 0
A41: x | B41: 6 | C41: Kwota długu | D41: Kwota długu | E41: =15503368.16 -> 15503368.16 | F41: =15985808 -> 15985808 | G41: =17522808 -> 17522808 | H41: =17522808 -> 17522808 | I41: =17522808 -> 17522808 | J41: =16044604 -> 16044604 | K41: =14366400 -> 14366400 | L41: =12506396 -> 12506396 | M41: =10296392 -> 10296392 | N41: =8086388 -> 8086388 | O41: =5836384 -> 5836384 | P41: =3418384 -> 3418384 | Q41: =0 -> 0
B42: 7 | C42: Kwota zobowiązań wynikających z przejęcia przez jednostkę samorządu terytorialnego zobowiązań po likwidowanych i przekształcanych jednostkach zaliczanych do sektora finansów publicznych | D42: Kwota zobowiązań wynikających z przejęcia przez jednostkę samorządu terytorialnego zobowiązań po likwidowanych i przekształcanych jednostkach zaliczanych do sektora finansów publicznych | E42: =0 -> 0 | F42: =0 -> 0 | G42: =0 -> 0 | H42: =0 -> 0 | I42: =0 -> 0 | J42: =0 -> 0 | K42: =0 -> 0 | L42: =0 -> 0 | M42: =0 -> 0 | N42: =0 -> 0 | O42: =0 -> 0 | P42: =0 -> 0 | Q42: =0 -> 0
B43: 8 | C43: Relacja zrównoważenia wydatków bieżących, o której mowa w art. 242 ustawy | D43: Relacja zrównoważenia wydatków bieżących, o której mowa w art. 242 ustawy | E43: x | F43: x | G43: x | H43: x | I43: x | J43: x | K43: x | L43: x | M43: x | N43: x | O43: x | P43: x | Q43: x
B44: 8.1 | C44: Różnica między dochodami bieżącymi a wydatkami bieżącymi | D44: Różnica między dochodami bieżącymi a wydatkami bieżącymi | E44: =2126924.56 -> 2126924.56 | F44: =2820812.79 -> 2820812.79 | G44: =1779431.18 -> 1779431.18 | H44: =1779431.18 -> 1779431.18 | I44: =2234000 -> 2234000 | J44: =2900000 -> 2900000 | K44: =3400000 -> 3400000 | L44: =3900000 -> 3900000 | M44: =4400000 -> 4400000 | N44: =4900000 -> 4900000 | O44: =5400000 -> 5400000 | P44: =5900000 -> 5900000 | Q44: =6400000 -> 6400000
B45: 8.2 | C45: Różnica między dochodami bieżącymi, skorygowanymi o środki a wydatkami bieżącymi, pomniejszonymi o wydatki | D45: Różnica między dochodami bieżącymi, skorygowanymi o środki a wydatkami bieżącymi, pomniejszonymi o wydatki | E45: =4734335.78 -> 4734335.78 | F45: =5323250.3 -> 5323250.3 | G45: =6172829.56 -> 6172829.56 | H45: =6172829.56 -> 6172829.56 | I45: =2234000 -> 2234000 | J45: =2900000 -> 2900000 | K45: =3400000 -> 3400000 | L45: =3900000 -> 3900000 | M45: =4400000 -> 4400000 | N45: =4900000 -> 4900000 | O45: =5400000 -> 5400000 | P45: =5900000 -> 5900000 | Q45: =6400000 -> 6400000
A46: x | B46: 9 | C46: Wskaźnik spłaty zobowiązań | D46: Wskaźnik spłaty zobowiązań | E46: x | F46: x | G46: x | H46: x | I46: x | J46: x | K46: x | L46: x | M46: x | N46: x | O46: x | P46: x | Q46: x
A47: x | B47: 9.1 | C47: (R+O) / D (bez wyłączeń) | D47: Wskaźnik planowanej łącznej kwoty spłaty zobowiązań, o której mowa w art. 243 ust. 1 ustawy do dochodów, bez uwzględnienia zobowiązań związku współtworzonego przez jednostkę samorządu terytorialnego i bez uwzględnienia ustawowych wyłączeń przypadających na dany rok. | E47: =0.0694 -> 0.0694 | F47: =0.0668 -> 0.0668 | G47: =0.0388 -> 0.0388 | H47: =0.0388 -> 0.0388 | I47: =0.0568 -> 0.0568 | J47: =0.0632 -> 0.0632 | K47: =0.0664 -> 0.0664 | L47: =0.0689 -> 0.0689 | M47: =0.075 -> 0.075 | N47: =0.0709 -> 0.0709 | O47: =0.0678 -> 0.0678 | P47: =0.0684 -> 0.0684 | Q47: =0.0894 -> 0.0894
A48: x | B48: 9.2 | C48: (R+O) / D (z wyłączeniami) | D48: Wskaźnik planowanej łącznej kwoty spłaty zobowiązań, o której mowa w art. 243 ust. 1 ustawy do dochodów, bez uwzględnienia zobowiązań związku współtworzonego przez jednostkę samorządu terytorialnego, po uwzględnieniu ustawowych wyłączeń przypadających na dany rok. | E48: =0.0694 -> 0.0694 | F48: =0.0668 -> 0.0668 | G48: =0.0388 -> 0.0388 | H48: =0.0388 -> 0.0388 | I48: =0.0568 -> 0.0568 | J48: =0.0632 -> 0.0632 | K48: =0.0664 -> 0.0664 | L48: =0.0689 -> 0.0689 | M48: =0.075 -> 0.075 | N48: =0.0709 -> 0.0709 | O48: =0.0678 -> 0.0678 | P48: =0.0684 -> 0.0684 | Q48: =0.0894 -> 0.0894
A49: x | B49: 9.3 | C49: Kwota zobowiązań związku współtworzonego przez jednostkę samorządu terytorialnego przypadających do spłaty w danym roku budżetowym, podlegająca doliczeniu zgodnie z art. 244 ustawy | D49: Kwota zobowiązań związku współtworzonego przez jednostkę samorządu terytorialnego przypadających do spłaty w danym roku budżetowym, podlegająca doliczeniu zgodnie z art. 244 ustawy | E49: =0 -> 0 | F49: =0 -> 0 | G49: =0 -> 0 | H49: =0 -> 0 | I49: =0 -> 0 | J49: =0 -> 0 | K49: =0 -> 0 | L49: =0 -> 0 | M49: =0 -> 0 | N49: =0 -> 0 | O49: =0 -> 0 | P49: =0 -> 0 | Q49: =0 -> 0
A50: x | B50: 9.4 | C50: (R+O) / D (z wyłączeniami i zobowiązaniami związków) | D50: Wskaźnik planowanej łącznej kwoty spłaty zobowiązań, o której mowa w art. 243 ust. 1 ustawy do dochodów, po uwzględnieniu zobowiązań związku współtworzonego przez jednostkę samorządu terytorialnego oraz po uwzględnieniu ustawowych wyłączeń przypadających na dany rok | E50: =0.0694 -> 0.0694 | F50: =0.0668 -> 0.0668 | G50: =0.0388 -> 0.0388 | H50: =0.0388 -> 0.0388 | I50: =0.0568 -> 0.0568 | J50: =0.0632 -> 0.0632 | K50: =0.0664 -> 0.0664 | L50: =0.0689 -> 0.0689 | M50: =0.075 -> 0.075 | N50: =0.0709 -> 0.0709 | O50: =0.0678 -> 0.0678 | P50: =0.0684 -> 0.0684 | Q50: =0.0894 -> 0.0894
A51: x | B51: 9.5 | C51: Wskaźnik dochodów bieżących powiększonych o dochody ze sprzedaży majątku oraz pomniejszonych o wydatki bieżące, do dochodów budżetu, ustalony dla danego roku (wskaźnik jednoroczny) | D51: Wskaźnik dochodów bieżących powiększonych o dochody ze sprzedaży majątku oraz pomniejszonych o wydatki bieżące, do dochodów budżetu, ustalony dla danego roku (wskaźnik jednoroczny) | E51: =+IF(AND(E2>=2013,E2<=2018),IF(E3<>0,(E4+E12-E15+E18)/E3,0),IF(E3<>0,(E4+E12-E15)/E3,0)) -> 0.06303033859 | F51: 0.07903968233 | G51: 0.04925601386 | H51: 0.04925601386 | I51: 0.07316333002 | J51: 0.08761329305 | K51: 0.09970674487 | L51: 0.1111111111 | M51: 0.1218836565 | N51: 0.1320754717 | O51: 0.1417322835 | P51: 0.1508951407 | Q51: 0.1596009975
A52: x | B52: 9.6 | C52: Dopuszczalny wskaźnik spłaty zobowiązań z art. 243 ustawy, po uwzględnieniu ustawowych wyłączeń (planistyczny) | D52: Dopuszczalny wskaźnik spłaty zobowiązań określony w art. 243 ustawy, po uwzględnieniu ustawowych wyłączeń , obliczony w oparciu o plan 3 kwartału roku poprzedzającego pierwszy rok prognozy (wskaźnik ustalony w oparciu o średnią arytmetyczną z 3 poprzednich lat) | E52: x | F52: x | G52: x | H52: x | I52: =0.0638 -> 0.0638 | J52: =0.0672 -> 0.0672 | K52: =0.07 -> 0.07 | L52: =0.0868 -> 0.0868 | M52: =0.0995 -> 0.0995 | N52: =0.1109 -> 0.1109 | O52: =0.1217 -> 0.1217 | P52: =0.1319 -> 0.1319 | Q52: =0.1416 -> 0.1416
A53: x | B53: 9.6.1 | C53: Dopuszczalny wskaźnik spłaty zobowiązań z art. 243 ustawy, po uwzględnieniu ustawowych wyłączeń (wykonanie) | D53: Dopuszczalny wskaźnik spłaty zobowiązań określony w art. 243 ustawy, po uwzględnieniu ustawowych wyłączeń, obliczony w oparciu o wykonanie roku poprzedzającego pierwszy rok prognozy (wskaźnik ustalony w oparciu o średnią arytmetyczną z 3 poprzednich lat) | E53: x | F53: x | G53: x | H53: x | I53: =0.0638 -> 0.0638 | J53: =0.0672 -> 0.0672 | K53: =0.07 -> 0.07 | L53: =0.0868 -> 0.0868 | M53: =0.0995 -> 0.0995 | N53: =0.1109 -> 0.1109 | O53: =0.1217 -> 0.1217 | P53: =0.1319 -> 0.1319 | Q53: =0.1416 -> 0.1416
A54: x | B54: 9.7 | C54: Informacja o spełnieniu wskaźnika spłaty zobowiązań określonego w art. 243 ustawy, po uwzględnieniu zobowiązań związku współtworzonego przez jednostkę samorządu terytorialnego oraz po uwzględnieniu ustawowych wyłączeń, obliczonego w oparciu o plan 3 kwartałów roku poprzedzającego rok budżetowy | D54: Informacja o spełnieniu wskaźnika spłaty zobowiązań określonego w art. 243 ustawy, po uwzględnieniu zobowiązań związku współtworzonego przez jednostkę samorządu terytorialnego oraz po uwzględnieniu ustawowych wyłączeń, obliczonego w oparciu o plan 3 kwartałów roku poprzedzającego rok budżetowy | E54: x | F54: x | G54: x | H54: x | I54: =IF(I50<=I52,"Spełniona","Nie spełniona") -> Spełniona | J54: =IF(J50<=J52,"Spełniona","Nie spełniona") -> Spełniona | K54: Spełniona | L54: Spełniona | M54: Spełniona | N54: Spełniona | O54: Spełniona | P54: Spełniona | Q54: Spełniona
A55: x | B55: 9.7.1 | C55: Informacja o spełnieniu wskaźnika spłaty zobowiązań określonego w art. 243 ustawy, po uwzględnieniu zobowiązań związku współtworzonego przez jednostkę samorządu terytorialnego oraz po uwzględnieniu ustawowych wyłączeń, obliczonego w oparciu o wykonanie roku poprzedzającego rok budżetowy | D55: Informacja o spełnieniu wskaźnika spłaty zobowiązań określonego w art. 243 ustawy, po uwzględnieniu zobowiązań związku współtworzonego przez jednostkę samorządu terytorialnego oraz po uwzględnieniu ustawowych wyłączeń, obliczonego w oparciu o wykonanie roku poprzedzającego rok budżetowy | E55: x | F55: x | G55: x | H55: x | I55: =IF(I50<=I53,"Spełniona","Nie spełniona") -> Spełniona | J55: =IF(J50<=J53,"Spełniona","Nie spełniona") -> Spełniona | K55: Spełniona | L55: Spełniona | M55: Spełniona | N55: Spełniona | O55: Spełniona | P55: Spełniona | Q55: Spełniona
B56: 10 | C56: Przeznaczenie prognozowanej nadwyżki budżetowej, w tym na: | D56: Przeznaczenie prognozowanej nadwyżki budżetowej, w tym na: | E56: =0 -> 0 | F56: =0 -> 0 | G56: =0 -> 0 | H56: =0 -> 0 | I56: =0 -> 0 | J56: =1478204 -> 1478204 | K56: =1678204 -> 1678204 | L56: =1860004 -> 1860004 | M56: =2210004 -> 2210004 | N56: =2210004 -> 2210004 | O56: =2250004 -> 2250004 | P56: =2418000 -> 2418000 | Q56: =3418384 -> 3418384
B57: 10.1 | C57: Spłaty kredytów, pożyczek i wykup papierów wartościowych | D57: Spłaty kredytów, pożyczek i wykup papierów wartościowych | E57: =0 -> 0 | F57: =0 -> 0 | G57: =0 -> 0 | H57: =0 -> 0 | I57: =0 -> 0 | J57: =1478204 -> 1478204 | K57: =1678204 -> 1678204 | L57: =1860004 -> 1860004 | M57: =2210004 -> 2210004 | N57: =2210004 -> 2210004 | O57: =2250004 -> 2250004 | P57: =2418000 -> 2418000 | Q57: 3418384
B58: 11 | C58: Informacje uzupełniające o wybranych rodzajach wydatków budżetowych | D58: Informacje uzupełniające o wybranych rodzajach wydatków budżetowych | E58: x | F58: x | G58: x | H58: x | I58: x | J58: x | K58: x | L58: x | M58: x | N58: x | O58: x | P58: x | Q58: x
B59: 11.1 | C59: Wydatki bieżące na wynagrodzenia i składki od nich naliczane | D59: Wydatki bieżące na wynagrodzenia i składki od nich naliczane | E59: =12368065.33 -> 12368065.33 | F59: =12844686.27 -> 12844686.27 | G59: =13946795.57 -> 13946795.57 | H59: =13946795.57 -> 13946795.57 | I59: =14764410 -> 14764410 | J59: =15000000 -> 15000000 | K59: =15300000 -> 15300000 | L59: =15600000 -> 15600000 | M59: =0 -> 0 | N59: =0 -> 0 | O59: =0 -> 0 | P59: =0 -> 0 | Q59: =0 -> 0
B60: 11.2 | C60: Wydatki związane z funkcjonowaniem organów jednostki samorządu terytorialnego | D60: Wydatki związane z funkcjonowaniem organów jednostki samorządu terytorialnego | E60: =2986207.91 -> 2986207.91 | F60: =3073324.39 -> 3073324.39 | G60: =3391850 -> 3391850 | H60: =3391850 -> 3391850 | I60: =3427000 -> 3427000 | J60: =3450000 -> 3450000 | K60: =3500000 -> 3500000 | L60: =3550000 -> 3550000 | M60: =0 -> 0 | N60: =0 -> 0 | O60: =0 -> 0 | P60: =0 -> 0 | Q60: =0 -> 0
B61: 11.3 | C61: Wydatki objęte limitem, o którym mowa w art. 226 ust. 3 pkt 4 ustawy | D61: Wydatki objęte limitem, o którym mowa w art. 226 ust. 3 pkt 4 ustawy | E61: =2706336.15 -> 2706336.15 | F61: =1320685.63 -> 1320685.63 | G61: =1521985.68 -> 1521985.68 | H61: =1521985.68 -> 1521985.68 | I61: =847280 -> 847280 | J61: =1314520 -> 1314520 | K61: =600000 -> 600000 | L61: =0 -> 0 | M61: =0 -> 0 | N61: =0 -> 0 | O61: =0 -> 0 | P61: =0 -> 0 | Q61: =0 -> 0
B62: 11.3.1 | C62: Wydatki bieżące na przedsięwzięcia | D62: bieżące | E62: =885100.65 -> 885100.65 | F62: =1182848.52 -> 1182848.52 | G62: =1421985.68 -> 1421985.68 | H62: =1421985.68 -> 1421985.68 | I62: =3280 -> 3280 | J62: =5520 -> 5520 | K62: =0 -> 0 | L62: =0 -> 0 | M62: =0 -> 0 | N62: =0 -> 0 | O62: =0 -> 0 | P62: =0 -> 0 | Q62: =0 -> 0
B63: 11.3.2 | C63: Wydatki majątkowe na przedsięwzięcia | D63: majątkowe | E63: =1821235.5 -> 1821235.5 | F63: =137837.11 -> 137837.11 | G63: =100000 -> 100000 | H63: =100000 -> 100000 | I63: =844000 -> 844000 | J63: =1309000 -> 1309000 | K63: =600000 -> 600000 | L63: =0 -> 0 | M63: =0 -> 0 | N63: =0 -> 0 | O63: =0 -> 0 | P63: =0 -> 0 | Q63: =0 -> 0
B64: 11.4 | C64: Wydatki inwestycyjne kontynuowane | D64: Wydatki inwestycyjne kontynuowane | E64: =4829267.54 -> 4829267.54 | F64: =2958206 -> 2958206 | G64: =6615873 -> 6615873 | H64: =6615873 -> 6615873 | I64: =1564000 -> 1564000 | J64: =0 -> 0 | K64: =0 -> 0 | L64: =0 -> 0 | M64: =0 -> 0 | N64: =0 -> 0 | O64: =0 -> 0 | P64: =0 -> 0 | Q64: =0 -> 0
B65: 11.5 | C65: Nowe wydatki inwestycyjne | D65: Nowe wydatki inwestycyjne | E65: =1680528.06 -> 1680528.06 | F65: =2364458.2 -> 2364458.2 | G65: =2967100 -> 2967100 | H65: =2967100 -> 2967100 | I65: =520000 -> 520000 | J65: =0 -> 0 | K65: =0 -> 0 | L65: =0 -> 0 | M65: =0 -> 0 | N65: =0 -> 0 | O65: =0 -> 0 | P65: =0 -> 0 | Q65: =0 -> 0
B66: 11.6 | C66: Wydatki majątkowe w formie dotacji | D66: Wydatki majątkowe w formie dotacji | E66: =319894 -> 319894 | F66: =458831 -> 458831 | G66: =636400 -> 636400 | H66: =636400 -> 636400 | I66: =50000 -> 50000 | J66: =0 -> 0 | K66: =0 -> 0 | L66: =0 -> 0 | M66: =0 -> 0 | N66: =0 -> 0 | O66: =0 -> 0 | P66: =0 -> 0 | Q66: =0 -> 0
B67: 12 | C67: Finansowanie programów, projektów lub zadań realizowanych z udziałem środków, o których mowa w art. 5 ust. 1 pkt 2 i 3 ustawy | D67: Finansowanie programów, projektów lub zadań realizowanych z udziałem środków, o których mowa w art. 5 ust. 1 pkt 2 i 3 ustawy | E67: x | F67: x | G67: x | H67: x | I67: x | J67: x | K67: x | L67: x | M67: x | N67: x | O67: x | P67: x | Q67: x
B68: 12.1 | C68: Dochody bieżące na programy, projekty lub zadania finansowane z udziałem środków, o których mowa w art. 5 ust. 1 pkt 2 i 3 ustawy | D68: Dochody bieżące na programy, projekty lub zadania finansowane z udziałem środków, o których mowa w art. 5 ust. 1 pkt 2 i 3 ustawy | E68: =1650681.03 -> 1650681.03 | F68: =2512141.17 -> 2512141.17 | G68: =1035267.09 -> 1035267.09 | H68: =1035267.09 -> 1035267.09 | I68: =0 -> 0 | J68: =0 -> 0 | K68: =0 -> 0 | L68: =0 -> 0 | M68: =0 -> 0 | N68: =0 -> 0 | O68: =0 -> 0 | P68: =0 -> 0 | Q68: =0 -> 0
B69: 12.1.1 | C69: - w tym środki określone w art. 5 ust. 1 pkt 2 ustawy | D69: - w tym środki określone w art. 5 ust. 1 pkt 2 ustawy | E69: =1484838.58 -> 1484838.58 | F69: =2271968.91 -> 2271968.91 | G69: =911911.76 -> 911911.76 | H69: =911911.76 -> 911911.76 | I69: =0 -> 0 | J69: =0 -> 0 | K69: =0 -> 0 | L69: =0 -> 0 | M69: =0 -> 0 | N69: =0 -> 0 | O69: =0 -> 0 | P69: =0 -> 0 | Q69: =0 -> 0
B70: 12.1.1.1 | C70: - w tym środki określone w art. 5 ust. 1 pkt 2 ustawy wynikające wyłącznie z zawartych umów na realizację programu, projektu lub zadania | D70: - w tym środki określone w art. 5 ust. 1 pkt 2 ustawy wynikające wyłącznie z zawartych umów na realizację programu, projektu lub zadania | E70: =1484838.58 -> 1484838.58 | F70: =2271968.91 -> 2271968.91 | G70: =911911.76 -> 911911.76 | H70: =911911.76 -> 911911.76 | I70: =0 -> 0 | J70: =0 -> 0 | K70: =0 -> 0 | L70: =0 -> 0 | M70: =0 -> 0 | N70: =0 -> 0 | O70: =0 -> 0 | P70: =0 -> 0 | Q70: =0 -> 0
B71: 12.2 | C71: Dochody majątkowe na programy, projekty lub zadania finansowane z udziałem środków, o których mowa w art. 5 ust. 1 pkt 2 i 3 ustawy | D71: Dochody majątkowe na programy, projekty lub zadania finansowane z udziałem środków, o których mowa w art. 5 ust. 1 pkt 2 i 3 ustawy | E71: =2951853.09 -> 2951853.09 | F71: =2340381.75 -> 2340381.75 | G71: =83947.5 -> 83947.5 | H71: 83947.5 | I71: =0 -> 0 | J71: =0 -> 0 | K71: =0 -> 0 | L71: =0 -> 0 | M71: =0 -> 0 | N71: =0 -> 0 | O71: =0 -> 0 | P71: =0 -> 0 | Q71: =0 -> 0
B72: 12.2.1 | C72: - w tym środki określone w art. 5 ust. 1 pkt 2 ustawy | D72: - w tym środki określone w art. 5 ust. 1 pkt 2 ustawy | E72: =2897484.54 -> 2897484.54 | F72: =2339496.15 -> 2339496.15 | G72: 83947.5 | H72: 83947.5 | I72: =0 -> 0 | J72: =0 -> 0 | K72: =0 -> 0 | L72: =0 -> 0 | M72: =0 -> 0 | N72: =0 -> 0 | O72: =0 -> 0 | P72: =0 -> 0 | Q72: =0 -> 0
B73: 12.2.1.1 | C73: - w tym środki określone w art. 5 ust. 1 pkt 2 ustawy wynikające wyłącznie z zawartych umów na realizację programu, projektu lub zadania | D73: - w tym środki określone w art. 5 ust. 1 pkt 2 ustawy wynikające wyłącznie z zawartych umów na realizację programu, projektu lub zadania | E73: =2897484.54 -> 2897484.54 | F73: =2339496.15 -> 2339496.15 | G73: 83947.5 | H73: 83947.5 | I73: =0 -> 0 | J73: =0 -> 0 | K73: =0 -> 0 | L73: =0 -> 0 | M73: =0 -> 0 | N73: =0 -> 0 | O73: =0 -> 0 | P73: =0 -> 0 | Q73: =0 -> 0
B74: 12.3 | C74: Wydatki bieżące na programy, projekty lub zadania finansowane z udziałem środków, o których mowa w art. 5 ust. 1 pkt 2 i 3 ustawy | D74: Wydatki bieżące na programy, projekty lub zadania finansowane z udziałem środków, o których mowa w art. 5 ust. 1 pkt 2 i 3 ustawy | E74: =1714900.4 -> 1714900.4 | F74: =2804189.96 -> 2804189.96 | G74: =988921.26 -> 988921.26 | H74: =988921.26 -> 988921.26 | I74: =0 -> 0 | J74: =0 -> 0 | K74: =0 -> 0 | L74: =0 -> 0 | M74: =0 -> 0 | N74: =0 -> 0 | O74: =0 -> 0 | P74: =0 -> 0 | Q74: =0 -> 0
B75: 12.3.1 | C75: - w tym finansowane środkami określonymi w art. 5 ust. 1 pkt 2 ustawy | D75: - w tym finansowane środkami określonymi w art. 5 ust. 1 pkt 2 ustawy | E75: =1466388.17 -> 1466388.17 | F75: =2374365.08 -> 2374365.08 | G75: =834890.96 -> 834890.96 | H75: =834890.96 -> 834890.96 | I75: =0 -> 0 | J75: =0 -> 0 | K75: =0 -> 0 | L75: =0 -> 0 | M75: =0 -> 0 | N75: =0 -> 0 | O75: =0 -> 0 | P75: =0 -> 0 | Q75: =0 -> 0
B76: 12.3.2 | C76: Wydatki bieżące na realizację programu, projektu lub zadania wynikające wyłącznie z zawartych umów z podmiotem dysponującym środkami, o których mowa w art. 5 ust. 1 pkt 2 ustawy | D76: Wydatki bieżące na realizację programu, projektu lub zadania wynikające wyłącznie z zawartych umów z podmiotem dysponującym środkami, o których mowa w art. 5 ust. 1 pkt 2 ustawy | E76: =1714900.4 -> 1714900.4 | F76: =2804189.96 -> 2804189.96 | G76: =988921.26 -> 988921.26 | H76: =988921.26 -> 988921.26 | I76: =0 -> 0 | J76: =0 -> 0 | K76: =0 -> 0 | L76: =0 -> 0 | M76: =0 -> 0 | N76: =0 -> 0 | O76: =0 -> 0 | P76: =0 -> 0 | Q76: =0 -> 0
B77: 12.4 | C77: Wydatki majątkowe na programy, projekty lub zadania finansowane z udziałem środków, o których mowa w art. 5 ust. 1 pkt 2 i 3 ustawy | D77: Wydatki majątkowe na programy, projekty lub zadania finansowane z udziałem środków, o których mowa w art. 5 ust. 1 pkt 2 i 3 ustawy | E77: =579470.19 -> 579470.19 | F77: =191094 -> 191094 | G77: =27150 -> 27150 | H77: =27150 -> 27150 | I77: =0 -> 0 | J77: =0 -> 0 | K77: =0 -> 0 | L77: =0 -> 0 | M77: =0 -> 0 | N77: =0 -> 0 | O77: =0 -> 0 | P77: =0 -> 0 | Q77: =0 -> 0
B78: 12.4.1 | C78: - w tym finansowane środkami określonymi w art. 5 ust. 1 pkt 2 ustawy | D78: - w tym finansowane środkami określonymi w art. 5 ust. 1 pkt 2 ustawy | E78: =428821.64 -> 428821.64 | F78: =134139.9 -> 134139.9 | G78: =27150 -> 27150 | H78: =27150 -> 27150 | I78: =0 -> 0 | J78: =0 -> 0 | K78: =0 -> 0 | L78: =0 -> 0 | M78: =0 -> 0 | N78: =0 -> 0 | O78: =0 -> 0 | P78: =0 -> 0 | Q78: =0 -> 0
B79: 12.4.2 | C79: Wydatki majątkowe na realizację programu, projektu lub zadania wynikające wyłącznie z zawartych umów z podmiotem dysponującym środkami, o których mowa w art. 5 ust. 1 pkt 2 ustawy | D79: Wydatki majątkowe na realizację programu, projektu lub zadania wynikające wyłącznie z zawartych umów z podmiotem dysponującym środkami, o których mowa w art. 5 ust. 1 pkt 2 ustawy | E79: =579470.19 -> 579470.19 | F79: =191094 -> 191094 | G79: =27150 -> 27150 | H79: =27150 -> 27150 | I79: =0 -> 0 | J79: =0 -> 0 | K79: =0 -> 0 | L79: =0 -> 0 | M79: =0 -> 0 | N79: =0 -> 0 | O79: =0 -> 0 | P79: =0 -> 0 | Q79: =0 -> 0
B80: 12.5 | C80: Wydatki na wkład krajowy w związku z umową na realizację programu, projektu lub zadania finansowanego z udziałem środków, o których mowa w art. 5 ust. 1 pkt 2 ustawy bez względu na stopień finansowania tymi środkami | D80: Wydatki na wkład krajowy w związku z umową na realizację programu, projektu lub zadania finansowanego z udziałem środków, o których mowa w art. 5 ust. 1 pkt 2 ustawy bez względu na stopień finansowania tymi środkami | E80: =0 -> 0 | F80: =0 -> 0 | G80: =0 -> 0 | H80: =0 -> 0 | I80: =0 -> 0 | J80: =0 -> 0 | K80: =0 -> 0 | L80: =0 -> 0 | M80: =0 -> 0 | N80: =0 -> 0 | O80: =0 -> 0 | P80: =0 -> 0 | Q80: =0 -> 0
B81: 12.5.1 | C81: w tym w związku z już zawartą umową na realizację programu, projektu lub zadania | D81: w tym w związku z już zawartą umową na realizację programu, projektu lub zadania | E81: =0 -> 0 | F81: =0 -> 0 | G81: =0 -> 0 | H81: =0 -> 0 | I81: =0 -> 0 | J81: =0 -> 0 | K81: =0 -> 0 | L81: =0 -> 0 | M81: =0 -> 0 | N81: =0 -> 0 | O81: =0 -> 0 | P81: =0 -> 0 | Q81: =0 -> 0
B82: 12.6 | C82: Wydatki na wkład krajowy w związku z zawartą po dniu 1 stycznia 2013 r. umową na realizację programu, projektu lub zadania finansowanego w co najmniej 60% środkami, o których mowa w art. 5 ust. 1 pkt 2 ustawy | D82: Wydatki na wkład krajowy w związku z zawartą po dniu 1 stycznia 2013 r. umową na realizację programu, projektu lub zadania finansowanego w co najmniej 60% środkami, o których mowa w art. 5 ust. 1 pkt 2 ustawy | E82: =0 -> 0 | F82: =0 -> 0 | G82: =0 -> 0 | H82: =0 -> 0 | I82: =0 -> 0 | J82: =0 -> 0 | K82: =0 -> 0 | L82: =0 -> 0 | M82: =0 -> 0 | N82: =0 -> 0 | O82: =0 -> 0 | P82: =0 -> 0 | Q82: =0 -> 0
B83: 12.6.1 | C83: w tym w związku z już zawartą umową na realizację programu, projektu lub zadania | D83: w tym w związku z już zawartą umową na realizację programu, projektu lub zadania | E83: =0 -> 0 | F83: =0 -> 0 | G83: =0 -> 0 | H83: =0 -> 0 | I83: =0 -> 0 | J83: =0 -> 0 | K83: =0 -> 0 | L83: =0 -> 0 | M83: =0 -> 0 | N83: =0 -> 0 | O83: =0 -> 0 | P83: =0 -> 0 | Q83: =0 -> 0
B84: 12.7 | C84: Przychody z tytułu kredytów, pożyczek, emisji papierów wartościowych powstające w związku z umową na realizację programu, projektu lub zadania finansowanego z udziałem środków, o których mowa w art. 5 ust. 1 pkt 2 ustawy bez względu na stopień finansowania tymi środkami | D84: Przychody z tytułu kredytów, pożyczek, emisji papierów wartościowych powstające w związku z umową na realizację programu, projektu lub zadania finansowanego z udziałem środków, o których mowa w art. 5 ust. 1 pkt 2 ustawy bez względu na stopień finansowania tymi środkami | E84: =0 -> 0 | F84: =0 -> 0 | G84: =0 -> 0 | H84: =0 -> 0 | I84: =0 -> 0 | J84: =0 -> 0 | K84: =0 -> 0 | L84: =0 -> 0 | M84: =0 -> 0 | N84: =0 -> 0 | O84: =0 -> 0 | P84: =0 -> 0 | Q84: =0 -> 0
B85: 12.7.1 | C85: w tym w związku z już zawartą umową na realizację programu, projektu lub zadania | D85: w tym w związku z już zawartą umową na realizację programu, projektu lub zadania | E85: =0 -> 0 | F85: =0 -> 0 | G85: =0 -> 0 | H85: =0 -> 0 | I85: =0 -> 0 | J85: =0 -> 0 | K85: =0 -> 0 | L85: =0 -> 0 | M85: =0 -> 0 | N85: =0 -> 0 | O85: =0 -> 0 | P85: =0 -> 0 | Q85: =0 -> 0
B86: 12.8 | C86: Przychody z tytułu kredytów, pożyczek, emisji papierów wartościowych powstające w związku z zawartą po dniu 1 stycznia 2013 r. umową na realizację programu, projektu lub zadania finansowanego w co najmniej 60% środkami, o których mowa w art. 5 ust. 1 pkt 2 ustawy | D86: Przychody z tytułu kredytów, pożyczek, emisji papierów wartościowych powstające w związku z zawartą po dniu 1 stycznia 2013 r. umową na realizację programu, projektu lub zadania finansowanego w co najmniej 60% środkami, o których mowa w art. 5 ust. 1 pkt 2 ustawy | E86: =0 -> 0 | F86: =0 -> 0 | G86: =0 -> 0 | H86: =0 -> 0 | I86: =0 -> 0 | J86: =0 -> 0 | K86: =0 -> 0 | L86: =0 -> 0 | M86: =0 -> 0 | N86: =0 -> 0 | O86: =0 -> 0 | P86: =0 -> 0 | Q86: =0 -> 0
B87: 12.8.1 | C87: w tym w związku z już zawartą umową na realizację programu, projektu lub zadania | D87: w tym w związku z już zawartą umową na realizację programu, projektu lub zadania | E87: =0 -> 0 | F87: =0 -> 0 | G87: =0 -> 0 | H87: =0 -> 0 | I87: =0 -> 0 | J87: =0 -> 0 | K87: =0 -> 0 | L87: =0 -> 0 | M87: =0 -> 0 | N87: =0 -> 0 | O87: =0 -> 0 | P87: =0 -> 0 | Q87: =0 -> 0
B88: 13 | C88: Kwoty dotyczące przejęcia i spłaty zobowiązań po samodzielnych publicznych zakładach opieki zdrowotnej oraz pokrycia ujemnego wyniku | D88: Kwoty dotyczące przejęcia i spłaty zobowiązań po samodzielnych publicznych zakładach opieki zdrowotnej oraz pokrycia ujemnego wyniku | E88: x | F88: x | G88: x | H88: x | I88: x | J88: x | K88: x | L88: x | M88: x | N88: x | O88: x | P88: x | Q88: x
B89: 13.1 | C89: Kwota zobowiązań wynikających z przejęcia przez jednostkę samorządu terytorialnego zobowiązań po likwidowanych i przekształcanych samodzielnych zakładach opieki zdrowotnej | D89: Kwota zobowiązań wynikających z przejęcia przez jednostkę samorządu terytorialnego zobowiązań po likwidowanych i przekształcanych samodzielnych zakładach opieki zdrowotnej | E89: =0 -> 0 | F89: =0 -> 0 | G89: =0 -> 0 | H89: =0 -> 0 | I89: =0 -> 0 | J89: =0 -> 0 | K89: =0 -> 0 | L89: =0 -> 0 | M89: =0 -> 0 | N89: =0 -> 0 | O89: =0 -> 0 | P89: =0 -> 0 | Q89: =0 -> 0
B90: 13.2 | C90: Dochody budżetowe z tytułu dotacji celowej z budżetu państwa, o której mowa w art. 196 ustawy z dnia 15 kwietnia 2011 r. o działalności leczniczej (Dz.U. Nr 112, poz. 654, z późn. zm.) | D90: Dochody budżetowe z tytułu dotacji celowej z budżetu państwa, o której mowa w art. 196 ustawy z dnia 15 kwietnia 2011 r. o działalności leczniczej (Dz.U. Nr 112, poz. 654, z późn. zm.) | E90: =0 -> 0 | F90: =0 -> 0 | G90: =0 -> 0 | H90: =0 -> 0 | I90: =0 -> 0 | J90: =0 -> 0 | K90: =0 -> 0 | L90: =0 -> 0 | M90: =0 -> 0 | N90: =0 -> 0 | O90: =0 -> 0 | P90: =0 -> 0 | Q90: =0 -> 0
B91: 13.3 | C91: Wysokość zobowiązań podlegających umorzeniu, o którym mowa w art. 190 ustawy o działalności leczniczej | D91: Wysokość zobowiązań podlegających umorzeniu, o którym mowa w art. 190 ustawy o działalności leczniczej | E91: =0 -> 0 | F91: =0 -> 0 | G91: =0 -> 0 | H91: =0 -> 0 | I91: =0 -> 0 | J91: =0 -> 0 | K91: =0 -> 0 | L91: =0 -> 0 | M91: =0 -> 0 | N91: =0 -> 0 | O91: =0 -> 0 | P91: =0 -> 0 | Q91: =0 -> 0
B92: 13.4 | C92: Wydatki na spłatę przejętych zobowiązań samodzielnego publicznego zakładu opieki zdrowotnej przekształconego na zasadach określonych w przepisach o działalności leczniczej | D92: Wydatki na spłatę przejętych zobowiązań samodzielnego publicznego zakładu opieki zdrowotnej przekształconego na zasadach określonych w przepisach o działalności leczniczej | E92: =0 -> 0 | F92: =0 -> 0 | G92: =0 -> 0 | H92: =0 -> 0 | I92: =0 -> 0 | J92: =0 -> 0 | K92: =0 -> 0 | L92: =0 -> 0 | M92: =0 -> 0 | N92: =0 -> 0 | O92: =0 -> 0 | P92: =0 -> 0 | Q92: =0 -> 0
B93: 13.5 | C93: Wydatki na spłatę przejętych zobowiązań samodzielnego publicznego zakładu opieki zdrowotnej likwidowanego na zasadach określonych w przepisach o działalności leczniczej | D93: Wydatki na spłatę przejętych zobowiązań samodzielnego publicznego zakładu opieki zdrowotnej likwidowanego na zasadach określonych w przepisach o działalności leczniczej | E93: =0 -> 0 | F93: =0 -> 0 | G93: =0 -> 0 | H93: =0 -> 0 | I93: =0 -> 0 | J93: =0 -> 0 | K93: =0 -> 0 | L93: =0 -> 0 | M93: =0 -> 0 | N93: =0 -> 0 | O93: =0 -> 0 | P93: =0 -> 0 | Q93: =0 -> 0
B94: 13.6 | C94: Wydatki na spłatę zobowiązań samodzielnego publicznego zakładu opieki zdrowotnej przejętych do końca 2011 r. na podstawie przepisów o zakładach opieki zdrowotnej | D94: Wydatki na spłatę zobowiązań samodzielnego publicznego zakładu opieki zdrowotnej przejętych do końca 2011 r. na podstawie przepisów o zakładach opieki zdrowotnej | E94: =0 -> 0 | F94: =0 -> 0 | G94: =0 -> 0 | H94: =0 -> 0 | I94: =0 -> 0 | J94: =0 -> 0 | K94: =0 -> 0 | L94: =0 -> 0 | M94: =0 -> 0 | N94: =0 -> 0 | O94: =0 -> 0 | P94: =0 -> 0 | Q94: =0 -> 0
B95: 13.7 | C95: Wydatki bieżące na pokrycie ujemnego wyniku finansowego samodzielnego publicznego zakładu opieki zdrowotnej | D95: Wydatki bieżące na pokrycie ujemnego wyniku finansowego samodzielnego publicznego zakładu opieki zdrowotnej | E95: =0 -> 0 | F95: =0 -> 0 | G95: =0 -> 0 | H95: =0 -> 0 | I95: =0 -> 0 | J95: =0 -> 0 | K95: =0 -> 0 | L95: =0 -> 0 | M95: =0 -> 0 | N95: =0 -> 0 | O95: =0 -> 0 | P95: =0 -> 0 | Q95: =0 -> 0
A96: x | B96: 14 | C96: Dane uzupełniające o długu i jego spłacie | D96: Dane uzupełniające o długu i jego spłacie | E96: x | F96: x | G96: x | H96: x | I96: x | J96: x | K96: x | L96: x | M96: x | N96: x | O96: x | P96: x | Q96: x
A97: x | B97: 14.1 | C97: Spłaty rat kapitałowych oraz wykup papierów wartościowych, o których mowa w pkt. 5.1., wynikające wyłącznie z tytułu zobowiązań już zaciągniętych | D97: Spłaty rat kapitałowych oraz wykup papierów wartościowych, o których mowa w pkt. 5.1., wynikające wyłącznie z tytułu zobowiązań już zaciągniętych | E97: =4709034.88 -> 4709034.88 | F97: =2026525.28 -> 2026525.28 | G97: =915692 -> 915692 | H97: =915692 -> 915692 | I97: =1215692 -> 1215692 | J97: =1478204 -> 1478204 | K97: =1678204 -> 1678204 | L97: =1860004 -> 1860004 | M97: =2210004 -> 2210004 | N97: =2210004 -> 2210004 | O97: =2250004 -> 2250004 | P97: =2418000 -> 2418000 | Q97: =1250000 -> 1250000
A98: x | B98: 14.2 | C98: Kwota długu, którego planowana spłata dokona się z wydatków budżetu | D98: Kwota długu, którego planowana spłata dokona się z wydatków budżetu | E98: =0 -> 0 | F98: =0 -> 0 | G98: =0 -> 0 | H98: =0 -> 0 | I98: =0 -> 0 | J98: =0 -> 0 | K98: =0 -> 0 | L98: =0 -> 0 | M98: =0 -> 0 | N98: =0 -> 0 | O98: =0 -> 0 | P98: =0 -> 0 | Q98: =0 -> 0
A99: x | B99: 14.3 | C99: Wydatki zmniejszające dług, w tym | D99: Wydatki zmniejszające dług, w tym | E99: =0 -> 0 | F99: =0 -> 0 | G99: =0 -> 0 | H99: =0 -> 0 | I99: =0 -> 0 | J99: =0 -> 0 | K99: =0 -> 0 | L99: =0 -> 0 | M99: =0 -> 0 | N99: =0 -> 0 | O99: =0 -> 0 | P99: =0 -> 0 | Q99: =0 -> 0
A100: x | B100: 14.3.1 | C100: spłata zobowiązań wymagalnych z lat poprzednich, innych niż w pkt 14.3.3 | D100: spłata zobowiązań wymagalnych z lat poprzednich, innych niż w pkt 14.3.3 | E100: =0 -> 0 | F100: =0 -> 0 | G100: =0 -> 0 | H100: =0 -> 0 | I100: =0 -> 0 | J100: =0 -> 0 | K100: =0 -> 0 | L100: =0 -> 0 | M100: =0 -> 0 | N100: =0 -> 0 | O100: =0 -> 0 | P100: =0 -> 0 | Q100: =0 -> 0
A101: x | B101: 14.3.2 | C101: związane z umowami zaliczanymi do tytułów dłużnych wliczanych do państwowego długu publicznego | D101: związane z umowami zaliczanymi do tytułów dłużnych wliczanych do państwowego długu publicznego | E101: =0 -> 0 | F101: =0 -> 0 | G101: =0 -> 0 | H101: =0 -> 0 | I101: =0 -> 0 | J101: =0 -> 0 | K101: =0 -> 0 | L101: =0 -> 0 | M101: =0 -> 0 | N101: =0 -> 0 | O101: =0 -> 0 | P101: =0 -> 0 | Q101: =0 -> 0
A102: x | B102: 14.3.3 | C102: wypłaty z tytułu wymagalnych poręczeń i gwarancji | D102: wypłaty z tytułu wymagalnych poręczeń i gwarancji | E102: =0 -> 0 | F102: =0 -> 0 | G102: =0 -> 0 | H102: =0 -> 0 | I102: =0 -> 0 | J102: =0 -> 0 | K102: =0 -> 0 | L102: =0 -> 0 | M102: =0 -> 0 | N102: =0 -> 0 | O102: =0 -> 0 | P102: =0 -> 0 | Q102: =0 -> 0
A103: x | B103: 14.4 | C103: Wynik operacji niekasowych wpływających na kwotę długu ( m.in. umorzenia, różnice kursowe) | D103: Wynik operacji niekasowych wpływających na kwotę długu ( m.in. umorzenia, różnice kursowe) | E103: =0 -> 0 | F103: =0 -> 0 | G103: =0 -> 0 | H103: =0 -> 0 | I103: =0 -> 0 | J103: =0 -> 0 | K103: =0 -> 0 | L103: =0 -> 0 | M103: =0 -> 0 | N103: =0 -> 0 | O103: =0 -> 0 | P103: =0 -> 0 | Q103: =0 -> 0
B104: 15 | C104: Dane dotyczące emitowanych obligacji przychodowych | D104: Dane dotyczące emitowanych obligacji przychodowych | E104: x | F104: x | G104: x | H104: x | I104: x | J104: x | K104: x | L104: x | M104: x | N104: x | O104: x | P104: x | Q104: x
B105: 15.1 | C105: Środki z przedsięwzięcia gromadzone na rachunku bankowym, w tym: | D105: Środki z przedsięwzięcia gromadzone na rachunku bankowym, w tym: | E105: =0 -> 0 | F105: =0 -> 0 | G105: =0 -> 0 | H105: =0 -> 0 | I105: =0 -> 0 | J105: =0 -> 0 | K105: =0 -> 0 | L105: =0 -> 0 | M105: =0 -> 0 | N105: =0 -> 0 | O105: =0 -> 0 | P105: =0 -> 0 | Q105: =0 -> 0
A106: x | B106: 15.1.1 | C106: środki na zaspokojenie roszczeń obligatariuszy | D106: środki na zaspokojenie roszczeń obligatariuszy | E106: =0 -> 0 | F106: =0 -> 0 | G106: =0 -> 0 | H106: =0 -> 0 | I106: =0 -> 0 | J106: =0 -> 0 | K106: =0 -> 0 | L106: =0 -> 0 | M106: =0 -> 0 | N106: =0 -> 0 | O106: =0 -> 0 | P106: =0 -> 0 | Q106: =0 -> 0
A107: x | B107: 15.2 | C107: Wydatki bieżące z tytułu świadczenia emitenta należnego obligatariuszom, nieuwzględniane w limicie spłaty zobowiązań, o którym mowa w art. 243 ustawy | D107: Wydatki bieżące z tytułu świadczenia emitenta należnego obligatariuszom, nieuwzględniane w limicie spłaty zobowiązań, o którym mowa w art. 243 ustawy | E107: =0 -> 0 | F107: =0 -> 0 | G107: =0 -> 0 | H107: =0 -> 0 | I107: =0 -> 0 | J107: =0 -> 0 | K107: =0 -> 0 | L107: =0 -> 0 | M107: =0 -> 0 | N107: =0 -> 0 | O107: =0 -> 0 | P107: =0 -> 0 | Q107: =0 -> 0
B108: 16 | D108: Stopień niezachowania relacji określonych w art. 242-244 ustawy (dotyczy tylko JST objętych procedurą z art. 240a lub 240b) | E108: x | F108: x | G108: x | H108: x | I108: x | J108: x | K108: x | L108: x | M108: x | N108: x | O108: x | P108: x | Q108: x
B109: 16.1 | D109: Stopień niezachowania relacji zrównoważenia wydatków bieżących, o której mowa w poz. 8.2 | E109: x | F109: x | G109: x | H109: x | I109: =+IF(I45<0,I45,"") ->  | J109: =+IF(J45<0,J45,"") -> 
A110: x | B110: 16.2 | D110: Stopień niezachowania wskaźnika spłaty zobowiązań, o którym mowa w poz. 9.7 | E110: x | F110: x | G110: x | H110: x | I110: =IF(I50<=I52,"",I52- I50) ->  | J110: =IF(J50<=J52,"",J52- J50) -> 
A111: x | B111: 16.3 | D111: Stopień niezachowania wskaźnika spłaty zobowiązań, o którym mowa w poz. 9.7.1 | E111: x | F111: x | G111: x | H111: x | I111: =IF(I50<=I53,"",I53-I50) ->  | J111: =IF(J50<=J53,"",J53-J50) -> 
B117: Weryfikacja wybranych danych wykazanych w tabeli Wieloletnia Prognoza Finansowa
D118: Reguła formalna
D119: Reguła rachunkowa
D120: Reguła logiczna
D121: Reguły kontrolne
B122: [1.1] + [4.1] + [4.2] >= ([2.1] - [2.1.2]) | C122: [1.1] + [4.1] + [4.2] >= ([2.1] - [2.1.2]) | D122: Spełnienie wskaźnika z art. 242 | E122: x | F122: x | G122: x | H122: x | I122: =IF(ROUND(I4+I26+I28,2)>=ROUND(I15-I18,2),"TAK","NIE") -> TAK | J122: TAK | K122: TAK | L122: TAK | M122: TAK | N122: TAK | O122: TAK | P122: TAK | Q122: TAK
B123: [13.3] = 0 (dla lat 2014 i wyższych) | C123: [13.3] = 0 (dla lat 2014 i wyższych) | D123: Umorzenie zobowiązań, o którym mowa w art. 190 ustawy o działalności leczniczej nie wykracza poza ustawowy okres | E123: x | F123: x | G123: x | H123: x | I123: x | J123: x | K123: =IF(K91=0,"TAK","BŁĄD") -> TAK | L123: TAK | M123: TAK | N123: TAK | O123: TAK | P123: TAK | Q123: TAK
B124: [1] + [4] - [2] - [5] = 0 | C124: [1] + [4] - [2] - [5] = 0 | D124: Kontrola poprawności zbilansowania budżetu | E124: x | F124: x | G124: x | H124: x | I124: =IF(ROUND(I3+I25-I14-I34,2)=0,"OK",ROUND(I3+I25-I14-I34,2)) -> OK | J124: OK | K124: OK | L124: OK | M124: OK | N124: OK | O124: OK | P124: OK | Q124: OK
B125: [6]"n" = [6]"n-1" + [4.3]"n" - [5.1]"n" + ([14.2]"n"-[14.2]"n-1") + [14.4] | C125: [6]"n" = [6]"n-1" + [4.3]"n" - [5.1]"n" + ([14.2]"n"-[14.2]"n-1") + [14.4] | D125: Kontrola poprawności wyliczenia kwoty długu | E125: x | F125: x | G125: x | H125: x | I125: =+IF(ROUND(H41+I30-I35+(I98-H98)+I103-I41,2)=0,"OK",ROUND(H41+I30-I35+(I98-H98)+I103-I41,2)) -> OK | J125: OK | K125: OK | L125: OK | M125: OK | N125: OK | O125: OK | P125: OK | Q125: OK
B126: [14.2] "n" = ( [14.2] "n-1" - [14.3] "n" ) | C126: [14.2] "n" = ( [14.2] "n-1" - [14.3] "n" ) | D126: Analiza zmiany kwoty długu spłacanego wydatkami budżetu - wartości różne od zera wymagają objaśnienia - wartości większe od zera wskazują na powstanie w roku prognozy nowego długu tego typu - wartości mniejsze od zera co do zasady nie powinny wystąpić | E126: x | F126: x | G126: x | H126: x | I126: =+IF(H98=0,"N/D",IF(ROUND(I98+I99-H98,2)=0,"OK",ROUND(I98+I99-H98,2))) -> N/D | J126: N/D | K126: N/D | L126: N/D | M126: N/D | N126: N/D | O126: N/D | P126: N/D | Q126: N/D
B127: [13.1] "n" - ( [13.3] + [13.4] + [13.5] + [13.6] ) "n" = [13.1] "n-1" | C127: [13.1] "n" - ( [13.3] + [13.4] + [13.5] + [13.6] ) "n" = [13.1] "n-1" | D127: Porównanie na koniec roku prognozy stanu zobowiązań przejętych przez jst po likwidowanych i przekształcanych SP ZOZ z wydatkami i umorzeniami poniesionymi na ten cel ze stanem zobowiązań z okresu N-1 | E127: x | F127: x | G127: x | H127: x | I127: =+IF(H89=0,"N/D",IF(ROUND(I89+(I91+I92+I93+I94)-H89,2)=0,"OK",ROUND(I89+(I91+I92+I93+I94)-H89,2))) -> N/D | J127: N/D | K127: N/D | L127: N/D | M127: N/D | N127: N/D | O127: N/D | P127: N/D | Q127: N/D
B128: jeśli [3] < 0 to sprawdź czy [4.1.1] + [4.2.1] + [4.3.1] + [4.4.1] + [3] = 0 | C128: jeśli [3] < 0 to sprawdź czy [4.1.1] + [4.2.1] + [4.3.1] + [4.4.1] + [3] = 0 | D128: Kontrola poprawności wykazania źródeł pokrycia deficytu | E128: x | F128: x | G128: x | H128: x | I128: =IF(I24<0,IF(ROUND(I27+I29+I31+I33+I24,2)=0,"OK",ROUND(I27+I29+I31+I33+I24,2)),"N/D") -> N/D | J128: N/D | K128: N/D | L128: N/D | M128: N/D | N128: N/D | O128: N/D | P128: N/D | Q128: N/D
B129: jeśli [3] >= 0 to sprawdź czy [4.1.1]=0 i [4.2.1]=0 i [4.3.1]=0 i [4.4.1] = 0 | C129: jeśli [3] >= 0 to sprawdź czy [4.1.1]=0 i [4.2.1]=0 i [4.3.1]=0 i [4.4.1] = 0 | D129: Kontrola poprawności niewykazania źródeł pokrycia deficytu przy nadwyżce budżetu | E129: x | F129: x | G129: x | H129: x | I129: =IF(I24>=0,IF(ROUND(I27+I29+I31+I33,2)=0,"OK",ROUND(I27+I29+I31+I33,2)),"N/D") -> OK | J129: OK | K129: OK | L129: OK | M129: OK | N129: OK | O129: OK | P129: OK | Q129: OK
B130: [1.1.3] >= [1.1.3.1] | C130: [1.1.3] >= [1.1.3.1] | D130: Reguła logiczna: [1.1.3] >= [1.1.3.1] | E130: x | F130: x | G130: x | H130: x | I130: =IF(I7>=I8,"OK","BŁĄD") -> OK | J130: OK | K130: OK | L130: OK | M130: OK | N130: OK | O130: OK | P130: OK | Q130: OK
B131: [1.1.5] >= [13.2] | C131: [1.1.5] >= [13.2] | D131: Reguła logiczna: [1.1.5] >= [13.2] | E131: x | F131: x | G131: x | H131: x | I131: =IF(I10>=I90,"OK","BŁĄD") -> OK | J131: OK | K131: OK | L131: OK | M131: OK | N131: OK | O131: OK | P131: OK | Q131: OK
B132: [1.1] >= ([1.1.1] + [1.1.2] + [1.1.3] + [1.1.4] + [1.1.5]) | C132: [1.1] >= ([1.1.1] + [1.1.2] + [1.1.3] + [1.1.4] + [1.1.5]) | D132: Reguła logiczna: [1.1] >= ([1.1.1] + [1.1.2] + [1.1.3] + [1.1.4] + [1.1.5]) | E132: x | F132: x | G132: x | H132: x | I132: =IF(I4>=I5+I6+I7+I9+I10,"OK","BŁĄD") -> OK | J132: OK | K132: OK | L132: OK | M132: OK | N132: OK | O132: OK | P132: OK | Q132: OK
B133: [1.1] >= [12.1] | C133: [1.1] >= [12.1] | D133: Reguła logiczna: [1.1] >= [12.1] | E133: x | F133: x | G133: x | H133: x | I133: =IF(I4>=I68,"OK","BŁĄD") -> OK | J133: OK | K133: OK | L133: OK | M133: OK | N133: OK | O133: OK | P133: OK | Q133: OK
B134: [1.2] >= [1.2.1] | C134: [1.2] >= [1.2.1] | D134: Reguła logiczna: [1.2] >= [1.2.1] | E134: x | F134: x | G134: x | H134: x | I134: =IF(I11>=I12,"OK","BŁĄD") -> OK | J134: OK | K134: OK | L134: OK | M134: OK | N134: OK | O134: OK | P134: OK | Q134: OK
B135: [1.2] >= [1.2.2] | C135: [1.2] >= [1.2.2] | D135: Reguła logiczna: [1.2] >= [1.2.2] | E135: x | F135: x | G135: x | H135: x | I135: =IF(I11>=I13,"OK","BŁĄD") -> OK | J135: OK | K135: OK | L135: OK | M135: OK | N135: OK | O135: OK | P135: OK | Q135: OK
B136: [1.2] >= [12.2] | C136: [1.2] >= [12.2] | D136: Reguła logiczna: [1.2] >= [12.2] | E136: x | F136: x | G136: x | H136: x | I136: =IF(I11>=I71,"OK","BŁĄD") -> OK | J136: OK | K136: OK | L136: OK | M136: OK | N136: OK | O136: OK | P136: OK | Q136: OK
D137: Reguła logiczna: jeżeli [3] >0 to [10] = [3] | E137: x | F137: x | G137: x | H137: x | I137: =+IF(I24>0,IF(I24=I56,"OK","Błąd"),"N/D") -> N/D | J137: OK | K137: OK | L137: OK | M137: OK | N137: OK | O137: OK | P137: OK | Q137: OK
B138: [10] >= [10.1] | C138: [10] >= [10.1] | D138: Reguła logiczna: [10] >= [10.1] | E138: x | F138: x | G138: x | H138: x | I138: =IF(I56>=I57,"OK","BŁĄD") -> OK | J138: OK | K138: OK | L138: OK | M138: OK | N138: OK | O138: OK | P138: OK | Q138: OK
C139: jeśli [10] > 0 to powinno być [10.1] > 0 | D139: Reguła logiczna: jeżeli [10] > 0 to [10.1] >0 | E139: x | F139: x | G139: x | H139: x | I139: =IF(I56>0,IF(I57>0,"OK","BŁĄD"),"N/D") -> N/D | J139: OK | K139: OK | L139: OK | M139: OK | N139: OK | O139: OK | P139: OK | Q139: OK
B140: [12.1] >= [12.1.1] | C140: [12.1] >= [12.1.1] | D140: Reguła logiczna: [12.1] >= [12.1.1] | E140: x | F140: x | G140: x | H140: x | I140: =IF(I68>=I69,"OK","BŁĄD") -> OK | J140: OK | K140: OK | L140: OK | M140: OK | N140: OK | O140: OK | P140: OK | Q140: OK
B141: [12.1.1] >= [12.1.1.1] | C141: [12.1.1] >= [12.1.1.1] | D141: Reguła logiczna: [12.1.1] >= [12.1.1.1] | E141: x | F141: x | G141: x | H141: x | I141: =IF(I69>=I70,"OK","BŁĄD") -> OK | J141: OK | K141: OK | L141: OK | M141: OK | N141: OK | O141: OK | P141: OK | Q141: OK
B142: [12.2] >= [12.2.1] | C142: [12.2] >= [12.2.1] | D142: Reguła logiczna: [12.2] >= [12.2.1] | E142: x | F142: x | G142: x | H142: x | I142: =IF(I71>=I72,"OK","BŁĄD") -> OK | J142: OK | K142: OK | L142: OK | M142: OK | N142: OK | O142: OK | P142: OK | Q142: OK
B143: [12.2.1] >= [12.2.1.1] | C143: [12.2.1] >= [12.2.1.1] | D143: Reguła logiczna: [12.2.1] >= [12.2.1.1] | E143: x | F143: x | G143: x | H143: x | I143: =IF(I72>=I73,"OK","BŁĄD") -> OK | J143: OK | K143: OK | L143: OK | M143: OK | N143: OK | O143: OK | P143: OK | Q143: OK
B144: [12.3] >= [12.3.1] | C144: [12.3] >= [12.3.1] | D144: Reguła logiczna: [12.3] >= [12.3.1] | E144: x | F144: x | G144: x | H144: x | I144: =IF(I74>=I75,"OK","BŁĄD") -> OK | J144: OK | K144: OK | L144: OK | M144: OK | N144: OK | O144: OK | P144: OK | Q144: OK
B145: [12.3] >= [12.3.2] | C145: [12.3] >= [12.3.2] | D145: Reguła logiczna: [12.3] >= [12.3.2] | E145: x | F145: x | G145: x | H145: x | I145: =IF(I74>=I76,"OK","BŁĄD") -> OK | J145: OK | K145: OK | L145: OK | M145: OK | N145: OK | O145: OK | P145: OK | Q145: OK
B146: [12.4] >= [12.4.1] | C146: [12.4] >= [12.4.1] | D146: Reguła logiczna: [12.4] >= [12.4.1] | E146: x | F146: x | G146: x | H146: x | I146: =IF(I77>=I78,"OK","BŁĄD") -> OK | J146: OK | K146: OK | L146: OK | M146: OK | N146: OK | O146: OK | P146: OK | Q146: OK
B147: [12.4] >= [12.4.2] | C147: [12.4] >= [12.4.2] | D147: Reguła logiczna: [12.4] >= [12.4.2] | E147: x | F147: x | G147: x | H147: x | I147: =IF(I77>=I79,"OK","BŁĄD") -> OK | J147: OK | K147: OK | L147: OK | M147: OK | N147: OK | O147: OK | P147: OK | Q147: OK
B148: [12.4] >= [12.4.1] | C148: [12.4] >= [12.4.1] | D148: Reguła logiczna: [12.5] >= [12.5.1] | E148: x | F148: x | G148: x | H148: x | I148: =IF(I80>=I81,"OK","BŁĄD") -> OK | J148: =IF(J80>=J81,"OK","BŁĄD") -> OK | K148: OK | L148: OK | M148: OK | N148: OK | O148: OK | P148: OK | Q148: OK
B149: [12.4] >= [12.4.1] | C149: [12.4] >= [12.4.1] | D149: Reguła logiczna: [12.6] >= [12.6.1] | E149: x | F149: x | G149: x | H149: x | I149: =IF(I82>=I83,"OK","BŁĄD") -> OK | J149: =IF(J82>=J83,"OK","BŁĄD") -> OK | K149: OK | L149: OK | M149: OK | N149: OK | O149: OK | P149: OK | Q149: OK
B150: [12.4] >= [12.4.1] | C150: [12.4] >= [12.4.1] | D150: Reguła logiczna: [12.7] >= [12.7.1] | E150: x | F150: x | G150: x | H150: x | I150: =IF(I84>=I85,"OK","BŁĄD") -> OK | J150: =IF(J84>=J85,"OK","BŁĄD") -> OK | K150: OK | L150: OK | M150: OK | N150: OK | O150: OK | P150: OK | Q150: OK
B151: [12.4] >= [12.4.1] | C151: [12.4] >= [12.4.1] | D151: Reguła logiczna: [12.8] >= [12.8.1] | E151: x | F151: x | G151: x | H151: x | I151: =IF(I86>=I87,"OK","BŁĄD") -> OK | J151: =IF(J86>=J87,"OK","BŁĄD") -> OK | K151: OK | L151: OK | M151: OK | N151: OK | O151: OK | P151: OK | Q151: OK
B152: [13.1] >= [13.3] | C152: [13.1] >= [13.3] | D152: Reguła logiczna: [13.1] >= [13.3] | E152: x | F152: x | G152: x | H152: x | I152: =IF(I89>=I91,"OK","BŁĄD") -> OK | J152: OK | K152: OK | L152: OK | M152: OK | N152: OK | O152: OK | P152: OK | Q152: OK
B153: [13.4] >= [2.1.2] | C153: [13.4] >= [2.1.2] | D153: Reguła logiczna: [13.4] >= [2.1.2] | E153: x | F153: x | G153: x | H153: x | I153: =IF(I92>=I18,"OK","BŁĄD") -> OK | J153: OK | K153: OK | L153: OK | M153: OK | N153: OK | O153: OK | P153: OK | Q153: OK
B154: [14.3] >= [14.3.1] + [14.3.2] + [14.3.3] | C154: [14.3] >= [14.3.1] + [14.3.2] + [14.3.3] | D154: Reguła logiczna: [14.3] >= [14.3.1] + [14.3.2] + [14.3.3] | E154: x | F154: x | G154: x | H154: x | I154: =IF(I99>=(I100+I101+I102),"OK","BŁĄD") -> OK | J154: OK | K154: OK | L154: OK | M154: OK | N154: OK | O154: OK | P154: OK | Q154: OK
B155: [13.1] >= [13.3] | C155: [13.1] >= [13.3] | D155: Reguła logiczna: [15.1] >= [15.1.1] | E155: x | F155: x | G155: x | H155: x | I155: =IF(I105>=I106,"OK","BŁĄD") -> OK | J155: =IF(J105>=J106,"OK","BŁĄD") -> OK | K155: OK | L155: OK | M155: OK | N155: OK | O155: OK | P155: OK | Q155: OK
B156: [2.1.1] >= [2.1.1.1] | C156: [2.1.1] >= [2.1.1.1] | D156: Reguła logiczna: [2.1.1] >= [2.1.1.1] | E156: x | F156: x | G156: x | H156: x | I156: =IF(I16>=I17,"OK","BŁĄD") -> OK | J156: OK | K156: OK | L156: OK | M156: OK | N156: OK | O156: OK | P156: OK | Q156: OK
B157: [2.1.1] >= [14.3.3] | C157: [2.1.1] >= [14.3.3] | D157: Reguła logiczna: [2.1.1] >= [14.3.3] | E157: x | F157: x | G157: x | H157: x | I157: =IF(I16>=I102,"OK","BŁĄD") -> OK | J157: OK | K157: OK | L157: OK | M157: OK | N157: OK | O157: OK | P157: OK | Q157: OK
B158: [2.1.3] >= [2.1.3.1] | C158: [2.1.3] >= [2.1.3.1] | D158: Reguła logiczna: [2.1.3] >= [2.1.3.1] | E158: x | F158: x | G158: x | H158: x | I158: =IF(I19>=I20,"OK","BŁĄD") -> OK | J158: OK | K158: OK | L158: OK | M158: OK | N158: OK | O158: OK | P158: OK | Q158: OK
B159: [2.1.3] >= [2.1.3.1] | C159: [2.1.3] >= [2.1.3.1] | D159: Reguła logiczna: [2.1.3.1] >= [2.1.3.1.1]+[2.1.3.1.2] | E159: x | F159: x | G159: x | H159: x | I159: =IF(I20>=(I21+I22),"OK","BŁĄD") -> OK | J159: =IF(J20>=J21,"OK","BŁĄD") -> OK | K159: OK | L159: OK | M159: OK | N159: OK | O159: OK | P159: OK | Q159: OK
B160: [2.1] >= ([2.1.1] + [2.1.2] + [2.1.3]) | C160: [2.1] >= ([2.1.1] + [2.1.2] + [2.1.3]) | D160: Reguła logiczna: [2.1] >= ([2.1.1] + [2.1.2] + [2.1.3]) | E160: x | F160: x | G160: x | H160: x | I160: =IF(I15>=(I16+I18+I19),"OK","BŁĄD") -> OK | J160: OK | K160: OK | L160: OK | M160: OK | N160: OK | O160: OK | P160: OK | Q160: OK
B161: [2.1] >= [11.1] | C161: [2.1] >= [11.1] | D161: Reguła logiczna: [2.1] >= [11.1] | E161: x | F161: x | G161: x | H161: x | I161: =IF(I15>=I59,"OK","BŁĄD") -> OK | J161: OK | K161: OK | L161: OK | M161: OK | N161: OK | O161: OK | P161: OK | Q161: OK
B162: [2.1] >= [11.3.1] | C162: [2.1] >= [11.3.1] | D162: Reguła logiczna: [2.1] >= [11.3.1] | E162: x | F162: x | G162: x | H162: x | I162: =IF(I15>=I62,"OK","BŁĄD") -> OK | J162: OK | K162: OK | L162: OK | M162: OK | N162: OK | O162: OK | P162: OK | Q162: OK
B163: [2.1] >= [12.3] | C163: [2.1] >= [12.3] | D163: Reguła logiczna: [2.1] >= [12.3] | E163: x | F163: x | G163: x | H163: x | I163: =IF(I15>=I74,"OK","BŁĄD") -> OK | J163: OK | K163: OK | L163: OK | M163: OK | N163: OK | O163: OK | P163: OK | Q163: OK
B164: [2.1] >= [13.7] | C164: [2.1] >= [13.7] | D164: Reguła logiczna: [2.1] >= [13.7] | E164: x | F164: x | G164: x | H164: x | I164: =IF(I15>=I95,"OK","BŁĄD") -> OK | J164: OK | K164: OK | L164: OK | M164: OK | N164: OK | O164: OK | P164: OK | Q164: OK
B165: [2.2] >= [11.3.2] | C165: [2.2] >= [11.3.2] | D165: Reguła logiczna: [2.2] >= [11.3.2] | E165: x | F165: x | G165: x | H165: x | I165: =IF(I23>=I63,"OK","BŁĄD") -> OK | J165: OK | K165: OK | L165: OK | M165: OK | N165: OK | O165: OK | P165: OK | Q165: OK
B166: [2.2] >= [11.4] + [11.5] | C166: [2.2] >= [11.4] + [11.5] | D166: Reguła logiczna: [2.2] >= [11.4] + [11.5] | E166: x | F166: x | G166: x | H166: x | I166: =IF(I23>=I64+I65,"OK","BŁĄD") -> OK | J166: OK | K166: OK | L166: OK | M166: OK | N166: OK | O166: OK | P166: OK | Q166: OK
B167: [2.2] >= [11.6] | C167: [2.2] >= [11.6] | D167: Reguła logiczna: [2.2] >= [11.6] | E167: x | F167: x | G167: x | H167: x | I167: =IF(I23>=I66,"OK","BŁĄD") -> OK | J167: OK | K167: OK | L167: OK | M167: OK | N167: OK | O167: OK | P167: OK | Q167: OK
B168: [2.2] >= [12.4] | C168: [2.2] >= [12.4] | D168: Reguła logiczna: [2.2] >= [12.4] | E168: x | F168: x | G168: x | H168: x | I168: =IF(I23>=I77,"OK","BŁĄD") -> OK | J168: OK | K168: OK | L168: OK | M168: OK | N168: OK | O168: OK | P168: OK | Q168: OK
B169: [4.1] >= [4.1.1] | C169: [4.1] >= [4.1.1] | D169: Reguła logiczna: [4.1] >= [4.1.1] | E169: x | F169: x | G169: x | H169: x | I169: =IF(I26>=I27,"OK","BŁĄD") -> OK | J169: OK | K169: OK | L169: OK | M169: OK | N169: OK | O169: OK | P169: OK | Q169: OK
B170: [4.2] >= [4.2.1] | C170: [4.2] >= [4.2.1] | D170: Reguła logiczna: [4.2] >= [4.2.1] | E170: x | F170: x | G170: x | H170: x | I170: =IF(I28>=I29,"OK","BŁĄD") -> OK | J170: OK | K170: OK | L170: OK | M170: OK | N170: OK | O170: OK | P170: OK | Q170: OK
B171: [4.3] >= [4.3.1] | C171: [4.3] >= [4.3.1] | D171: Reguła logiczna: [4.3] >= [4.3.1] | E171: x | F171: x | G171: x | H171: x | I171: =IF(I30>=I31,"OK","BŁĄD") -> OK | J171: OK | K171: OK | L171: OK | M171: OK | N171: OK | O171: OK | P171: OK | Q171: OK
B172: [4.4] >= [4.4.1] | C172: [4.4] >= [4.4.1] | D172: Reguła logiczna: [4.4] >= [4.4.1] | E172: x | F172: x | G172: x | H172: x | I172: =IF(I32>=I33,"OK","BŁĄD") -> OK | J172: OK | K172: OK | L172: OK | M172: OK | N172: OK | O172: OK | P172: OK | Q172: OK
B173: [5.1] >= [5.1.1] | C173: [5.1] >= [5.1.1] | D173: Reguła logiczna: [5.1] >= [5.1.1] | E173: x | F173: x | G173: x | H173: x | I173: =IF(I35>=I36,"OK","BŁĄD") -> OK | J173: OK | K173: OK | L173: OK | M173: OK | N173: OK | O173: OK | P173: OK | Q173: OK
B174: [5.1] >= [10.1] | C174: [5.1] >= [10.1] | D174: Reguła logiczna: [5.1] >= [10.1] | E174: x | F174: x | G174: x | H174: x | I174: =IF(I35>=I57,"OK","BŁĄD") -> OK | J174: OK | K174: OK | L174: OK | M174: OK | N174: OK | O174: OK | P174: OK | Q174: OK
B175: [5.1] >= [14.1] | C175: [5.1] >= [14.1] | D175: Reguła logiczna: [5.1] >= [14.1] | E175: x | F175: x | G175: x | H175: x | I175: =IF(I35>=I97,"OK","BŁĄD") -> OK | J175: OK | K175: OK | L175: OK | M175: OK | N175: OK | O175: OK | P175: OK | Q175: OK
B176: [6] >=[7] | C176: [6] >=[7] | D176: Reguła logiczna: [6] >=[7] | E176: x | F176: x | G176: x | H176: x | I176: =IF(I41>=I42,"OK","BŁĄD") -> OK | J176: OK | K176: OK | L176: OK | M176: OK | N176: OK | O176: OK | P176: OK | Q176: OK
B177: [6] >= [14.2] | C177: [6] >= [14.2] | D177: Reguła logiczna: [6] >= [14.2] | E177: x | F177: x | G177: x | H177: x | I177: =IF(I41>=I98,"OK","BŁĄD") -> OK | J177: OK | K177: OK | L177: OK | M177: OK | N177: OK | O177: OK | P177: OK | Q177: OK
B178: 7>=13.1 | C178: 7>=13.1 | D178: Reguła logiczna: 7>=13.1 | E178: x | F178: x | G178: x | H178: x | I178: =IF(I42>=I89,"OK","BŁĄD") -> OK | J178: OK | K178: OK | L178: OK | M178: OK | N178: OK | O178: OK | P178: OK | Q178: OK
B179: jeżeli [2.1.3] <> 0 to [2.1.3.1] <> 0 | C179: jeżeli [2.1.3] <> 0 to [2.1.3.1] <> 0 | D179: Reguła logiczna: jeżeli [2.1.3] <> 0 to [2.1.3.1] <> 0 | E179: x | F179: x | G179: x | H179: x | I179: =IF(I19<>0,IF(I20<>0,"OK","BŁĄD"),"N/D") -> OK | J179: OK | K179: OK | L179: OK | M179: OK | N179: OK | O179: OK | P179: OK | Q179: OK
D181: Kontrola poprawności podstawowych kwot
D182: Dochody ogółem = bieżące + majątkowe | E182: =E4+E11 -> 36897999.47 | F182: 38775186.08 | G182: 36552514.89 | H182: 36552514.89 | I182: 32174588 | J182: 33100000 | K182: 34100000 | L182: 35100000 | M182: 36100000 | N182: 37100000 | O182: 38100000 | P182: 39100000 | Q182: 40100000
D183: Wydatki ogółem = bieżące + majątkowe | E183: =E15+E23 -> 37003938.3 | F183: 37365699.93 | G183: 42482913.27 | H183: 42482913.27 | I183: 32174588 | J183: 31621796 | K183: 32421796 | L183: 33239996 | M183: 33889996 | N183: 34889996 | O183: 35849996 | P183: 36682000 | Q183: 36681616
D184: Wynik budżetu = dochody ogółem - wydatki ogółem | E184: =E3-E14 -> -105938.83 | F184: 1409486.15 | G184: -5930398.38 | H184: -5930398.38 | I184: 0 | J184: 1478204 | K184: 1678204 | L184: 1860004 | M184: 2210004 | N184: 2210004 | O184: 2250004 | P184: 2418000 | Q184: 3418384
D185: Wyliczenie kwoty długu | E185: x | F185: =E41+F30-F35+(F98-E98)+F103 -> 15984842.88 | G185: x | H185: =F41+H30-H35+(H98-F98)+H103 -> 17522808 | I185: =H41+I30-I35+(I98-H98)+I103 -> 17522808 | J185: 16044604 | K185: 14366400 | L185: 12506396 | M185: 10296392 | N185: 8086388 | O185: 5836384 | P185: 3418384 | Q185: 0
D186: Wyliczenie zobowiązań wynikających z przejęcia przez jst zobowiązań po likwidowanych i przekształcanych SZOZ | E186: x | F186: =E89-(F91+F92+F93+F94) -> 0 | G186: x | H186: =F89-(H91+H92+H93+H94) -> 0 | I186: =H89-(I91+I92+I93+I94) -> 0 | J186: 0 | K186: 0 | L186: 0 | M186: 0 | N186: 0 | O186: 0 | P186: 0 | Q186: 0
D188: Analiza ryzyka niespełnienia wskaźnika z art. 243
D189: Analiza składowych wzoru wskaźnika z art. 243
D190: 0 | E190: =+"różnica mniejsza od "&TEXT(D190*100,"0,0")&"%" -> różnica mniejsza od 0,0%
D191: 0.005 | E191: =+"różnica mniejsza od "&TEXT(D191*100,"0,0")&"%" -> różnica mniejsza od 0,5%
D192: 0.01 | E192: =+"różnica mniejsza od "&TEXT(D192*100,"0,0")&"%" -> różnica mniejsza od 1,0%
D193: max. limit spłat (planistyczny) - (R+O)/D (bez wyłączeń) | E193: x | F193: x | G193: x | H193: x | I193: =+IF(I3=0,"",I52-I47) -> 0.007 | J193: 0.004 | K193: 0.0036 | L193: 0.0179 | M193: 0.0245 | N193: 0.04 | O193: 0.0539 | P193: 0.0635 | Q193: 0.0522
D194: max. limit spłat (planistyczny) - (R+O)/D (z wyłączeniami) | E194: x | F194: x | G194: x | H194: x | I194: =+IF(I3=0,"",I52-I48) -> 0.007 | J194: 0.004 | K194: 0.0036 | L194: 0.0179 | M194: 0.0245 | N194: 0.04 | O194: 0.0539 | P194: 0.0635 | Q194: 0.0522
D195: max. limit spłat (wg wykonania) - (R+O)/D (bez wyłączeń) | E195: x | F195: x | G195: x | H195: x | I195: =+IF(I3=0,"",I53-I47) -> 0.007 | J195: 0.004 | K195: 0.0036 | L195: 0.0179 | M195: 0.0245 | N195: 0.04 | O195: 0.0539 | P195: 0.0635 | Q195: 0.0522
D196: max. limit spłat (wg wykonania) - (R+O)/D (z wyłączeniami) | E196: x | F196: x | G196: x | H196: x | I196: =+IF(I3=0,"",I53-I48) -> 0.007 | J196: 0.004 | K196: 0.0036 | L196: 0.0179 | M196: 0.0245 | N196: 0.04 | O196: 0.0539 | P196: 0.0635 | Q196: 0.0522

Sheet WPF_AnalizaWsk_ProjektowanieJST (hidden)
B1: Raport z systemu BeSTi@ - narzędzie opracowane przez Zespół ds. rozwoju technologii IT przy KR RIO | F1: Pola z tłem tego koloru są obliczane automatycznie i nie powinny być nadpisywane w celu ochrony formuł
B2: Niniejsze zestawienie można samodzielnie formatować i modyfikować wartości | F2: Pola z tłem tego koloru są obliczane automatycznie
B3: Układ WPF wg Rozporządzenia Min.Fin. z 10.01.2013 po zmianie z DzU.2013.1736 oraz DzU.2014.1127 | F3: Pola z tłem tego koloru można edytowac wprowadzając nowe wartości (projektowanie WPF i obliczanie wskaźników)
B5: Nr Uchwały: | D5: =DaneZrodlowe!B4 -> 1/2016 | I5: =D6&" - "&"WPF za lata "&D7&" - Nr Uchwały JST: "&D5 -> BRZEZINY - WPF za lata 2016 - 2024 - Nr Uchwały JST: 1/2016
B6: Nazwa JST: | D6: =DaneZrodlowe!C4 -> BRZEZINY
B7: WPF za lata: | D7: =CONCATENATE(DaneZrodlowe!N1," - ",DaneZrodlowe!Q1) -> 2016 - 2024 | J7: zaokrąglaj wskaźniki procentowe do liczby miejsc po przecinku: | K7: 2
E8: Wykonanie | G8: Plan 3 kw. | H8: Wykonanie | I8: ="" -> 
A9: X | B9: Lp. | C9: Formuła | D9: Wyszczególnienie | E9: =+F9-1 -> 2013 | F9: =+G9-1 -> 2014 | G9: =+H9 -> 2015 | H9: =+I9-1 -> 2015 | I9: =+DaneZrodlowe!$N$1 -> 2016 | J9: =+I9+1 -> 2017 | K9: =+J9+1 -> 2018 | L9: 2019 | M9: 2020 | N9: 2021 | O9: 2022 | P9: 2023 | Q9: 2024 | R9: 2025 | S9: 2026 | T9: 2027 | U9: 2028 | V9: 2029 | W9: 2030 | X9: 2031 | Y9: 2032 | Z9: 2033 | AA9: 2034 | AB9: 2035 | AC9: 2036 | AD9: 2037 | AE9: 2038 | AF9: 2039 | AG9: 2040 | AH9: 2041 | AI9: 2042 | AJ9: 2043 | AK9: 2044 | AL9: 2045
A10: x | B10: 1 | C10: [1.1]+[1.2] | D10: Dochody ogółem | E10: =Zał.1_WPF_bazowy!E3 -> 36897999.47 | F10: =Zał.1_WPF_bazowy!F3 -> 38775186.08 | G10: =Zał.1_WPF_bazowy!G3 -> 36552514.89 | H10: =+H11+H18 -> 36552514.89 | I10: =+I11+I18 -> 32174588 | J10: =+J11+J18 -> 33100000 | K10: 34100000 | L10: 35100000 | M10: 36100000 | N10: 37100000 | O10: 38100000 | P10: 39100000 | Q10: 40100000
A11: x | B11: 1.1 | D11: Dochody bieżące | E11: =Zał.1_WPF_bazowy!E4 -> 32301173.26 | F11: =Zał.1_WPF_bazowy!F4 -> 34105017.52 | G11: =Zał.1_WPF_bazowy!G4 -> 33742971.45 | H11: =Zał.1_WPF_bazowy!H4 -> 33742971.45 | I11: =+Zał.1_WPF_bazowy!I4 -> 32044588 | J11: =+Zał.1_WPF_bazowy!J4 -> 33100000 | K11: =+Zał.1_WPF_bazowy!K4 -> 34100000 | L11: =+Zał.1_WPF_bazowy!L4 -> 35100000 | M11: =+Zał.1_WPF_bazowy!M4 -> 36100000 | N11: =+Zał.1_WPF_bazowy!N4 -> 37100000 | O11: =+Zał.1_WPF_bazowy!O4 -> 38100000 | P11: =+Zał.1_WPF_bazowy!P4 -> 39100000 | Q11: =+Zał.1_WPF_bazowy!Q4 -> 40100000 | R11: =+Zał.1_WPF_bazowy!#REF! ->  | S11: =+Zał.1_WPF_bazowy!#REF! ->  | T11: =+Zał.1_WPF_bazowy!#REF! ->  | U11: =+Zał.1_WPF_bazowy!#REF! ->  | V11: =+Zał.1_WPF_bazowy!#REF! ->  | W11: =+Zał.1_WPF_bazowy!#REF! ->  | X11: =+Zał.1_WPF_bazowy!#REF! ->  | Y11: =+Zał.1_WPF_bazowy!#REF! ->  | Z11: =+Zał.1_WPF_bazowy!#REF! ->  | AA11: =+Zał.1_WPF_bazowy!#REF! ->  | AB11: =+Zał.1_WPF_bazowy!#REF! ->  | AC11: =+Zał.1_WPF_bazowy!#REF! ->  | AD11: =+Zał.1_WPF_bazowy!#REF! ->  | AE11: =+Zał.1_WPF_bazowy!#REF! ->  | AF11: =+Zał.1_WPF_bazowy!#REF! ->  | AG11: =+Zał.1_WPF_bazowy!#REF! ->  | AH11: =+Zał.1_WPF_bazowy!#REF! ->  | AI11: =+Zał.1_WPF_bazowy!#REF! ->  | AJ11: =+Zał.1_WPF_bazowy!#REF! ->  | AK11: =+Zał.1_WPF_bazowy!#REF! ->  | AL11: =+Zał.1_WPF_bazowy!#REF! -> 
B12: 1.1.1 | D12: dochody z tytułu udziału we wpływach z podatku dochodowego od osób fizycznych | E12: =Zał.1_WPF_bazowy!E5 -> 6476099 | F12: =Zał.1_WPF_bazowy!F5 -> 7136023 | G12: =Zał.1_WPF_bazowy!G5 -> 7700000 | H12: =Zał.1_WPF_bazowy!H5 -> 7700000 | I12: =+Zał.1_WPF_bazowy!I5 -> 8400000 | J12: =+Zał.1_WPF_bazowy!J5 -> 9000000 | K12: =+Zał.1_WPF_bazowy!K5 -> 9500000 | L12: =+Zał.1_WPF_bazowy!L5 -> 10000000 | M12: =+Zał.1_WPF_bazowy!M5 -> 0 | N12: =+Zał.1_WPF_bazowy!N5 -> 0 | O12: =+Zał.1_WPF_bazowy!O5 -> 0 | P12: =+Zał.1_WPF_bazowy!P5 -> 0 | Q12: =+Zał.1_WPF_bazowy!Q5 -> 0 | R12: =+Zał.1_WPF_bazowy!#REF! ->  | S12: =+Zał.1_WPF_bazowy!#REF! ->  | T12: =+Zał.1_WPF_bazowy!#REF! ->  | U12: =+Zał.1_WPF_bazowy!#REF! ->  | V12: =+Zał.1_WPF_bazowy!#REF! ->  | W12: =+Zał.1_WPF_bazowy!#REF! ->  | X12: =+Zał.1_WPF_bazowy!#REF! ->  | Y12: =+Zał.1_WPF_bazowy!#REF! ->  | Z12: =+Zał.1_WPF_bazowy!#REF! ->  | AA12: =+Zał.1_WPF_bazowy!#REF! ->  | AB12: =+Zał.1_WPF_bazowy!#REF! ->  | AC12: =+Zał.1_WPF_bazowy!#REF! ->  | AD12: =+Zał.1_WPF_bazowy!#REF! ->  | AE12: =+Zał.1_WPF_bazowy!#REF! ->  | AF12: =+Zał.1_WPF_bazowy!#REF! ->  | AG12: =+Zał.1_WPF_bazowy!#REF! ->  | AH12: =+Zał.1_WPF_bazowy!#REF! ->  | AI12: =+Zał.1_WPF_bazowy!#REF! ->  | AJ12: =+Zał.1_WPF_bazowy!#REF! ->  | AK12: =+Zał.1_WPF_bazowy!#REF! ->  | AL12: =+Zał.1_WPF_bazowy!#REF! -> 
B13: 1.1.2 | D13: dochody z tytułu udziału we wpływach z podatku dochodowego od osób prawnych | E13: =Zał.1_WPF_bazowy!E6 -> 175600.93 | F13: =Zał.1_WPF_bazowy!F6 -> 175787.56 | G13: =Zał.1_WPF_bazowy!G6 -> 140000 | H13: =Zał.1_WPF_bazowy!H6 -> 140000 | I13: =+Zał.1_WPF_bazowy!I6 -> 140000 | J13: =+Zał.1_WPF_bazowy!J6 -> 140000 | K13: =+Zał.1_WPF_bazowy!K6 -> 140000 | L13: =+Zał.1_WPF_bazowy!L6 -> 140000 | M13: =+Zał.1_WPF_bazowy!M6 -> 0 | N13: =+Zał.1_WPF_bazowy!N6 -> 0 | O13: =+Zał.1_WPF_bazowy!O6 -> 0 | P13: =+Zał.1_WPF_bazowy!P6 -> 0 | Q13: =+Zał.1_WPF_bazowy!Q6 -> 0 | R13: =+Zał.1_WPF_bazowy!#REF! ->  | S13: =+Zał.1_WPF_bazowy!#REF! ->  | T13: =+Zał.1_WPF_bazowy!#REF! ->  | U13: =+Zał.1_WPF_bazowy!#REF! ->  | V13: =+Zał.1_WPF_bazowy!#REF! ->  | W13: =+Zał.1_WPF_bazowy!#REF! ->  | X13: =+Zał.1_WPF_bazowy!#REF! ->  | Y13: =+Zał.1_WPF_bazowy!#REF! ->  | Z13: =+Zał.1_WPF_bazowy!#REF! ->  | AA13: =+Zał.1_WPF_bazowy!#REF! ->  | AB13: =+Zał.1_WPF_bazowy!#REF! ->  | AC13: =+Zał.1_WPF_bazowy!#REF! ->  | AD13: =+Zał.1_WPF_bazowy!#REF! ->  | AE13: =+Zał.1_WPF_bazowy!#REF! ->  | AF13: =+Zał.1_WPF_bazowy!#REF! ->  | AG13: =+Zał.1_WPF_bazowy!#REF! ->  | AH13: =+Zał.1_WPF_bazowy!#REF! ->  | AI13: =+Zał.1_WPF_bazowy!#REF! ->  | AJ13: =+Zał.1_WPF_bazowy!#REF! ->  | AK13: =+Zał.1_WPF_bazowy!#REF! ->  | AL13: =+Zał.1_WPF_bazowy!#REF! -> 
B14: 1.1.3 | D14: podatki i opłaty | E14: =Zał.1_WPF_bazowy!E7 -> 5289523.02 | F14: =Zał.1_WPF_bazowy!F7 -> 7010289.27 | G14: =Zał.1_WPF_bazowy!G7 -> 7628751 | H14: =Zał.1_WPF_bazowy!H7 -> 7628751 | I14: =+Zał.1_WPF_bazowy!I7 -> 7223150 | J14: =+Zał.1_WPF_bazowy!J7 -> 7300000 | K14: =+Zał.1_WPF_bazowy!K7 -> 7400000 | L14: =+Zał.1_WPF_bazowy!L7 -> 7500000 | M14: =+Zał.1_WPF_bazowy!M7 -> 0 | N14: =+Zał.1_WPF_bazowy!N7 -> 0 | O14: =+Zał.1_WPF_bazowy!O7 -> 0 | P14: =+Zał.1_WPF_bazowy!P7 -> 0 | Q14: =+Zał.1_WPF_bazowy!Q7 -> 0 | R14: =+Zał.1_WPF_bazowy!#REF! ->  | S14: =+Zał.1_WPF_bazowy!#REF! ->  | T14: =+Zał.1_WPF_bazowy!#REF! ->  | U14: =+Zał.1_WPF_bazowy!#REF! ->  | V14: =+Zał.1_WPF_bazowy!#REF! ->  | W14: =+Zał.1_WPF_bazowy!#REF! ->  | X14: =+Zał.1_WPF_bazowy!#REF! ->  | Y14: =+Zał.1_WPF_bazowy!#REF! ->  | Z14: =+Zał.1_WPF_bazowy!#REF! ->  | AA14: =+Zał.1_WPF_bazowy!#REF! ->  | AB14: =+Zał.1_WPF_bazowy!#REF! ->  | AC14: =+Zał.1_WPF_bazowy!#REF! ->  | AD14: =+Zał.1_WPF_bazowy!#REF! ->  | AE14: =+Zał.1_WPF_bazowy!#REF! ->  | AF14: =+Zał.1_WPF_bazowy!#REF! ->  | AG14: =+Zał.1_WPF_bazowy!#REF! ->  | AH14: =+Zał.1_WPF_bazowy!#REF! ->  | AI14: =+Zał.1_WPF_bazowy!#REF! ->  | AJ14: =+Zał.1_WPF_bazowy!#REF! ->  | AK14: =+Zał.1_WPF_bazowy!#REF! ->  | AL14: =+Zał.1_WPF_bazowy!#REF! -> 
B15: 1.1.3.1 | D15: z podatku od nieruchomości | E15: =Zał.1_WPF_bazowy!E8 -> 3824840.21 | F15: =Zał.1_WPF_bazowy!F8 -> 4237030.5 | G15: =Zał.1_WPF_bazowy!G8 -> 4769505 | H15: =Zał.1_WPF_bazowy!H8 -> 4769505 | I15: =+Zał.1_WPF_bazowy!I8 -> 4400000 | J15: =+Zał.1_WPF_bazowy!J8 -> 4500000 | K15: =+Zał.1_WPF_bazowy!K8 -> 4600000 | L15: =+Zał.1_WPF_bazowy!L8 -> 4700000 | M15: =+Zał.1_WPF_bazowy!M8 -> 0 | N15: =+Zał.1_WPF_bazowy!N8 -> 0 | O15: =+Zał.1_WPF_bazowy!O8 -> 0 | P15: =+Zał.1_WPF_bazowy!P8 -> 0 | Q15: =+Zał.1_WPF_bazowy!Q8 -> 0 | R15: =+Zał.1_WPF_bazowy!#REF! ->  | S15: =+Zał.1_WPF_bazowy!#REF! ->  | T15: =+Zał.1_WPF_bazowy!#REF! ->  | U15: =+Zał.1_WPF_bazowy!#REF! ->  | V15: =+Zał.1_WPF_bazowy!#REF! ->  | W15: =+Zał.1_WPF_bazowy!#REF! ->  | X15: =+Zał.1_WPF_bazowy!#REF! ->  | Y15: =+Zał.1_WPF_bazowy!#REF! ->  | Z15: =+Zał.1_WPF_bazowy!#REF! ->  | AA15: =+Zał.1_WPF_bazowy!#REF! ->  | AB15: =+Zał.1_WPF_bazowy!#REF! ->  | AC15: =+Zał.1_WPF_bazowy!#REF! ->  | AD15: =+Zał.1_WPF_bazowy!#REF! ->  | AE15: =+Zał.1_WPF_bazowy!#REF! ->  | AF15: =+Zał.1_WPF_bazowy!#REF! ->  | AG15: =+Zał.1_WPF_bazowy!#REF! ->  | AH15: =+Zał.1_WPF_bazowy!#REF! ->  | AI15: =+Zał.1_WPF_bazowy!#REF! ->  | AJ15: =+Zał.1_WPF_bazowy!#REF! ->  | AK15: =+Zał.1_WPF_bazowy!#REF! ->  | AL15: =+Zał.1_WPF_bazowy!#REF! -> 
B16: 1.1.4 | D16: z subwencji ogólnej | E16: =Zał.1_WPF_bazowy!E9 -> 7466452 | F16: =Zał.1_WPF_bazowy!F9 -> 8308307 | G16: =Zał.1_WPF_bazowy!G9 -> 9112541 | H16: =Zał.1_WPF_bazowy!H9 -> 9112541 | I16: =+Zał.1_WPF_bazowy!I9 -> 9238483 | J16: =+Zał.1_WPF_bazowy!J9 -> 9300000 | K16: =+Zał.1_WPF_bazowy!K9 -> 9400000 | L16: =+Zał.1_WPF_bazowy!L9 -> 9500000 | M16: =+Zał.1_WPF_bazowy!M9 -> 0 | N16: =+Zał.1_WPF_bazowy!N9 -> 0 | O16: =+Zał.1_WPF_bazowy!O9 -> 0 | P16: =+Zał.1_WPF_bazowy!P9 -> 0 | Q16: =+Zał.1_WPF_bazowy!Q9 -> 0 | R16: =+Zał.1_WPF_bazowy!#REF! ->  | S16: =+Zał.1_WPF_bazowy!#REF! ->  | T16: =+Zał.1_WPF_bazowy!#REF! ->  | U16: =+Zał.1_WPF_bazowy!#REF! ->  | V16: =+Zał.1_WPF_bazowy!#REF! ->  | W16: =+Zał.1_WPF_bazowy!#REF! ->  | X16: =+Zał.1_WPF_bazowy!#REF! ->  | Y16: =+Zał.1_WPF_bazowy!#REF! ->  | Z16: =+Zał.1_WPF_bazowy!#REF! ->  | AA16: =+Zał.1_WPF_bazowy!#REF! ->  | AB16: =+Zał.1_WPF_bazowy!#REF! ->  | AC16: =+Zał.1_WPF_bazowy!#REF! ->  | AD16: =+Zał.1_WPF_bazowy!#REF! ->  | AE16: =+Zał.1_WPF_bazowy!#REF! ->  | AF16: =+Zał.1_WPF_bazowy!#REF! ->  | AG16: =+Zał.1_WPF_bazowy!#REF! ->  | AH16: =+Zał.1_WPF_bazowy!#REF! ->  | AI16: =+Zał.1_WPF_bazowy!#REF! ->  | AJ16: =+Zał.1_WPF_bazowy!#REF! ->  | AK16: =+Zał.1_WPF_bazowy!#REF! ->  | AL16: =+Zał.1_WPF_bazowy!#REF! -> 
B17: 1.1.5 | D17: z tytułu dotacji i środków przeznaczonych na cele bieżące | E17: =Zał.1_WPF_bazowy!E10 -> 8685748.05 | F17: =Zał.1_WPF_bazowy!F10 -> 8330252.43 | G17: =Zał.1_WPF_bazowy!G10 -> 6570203.45 | H17: =Zał.1_WPF_bazowy!H10 -> 6570203.45 | I17: =+Zał.1_WPF_bazowy!I10 -> 5085967 | J17: =+Zał.1_WPF_bazowy!J10 -> 5100000 | K17: =+Zał.1_WPF_bazowy!K10 -> 5200000 | L17: =+Zał.1_WPF_bazowy!L10 -> 5300000 | M17: =+Zał.1_WPF_bazowy!M10 -> 0 | N17: =+Zał.1_WPF_bazowy!N10 -> 0 | O17: =+Zał.1_WPF_bazowy!O10 -> 0 | P17: =+Zał.1_WPF_bazowy!P10 -> 0 | Q17: =+Zał.1_WPF_bazowy!Q10 -> 0 | R17: =+Zał.1_WPF_bazowy!#REF! ->  | S17: =+Zał.1_WPF_bazowy!#REF! ->  | T17: =+Zał.1_WPF_bazowy!#REF! ->  | U17: =+Zał.1_WPF_bazowy!#REF! ->  | V17: =+Zał.1_WPF_bazowy!#REF! ->  | W17: =+Zał.1_WPF_bazowy!#REF! ->  | X17: =+Zał.1_WPF_bazowy!#REF! ->  | Y17: =+Zał.1_WPF_bazowy!#REF! ->  | Z17: =+Zał.1_WPF_bazowy!#REF! ->  | AA17: =+Zał.1_WPF_bazowy!#REF! ->  | AB17: =+Zał.1_WPF_bazowy!#REF! ->  | AC17: =+Zał.1_WPF_bazowy!#REF! ->  | AD17: =+Zał.1_WPF_bazowy!#REF! ->  | AE17: =+Zał.1_WPF_bazowy!#REF! ->  | AF17: =+Zał.1_WPF_bazowy!#REF! ->  | AG17: =+Zał.1_WPF_bazowy!#REF! ->  | AH17: =+Zał.1_WPF_bazowy!#REF! ->  | AI17: =+Zał.1_WPF_bazowy!#REF! ->  | AJ17: =+Zał.1_WPF_bazowy!#REF! ->  | AK17: =+Zał.1_WPF_bazowy!#REF! ->  | AL17: =+Zał.1_WPF_bazowy!#REF! -> 
A18: x | B18: 1.2 | D18: Dochody majątkowe, w tym | E18: =Zał.1_WPF_bazowy!E11 -> 4596826.21 | F18: =Zał.1_WPF_bazowy!F11 -> 4670168.56 | G18: =Zał.1_WPF_bazowy!G11 -> 2809543.44 | H18: =Zał.1_WPF_bazowy!H11 -> 2809543.44 | I18: =+Zał.1_WPF_bazowy!I11 -> 130000 | J18: =+Zał.1_WPF_bazowy!J11 -> 0 | K18: =+Zał.1_WPF_bazowy!K11 -> 0 | L18: =+Zał.1_WPF_bazowy!L11 -> 0 | M18: =+Zał.1_WPF_bazowy!M11 -> 0 | N18: =+Zał.1_WPF_bazowy!N11 -> 0 | O18: =+Zał.1_WPF_bazowy!O11 -> 0 | P18: =+Zał.1_WPF_bazowy!P11 -> 0 | Q18: =+Zał.1_WPF_bazowy!Q11 -> 0 | R18: =+Zał.1_WPF_bazowy!#REF! ->  | S18: =+Zał.1_WPF_bazowy!#REF! ->  | T18: =+Zał.1_WPF_bazowy!#REF! ->  | U18: =+Zał.1_WPF_bazowy!#REF! ->  | V18: =+Zał.1_WPF_bazowy!#REF! ->  | W18: =+Zał.1_WPF_bazowy!#REF! ->  | X18: =+Zał.1_WPF_bazowy!#REF! ->  | Y18: =+Zał.1_WPF_bazowy!#REF! ->  | Z18: =+Zał.1_WPF_bazowy!#REF! ->  | AA18: =+Zał.1_WPF_bazowy!#REF! ->  | AB18: =+Zał.1_WPF_bazowy!#REF! ->  | AC18: =+Zał.1_WPF_bazowy!#REF! ->  | AD18: =+Zał.1_WPF_bazowy!#REF! ->  | AE18: =+Zał.1_WPF_bazowy!#REF! ->  | AF18: =+Zał.1_WPF_bazowy!#REF! ->  | AG18: =+Zał.1_WPF_bazowy!#REF! ->  | AH18: =+Zał.1_WPF_bazowy!#REF! ->  | AI18: =+Zał.1_WPF_bazowy!#REF! ->  | AJ18: =+Zał.1_WPF_bazowy!#REF! ->  | AK18: =+Zał.1_WPF_bazowy!#REF! ->  | AL18: =+Zał.1_WPF_bazowy!#REF! -> 
A19: x | B19: 1.2.1 | D19: ze sprzedaży majątku | E19: =Zał.1_WPF_bazowy!E12 -> 198768.84 | F19: =Zał.1_WPF_bazowy!F12 -> 243965.6 | G19: =Zał.1_WPF_bazowy!G12 -> 21000 | H19: =Zał.1_WPF_bazowy!H12 -> 21000 | I19: =+Zał.1_WPF_bazowy!I12 -> 120000 | J19: =+Zał.1_WPF_bazowy!J12 -> 0 | K19: =+Zał.1_WPF_bazowy!K12 -> 0 | L19: =+Zał.1_WPF_bazowy!L12 -> 0 | M19: =+Zał.1_WPF_bazowy!M12 -> 0 | N19: =+Zał.1_WPF_bazowy!N12 -> 0 | O19: =+Zał.1_WPF_bazowy!O12 -> 0 | P19: =+Zał.1_WPF_bazowy!P12 -> 0 | Q19: =+Zał.1_WPF_bazowy!Q12 -> 0 | R19: =+Zał.1_WPF_bazowy!#REF! ->  | S19: =+Zał.1_WPF_bazowy!#REF! ->  | T19: =+Zał.1_WPF_bazowy!#REF! ->  | U19: =+Zał.1_WPF_bazowy!#REF! ->  | V19: =+Zał.1_WPF_bazowy!#REF! ->  | W19: =+Zał.1_WPF_bazowy!#REF! ->  | X19: =+Zał.1_WPF_bazowy!#REF! ->  | Y19: =+Zał.1_WPF_bazowy!#REF! ->  | Z19: =+Zał.1_WPF_bazowy!#REF! ->  | AA19: =+Zał.1_WPF_bazowy!#REF! ->  | AB19: =+Zał.1_WPF_bazowy!#REF! ->  | AC19: =+Zał.1_WPF_bazowy!#REF! ->  | AD19: =+Zał.1_WPF_bazowy!#REF! ->  | AE19: =+Zał.1_WPF_bazowy!#REF! ->  | AF19: =+Zał.1_WPF_bazowy!#REF! ->  | AG19: =+Zał.1_WPF_bazowy!#REF! ->  | AH19: =+Zał.1_WPF_bazowy!#REF! ->  | AI19: =+Zał.1_WPF_bazowy!#REF! ->  | AJ19: =+Zał.1_WPF_bazowy!#REF! ->  | AK19: =+Zał.1_WPF_bazowy!#REF! ->  | AL19: =+Zał.1_WPF_bazowy!#REF! -> 
B20: 1.2.2 | D20: z tytułu dotacji oraz środków przeznaczonych na inwestycje | E20: =Zał.1_WPF_bazowy!E13 -> 4223796.09 | F20: =Zał.1_WPF_bazowy!F13 -> 4326916.96 | G20: =Zał.1_WPF_bazowy!G13 -> 2773543.44 | H20: =Zał.1_WPF_bazowy!H13 -> 2773543.44 | I20: =+Zał.1_WPF_bazowy!I13 -> 0 | J20: =+Zał.1_WPF_bazowy!J13 -> 0 | K20: =+Zał.1_WPF_bazowy!K13 -> 0 | L20: =+Zał.1_WPF_bazowy!L13 -> 0 | M20: =+Zał.1_WPF_bazowy!M13 -> 0 | N20: =+Zał.1_WPF_bazowy!N13 -> 0 | O20: =+Zał.1_WPF_bazowy!O13 -> 0 | P20: =+Zał.1_WPF_bazowy!P13 -> 0 | Q20: =+Zał.1_WPF_bazowy!Q13 -> 0 | R20: =+Zał.1_WPF_bazowy!#REF! ->  | S20: =+Zał.1_WPF_bazowy!#REF! ->  | T20: =+Zał.1_WPF_bazowy!#REF! ->  | U20: =+Zał.1_WPF_bazowy!#REF! ->  | V20: =+Zał.1_WPF_bazowy!#REF! ->  | W20: =+Zał.1_WPF_bazowy!#REF! ->  | X20: =+Zał.1_WPF_bazowy!#REF! ->  | Y20: =+Zał.1_WPF_bazowy!#REF! ->  | Z20: =+Zał.1_WPF_bazowy!#REF! ->  | AA20: =+Zał.1_WPF_bazowy!#REF! ->  | AB20: =+Zał.1_WPF_bazowy!#REF! ->  | AC20: =+Zał.1_WPF_bazowy!#REF! ->  | AD20: =+Zał.1_WPF_bazowy!#REF! ->  | AE20: =+Zał.1_WPF_bazowy!#REF! ->  | AF20: =+Zał.1_WPF_bazowy!#REF! ->  | AG20: =+Zał.1_WPF_bazowy!#REF! ->  | AH20: =+Zał.1_WPF_bazowy!#REF! ->  | AI20: =+Zał.1_WPF_bazowy!#REF! ->  | AJ20: =+Zał.1_WPF_bazowy!#REF! ->  | AK20: =+Zał.1_WPF_bazowy!#REF! ->  | AL20: =+Zał.1_WPF_bazowy!#REF! -> 
A21: x | B21: 2 | C21: [2.1]+[2.2] | D21: Wydatki ogółem | E21: =Zał.1_WPF_bazowy!E14 -> 37003938.3 | F21: =Zał.1_WPF_bazowy!F14 -> 37365699.93 | G21: =Zał.1_WPF_bazowy!G14 -> 42482913.27 | H21: =+H22+H30 -> 42482913.27 | I21: =+I22+I30 -> 32174588 | J21: =+J22+J30 -> 31621796 | K21: 32421796 | L21: 33239996 | M21: 33889996 | N21: 34889996 | O21: 35849996 | P21: 36682000 | Q21: 36681616
A22: x | B22: 2.1 | D22: Wydatki bieżące, w tym: | E22: =Zał.1_WPF_bazowy!E15 -> 30174248.7 | F22: =Zał.1_WPF_bazowy!F15 -> 31284204.73 | G22: =Zał.1_WPF_bazowy!G15 -> 31963540.27 | H22: =Zał.1_WPF_bazowy!H15 -> 31963540.27 | I22: =+Zał.1_WPF_bazowy!I15 -> 29810588 | J22: =+Zał.1_WPF_bazowy!J15 -> 30200000 | K22: =+Zał.1_WPF_bazowy!K15 -> 30700000 | L22: =+Zał.1_WPF_bazowy!L15 -> 31200000 | M22: =+Zał.1_WPF_bazowy!M15 -> 31700000 | N22: =+Zał.1_WPF_bazowy!N15 -> 32200000 | O22: =+Zał.1_WPF_bazowy!O15 -> 32700000 | P22: =+Zał.1_WPF_bazowy!P15 -> 33200000 | Q22: =+Zał.1_WPF_bazowy!Q15 -> 33700000 | R22: =+Zał.1_WPF_bazowy!#REF! ->  | S22: =+Zał.1_WPF_bazowy!#REF! ->  | T22: =+Zał.1_WPF_bazowy!#REF! ->  | U22: =+Zał.1_WPF_bazowy!#REF! ->  | V22: =+Zał.1_WPF_bazowy!#REF! ->  | W22: =+Zał.1_WPF_bazowy!#REF! ->  | X22: =+Zał.1_WPF_bazowy!#REF! ->  | Y22: =+Zał.1_WPF_bazowy!#REF! ->  | Z22: =+Zał.1_WPF_bazowy!#REF! ->  | AA22: =+Zał.1_WPF_bazowy!#REF! ->  | AB22: =+Zał.1_WPF_bazowy!#REF! ->  | AC22: =+Zał.1_WPF_bazowy!#REF! ->  | AD22: =+Zał.1_WPF_bazowy!#REF! ->  | AE22: =+Zał.1_WPF_bazowy!#REF! ->  | AF22: =+Zał.1_WPF_bazowy!#REF! ->  | AG22: =+Zał.1_WPF_bazowy!#REF! ->  | AH22: =+Zał.1_WPF_bazowy!#REF! ->  | AI22: =+Zał.1_WPF_bazowy!#REF! ->  | AJ22: =+Zał.1_WPF_bazowy!#REF! ->  | AK22: =+Zał.1_WPF_bazowy!#REF! ->  | AL22: =+Zał.1_WPF_bazowy!#REF! -> 
A23: x | B23: 2.1.1 | D23: z tytułu poręczeń i gwarancji | E23: =Zał.1_WPF_bazowy!E16 -> 0 | F23: =Zał.1_WPF_bazowy!F16 -> 0 | G23: =Zał.1_WPF_bazowy!G16 -> 28000 | H23: =Zał.1_WPF_bazowy!H16 -> 28000 | I23: =+Zał.1_WPF_bazowy!I16 -> 113000 | J23: =+Zał.1_WPF_bazowy!J16 -> 114000 | K23: =+Zał.1_WPF_bazowy!K16 -> 116000 | L23: =+Zał.1_WPF_bazowy!L16 -> 117000 | M23: =+Zał.1_WPF_bazowy!M16 -> 119000 | N23: =+Zał.1_WPF_bazowy!N16 -> 121000 | O23: =+Zał.1_WPF_bazowy!O16 -> 123000 | P23: =+Zał.1_WPF_bazowy!P16 -> 126000 | Q23: =+Zał.1_WPF_bazowy!Q16 -> 128000 | R23: =+Zał.1_WPF_bazowy!#REF! ->  | S23: =+Zał.1_WPF_bazowy!#REF! ->  | T23: =+Zał.1_WPF_bazowy!#REF! ->  | U23: =+Zał.1_WPF_bazowy!#REF! ->  | V23: =+Zał.1_WPF_bazowy!#REF! ->  | W23: =+Zał.1_WPF_bazowy!#REF! ->  | X23: =+Zał.1_WPF_bazowy!#REF! ->  | Y23: =+Zał.1_WPF_bazowy!#REF! ->  | Z23: =+Zał.1_WPF_bazowy!#REF! ->  | AA23: =+Zał.1_WPF_bazowy!#REF! ->  | AB23: =+Zał.1_WPF_bazowy!#REF! ->  | AC23: =+Zał.1_WPF_bazowy!#REF! ->  | AD23: =+Zał.1_WPF_bazowy!#REF! ->  | AE23: =+Zał.1_WPF_bazowy!#REF! ->  | AF23: =+Zał.1_WPF_bazowy!#REF! ->  | AG23: =+Zał.1_WPF_bazowy!#REF! ->  | AH23: =+Zał.1_WPF_bazowy!#REF! ->  | AI23: =+Zał.1_WPF_bazowy!#REF! ->  | AJ23: =+Zał.1_WPF_bazowy!#REF! ->  | AK23: =+Zał.1_WPF_bazowy!#REF! ->  | AL23: =+Zał.1_WPF_bazowy!#REF! -> 
A24: x | B24: 2.1.1.1 | D24: w tym: gwarancje i poręczenia podlegające wyłączeniu z limitu spłaty zobowiązań, o którym mowa w art. 243 ustawy | E24: =Zał.1_WPF_bazowy!E17 -> 0 | F24: =Zał.1_WPF_bazowy!F17 -> 0 | G24: =Zał.1_WPF_bazowy!G17 -> 0 | H24: =Zał.1_WPF_bazowy!H17 -> 0 | I24: =+Zał.1_WPF_bazowy!I17 -> 0 | J24: =+Zał.1_WPF_bazowy!J17 -> 0 | K24: =+Zał.1_WPF_bazowy!K17 -> 0 | L24: =+Zał.1_WPF_bazowy!L17 -> 0 | M24: =+Zał.1_WPF_bazowy!M17 -> 0 | N24: =+Zał.1_WPF_bazowy!N17 -> 0 | O24: =+Zał.1_WPF_bazowy!O17 -> 0 | P24: =+Zał.1_WPF_bazowy!P17 -> 0 | Q24: =+Zał.1_WPF_bazowy!Q17 -> 0 | R24: =+Zał.1_WPF_bazowy!#REF! ->  | S24: =+Zał.1_WPF_bazowy!#REF! ->  | T24: =+Zał.1_WPF_bazowy!#REF! ->  | U24: =+Zał.1_WPF_bazowy!#REF! ->  | V24: =+Zał.1_WPF_bazowy!#REF! ->  | W24: =+Zał.1_WPF_bazowy!#REF! ->  | X24: =+Zał.1_WPF_bazowy!#REF! ->  | Y24: =+Zał.1_WPF_bazowy!#REF! ->  | Z24: =+Zał.1_WPF_bazowy!#REF! ->  | AA24: =+Zał.1_WPF_bazowy!#REF! ->  | AB24: =+Zał.1_WPF_bazowy!#REF! ->  | AC24: =+Zał.1_WPF_bazowy!#REF! ->  | AD24: =+Zał.1_WPF_bazowy!#REF! ->  | AE24: =+Zał.1_WPF_bazowy!#REF! ->  | AF24: =+Zał.1_WPF_bazowy!#REF! ->  | AG24: =+Zał.1_WPF_bazowy!#REF! ->  | AH24: =+Zał.1_WPF_bazowy!#REF! ->  | AI24: =+Zał.1_WPF_bazowy!#REF! ->  | AJ24: =+Zał.1_WPF_bazowy!#REF! ->  | AK24: =+Zał.1_WPF_bazowy!#REF! ->  | AL24: =+Zał.1_WPF_bazowy!#REF! -> 
B25: 2.1.2 | D25: na spłatę przejętych zobowiązań samodzielnego publicznego zakładu opieki zdrowotnej przekształconego na zasadach określonych w przepisach o działalności leczniczej, w wysokości w jakiej nie podlegają sfinansowaniu dotacją z budżetu państwa | E25: =+Zał.1_WPF_bazowy!E18 -> 0 | F25: =+Zał.1_WPF_bazowy!F18 -> 0 | G25: =+Zał.1_WPF_bazowy!G18 -> 0 | H25: =+Zał.1_WPF_bazowy!H18 -> 0 | I25: =+Zał.1_WPF_bazowy!I18 -> 0 | J25: =+Zał.1_WPF_bazowy!J18 -> 0 | K25: =+Zał.1_WPF_bazowy!K18 -> 0 | L25: =+Zał.1_WPF_bazowy!L18 -> 0 | M25: =+Zał.1_WPF_bazowy!M18 -> 0 | N25: =+Zał.1_WPF_bazowy!N18 -> 0 | O25: =+Zał.1_WPF_bazowy!O18 -> 0 | P25: =+Zał.1_WPF_bazowy!P18 -> 0 | Q25: =+Zał.1_WPF_bazowy!Q18 -> 0 | R25: =+Zał.1_WPF_bazowy!#REF! ->  | S25: =+Zał.1_WPF_bazowy!#REF! ->  | T25: =+Zał.1_WPF_bazowy!#REF! ->  | U25: =+Zał.1_WPF_bazowy!#REF! ->  | V25: =+Zał.1_WPF_bazowy!#REF! ->  | W25: =+Zał.1_WPF_bazowy!#REF! ->  | X25: =+Zał.1_WPF_bazowy!#REF! ->  | Y25: =+Zał.1_WPF_bazowy!#REF! ->  | Z25: =+Zał.1_WPF_bazowy!#REF! ->  | AA25: =+Zał.1_WPF_bazowy!#REF! ->  | AB25: =+Zał.1_WPF_bazowy!#REF! ->  | AC25: =+Zał.1_WPF_bazowy!#REF! ->  | AD25: =+Zał.1_WPF_bazowy!#REF! ->  | AE25: =+Zał.1_WPF_bazowy!#REF! ->  | AF25: =+Zał.1_WPF_bazowy!#REF! ->  | AG25: =+Zał.1_WPF_bazowy!#REF! ->  | AH25: =+Zał.1_WPF_bazowy!#REF! ->  | AI25: =+Zał.1_WPF_bazowy!#REF! ->  | AJ25: =+Zał.1_WPF_bazowy!#REF! ->  | AK25: =+Zał.1_WPF_bazowy!#REF! ->  | AL25: =+Zał.1_WPF_bazowy!#REF! -> 
A26: x | B26: 2.1.3 | D26: wydatki na obsługę długu, w tym: | E26: =Zał.1_WPF_bazowy!E19 -> 657163.7 | F26: =Zał.1_WPF_bazowy!F19 -> 563582.46 | G26: =Zał.1_WPF_bazowy!G19 -> 480000 | H26: =Zał.1_WPF_bazowy!H19 -> 480000 | I26: =+Zał.1_WPF_bazowy!I19 -> 505000 | J26: =+Zał.1_WPF_bazowy!J19 -> 500000 | K26: =+Zał.1_WPF_bazowy!K19 -> 470000 | L26: =+Zał.1_WPF_bazowy!L19 -> 440000 | M26: =+Zał.1_WPF_bazowy!M19 -> 380000 | N26: =+Zał.1_WPF_bazowy!N19 -> 300000 | O26: =+Zał.1_WPF_bazowy!O19 -> 210000 | P26: =+Zał.1_WPF_bazowy!P19 -> 130000 | Q26: =+Zał.1_WPF_bazowy!Q19 -> 40000 | R26: =+Zał.1_WPF_bazowy!#REF! ->  | S26: =+Zał.1_WPF_bazowy!#REF! ->  | T26: =+Zał.1_WPF_bazowy!#REF! ->  | U26: =+Zał.1_WPF_bazowy!#REF! ->  | V26: =+Zał.1_WPF_bazowy!#REF! ->  | W26: =+Zał.1_WPF_bazowy!#REF! ->  | X26: =+Zał.1_WPF_bazowy!#REF! ->  | Y26: =+Zał.1_WPF_bazowy!#REF! ->  | Z26: =+Zał.1_WPF_bazowy!#REF! ->  | AA26: =+Zał.1_WPF_bazowy!#REF! ->  | AB26: =+Zał.1_WPF_bazowy!#REF! ->  | AC26: =+Zał.1_WPF_bazowy!#REF! ->  | AD26: =+Zał.1_WPF_bazowy!#REF! ->  | AE26: =+Zał.1_WPF_bazowy!#REF! ->  | AF26: =+Zał.1_WPF_bazowy!#REF! ->  | AG26: =+Zał.1_WPF_bazowy!#REF! ->  | AH26: =+Zał.1_WPF_bazowy!#REF! ->  | AI26: =+Zał.1_WPF_bazowy!#REF! ->  | AJ26: =+Zał.1_WPF_bazowy!#REF! ->  | AK26: =+Zał.1_WPF_bazowy!#REF! ->  | AL26: =+Zał.1_WPF_bazowy!#REF! -> 
A27: x | B27: 2.1.3.1 | D27: odsetki i dyskonto określone w art. 243 ust. 1 ustawy, w tym: | E27: =Zał.1_WPF_bazowy!E20 -> 657163.7 | F27: =Zał.1_WPF_bazowy!F20 -> 563582.46 | G27: =Zał.1_WPF_bazowy!G20 -> 475000 | H27: =Zał.1_WPF_bazowy!H20 -> 475000 | I27: =+Zał.1_WPF_bazowy!I20 -> 500000 | J27: =+Zał.1_WPF_bazowy!J20 -> 500000 | K27: =+Zał.1_WPF_bazowy!K20 -> 470000 | L27: =+Zał.1_WPF_bazowy!L20 -> 440000 | M27: =+Zał.1_WPF_bazowy!M20 -> 380000 | N27: =+Zał.1_WPF_bazowy!N20 -> 300000 | O27: =+Zał.1_WPF_bazowy!O20 -> 210000 | P27: =+Zał.1_WPF_bazowy!P20 -> 130000 | Q27: =+Zał.1_WPF_bazowy!Q20 -> 40000 | R27: =+Zał.1_WPF_bazowy!#REF! ->  | S27: =+Zał.1_WPF_bazowy!#REF! ->  | T27: =+Zał.1_WPF_bazowy!#REF! ->  | U27: =+Zał.1_WPF_bazowy!#REF! ->  | V27: =+Zał.1_WPF_bazowy!#REF! ->  | W27: =+Zał.1_WPF_bazowy!#REF! ->  | X27: =+Zał.1_WPF_bazowy!#REF! ->  | Y27: =+Zał.1_WPF_bazowy!#REF! ->  | Z27: =+Zał.1_WPF_bazowy!#REF! ->  | AA27: =+Zał.1_WPF_bazowy!#REF! ->  | AB27: =+Zał.1_WPF_bazowy!#REF! ->  | AC27: =+Zał.1_WPF_bazowy!#REF! ->  | AD27: =+Zał.1_WPF_bazowy!#REF! ->  | AE27: =+Zał.1_WPF_bazowy!#REF! ->  | AF27: =+Zał.1_WPF_bazowy!#REF! ->  | AG27: =+Zał.1_WPF_bazowy!#REF! ->  | AH27: =+Zał.1_WPF_bazowy!#REF! ->  | AI27: =+Zał.1_WPF_bazowy!#REF! ->  | AJ27: =+Zał.1_WPF_bazowy!#REF! ->  | AK27: =+Zał.1_WPF_bazowy!#REF! ->  | AL27: =+Zał.1_WPF_bazowy!#REF! -> 
A28: x | B28: 2.1.3.1.1 | D28: odsetki i dyskonto podlegające wyłączeniu z limitu spłaty zobowiązań, o którym mowa w art. 243 ustawy, w terminie nie dłuższym niż 90 dni po zakończeniu programu, projektu lub zadania i otrzymaniu refundacji z tych środków (bez odsetek i dyskonta od zobowiązań na wkład krajowy) | E28: =Zał.1_WPF_bazowy!E21 -> 0 | F28: =Zał.1_WPF_bazowy!F21 -> 0 | G28: =Zał.1_WPF_bazowy!G21 -> 0 | H28: =Zał.1_WPF_bazowy!H21 -> 0 | I28: =+Zał.1_WPF_bazowy!I21 -> 0 | J28: =+Zał.1_WPF_bazowy!J21 -> 0 | K28: =+Zał.1_WPF_bazowy!K21 -> 0 | L28: =+Zał.1_WPF_bazowy!L21 -> 0 | M28: =+Zał.1_WPF_bazowy!M21 -> 0 | N28: =+Zał.1_WPF_bazowy!N21 -> 0 | O28: =+Zał.1_WPF_bazowy!O21 -> 0 | P28: =+Zał.1_WPF_bazowy!P21 -> 0 | Q28: =+Zał.1_WPF_bazowy!Q21 -> 0 | R28: =+Zał.1_WPF_bazowy!#REF! ->  | S28: =+Zał.1_WPF_bazowy!#REF! ->  | T28: =+Zał.1_WPF_bazowy!#REF! ->  | U28: =+Zał.1_WPF_bazowy!#REF! ->  | V28: =+Zał.1_WPF_bazowy!#REF! ->  | W28: =+Zał.1_WPF_bazowy!#REF! ->  | X28: =+Zał.1_WPF_bazowy!#REF! ->  | Y28: =+Zał.1_WPF_bazowy!#REF! ->  | Z28: =+Zał.1_WPF_bazowy!#REF! ->  | AA28: =+Zał.1_WPF_bazowy!#REF! ->  | AB28: =+Zał.1_WPF_bazowy!#REF! ->  | AC28: =+Zał.1_WPF_bazowy!#REF! ->  | AD28: =+Zał.1_WPF_bazowy!#REF! ->  | AE28: =+Zał.1_WPF_bazowy!#REF! ->  | AF28: =+Zał.1_WPF_bazowy!#REF! ->  | AG28: =+Zał.1_WPF_bazowy!#REF! ->  | AH28: =+Zał.1_WPF_bazowy!#REF! ->  | AI28: =+Zał.1_WPF_bazowy!#REF! ->  | AJ28: =+Zał.1_WPF_bazowy!#REF! ->  | AK28: =+Zał.1_WPF_bazowy!#REF! ->  | AL28: =+Zał.1_WPF_bazowy!#REF! -> 
A29: x | B29: 2.1.3.1.2 | D29: odsetki i dyskonto podlegające wyłączeniu z limitu spłaty zobowiązań, o którym mowa w art. 243 ustawy, z tytułu zobowiązań zaciągniętych na wkład krajowy | E29: =Zał.1_WPF_bazowy!E22 -> 0 | F29: =Zał.1_WPF_bazowy!F22 -> 0 | G29: =Zał.1_WPF_bazowy!G22 -> 0 | H29: =Zał.1_WPF_bazowy!H22 -> 0 | I29: =+Zał.1_WPF_bazowy!I22 -> 0 | J29: =+Zał.1_WPF_bazowy!J22 -> 0 | K29: =+Zał.1_WPF_bazowy!K22 -> 0 | L29: =+Zał.1_WPF_bazowy!L22 -> 0 | M29: =+Zał.1_WPF_bazowy!M22 -> 0 | N29: =+Zał.1_WPF_bazowy!N22 -> 0 | O29: =+Zał.1_WPF_bazowy!O22 -> 0 | P29: =+Zał.1_WPF_bazowy!P22 -> 0 | Q29: =+Zał.1_WPF_bazowy!Q22 -> 0 | R29: =+Zał.1_WPF_bazowy!#REF! ->  | S29: =+Zał.1_WPF_bazowy!#REF! ->  | T29: =+Zał.1_WPF_bazowy!#REF! ->  | U29: =+Zał.1_WPF_bazowy!#REF! ->  | V29: =+Zał.1_WPF_bazowy!#REF! ->  | W29: =+Zał.1_WPF_bazowy!#REF! ->  | X29: =+Zał.1_WPF_bazowy!#REF! ->  | Y29: =+Zał.1_WPF_bazowy!#REF! ->  | Z29: =+Zał.1_WPF_bazowy!#REF! ->  | AA29: =+Zał.1_WPF_bazowy!#REF! ->  | AB29: =+Zał.1_WPF_bazowy!#REF! ->  | AC29: =+Zał.1_WPF_bazowy!#REF! ->  | AD29: =+Zał.1_WPF_bazowy!#REF! ->  | AE29: =+Zał.1_WPF_bazowy!#REF! ->  | AF29: =+Zał.1_WPF_bazowy!#REF! ->  | AG29: =+Zał.1_WPF_bazowy!#REF! ->  | AH29: =+Zał.1_WPF_bazowy!#REF! ->  | AI29: =+Zał.1_WPF_bazowy!#REF! ->  | AJ29: =+Zał.1_WPF_bazowy!#REF! ->  | AK29: =+Zał.1_WPF_bazowy!#REF! ->  | AL29: =+Zał.1_WPF_bazowy!#REF! -> 
A30: x | B30: 2.2 | D30: Wydatki majątkowe | E30: =Zał.1_WPF_bazowy!E23 -> 6829689.6 | F30: =Zał.1_WPF_bazowy!F23 -> 6081495.2 | G30: =Zał.1_WPF_bazowy!G23 -> 10519373 | H30: =Zał.1_WPF_bazowy!H23 -> 10519373 | I30: =+Zał.1_WPF_bazowy!I23 -> 2364000 | J30: =+Zał.1_WPF_bazowy!J23 -> 1421796 | K30: =+Zał.1_WPF_bazowy!K23 -> 1721796 | L30: =+Zał.1_WPF_bazowy!L23 -> 2039996 | M30: =+Zał.1_WPF_bazowy!M23 -> 2189996 | N30: =+Zał.1_WPF_bazowy!N23 -> 2689996 | O30: =+Zał.1_WPF_bazowy!O23 -> 3149996 | P30: =+Zał.1_WPF_bazowy!P23 -> 3482000 | Q30: =+Zał.1_WPF_bazowy!Q23 -> 2981616 | R30: =+Zał.1_WPF_bazowy!#REF! ->  | S30: =+Zał.1_WPF_bazowy!#REF! ->  | T30: =+Zał.1_WPF_bazowy!#REF! ->  | U30: =+Zał.1_WPF_bazowy!#REF! ->  | V30: =+Zał.1_WPF_bazowy!#REF! ->  | W30: =+Zał.1_WPF_bazowy!#REF! ->  | X30: =+Zał.1_WPF_bazowy!#REF! ->  | Y30: =+Zał.1_WPF_bazowy!#REF! ->  | Z30: =+Zał.1_WPF_bazowy!#REF! ->  | AA30: =+Zał.1_WPF_bazowy!#REF! ->  | AB30: =+Zał.1_WPF_bazowy!#REF! ->  | AC30: =+Zał.1_WPF_bazowy!#REF! ->  | AD30: =+Zał.1_WPF_bazowy!#REF! ->  | AE30: =+Zał.1_WPF_bazowy!#REF! ->  | AF30: =+Zał.1_WPF_bazowy!#REF! ->  | AG30: =+Zał.1_WPF_bazowy!#REF! ->  | AH30: =+Zał.1_WPF_bazowy!#REF! ->  | AI30: =+Zał.1_WPF_bazowy!#REF! ->  | AJ30: =+Zał.1_WPF_bazowy!#REF! ->  | AK30: =+Zał.1_WPF_bazowy!#REF! ->  | AL30: =+Zał.1_WPF_bazowy!#REF! -> 
A31: x | B31: 3 | C31: [1] -[2] | D31: Wynik budżetu | E31: =Zał.1_WPF_bazowy!E24 -> -105938.83 | F31: =Zał.1_WPF_bazowy!F24 -> 1409486.15 | G31: =Zał.1_WPF_bazowy!G24 -> -5930398.38 | H31: =+H10-H21 -> -5930398.38 | I31: =+I10-I21 -> 0 | J31: =+J10-J21 -> 1478204 | K31: 1678204 | L31: 1860004 | M31: 2210004 | N31: 2210004 | O31: 2250004 | P31: 2418000 | Q31: 3418384
A32: x | B32: 4 | C32: [4.1] + [4.2] + [4.3] + [4.4] | D32: Przychody budżetu | E32: =Zał.1_WPF_bazowy!E25 -> 7317411.22 | F32: =Zał.1_WPF_bazowy!F25 -> 5010437.51 | G32: =Zał.1_WPF_bazowy!G25 -> 6846090.38 | H32: =+H33+H35+H37+H39 -> 6846090.38 | I32: =+I33+I35+I37+I39 -> 1215692 | J32: =+J33+J35+J37+J39 -> 0 | K32: 0 | L32: 0 | M32: 0 | N32: 0 | O32: 0 | P32: 0 | Q32: 0
A33: x | B33: 4.1 | D33: Nadwyżka budżetowa z lat ubiegłych | E33: =Zał.1_WPF_bazowy!E26 -> 0 | F33: =Zał.1_WPF_bazowy!F26 -> 0 | G33: =Zał.1_WPF_bazowy!G26 -> 0 | H33: =Zał.1_WPF_bazowy!H26 -> 0 | I33: =+Zał.1_WPF_bazowy!I26 -> 0 | J33: =+Zał.1_WPF_bazowy!J26 -> 0 | K33: =+Zał.1_WPF_bazowy!K26 -> 0 | L33: =+Zał.1_WPF_bazowy!L26 -> 0 | M33: =+Zał.1_WPF_bazowy!M26 -> 0 | N33: =+Zał.1_WPF_bazowy!N26 -> 0 | O33: =+Zał.1_WPF_bazowy!O26 -> 0 | P33: =+Zał.1_WPF_bazowy!P26 -> 0 | Q33: =+Zał.1_WPF_bazowy!Q26 -> 0 | R33: =+Zał.1_WPF_bazowy!#REF! ->  | S33: =+Zał.1_WPF_bazowy!#REF! ->  | T33: =+Zał.1_WPF_bazowy!#REF! ->  | U33: =+Zał.1_WPF_bazowy!#REF! ->  | V33: =+Zał.1_WPF_bazowy!#REF! ->  | W33: =+Zał.1_WPF_bazowy!#REF! ->  | X33: =+Zał.1_WPF_bazowy!#REF! ->  | Y33: =+Zał.1_WPF_bazowy!#REF! ->  | Z33: =+Zał.1_WPF_bazowy!#REF! ->  | AA33: =+Zał.1_WPF_bazowy!#REF! ->  | AB33: =+Zał.1_WPF_bazowy!#REF! ->  | AC33: =+Zał.1_WPF_bazowy!#REF! ->  | AD33: =+Zał.1_WPF_bazowy!#REF! ->  | AE33: =+Zał.1_WPF_bazowy!#REF! ->  | AF33: =+Zał.1_WPF_bazowy!#REF! ->  | AG33: =+Zał.1_WPF_bazowy!#REF! ->  | AH33: =+Zał.1_WPF_bazowy!#REF! ->  | AI33: =+Zał.1_WPF_bazowy!#REF! ->  | AJ33: =+Zał.1_WPF_bazowy!#REF! ->  | AK33: =+Zał.1_WPF_bazowy!#REF! ->  | AL33: =+Zał.1_WPF_bazowy!#REF! -> 
A34: x | B34: 4.1.1 | D34: w tym na pokrycie deficytu budżetu | E34: =Zał.1_WPF_bazowy!E27 -> 0 | F34: =Zał.1_WPF_bazowy!F27 -> 0 | G34: =Zał.1_WPF_bazowy!G27 -> 0 | H34: =Zał.1_WPF_bazowy!H27 -> 0 | I34: =+Zał.1_WPF_bazowy!I27 -> 0 | J34: =+Zał.1_WPF_bazowy!J27 -> 0 | K34: =+Zał.1_WPF_bazowy!K27 -> 0 | L34: =+Zał.1_WPF_bazowy!L27 -> 0 | M34: =+Zał.1_WPF_bazowy!M27 -> 0 | N34: =+Zał.1_WPF_bazowy!N27 -> 0 | O34: =+Zał.1_WPF_bazowy!O27 -> 0 | P34: =+Zał.1_WPF_bazowy!P27 -> 0 | Q34: =+Zał.1_WPF_bazowy!Q27 -> 0 | R34: =+Zał.1_WPF_bazowy!#REF! ->  | S34: =+Zał.1_WPF_bazowy!#REF! ->  | T34: =+Zał.1_WPF_bazowy!#REF! ->  | U34: =+Zał.1_WPF_bazowy!#REF! ->  | V34: =+Zał.1_WPF_bazowy!#REF! ->  | W34: =+Zał.1_WPF_bazowy!#REF! ->  | X34: =+Zał.1_WPF_bazowy!#REF! ->  | Y34: =+Zał.1_WPF_bazowy!#REF! ->  | Z34: =+Zał.1_WPF_bazowy!#REF! ->  | AA34: =+Zał.1_WPF_bazowy!#REF! ->  | AB34: =+Zał.1_WPF_bazowy!#REF! ->  | AC34: =+Zał.1_WPF_bazowy!#REF! ->  | AD34: =+Zał.1_WPF_bazowy!#REF! ->  | AE34: =+Zał.1_WPF_bazowy!#REF! ->  | AF34: =+Zał.1_WPF_bazowy!#REF! ->  | AG34: =+Zał.1_WPF_bazowy!#REF! ->  | AH34: =+Zał.1_WPF_bazowy!#REF! ->  | AI34: =+Zał.1_WPF_bazowy!#REF! ->  | AJ34: =+Zał.1_WPF_bazowy!#REF! ->  | AK34: =+Zał.1_WPF_bazowy!#REF! ->  | AL34: =+Zał.1_WPF_bazowy!#REF! -> 
A35: x | B35: 4.2 | D35: Wolne środki, o których mowa w art. 217 ust.2 pkt 6 ustawy | E35: =Zał.1_WPF_bazowy!E28 -> 2607411.22 | F35: =Zał.1_WPF_bazowy!F28 -> 2502437.51 | G35: =Zał.1_WPF_bazowy!G28 -> 4393398.38 | H35: =Zał.1_WPF_bazowy!H28 -> 4393398.38 | I35: =+Zał.1_WPF_bazowy!I28 -> 0 | J35: =+Zał.1_WPF_bazowy!J28 -> 0 | K35: =+Zał.1_WPF_bazowy!K28 -> 0 | L35: =+Zał.1_WPF_bazowy!L28 -> 0 | M35: =+Zał.1_WPF_bazowy!M28 -> 0 | N35: =+Zał.1_WPF_bazowy!N28 -> 0 | O35: =+Zał.1_WPF_bazowy!O28 -> 0 | P35: =+Zał.1_WPF_bazowy!P28 -> 0 | Q35: =+Zał.1_WPF_bazowy!Q28 -> 0 | R35: =+Zał.1_WPF_bazowy!#REF! ->  | S35: =+Zał.1_WPF_bazowy!#REF! ->  | T35: =+Zał.1_WPF_bazowy!#REF! ->  | U35: =+Zał.1_WPF_bazowy!#REF! ->  | V35: =+Zał.1_WPF_bazowy!#REF! ->  | W35: =+Zał.1_WPF_bazowy!#REF! ->  | X35: =+Zał.1_WPF_bazowy!#REF! ->  | Y35: =+Zał.1_WPF_bazowy!#REF! ->  | Z35: =+Zał.1_WPF_bazowy!#REF! ->  | AA35: =+Zał.1_WPF_bazowy!#REF! ->  | AB35: =+Zał.1_WPF_bazowy!#REF! ->  | AC35: =+Zał.1_WPF_bazowy!#REF! ->  | AD35: =+Zał.1_WPF_bazowy!#REF! ->  | AE35: =+Zał.1_WPF_bazowy!#REF! ->  | AF35: =+Zał.1_WPF_bazowy!#REF! ->  | AG35: =+Zał.1_WPF_bazowy!#REF! ->  | AH35: =+Zał.1_WPF_bazowy!#REF! ->  | AI35: =+Zał.1_WPF_bazowy!#REF! ->  | AJ35: =+Zał.1_WPF_bazowy!#REF! ->  | AK35: =+Zał.1_WPF_bazowy!#REF! ->  | AL35: =+Zał.1_WPF_bazowy!#REF! -> 
A36: x | B36: 4.2.1 | D36: w tym na pokrycie deficytu budżetu | E36: =Zał.1_WPF_bazowy!E29 -> 105938.83 | F36: =Zał.1_WPF_bazowy!F29 -> 2502437.51 | G36: =Zał.1_WPF_bazowy!G29 -> 4393398.38 | H36: =Zał.1_WPF_bazowy!H29 -> 4393398.38 | I36: =+Zał.1_WPF_bazowy!I29 -> 0 | J36: =+Zał.1_WPF_bazowy!J29 -> 0 | K36: =+Zał.1_WPF_bazowy!K29 -> 0 | L36: =+Zał.1_WPF_bazowy!L29 -> 0 | M36: =+Zał.1_WPF_bazowy!M29 -> 0 | N36: =+Zał.1_WPF_bazowy!N29 -> 0 | O36: =+Zał.1_WPF_bazowy!O29 -> 0 | P36: =+Zał.1_WPF_bazowy!P29 -> 0 | Q36: =+Zał.1_WPF_bazowy!Q29 -> 0 | R36: =+Zał.1_WPF_bazowy!#REF! ->  | S36: =+Zał.1_WPF_bazowy!#REF! ->  | T36: =+Zał.1_WPF_bazowy!#REF! ->  | U36: =+Zał.1_WPF_bazowy!#REF! ->  | V36: =+Zał.1_WPF_bazowy!#REF! ->  | W36: =+Zał.1_WPF_bazowy!#REF! ->  | X36: =+Zał.1_WPF_bazowy!#REF! ->  | Y36: =+Zał.1_WPF_bazowy!#REF! ->  | Z36: =+Zał.1_WPF_bazowy!#REF! ->  | AA36: =+Zał.1_WPF_bazowy!#REF! ->  | AB36: =+Zał.1_WPF_bazowy!#REF! ->  | AC36: =+Zał.1_WPF_bazowy!#REF! ->  | AD36: =+Zał.1_WPF_bazowy!#REF! ->  | AE36: =+Zał.1_WPF_bazowy!#REF! ->  | AF36: =+Zał.1_WPF_bazowy!#REF! ->  | AG36: =+Zał.1_WPF_bazowy!#REF! ->  | AH36: =+Zał.1_WPF_bazowy!#REF! ->  | AI36: =+Zał.1_WPF_bazowy!#REF! ->  | AJ36: =+Zał.1_WPF_bazowy!#REF! ->  | AK36: =+Zał.1_WPF_bazowy!#REF! ->  | AL36: =+Zał.1_WPF_bazowy!#REF! -> 
A37: x | B37: 4.3 | D37: Kredyty, pożyczki, emisja papierów wartościowych | E37: =Zał.1_WPF_bazowy!E30 -> 4710000 | F37: =Zał.1_WPF_bazowy!F30 -> 2508000 | G37: =Zał.1_WPF_bazowy!G30 -> 2452692 | H37: =Zał.1_WPF_bazowy!H30 -> 2452692 | I37: =+Zał.1_WPF_bazowy!I30 -> 1215692 | J37: =+Zał.1_WPF_bazowy!J30 -> 0 | K37: =+Zał.1_WPF_bazowy!K30 -> 0 | L37: =+Zał.1_WPF_bazowy!L30 -> 0 | M37: =+Zał.1_WPF_bazowy!M30 -> 0 | N37: =+Zał.1_WPF_bazowy!N30 -> 0 | O37: =+Zał.1_WPF_bazowy!O30 -> 0 | P37: =+Zał.1_WPF_bazowy!P30 -> 0 | Q37: =+Zał.1_WPF_bazowy!Q30 -> 0 | R37: =+Zał.1_WPF_bazowy!#REF! ->  | S37: =+Zał.1_WPF_bazowy!#REF! ->  | T37: =+Zał.1_WPF_bazowy!#REF! ->  | U37: =+Zał.1_WPF_bazowy!#REF! ->  | V37: =+Zał.1_WPF_bazowy!#REF! ->  | W37: =+Zał.1_WPF_bazowy!#REF! ->  | X37: =+Zał.1_WPF_bazowy!#REF! ->  | Y37: =+Zał.1_WPF_bazowy!#REF! ->  | Z37: =+Zał.1_WPF_bazowy!#REF! ->  | AA37: =+Zał.1_WPF_bazowy!#REF! ->  | AB37: =+Zał.1_WPF_bazowy!#REF! ->  | AC37: =+Zał.1_WPF_bazowy!#REF! ->  | AD37: =+Zał.1_WPF_bazowy!#REF! ->  | AE37: =+Zał.1_WPF_bazowy!#REF! ->  | AF37: =+Zał.1_WPF_bazowy!#REF! ->  | AG37: =+Zał.1_WPF_bazowy!#REF! ->  | AH37: =+Zał.1_WPF_bazowy!#REF! ->  | AI37: =+Zał.1_WPF_bazowy!#REF! ->  | AJ37: =+Zał.1_WPF_bazowy!#REF! ->  | AK37: =+Zał.1_WPF_bazowy!#REF! ->  | AL37: =+Zał.1_WPF_bazowy!#REF! -> 
A38: x | B38: 4.3.1 | D38: w tym na pokrycie deficytu budżetu | E38: =Zał.1_WPF_bazowy!E31 -> 0 | F38: =Zał.1_WPF_bazowy!F31 -> 0 | G38: =Zał.1_WPF_bazowy!G31 -> 1537000 | H38: =Zał.1_WPF_bazowy!H31 -> 1537000 | I38: =+Zał.1_WPF_bazowy!I31 -> 0 | J38: =+Zał.1_WPF_bazowy!J31 -> 0 | K38: =+Zał.1_WPF_bazowy!K31 -> 0 | L38: =+Zał.1_WPF_bazowy!L31 -> 0 | M38: =+Zał.1_WPF_bazowy!M31 -> 0 | N38: =+Zał.1_WPF_bazowy!N31 -> 0 | O38: =+Zał.1_WPF_bazowy!O31 -> 0 | P38: =+Zał.1_WPF_bazowy!P31 -> 0 | Q38: =+Zał.1_WPF_bazowy!Q31 -> 0 | R38: =+Zał.1_WPF_bazowy!#REF! ->  | S38: =+Zał.1_WPF_bazowy!#REF! ->  | T38: =+Zał.1_WPF_bazowy!#REF! ->  | U38: =+Zał.1_WPF_bazowy!#REF! ->  | V38: =+Zał.1_WPF_bazowy!#REF! ->  | W38: =+Zał.1_WPF_bazowy!#REF! ->  | X38: =+Zał.1_WPF_bazowy!#REF! ->  | Y38: =+Zał.1_WPF_bazowy!#REF! ->  | Z38: =+Zał.1_WPF_bazowy!#REF! ->  | AA38: =+Zał.1_WPF_bazowy!#REF! ->  | AB38: =+Zał.1_WPF_bazowy!#REF! ->  | AC38: =+Zał.1_WPF_bazowy!#REF! ->  | AD38: =+Zał.1_WPF_bazowy!#REF! ->  | AE38: =+Zał.1_WPF_bazowy!#REF! ->  | AF38: =+Zał.1_WPF_bazowy!#REF! ->  | AG38: =+Zał.1_WPF_bazowy!#REF! ->  | AH38: =+Zał.1_WPF_bazowy!#REF! ->  | AI38: =+Zał.1_WPF_bazowy!#REF! ->  | AJ38: =+Zał.1_WPF_bazowy!#REF! ->  | AK38: =+Zał.1_WPF_bazowy!#REF! ->  | AL38: =+Zał.1_WPF_bazowy!#REF! -> 
A39: x | B39: 4.4 | D39: Inne przychody niezwiązane z zaciągnięciem długu | E39: =Zał.1_WPF_bazowy!E32 -> 0 | F39: =Zał.1_WPF_bazowy!F32 -> 0 | G39: =Zał.1_WPF_bazowy!G32 -> 0 | H39: =Zał.1_WPF_bazowy!H32 -> 0 | I39: =+Zał.1_WPF_bazowy!I32 -> 0 | J39: =+Zał.1_WPF_bazowy!J32 -> 0 | K39: =+Zał.1_WPF_bazowy!K32 -> 0 | L39: =+Zał.1_WPF_bazowy!L32 -> 0 | M39: =+Zał.1_WPF_bazowy!M32 -> 0 | N39: =+Zał.1_WPF_bazowy!N32 -> 0 | O39: =+Zał.1_WPF_bazowy!O32 -> 0 | P39: =+Zał.1_WPF_bazowy!P32 -> 0 | Q39: =+Zał.1_WPF_bazowy!Q32 -> 0 | R39: =+Zał.1_WPF_bazowy!#REF! ->  | S39: =+Zał.1_WPF_bazowy!#REF! ->  | T39: =+Zał.1_WPF_bazowy!#REF! ->  | U39: =+Zał.1_WPF_bazowy!#REF! ->  | V39: =+Zał.1_WPF_bazowy!#REF! ->  | W39: =+Zał.1_WPF_bazowy!#REF! ->  | X39: =+Zał.1_WPF_bazowy!#REF! ->  | Y39: =+Zał.1_WPF_bazowy!#REF! ->  | Z39: =+Zał.1_WPF_bazowy!#REF! ->  | AA39: =+Zał.1_WPF_bazowy!#REF! ->  | AB39: =+Zał.1_WPF_bazowy!#REF! ->  | AC39: =+Zał.1_WPF_bazowy!#REF! ->  | AD39: =+Zał.1_WPF_bazowy!#REF! ->  | AE39: =+Zał.1_WPF_bazowy!#REF! ->  | AF39: =+Zał.1_WPF_bazowy!#REF! ->  | AG39: =+Zał.1_WPF_bazowy!#REF! ->  | AH39: =+Zał.1_WPF_bazowy!#REF! ->  | AI39: =+Zał.1_WPF_bazowy!#REF! ->  | AJ39: =+Zał.1_WPF_bazowy!#REF! ->  | AK39: =+Zał.1_WPF_bazowy!#REF! ->  | AL39: =+Zał.1_WPF_bazowy!#REF! -> 
A40: x | B40: 4.4.1 | D40: w tym na pokrycie deficytu budżetu | E40: =Zał.1_WPF_bazowy!E33 -> 0 | F40: =Zał.1_WPF_bazowy!F33 -> 0 | G40: =Zał.1_WPF_bazowy!G33 -> 0 | H40: =Zał.1_WPF_bazowy!H33 -> 0 | I40: =+Zał.1_WPF_bazowy!I33 -> 0 | J40: =+Zał.1_WPF_bazowy!J33 -> 0 | K40: =+Zał.1_WPF_bazowy!K33 -> 0 | L40: =+Zał.1_WPF_bazowy!L33 -> 0 | M40: =+Zał.1_WPF_bazowy!M33 -> 0 | N40: =+Zał.1_WPF_bazowy!N33 -> 0 | O40: =+Zał.1_WPF_bazowy!O33 -> 0 | P40: =+Zał.1_WPF_bazowy!P33 -> 0 | Q40: =+Zał.1_WPF_bazowy!Q33 -> 0 | R40: =+Zał.1_WPF_bazowy!#REF! ->  | S40: =+Zał.1_WPF_bazowy!#REF! ->  | T40: =+Zał.1_WPF_bazowy!#REF! ->  | U40: =+Zał.1_WPF_bazowy!#REF! ->  | V40: =+Zał.1_WPF_bazowy!#REF! ->  | W40: =+Zał.1_WPF_bazowy!#REF! ->  | X40: =+Zał.1_WPF_bazowy!#REF! ->  | Y40: =+Zał.1_WPF_bazowy!#REF! ->  | Z40: =+Zał.1_WPF_bazowy!#REF! ->  | AA40: =+Zał.1_WPF_bazowy!#REF! ->  | AB40: =+Zał.1_WPF_bazowy!#REF! ->  | AC40: =+Zał.1_WPF_bazowy!#REF! ->  | AD40: =+Zał.1_WPF_bazowy!#REF! ->  | AE40: =+Zał.1_WPF_bazowy!#REF! ->  | AF40: =+Zał.1_WPF_bazowy!#REF! ->  | AG40: =+Zał.1_WPF_bazowy!#REF! ->  | AH40: =+Zał.1_WPF_bazowy!#REF! ->  | AI40: =+Zał.1_WPF_bazowy!#REF! ->  | AJ40: =+Zał.1_WPF_bazowy!#REF! ->  | AK40: =+Zał.1_WPF_bazowy!#REF! ->  | AL40: =+Zał.1_WPF_bazowy!#REF! -> 
A41: x | B41: 5 | C41: [5.1] + [5.2] | D41: Rozchody budżetu | E41: =Zał.1_WPF_bazowy!E34 -> 1903176.7 | F41: =Zał.1_WPF_bazowy!F34 -> 2026525.28 | G41: =Zał.1_WPF_bazowy!G34 -> 915692 | H41: =+H42+H47 -> 915692 | I41: 1215692 | J41: 1478204 | K41: 1678204 | L41: 1860004 | M41: 2210004 | N41: 2210004 | O41: 2250004 | P41: 2418000 | Q41: 3418384
A42: x | B42: 5.1 | D42: Spłaty rat kapitałowych kredytów i pożyczek oraz wykup papierów wartościowych | E42: =Zał.1_WPF_bazowy!E35 -> 1903176.7 | F42: =Zał.1_WPF_bazowy!F35 -> 2026525.28 | G42: =Zał.1_WPF_bazowy!G35 -> 915692 | H42: =Zał.1_WPF_bazowy!H35 -> 915692 | I42: =+Zał.1_WPF_bazowy!I35 -> 1215692 | J42: =+Zał.1_WPF_bazowy!J35 -> 1478204 | K42: =+Zał.1_WPF_bazowy!K35 -> 1678204 | L42: =+Zał.1_WPF_bazowy!L35 -> 1860004 | M42: =+Zał.1_WPF_bazowy!M35 -> 2210004 | N42: =+Zał.1_WPF_bazowy!N35 -> 2210004 | O42: =+Zał.1_WPF_bazowy!O35 -> 2250004 | P42: =+Zał.1_WPF_bazowy!P35 -> 2418000 | Q42: =+Zał.1_WPF_bazowy!Q35 -> 3418384 | R42: =+Zał.1_WPF_bazowy!#REF! ->  | S42: =+Zał.1_WPF_bazowy!#REF! ->  | T42: =+Zał.1_WPF_bazowy!#REF! ->  | U42: =+Zał.1_WPF_bazowy!#REF! ->  | V42: =+Zał.1_WPF_bazowy!#REF! ->  | W42: =+Zał.1_WPF_bazowy!#REF! ->  | X42: =+Zał.1_WPF_bazowy!#REF! ->  | Y42: =+Zał.1_WPF_bazowy!#REF! ->  | Z42: =+Zał.1_WPF_bazowy!#REF! ->  | AA42: =+Zał.1_WPF_bazowy!#REF! ->  | AB42: =+Zał.1_WPF_bazowy!#REF! ->  | AC42: =+Zał.1_WPF_bazowy!#REF! ->  | AD42: =+Zał.1_WPF_bazowy!#REF! ->  | AE42: =+Zał.1_WPF_bazowy!#REF! ->  | AF42: =+Zał.1_WPF_bazowy!#REF! ->  | AG42: =+Zał.1_WPF_bazowy!#REF! ->  | AH42: =+Zał.1_WPF_bazowy!#REF! ->  | AI42: =+Zał.1_WPF_bazowy!#REF! ->  | AJ42: =+Zał.1_WPF_bazowy!#REF! ->  | AK42: =+Zał.1_WPF_bazowy!#REF! ->  | AL42: =+Zał.1_WPF_bazowy!#REF! -> 
A43: x | B43: 5.1.1 | C43: [5.1.1.1] + [5.1.1.2] + [5.1.1.3] | D43: w tym łączna kwota przypadających na dany rok kwot ustawowych wyłączeń z limitu spłaty zobowiązań, o którym mowa w art. 243 ustawy, z tego: | E43: =Zał.1_WPF_bazowy!E36 -> 0 | F43: =Zał.1_WPF_bazowy!F36 -> 0 | G43: =Zał.1_WPF_bazowy!G36 -> 0 | H43: =+H44+H45+H46 -> 0 | I43: =+I44+I45+I46 -> 0 | J43: 0 | K43: 0 | L43: 0 | M43: 0 | N43: 0 | O43: 0 | P43: 0 | Q43: 0
A44: x | B44: 5.1.1.1 | D44: kwota przypadających na dany rok kwot ustawowych wyłączeń określonych w art. 243 ust. 3 ustawy | E44: =Zał.1_WPF_bazowy!E37 -> 0 | F44: =Zał.1_WPF_bazowy!F37 -> 0 | G44: =Zał.1_WPF_bazowy!G37 -> 0 | H44: =Zał.1_WPF_bazowy!H37 -> 0 | I44: =+Zał.1_WPF_bazowy!I37 -> 0 | J44: =+Zał.1_WPF_bazowy!J37 -> 0 | K44: =+Zał.1_WPF_bazowy!K37 -> 0 | L44: =+Zał.1_WPF_bazowy!L37 -> 0 | M44: =+Zał.1_WPF_bazowy!M37 -> 0 | N44: =+Zał.1_WPF_bazowy!N37 -> 0 | O44: =+Zał.1_WPF_bazowy!O37 -> 0 | P44: =+Zał.1_WPF_bazowy!P37 -> 0 | Q44: =+Zał.1_WPF_bazowy!Q37 -> 0 | R44: =+Zał.1_WPF_bazowy!#REF! ->  | S44: =+Zał.1_WPF_bazowy!#REF! ->  | T44: =+Zał.1_WPF_bazowy!#REF! ->  | U44: =+Zał.1_WPF_bazowy!#REF! ->  | V44: =+Zał.1_WPF_bazowy!#REF! ->  | W44: =+Zał.1_WPF_bazowy!#REF! ->  | X44: =+Zał.1_WPF_bazowy!#REF! ->  | Y44: =+Zał.1_WPF_bazowy!#REF! ->  | Z44: =+Zał.1_WPF_bazowy!#REF! ->  | AA44: =+Zał.1_WPF_bazowy!#REF! ->  | AB44: =+Zał.1_WPF_bazowy!#REF! ->  | AC44: =+Zał.1_WPF_bazowy!#REF! ->  | AD44: =+Zał.1_WPF_bazowy!#REF! ->  | AE44: =+Zał.1_WPF_bazowy!#REF! ->  | AF44: =+Zał.1_WPF_bazowy!#REF! ->  | AG44: =+Zał.1_WPF_bazowy!#REF! ->  | AH44: =+Zał.1_WPF_bazowy!#REF! ->  | AI44: =+Zał.1_WPF_bazowy!#REF! ->  | AJ44: =+Zał.1_WPF_bazowy!#REF! ->  | AK44: =+Zał.1_WPF_bazowy!#REF! ->  | AL44: =+Zał.1_WPF_bazowy!#REF! -> 
A45: x | B45: 5.1.1.2 | D45: kwota przypadających na dany rok kwot ustawowych wyłączeń określonych w art. 243 ust. 3a ustawy | E45: =Zał.1_WPF_bazowy!E38 -> 0 | F45: =Zał.1_WPF_bazowy!F38 -> 0 | G45: =Zał.1_WPF_bazowy!G38 -> 0 | H45: =Zał.1_WPF_bazowy!H38 -> 0 | I45: =+Zał.1_WPF_bazowy!I38 -> 0 | J45: =+Zał.1_WPF_bazowy!J38 -> 0 | K45: =+Zał.1_WPF_bazowy!K38 -> 0 | L45: =+Zał.1_WPF_bazowy!L38 -> 0 | M45: =+Zał.1_WPF_bazowy!M38 -> 0 | N45: =+Zał.1_WPF_bazowy!N38 -> 0 | O45: =+Zał.1_WPF_bazowy!O38 -> 0 | P45: =+Zał.1_WPF_bazowy!P38 -> 0 | Q45: =+Zał.1_WPF_bazowy!Q38 -> 0 | R45: =+Zał.1_WPF_bazowy!#REF! ->  | S45: =+Zał.1_WPF_bazowy!#REF! ->  | T45: =+Zał.1_WPF_bazowy!#REF! ->  | U45: =+Zał.1_WPF_bazowy!#REF! ->  | V45: =+Zał.1_WPF_bazowy!#REF! ->  | W45: =+Zał.1_WPF_bazowy!#REF! ->  | X45: =+Zał.1_WPF_bazowy!#REF! ->  | Y45: =+Zał.1_WPF_bazowy!#REF! ->  | Z45: =+Zał.1_WPF_bazowy!#REF! ->  | AA45: =+Zał.1_WPF_bazowy!#REF! ->  | AB45: =+Zał.1_WPF_bazowy!#REF! ->  | AC45: =+Zał.1_WPF_bazowy!#REF! ->  | AD45: =+Zał.1_WPF_bazowy!#REF! ->  | AE45: =+Zał.1_WPF_bazowy!#REF! ->  | AF45: =+Zał.1_WPF_bazowy!#REF! ->  | AG45: =+Zał.1_WPF_bazowy!#REF! ->  | AH45: =+Zał.1_WPF_bazowy!#REF! ->  | AI45: =+Zał.1_WPF_bazowy!#REF! ->  | AJ45: =+Zał.1_WPF_bazowy!#REF! ->  | AK45: =+Zał.1_WPF_bazowy!#REF! ->  | AL45: =+Zał.1_WPF_bazowy!#REF! -> 
A46: x | B46: 5.1.1.3 | D46: kwota przypadających na dany rok kwot ustawowych wyłączeń innych niż określone w art. 243 ustawy | E46: =Zał.1_WPF_bazowy!E39 -> 0 | F46: =Zał.1_WPF_bazowy!F39 -> 0 | G46: =Zał.1_WPF_bazowy!G39 -> 0 | H46: =Zał.1_WPF_bazowy!H39 -> 0 | I46: =+Zał.1_WPF_bazowy!I39 -> 0 | J46: =+Zał.1_WPF_bazowy!J39 -> 0 | K46: =+Zał.1_WPF_bazowy!K39 -> 0 | L46: =+Zał.1_WPF_bazowy!L39 -> 0 | M46: =+Zał.1_WPF_bazowy!M39 -> 0 | N46: =+Zał.1_WPF_bazowy!N39 -> 0 | O46: =+Zał.1_WPF_bazowy!O39 -> 0 | P46: =+Zał.1_WPF_bazowy!P39 -> 0 | Q46: =+Zał.1_WPF_bazowy!Q39 -> 0 | R46: =+Zał.1_WPF_bazowy!#REF! ->  | S46: =+Zał.1_WPF_bazowy!#REF! ->  | T46: =+Zał.1_WPF_bazowy!#REF! ->  | U46: =+Zał.1_WPF_bazowy!#REF! ->  | V46: =+Zał.1_WPF_bazowy!#REF! ->  | W46: =+Zał.1_WPF_bazowy!#REF! ->  | X46: =+Zał.1_WPF_bazowy!#REF! ->  | Y46: =+Zał.1_WPF_bazowy!#REF! ->  | Z46: =+Zał.1_WPF_bazowy!#REF! ->  | AA46: =+Zał.1_WPF_bazowy!#REF! ->  | AB46: =+Zał.1_WPF_bazowy!#REF! ->  | AC46: =+Zał.1_WPF_bazowy!#REF! ->  | AD46: =+Zał.1_WPF_bazowy!#REF! ->  | AE46: =+Zał.1_WPF_bazowy!#REF! ->  | AF46: =+Zał.1_WPF_bazowy!#REF! ->  | AG46: =+Zał.1_WPF_bazowy!#REF! ->  | AH46: =+Zał.1_WPF_bazowy!#REF! ->  | AI46: =+Zał.1_WPF_bazowy!#REF! ->  | AJ46: =+Zał.1_WPF_bazowy!#REF! ->  | AK46: =+Zał.1_WPF_bazowy!#REF! ->  | AL46: =+Zał.1_WPF_bazowy!#REF! -> 
B47: 5.2 | D47: Inne rozchody niezwiązane ze spłatą długu | E47: =Zał.1_WPF_bazowy!E40 -> 0 | F47: =Zał.1_WPF_bazowy!F40 -> 0 | G47: =Zał.1_WPF_bazowy!G40 -> 0 | H47: =Zał.1_WPF_bazowy!H40 -> 0 | I47: =+Zał.1_WPF_bazowy!I40 -> 0 | J47: =+Zał.1_WPF_bazowy!J40 -> 0 | K47: =+Zał.1_WPF_bazowy!K40 -> 0 | L47: =+Zał.1_WPF_bazowy!L40 -> 0 | M47: =+Zał.1_WPF_bazowy!M40 -> 0 | N47: =+Zał.1_WPF_bazowy!N40 -> 0 | O47: =+Zał.1_WPF_bazowy!O40 -> 0 | P47: =+Zał.1_WPF_bazowy!P40 -> 0 | Q47: =+Zał.1_WPF_bazowy!Q40 -> 0 | R47: =+Zał.1_WPF_bazowy!#REF! ->  | S47: =+Zał.1_WPF_bazowy!#REF! ->  | T47: =+Zał.1_WPF_bazowy!#REF! ->  | U47: =+Zał.1_WPF_bazowy!#REF! ->  | V47: =+Zał.1_WPF_bazowy!#REF! ->  | W47: =+Zał.1_WPF_bazowy!#REF! ->  | X47: =+Zał.1_WPF_bazowy!#REF! ->  | Y47: =+Zał.1_WPF_bazowy!#REF! ->  | Z47: =+Zał.1_WPF_bazowy!#REF! ->  | AA47: =+Zał.1_WPF_bazowy!#REF! ->  | AB47: =+Zał.1_WPF_bazowy!#REF! ->  | AC47: =+Zał.1_WPF_bazowy!#REF! ->  | AD47: =+Zał.1_WPF_bazowy!#REF! ->  | AE47: =+Zał.1_WPF_bazowy!#REF! ->  | AF47: =+Zał.1_WPF_bazowy!#REF! ->  | AG47: =+Zał.1_WPF_bazowy!#REF! ->  | AH47: =+Zał.1_WPF_bazowy!#REF! ->  | AI47: =+Zał.1_WPF_bazowy!#REF! ->  | AJ47: =+Zał.1_WPF_bazowy!#REF! ->  | AK47: =+Zał.1_WPF_bazowy!#REF! ->  | AL47: =+Zał.1_WPF_bazowy!#REF! -> 
A48: x | B48: 6 | D48: Kwota długu | E48: =Zał.1_WPF_bazowy!E41 -> 15503368.16 | F48: =Zał.1_WPF_bazowy!F41 -> 15985808 | G48: =Zał.1_WPF_bazowy!G41 -> 17522808 | H48: =Zał.1_WPF_bazowy!H41 -> 17522808 | I48: =+IF(I10<>0,H48+I37-I42+(I105-H105)+I110,0) -> 17522808 | J48: 16044604 | K48: 14366400 | L48: 12506396 | M48: 10296392 | N48: 8086388 | O48: 5836384 | P48: 3418384 | Q48: 0
B49: 7 | D49: Kwota zobowiązań wynikających z przejęcia przez jednostkę samorządu terytorialnego zobowiązań po likwidowanych i przekształcanych jednostkach zaliczanych do sektora finansów publicznych | E49: =Zał.1_WPF_bazowy!E42 -> 0 | F49: =Zał.1_WPF_bazowy!F42 -> 0 | G49: =Zał.1_WPF_bazowy!G42 -> 0 | H49: =Zał.1_WPF_bazowy!H42 -> 0 | I49: =+Zał.1_WPF_bazowy!I42 -> 0 | J49: =+Zał.1_WPF_bazowy!J42 -> 0 | K49: =+Zał.1_WPF_bazowy!K42 -> 0 | L49: =+Zał.1_WPF_bazowy!L42 -> 0 | M49: =+Zał.1_WPF_bazowy!M42 -> 0 | N49: =+Zał.1_WPF_bazowy!N42 -> 0 | O49: =+Zał.1_WPF_bazowy!O42 -> 0 | P49: =+Zał.1_WPF_bazowy!P42 -> 0 | Q49: =+Zał.1_WPF_bazowy!Q42 -> 0 | R49: =+Zał.1_WPF_bazowy!#REF! ->  | S49: =+Zał.1_WPF_bazowy!#REF! ->  | T49: =+Zał.1_WPF_bazowy!#REF! ->  | U49: =+Zał.1_WPF_bazowy!#REF! ->  | V49: =+Zał.1_WPF_bazowy!#REF! ->  | W49: =+Zał.1_WPF_bazowy!#REF! ->  | X49: =+Zał.1_WPF_bazowy!#REF! ->  | Y49: =+Zał.1_WPF_bazowy!#REF! ->  | Z49: =+Zał.1_WPF_bazowy!#REF! ->  | AA49: =+Zał.1_WPF_bazowy!#REF! ->  | AB49: =+Zał.1_WPF_bazowy!#REF! ->  | AC49: =+Zał.1_WPF_bazowy!#REF! ->  | AD49: =+Zał.1_WPF_bazowy!#REF! ->  | AE49: =+Zał.1_WPF_bazowy!#REF! ->  | AF49: =+Zał.1_WPF_bazowy!#REF! ->  | AG49: =+Zał.1_WPF_bazowy!#REF! ->  | AH49: =+Zał.1_WPF_bazowy!#REF! ->  | AI49: =+Zał.1_WPF_bazowy!#REF! ->  | AJ49: =+Zał.1_WPF_bazowy!#REF! ->  | AK49: =+Zał.1_WPF_bazowy!#REF! ->  | AL49: =+Zał.1_WPF_bazowy!#REF! -> 
B50: 8 | D50: Relacja zrównoważenia wydatków bieżących, o której mowa w art. 242 ustawy | E50: x | F50: x | G50: x | H50: x | I50: x | J50: x | K50: x | L50: x | M50: x | N50: x | O50: x | P50: x | Q50: x | R50: x | S50: x | T50: x | U50: x | V50: x | W50: x | X50: x | Y50: x | Z50: x | AA50: x | AB50: x | AC50: x | AD50: x | AE50: x | AF50: x | AG50: x | AH50: x | AI50: x | AJ50: x | AK50: x | AL50: x
B51: 8.1 | C51: [1.1] - [2.1] | D51: Różnica między dochodami bieżącymi a wydatkami bieżącymi | E51: =Zał.1_WPF_bazowy!E44 -> 2126924.56 | F51: =Zał.1_WPF_bazowy!F44 -> 2820812.79 | G51: =Zał.1_WPF_bazowy!G44 -> 1779431.18 | H51: =+H11-H22 -> 1779431.18 | I51: 2234000 | J51: 2900000 | K51: 3400000 | L51: 3900000 | M51: 4400000 | N51: 4900000 | O51: 5400000 | P51: 5900000 | Q51: 6400000
B52: 8.2 | C52: [1.1] + [4.1] + [4.2] - ( [2.1] - [2.1.2] ) | D52: Różnica między dochodami bieżącymi, skorygowanymi o środki a wydatkami bieżącymi, pomniejszonymi o wydatki | E52: =+IF(AND(E9>=2013,E9<=2015),+E11+E33+E35-(E22-E25),+E11+E33+E35-E22) -> 4734335.78 | F52: 5323250.3 | G52: 6172829.56 | H52: 6172829.56 | I52: 2234000 | J52: 2900000 | K52: 3400000 | L52: 3900000 | M52: 4400000 | N52: 4900000 | O52: 5400000 | P52: 5900000 | Q52: 6400000
A53: x | B53: 9 | D53: Wskaźnik spłaty zobowiązań | E53: x | F53: x | G53: x | H53: x | I53: x | J53: x | K53: x | L53: x | M53: x | N53: x | O53: x | P53: x | Q53: x | R53: x | S53: x | T53: x | U53: x | V53: x | W53: x | X53: x | Y53: x | Z53: x | AA53: x | AB53: x | AC53: x | AD53: x | AE53: x | AF53: x | AG53: x | AH53: x | AI53: x | AJ53: x | AK53: x | AL53: x
A54: x | B54: 9.1 | C54: ([2.1.1] + [2.1.3.1] + [5.1] ) / [1] | D54: Wskaźnik planowanej łącznej kwoty spłaty zobowiązań, o której mowa w art. 243 ust. 1 ustawy do dochodów, bez uwzględnienia zobowiązań związku współtworzonego przez jednostkę samorządu terytorialnego i bez uwzględnienia ustawowych wyłączeń przypadających na dany rok. | E54: =Zał.1_WPF_bazowy!E47 -> 0.0694 | F54: =Zał.1_WPF_bazowy!F47 -> 0.0668 | G54: =Zał.1_WPF_bazowy!G47 -> 0.0388 | H54: =+IF(H10<>0,ROUND((H23+H27+H42)/H10,$K$7+2),"-") -> 0.0388 | I54: 0.0568 | J54: 0.0632 | K54: 0.0664 | L54: 0.0689 | M54: 0.075 | N54: 0.0709 | O54: 0.0678 | P54: 0.0684 | Q54: 0.0894
A55: x | B55: 9.2 | C55: ( ([2.1.1]-[2.1.1.1])+([2.1.3.1]-[2.1.3.1.1]-[2.1.3.1.2])+([5.1]-[5.1.1]) )/([1]-[15.1.1]) | D55: Wskaźnik planowanej łącznej kwoty spłaty zobowiązań, o której mowa w art. 243 ust. 1 ustawy do dochodów, bez uwzględnienia zobowiązań związku współtworzonego przez jednostkę samorządu terytorialnego, po uwzględnieniu ustawowych wyłączeń przypadających na dany rok. | E55: =Zał.1_WPF_bazowy!E48 -> 0.0694 | F55: =Zał.1_WPF_bazowy!F48 -> 0.0668 | G55: =Zał.1_WPF_bazowy!G48 -> 0.0388 | H55: =+IF(H10<>0,ROUND((H23-H24+H27-H28-H29+H42-H43)/(H10-H113),$K$7+2),"-") -> 0.0388 | I55: =+IF(I10<>0,ROUND((I23-I24+I27-I28-I29+I42-I43)/(I10-I113),$K$7+2),"-") -> 0.0568 | J55: 0.0632 | K55: 0.0664 | L55: 0.0689 | M55: 0.075 | N55: 0.0709 | O55: 0.0678 | P55: 0.0684 | Q55: 0.0894
A56: x | B56: 9.3 | D56: Kwota zobowiązań związku współtworzonego przez jednostkę samorządu terytorialnego przypadających do spłaty w danym roku budżetowym, podlegająca doliczeniu zgodnie z art. 244 ustawy | E56: =Zał.1_WPF_bazowy!E49 -> 0 | F56: =Zał.1_WPF_bazowy!F49 -> 0 | G56: =Zał.1_WPF_bazowy!G49 -> 0 | H56: =Zał.1_WPF_bazowy!H49 -> 0 | I56: =+Zał.1_WPF_bazowy!I49 -> 0 | J56: =+Zał.1_WPF_bazowy!J49 -> 0 | K56: =+Zał.1_WPF_bazowy!K49 -> 0 | L56: =+Zał.1_WPF_bazowy!L49 -> 0 | M56: =+Zał.1_WPF_bazowy!M49 -> 0 | N56: =+Zał.1_WPF_bazowy!N49 -> 0 | O56: =+Zał.1_WPF_bazowy!O49 -> 0 | P56: =+Zał.1_WPF_bazowy!P49 -> 0 | Q56: =+Zał.1_WPF_bazowy!Q49 -> 0 | R56: =+Zał.1_WPF_bazowy!#REF! ->  | S56: =+Zał.1_WPF_bazowy!#REF! ->  | T56: =+Zał.1_WPF_bazowy!#REF! ->  | U56: =+Zał.1_WPF_bazowy!#REF! ->  | V56: =+Zał.1_WPF_bazowy!#REF! ->  | W56: =+Zał.1_WPF_bazowy!#REF! ->  | X56: =+Zał.1_WPF_bazowy!#REF! ->  | Y56: =+Zał.1_WPF_bazowy!#REF! ->  | Z56: =+Zał.1_WPF_bazowy!#REF! ->  | AA56: =+Zał.1_WPF_bazowy!#REF! ->  | AB56: =+Zał.1_WPF_bazowy!#REF! ->  | AC56: =+Zał.1_WPF_bazowy!#REF! ->  | AD56: =+Zał.1_WPF_bazowy!#REF! ->  | AE56: =+Zał.1_WPF_bazowy!#REF! ->  | AF56: =+Zał.1_WPF_bazowy!#REF! ->  | AG56: =+Zał.1_WPF_bazowy!#REF! ->  | AH56: =+Zał.1_WPF_bazowy!#REF! ->  | AI56: =+Zał.1_WPF_bazowy!#REF! ->  | AJ56: =+Zał.1_WPF_bazowy!#REF! ->  | AK56: =+Zał.1_WPF_bazowy!#REF! ->  | AL56: =+Zał.1_WPF_bazowy!#REF! -> 
A57: x | B57: 9.4 | C57: (([2.1.1]-[2.1.1.1]) + ([2.1.3.1]-[2.1.3.1.1]-[2.1.3.1.2])+([5.1]-[5.1.1])+[9.3]) /([1]-[15.1.1]) | D57: Wskaźnik planowanej łącznej kwoty spłaty zobowiązań, o której mowa w art. 243 ust. 1 ustawy do dochodów, po uwzględnieniu zobowiązań związku współtworzonego przez jednostkę samorządu terytorialnego oraz po uwzględnieniu ustawowych wyłączeń przypadających na dany rok | E57: =Zał.1_WPF_bazowy!E50 -> 0.0694 | F57: =Zał.1_WPF_bazowy!F50 -> 0.0668 | G57: =Zał.1_WPF_bazowy!G50 -> 0.0388 | H57: =+IF(H10<>0,ROUND((H23-H24+H27-H28-H29+H42-H43+H56)/(H10-H113),$K$7+2),"-") -> 0.0388 | I57: =+IF(I10<>0,ROUND((I23-I24+I27-I28-I29+I42-I43+I56)/(I10-I113),$K$7+2),"-") -> 0.0568 | J57: 0.0632 | K57: 0.0664 | L57: 0.0689 | M57: 0.075 | N57: 0.0709 | O57: 0.0678 | P57: 0.0684 | Q57: 0.0894
A58: x | B58: 9.5 | C58: (([1.1] - [15.1.1])+[1.2.1] - ([2.1]-[2.1.2]-[15.2]))/ ([1]-[15.1.1]) | D58: Wskaźnik dochodów bieżących powiększonych o dochody ze sprzedaży majątku oraz pomniejszonych o wydatki bieżące, do dochodów budżetu, ustalony dla danego roku (wskaźnik jednoroczny) | E58: =+ROUND(IF(AND(E9>=2013,E9<=2018),IF(E10<>0,(E11-E113+E19-E22+E25+E114)/(E10-E113),0),IF(E10<>0,(E11-E113+E19-E22+E114)/(E10-E113),0)),$K$7+2) -> 0.063 | F58: =+ROUND(IF(AND(F9>=2013,F9<=2018),IF(F10<>0,(F11-F113+F19-F22+F25+F114)/(F10-F113),0),IF(F10<>0,(F11-F113+F19-F22+F114)/(F10-F113),0)),$K$7+2) -> 0.079 | G58: 0.0493 | H58: 0.0493 | I58: 0.0732 | J58: 0.0876 | K58: 0.0997 | L58: 0.1111 | M58: 0.1219 | N58: 0.1321 | O58: 0.1417 | P58: 0.1509 | Q58: 0.1596
A59: x | B59: 9.6 | C59: średnia z trzech poprzednich lat [9.5] | D59: Dopuszczalny wskaźnik spłaty zobowiązań określony w art. 243 ustawy, po uwzględnieniu ustawowych wyłączeń , obliczony w oparciu o plan 3 kwartału roku poprzedzającego pierwszy rok prognozy (wskaźnik ustalony w oparciu o średnią arytmetyczną z 3 poprzednich lat) | E59: =Zał.1_WPF_bazowy!E52 -> x | F59: =Zał.1_WPF_bazowy!F52 -> x | G59: =Zał.1_WPF_bazowy!G52 -> x | H59: =Zał.1_WPF_bazowy!H52 -> x | I59: =+IF(I10<>0,(G58+F58+E58)/3,"-") -> 0.06376666667 | J59: =+IF(J10<>0,(I58+G58+F58)/3,"-") -> 0.06716666667 | K59: =+IF(K10<>0,(J58+I58+G58)/3,"-") -> 0.07003333333 | L59: =+IF(L10<>0,(K58+J58+I58)/3,"-") -> 0.08683333333 | M59: 0.09946666667 | N59: 0.1109 | O59: 0.1217 | P59: 0.1319 | Q59: 0.1415666667
A60: x | B60: 9.6.1 | C60: średnia z trzech poprzednich lat [9.5] | D60: Dopuszczalny wskaźnik spłaty zobowiązań określony w art. 243 ustawy, po uwzględnieniu ustawowych wyłączeń, obliczony w oparciu o wykonanie roku poprzedzającego pierwszy rok prognozy (wskaźnik ustalony w oparciu o średnią arytmetyczną z 3 poprzednich lat) | E60: =Zał.1_WPF_bazowy!E53 -> x | F60: =Zał.1_WPF_bazowy!F53 -> x | G60: =Zał.1_WPF_bazowy!G53 -> x | H60: =Zał.1_WPF_bazowy!H53 -> x | I60: =+IF(I10<>0,ROUND((H58+F58+E58)/3,$K$7+2),"-") -> 0.0638 | J60: =+IF(J10<>0,ROUND((I58+H58+F58)/3,$K$7+2),"-") -> 0.0672 | K60: =+IF(K10<>0,ROUND((J58+I58+H58)/3,$K$7+2),"-") -> 0.07 | L60: 0.0868 | M60: 0.0995 | N60: 0.1109 | O60: 0.1217 | P60: 0.1319 | Q60: 0.1416
A61: x | B61: 9.7 | C61: [9.4]-[9.6] | D61: Informacja o spełnieniu wskaźnika spłaty zobowiązań określonego w art. 243 ustawy, po uwzględnieniu zobowiązań związku współtworzonego przez jednostkę samorządu terytorialnego oraz po uwzględnieniu ustawowych wyłączeń, obliczonego w oparciu o plan 3 kwartałów roku poprzedzającego rok budżetowy | E61: =Zał.1_WPF_bazowy!E54 -> x | F61: =Zał.1_WPF_bazowy!F54 -> x | G61: =Zał.1_WPF_bazowy!G54 -> x | H61: =Zał.1_WPF_bazowy!H54 -> x | I61: =+IF(I10<>0,IF(I59>=I57,"Spełniona","Nie spełniona"),"-") -> Spełniona | J61: Spełniona | K61: Spełniona | L61: Spełniona | M61: Spełniona | N61: Spełniona | O61: Spełniona | P61: Spełniona | Q61: Spełniona
A62: x | B62: 9.7.1 | C62: [9.4]-[9.6.1] | D62: Informacja o spełnieniu wskaźnika spłaty zobowiązań określonego w art. 243 ustawy, po uwzględnieniu zobowiązań związku współtworzonego przez jednostkę samorządu terytorialnego oraz po uwzględnieniu ustawowych wyłączeń, obliczonego w oparciu o wykonanie roku poprzedzającego rok budżetowy | E62: =Zał.1_WPF_bazowy!E55 -> x | F62: =Zał.1_WPF_bazowy!F55 -> x | G62: =Zał.1_WPF_bazowy!G55 -> x | H62: =Zał.1_WPF_bazowy!H55 -> x | I62: =+IF(I10<>0,IF(I60>=I57,"Spełniona","Nie spełniona"),"-") -> Spełniona | J62: Spełniona | K62: Spełniona | L62: Spełniona | M62: Spełniona | N62: Spełniona | O62: Spełniona | P62: Spełniona | Q62: Spełniona
B63: 10 | D63: Przeznaczenie prognozowanej nadwyżki budżetowej, w tym na: | E63: =Zał.1_WPF_bazowy!E56 -> 0 | F63: =Zał.1_WPF_bazowy!F56 -> 0 | G63: =Zał.1_WPF_bazowy!G56 -> 0 | H63: =Zał.1_WPF_bazowy!H56 -> 0 | I63: =+Zał.1_WPF_bazowy!I56 -> 0 | J63: =+Zał.1_WPF_bazowy!J56 -> 1478204 | K63: =+Zał.1_WPF_bazowy!K56 -> 1678204 | L63: =+Zał.1_WPF_bazowy!L56 -> 1860004 | M63: =+Zał.1_WPF_bazowy!M56 -> 2210004 | N63: =+Zał.1_WPF_bazowy!N56 -> 2210004 | O63: =+Zał.1_WPF_bazowy!O56 -> 2250004 | P63: =+Zał.1_WPF_bazowy!P56 -> 2418000 | Q63: =+Zał.1_WPF_bazowy!Q56 -> 3418384 | R63: =+Zał.1_WPF_bazowy!#REF! ->  | S63: =+Zał.1_WPF_bazowy!#REF! ->  | T63: =+Zał.1_WPF_bazowy!#REF! ->  | U63: =+Zał.1_WPF_bazowy!#REF! ->  | V63: =+Zał.1_WPF_bazowy!#REF! ->  | W63: =+Zał.1_WPF_bazowy!#REF! ->  | X63: =+Zał.1_WPF_bazowy!#REF! ->  | Y63: =+Zał.1_WPF_bazowy!#REF! ->  | Z63: =+Zał.1_WPF_bazowy!#REF! ->  | AA63: =+Zał.1_WPF_bazowy!#REF! ->  | AB63: =+Zał.1_WPF_bazowy!#REF! ->  | AC63: =+Zał.1_WPF_bazowy!#REF! ->  | AD63: =+Zał.1_WPF_bazowy!#REF! ->  | AE63: =+Zał.1_WPF_bazowy!#REF! ->  | AF63: =+Zał.1_WPF_bazowy!#REF! ->  | AG63: =+Zał.1_WPF_bazowy!#REF! ->  | AH63: =+Zał.1_WPF_bazowy!#REF! ->  | AI63: =+Zał.1_WPF_bazowy!#REF! ->  | AJ63: =+Zał.1_WPF_bazowy!#REF! ->  | AK63: =+Zał.1_WPF_bazowy!#REF! ->  | AL63: =+Zał.1_WPF_bazowy!#REF! -> 
B64: 10.1 | D64: Spłaty kredytów, pożyczek i wykup papierów wartościowych | E64: =Zał.1_WPF_bazowy!E57 -> 0 | F64: =Zał.1_WPF_bazowy!F57 -> 0 | G64: =Zał.1_WPF_bazowy!G57 -> 0 | H64: =Zał.1_WPF_bazowy!H57 -> 0 | I64: =+Zał.1_WPF_bazowy!I57 -> 0 | J64: =+Zał.1_WPF_bazowy!J57 -> 1478204 | K64: =+Zał.1_WPF_bazowy!K57 -> 1678204 | L64: =+Zał.1_WPF_bazowy!L57 -> 1860004 | M64: =+Zał.1_WPF_bazowy!M57 -> 2210004 | N64: =+Zał.1_WPF_bazowy!N57 -> 2210004 | O64: =+Zał.1_WPF_bazowy!O57 -> 2250004 | P64: =+Zał.1_WPF_bazowy!P57 -> 2418000 | Q64: =+Zał.1_WPF_bazowy!Q57 -> 3418384 | R64: =+Zał.1_WPF_bazowy!#REF! ->  | S64: =+Zał.1_WPF_bazowy!#REF! ->  | T64: =+Zał.1_WPF_bazowy!#REF! ->  | U64: =+Zał.1_WPF_bazowy!#REF! ->  | V64: =+Zał.1_WPF_bazowy!#REF! ->  | W64: =+Zał.1_WPF_bazowy!#REF! ->  | X64: =+Zał.1_WPF_bazowy!#REF! ->  | Y64: =+Zał.1_WPF_bazowy!#REF! ->  | Z64: =+Zał.1_WPF_bazowy!#REF! ->  | AA64: =+Zał.1_WPF_bazowy!#REF! ->  | AB64: =+Zał.1_WPF_bazowy!#REF! ->  | AC64: =+Zał.1_WPF_bazowy!#REF! ->  | AD64: =+Zał.1_WPF_bazowy!#REF! ->  | AE64: =+Zał.1_WPF_bazowy!#REF! ->  | AF64: =+Zał.1_WPF_bazowy!#REF! ->  | AG64: =+Zał.1_WPF_bazowy!#REF! ->  | AH64: =+Zał.1_WPF_bazowy!#REF! ->  | AI64: =+Zał.1_WPF_bazowy!#REF! ->  | AJ64: =+Zał.1_WPF_bazowy!#REF! ->  | AK64: =+Zał.1_WPF_bazowy!#REF! ->  | AL64: =+Zał.1_WPF_bazowy!#REF! -> 
B65: 11 | D65: Informacje uzupełniające o wybranych rodzajach wydatków budżetowych | E65: x | F65: x | G65: x | H65: x | I65: x | J65: x | K65: x | L65: x | M65: x | N65: x | O65: x | P65: x | Q65: x | R65: x | S65: x | T65: x | U65: x | V65: x | W65: x | X65: x | Y65: x | Z65: x | AA65: x | AB65: x | AC65: x | AD65: x | AE65: x | AF65: x | AG65: x | AH65: x | AI65: x | AJ65: x | AK65: x | AL65: x
B66: 11.1 | D66: Wydatki bieżące na wynagrodzenia i składki od nich naliczane | E66: =Zał.1_WPF_bazowy!E59 -> 12368065.33 | F66: =Zał.1_WPF_bazowy!F59 -> 12844686.27 | G66: =Zał.1_WPF_bazowy!G59 -> 13946795.57 | H66: =Zał.1_WPF_bazowy!H59 -> 13946795.57 | I66: =+Zał.1_WPF_bazowy!I59 -> 14764410 | J66: =+Zał.1_WPF_bazowy!J59 -> 15000000 | K66: =+Zał.1_WPF_bazowy!K59 -> 15300000 | L66: =+Zał.1_WPF_bazowy!L59 -> 15600000 | M66: =+Zał.1_WPF_bazowy!M59 -> 0 | N66: =+Zał.1_WPF_bazowy!N59 -> 0 | O66: =+Zał.1_WPF_bazowy!O59 -> 0 | P66: =+Zał.1_WPF_bazowy!P59 -> 0 | Q66: =+Zał.1_WPF_bazowy!Q59 -> 0 | R66: =+Zał.1_WPF_bazowy!#REF! ->  | S66: =+Zał.1_WPF_bazowy!#REF! ->  | T66: =+Zał.1_WPF_bazowy!#REF! ->  | U66: =+Zał.1_WPF_bazowy!#REF! ->  | V66: =+Zał.1_WPF_bazowy!#REF! ->  | W66: =+Zał.1_WPF_bazowy!#REF! ->  | X66: =+Zał.1_WPF_bazowy!#REF! ->  | Y66: =+Zał.1_WPF_bazowy!#REF! ->  | Z66: =+Zał.1_WPF_bazowy!#REF! ->  | AA66: =+Zał.1_WPF_bazowy!#REF! ->  | AB66: =+Zał.1_WPF_bazowy!#REF! ->  | AC66: =+Zał.1_WPF_bazowy!#REF! ->  | AD66: =+Zał.1_WPF_bazowy!#REF! ->  | AE66: =+Zał.1_WPF_bazowy!#REF! ->  | AF66: =+Zał.1_WPF_bazowy!#REF! ->  | AG66: =+Zał.1_WPF_bazowy!#REF! ->  | AH66: =+Zał.1_WPF_bazowy!#REF! ->  | AI66: =+Zał.1_WPF_bazowy!#REF! ->  | AJ66: =+Zał.1_WPF_bazowy!#REF! ->  | AK66: =+Zał.1_WPF_bazowy!#REF! ->  | AL66: =+Zał.1_WPF_bazowy!#REF! -> 
B67: 11.2 | D67: Wydatki związane z funkcjonowaniem organów jednostki samorządu terytorialnego | E67: =Zał.1_WPF_bazowy!E60 -> 2986207.91 | F67: =Zał.1_WPF_bazowy!F60 -> 3073324.39 | G67: =Zał.1_WPF_bazowy!G60 -> 3391850 | H67: =Zał.1_WPF_bazowy!H60 -> 3391850 | I67: =+Zał.1_WPF_bazowy!I60 -> 3427000 | J67: =+Zał.1_WPF_bazowy!J60 -> 3450000 | K67: =+Zał.1_WPF_bazowy!K60 -> 3500000 | L67: =+Zał.1_WPF_bazowy!L60 -> 3550000 | M67: =+Zał.1_WPF_bazowy!M60 -> 0 | N67: =+Zał.1_WPF_bazowy!N60 -> 0 | O67: =+Zał.1_WPF_bazowy!O60 -> 0 | P67: =+Zał.1_WPF_bazowy!P60 -> 0 | Q67: =+Zał.1_WPF_bazowy!Q60 -> 0 | R67: =+Zał.1_WPF_bazowy!#REF! ->  | S67: =+Zał.1_WPF_bazowy!#REF! ->  | T67: =+Zał.1_WPF_bazowy!#REF! ->  | U67: =+Zał.1_WPF_bazowy!#REF! ->  | V67: =+Zał.1_WPF_bazowy!#REF! ->  | W67: =+Zał.1_WPF_bazowy!#REF! ->  | X67: =+Zał.1_WPF_bazowy!#REF! ->  | Y67: =+Zał.1_WPF_bazowy!#REF! ->  | Z67: =+Zał.1_WPF_bazowy!#REF! ->  | AA67: =+Zał.1_WPF_bazowy!#REF! ->  | AB67: =+Zał.1_WPF_bazowy!#REF! ->  | AC67: =+Zał.1_WPF_bazowy!#REF! ->  | AD67: =+Zał.1_WPF_bazowy!#REF! ->  | AE67: =+Zał.1_WPF_bazowy!#REF! ->  | AF67: =+Zał.1_WPF_bazowy!#REF! ->  | AG67: =+Zał.1_WPF_bazowy!#REF! ->  | AH67: =+Zał.1_WPF_bazowy!#REF! ->  | AI67: =+Zał.1_WPF_bazowy!#REF! ->  | AJ67: =+Zał.1_WPF_bazowy!#REF! ->  | AK67: =+Zał.1_WPF_bazowy!#REF! ->  | AL67: =+Zał.1_WPF_bazowy!#REF! -> 
B68: 11.3 | C68: [11.3.1] + [11.3.2] | D68: Wydatki objęte limitem, o którym mowa w art. 226 ust. 3 pkt 4 ustawy | E68: =Zał.1_WPF_bazowy!E61 -> 2706336.15 | F68: =Zał.1_WPF_bazowy!F61 -> 1320685.63 | G68: =Zał.1_WPF_bazowy!G61 -> 1521985.68 | H68: =+H69+H70 -> 1521985.68 | I68: =+I69+I70 -> 847280 | J68: =+J69+J70 -> 1314520 | K68: 600000 | L68: 0 | M68: 0 | N68: 0 | O68: 0 | P68: 0 | Q68: 0
B69: 11.3.1 | D69: bieżące | E69: =Zał.1_WPF_bazowy!E62 -> 885100.65 | F69: =Zał.1_WPF_bazowy!F62 -> 1182848.52 | G69: =Zał.1_WPF_bazowy!G62 -> 1421985.68 | H69: =Zał.1_WPF_bazowy!H62 -> 1421985.68 | I69: =+Zał.1_WPF_bazowy!I62 -> 3280 | J69: =+Zał.1_WPF_bazowy!J62 -> 5520 | K69: =+Zał.1_WPF_bazowy!K62 -> 0 | L69: =+Zał.1_WPF_bazowy!L62 -> 0 | M69: =+Zał.1_WPF_bazowy!M62 -> 0 | N69: =+Zał.1_WPF_bazowy!N62 -> 0 | O69: =+Zał.1_WPF_bazowy!O62 -> 0 | P69: =+Zał.1_WPF_bazowy!P62 -> 0 | Q69: =+Zał.1_WPF_bazowy!Q62 -> 0 | R69: =+Zał.1_WPF_bazowy!#REF! ->  | S69: =+Zał.1_WPF_bazowy!#REF! ->  | T69: =+Zał.1_WPF_bazowy!#REF! ->  | U69: =+Zał.1_WPF_bazowy!#REF! ->  | V69: =+Zał.1_WPF_bazowy!#REF! ->  | W69: =+Zał.1_WPF_bazowy!#REF! ->  | X69: =+Zał.1_WPF_bazowy!#REF! ->  | Y69: =+Zał.1_WPF_bazowy!#REF! ->  | Z69: =+Zał.1_WPF_bazowy!#REF! ->  | AA69: =+Zał.1_WPF_bazowy!#REF! ->  | AB69: =+Zał.1_WPF_bazowy!#REF! ->  | AC69: =+Zał.1_WPF_bazowy!#REF! ->  | AD69: =+Zał.1_WPF_bazowy!#REF! ->  | AE69: =+Zał.1_WPF_bazowy!#REF! ->  | AF69: =+Zał.1_WPF_bazowy!#REF! ->  | AG69: =+Zał.1_WPF_bazowy!#REF! ->  | AH69: =+Zał.1_WPF_bazowy!#REF! ->  | AI69: =+Zał.1_WPF_bazowy!#REF! ->  | AJ69: =+Zał.1_WPF_bazowy!#REF! ->  | AK69: =+Zał.1_WPF_bazowy!#REF! ->  | AL69: =+Zał.1_WPF_bazowy!#REF! -> 
B70: 11.3.2 | D70: majątkowe | E70: =Zał.1_WPF_bazowy!E63 -> 1821235.5 | F70: =Zał.1_WPF_bazowy!F63 -> 137837.11 | G70: =Zał.1_WPF_bazowy!G63 -> 100000 | H70: =Zał.1_WPF_bazowy!H63 -> 100000 | I70: =+Zał.1_WPF_bazowy!I63 -> 844000 | J70: =+Zał.1_WPF_bazowy!J63 -> 1309000 | K70: =+Zał.1_WPF_bazowy!K63 -> 600000 | L70: =+Zał.1_WPF_bazowy!L63 -> 0 | M70: =+Zał.1_WPF_bazowy!M63 -> 0 | N70: =+Zał.1_WPF_bazowy!N63 -> 0 | O70: =+Zał.1_WPF_bazowy!O63 -> 0 | P70: =+Zał.1_WPF_bazowy!P63 -> 0 | Q70: =+Zał.1_WPF_bazowy!Q63 -> 0 | R70: =+Zał.1_WPF_bazowy!#REF! ->  | S70: =+Zał.1_WPF_bazowy!#REF! ->  | T70: =+Zał.1_WPF_bazowy!#REF! ->  | U70: =+Zał.1_WPF_bazowy!#REF! ->  | V70: =+Zał.1_WPF_bazowy!#REF! ->  | W70: =+Zał.1_WPF_bazowy!#REF! ->  | X70: =+Zał.1_WPF_bazowy!#REF! ->  | Y70: =+Zał.1_WPF_bazowy!#REF! ->  | Z70: =+Zał.1_WPF_bazowy!#REF! ->  | AA70: =+Zał.1_WPF_bazowy!#REF! ->  | AB70: =+Zał.1_WPF_bazowy!#REF! ->  | AC70: =+Zał.1_WPF_bazowy!#REF! ->  | AD70: =+Zał.1_WPF_bazowy!#REF! ->  | AE70: =+Zał.1_WPF_bazowy!#REF! ->  | AF70: =+Zał.1_WPF_bazowy!#REF! ->  | AG70: =+Zał.1_WPF_bazowy!#REF! ->  | AH70: =+Zał.1_WPF_bazowy!#REF! ->  | AI70: =+Zał.1_WPF_bazowy!#REF! ->  | AJ70: =+Zał.1_WPF_bazowy!#REF! ->  | AK70: =+Zał.1_WPF_bazowy!#REF! ->  | AL70: =+Zał.1_WPF_bazowy!#REF! -> 
B71: 11.4 | D71: Wydatki inwestycyjne kontynuowane | E71: =Zał.1_WPF_bazowy!E64 -> 4829267.54 | F71: =Zał.1_WPF_bazowy!F64 -> 2958206 | G71: =Zał.1_WPF_bazowy!G64 -> 6615873 | H71: =Zał.1_WPF_bazowy!H64 -> 6615873 | I71: =+Zał.1_WPF_bazowy!I64 -> 1564000 | J71: =+Zał.1_WPF_bazowy!J64 -> 0 | K71: =+Zał.1_WPF_bazowy!K64 -> 0 | L71: =+Zał.1_WPF_bazowy!L64 -> 0 | M71: =+Zał.1_WPF_bazowy!M64 -> 0 | N71: =+Zał.1_WPF_bazowy!N64 -> 0 | O71: =+Zał.1_WPF_bazowy!O64 -> 0 | P71: =+Zał.1_WPF_bazowy!P64 -> 0 | Q71: =+Zał.1_WPF_bazowy!Q64 -> 0 | R71: =+Zał.1_WPF_bazowy!#REF! ->  | S71: =+Zał.1_WPF_bazowy!#REF! ->  | T71: =+Zał.1_WPF_bazowy!#REF! ->  | U71: =+Zał.1_WPF_bazowy!#REF! ->  | V71: =+Zał.1_WPF_bazowy!#REF! ->  | W71: =+Zał.1_WPF_bazowy!#REF! ->  | X71: =+Zał.1_WPF_bazowy!#REF! ->  | Y71: =+Zał.1_WPF_bazowy!#REF! ->  | Z71: =+Zał.1_WPF_bazowy!#REF! ->  | AA71: =+Zał.1_WPF_bazowy!#REF! ->  | AB71: =+Zał.1_WPF_bazowy!#REF! ->  | AC71: =+Zał.1_WPF_bazowy!#REF! ->  | AD71: =+Zał.1_WPF_bazowy!#REF! ->  | AE71: =+Zał.1_WPF_bazowy!#REF! ->  | AF71: =+Zał.1_WPF_bazowy!#REF! ->  | AG71: =+Zał.1_WPF_bazowy!#REF! ->  | AH71: =+Zał.1_WPF_bazowy!#REF! ->  | AI71: =+Zał.1_WPF_bazowy!#REF! ->  | AJ71: =+Zał.1_WPF_bazowy!#REF! ->  | AK71: =+Zał.1_WPF_bazowy!#REF! ->  | AL71: =+Zał.1_WPF_bazowy!#REF! -> 
B72: 11.5 | D72: Nowe wydatki inwestycyjne | E72: =Zał.1_WPF_bazowy!E65 -> 1680528.06 | F72: =Zał.1_WPF_bazowy!F65 -> 2364458.2 | G72: =Zał.1_WPF_bazowy!G65 -> 2967100 | H72: =Zał.1_WPF_bazowy!H65 -> 2967100 | I72: =+Zał.1_WPF_bazowy!I65 -> 520000 | J72: =+Zał.1_WPF_bazowy!J65 -> 0 | K72: =+Zał.1_WPF_bazowy!K65 -> 0 | L72: =+Zał.1_WPF_bazowy!L65 -> 0 | M72: =+Zał.1_WPF_bazowy!M65 -> 0 | N72: =+Zał.1_WPF_bazowy!N65 -> 0 | O72: =+Zał.1_WPF_bazowy!O65 -> 0 | P72: =+Zał.1_WPF_bazowy!P65 -> 0 | Q72: =+Zał.1_WPF_bazowy!Q65 -> 0 | R72: =+Zał.1_WPF_bazowy!#REF! ->  | S72: =+Zał.1_WPF_bazowy!#REF! ->  | T72: =+Zał.1_WPF_bazowy!#REF! ->  | U72: =+Zał.1_WPF_bazowy!#REF! ->  | V72: =+Zał.1_WPF_bazowy!#REF! ->  | W72: =+Zał.1_WPF_bazowy!#REF! ->  | X72: =+Zał.1_WPF_bazowy!#REF! ->  | Y72: =+Zał.1_WPF_bazowy!#REF! ->  | Z72: =+Zał.1_WPF_bazowy!#REF! ->  | AA72: =+Zał.1_WPF_bazowy!#REF! ->  | AB72: =+Zał.1_WPF_bazowy!#REF! ->  | AC72: =+Zał.1_WPF_bazowy!#REF! ->  | AD72: =+Zał.1_WPF_bazowy!#REF! ->  | AE72: =+Zał.1_WPF_bazowy!#REF! ->  | AF72: =+Zał.1_WPF_bazowy!#REF! ->  | AG72: =+Zał.1_WPF_bazowy!#REF! ->  | AH72: =+Zał.1_WPF_bazowy!#REF! ->  | AI72: =+Zał.1_WPF_bazowy!#REF! ->  | AJ72: =+Zał.1_WPF_bazowy!#REF! ->  | AK72: =+Zał.1_WPF_bazowy!#REF! ->  | AL72: =+Zał.1_WPF_bazowy!#REF! -> 
B73: 11.6 | D73: Wydatki majątkowe w formie dotacji | E73: =Zał.1_WPF_bazowy!E66 -> 319894 | F73: =Zał.1_WPF_bazowy!F66 -> 458831 | G73: =Zał.1_WPF_bazowy!G66 -> 636400 | H73: =Zał.1_WPF_bazowy!H66 -> 636400 | I73: =+Zał.1_WPF_bazowy!I66 -> 50000 | J73: =+Zał.1_WPF_bazowy!J66 -> 0 | K73: =+Zał.1_WPF_bazowy!K66 -> 0 | L73: =+Zał.1_WPF_bazowy!L66 -> 0 | M73: =+Zał.1_WPF_bazowy!M66 -> 0 | N73: =+Zał.1_WPF_bazowy!N66 -> 0 | O73: =+Zał.1_WPF_bazowy!O66 -> 0 | P73: =+Zał.1_WPF_bazowy!P66 -> 0 | Q73: =+Zał.1_WPF_bazowy!Q66 -> 0 | R73: =+Zał.1_WPF_bazowy!#REF! ->  | S73: =+Zał.1_WPF_bazowy!#REF! ->  | T73: =+Zał.1_WPF_bazowy!#REF! ->  | U73: =+Zał.1_WPF_bazowy!#REF! ->  | V73: =+Zał.1_WPF_bazowy!#REF! ->  | W73: =+Zał.1_WPF_bazowy!#REF! ->  | X73: =+Zał.1_WPF_bazowy!#REF! ->  | Y73: =+Zał.1_WPF_bazowy!#REF! ->  | Z73: =+Zał.1_WPF_bazowy!#REF! ->  | AA73: =+Zał.1_WPF_bazowy!#REF! ->  | AB73: =+Zał.1_WPF_bazowy!#REF! ->  | AC73: =+Zał.1_WPF_bazowy!#REF! ->  | AD73: =+Zał.1_WPF_bazowy!#REF! ->  | AE73: =+Zał.1_WPF_bazowy!#REF! ->  | AF73: =+Zał.1_WPF_bazowy!#REF! ->  | AG73: =+Zał.1_WPF_bazowy!#REF! ->  | AH73: =+Zał.1_WPF_bazowy!#REF! ->  | AI73: =+Zał.1_WPF_bazowy!#REF! ->  | AJ73: =+Zał.1_WPF_bazowy!#REF! ->  | AK73: =+Zał.1_WPF_bazowy!#REF! ->  | AL73: =+Zał.1_WPF_bazowy!#REF! -> 
B74: 12 | D74: Finansowanie programów, projektów lub zadań realizowanych z udziałem środków, o których mowa w art. 5 ust. 1 pkt 2 i 3 ustawy | E74: x | F74: x | G74: x | H74: x | I74: x | J74: x | K74: x | L74: x | M74: x | N74: x | O74: x | P74: x | Q74: x | R74: x | S74: x | T74: x | U74: x | V74: x | W74: x | X74: x | Y74: x | Z74: x | AA74: x | AB74: x | AC74: x | AD74: x | AE74: x | AF74: x | AG74: x | AH74: x | AI74: x | AJ74: x | AK74: x | AL74: x
B75: 12.1 | D75: Dochody bieżące na programy, projekty lub zadania finansowane z udziałem środków, o których mowa w art. 5 ust. 1 pkt 2 i 3 ustawy | E75: =Zał.1_WPF_bazowy!E68 -> 1650681.03 | F75: =Zał.1_WPF_bazowy!F68 -> 2512141.17 | G75: =Zał.1_WPF_bazowy!G68 -> 1035267.09 | H75: =Zał.1_WPF_bazowy!H68 -> 1035267.09 | I75: =+Zał.1_WPF_bazowy!I68 -> 0 | J75: =+Zał.1_WPF_bazowy!J68 -> 0 | K75: =+Zał.1_WPF_bazowy!K68 -> 0 | L75: =+Zał.1_WPF_bazowy!L68 -> 0 | M75: =+Zał.1_WPF_bazowy!M68 -> 0 | N75: =+Zał.1_WPF_bazowy!N68 -> 0 | O75: =+Zał.1_WPF_bazowy!O68 -> 0 | P75: =+Zał.1_WPF_bazowy!P68 -> 0 | Q75: =+Zał.1_WPF_bazowy!Q68 -> 0 | R75: =+Zał.1_WPF_bazowy!#REF! ->  | S75: =+Zał.1_WPF_bazowy!#REF! ->  | T75: =+Zał.1_WPF_bazowy!#REF! ->  | U75: =+Zał.1_WPF_bazowy!#REF! ->  | V75: =+Zał.1_WPF_bazowy!#REF! ->  | W75: =+Zał.1_WPF_bazowy!#REF! ->  | X75: =+Zał.1_WPF_bazowy!#REF! ->  | Y75: =+Zał.1_WPF_bazowy!#REF! ->  | Z75: =+Zał.1_WPF_bazowy!#REF! ->  | AA75: =+Zał.1_WPF_bazowy!#REF! ->  | AB75: =+Zał.1_WPF_bazowy!#REF! ->  | AC75: =+Zał.1_WPF_bazowy!#REF! ->  | AD75: =+Zał.1_WPF_bazowy!#REF! ->  | AE75: =+Zał.1_WPF_bazowy!#REF! ->  | AF75: =+Zał.1_WPF_bazowy!#REF! ->  | AG75: =+Zał.1_WPF_bazowy!#REF! ->  | AH75: =+Zał.1_WPF_bazowy!#REF! ->  | AI75: =+Zał.1_WPF_bazowy!#REF! ->  | AJ75: =+Zał.1_WPF_bazowy!#REF! ->  | AK75: =+Zał.1_WPF_bazowy!#REF! ->  | AL75: =+Zał.1_WPF_bazowy!#REF! -> 
B76: 12.1.1 | D76: - w tym środki określone w art. 5 ust. 1 pkt 2 ustawy | E76: =Zał.1_WPF_bazowy!E69 -> 1484838.58 | F76: =Zał.1_WPF_bazowy!F69 -> 2271968.91 | G76: =Zał.1_WPF_bazowy!G69 -> 911911.76 | H76: =Zał.1_WPF_bazowy!H69 -> 911911.76 | I76: =+Zał.1_WPF_bazowy!I69 -> 0 | J76: =+Zał.1_WPF_bazowy!J69 -> 0 | K76: =+Zał.1_WPF_bazowy!K69 -> 0 | L76: =+Zał.1_WPF_bazowy!L69 -> 0 | M76: =+Zał.1_WPF_bazowy!M69 -> 0 | N76: =+Zał.1_WPF_bazowy!N69 -> 0 | O76: =+Zał.1_WPF_bazowy!O69 -> 0 | P76: =+Zał.1_WPF_bazowy!P69 -> 0 | Q76: =+Zał.1_WPF_bazowy!Q69 -> 0 | R76: =+Zał.1_WPF_bazowy!#REF! ->  | S76: =+Zał.1_WPF_bazowy!#REF! ->  | T76: =+Zał.1_WPF_bazowy!#REF! ->  | U76: =+Zał.1_WPF_bazowy!#REF! ->  | V76: =+Zał.1_WPF_bazowy!#REF! ->  | W76: =+Zał.1_WPF_bazowy!#REF! ->  | X76: =+Zał.1_WPF_bazowy!#REF! ->  | Y76: =+Zał.1_WPF_bazowy!#REF! ->  | Z76: =+Zał.1_WPF_bazowy!#REF! ->  | AA76: =+Zał.1_WPF_bazowy!#REF! ->  | AB76: =+Zał.1_WPF_bazowy!#REF! ->  | AC76: =+Zał.1_WPF_bazowy!#REF! ->  | AD76: =+Zał.1_WPF_bazowy!#REF! ->  | AE76: =+Zał.1_WPF_bazowy!#REF! ->  | AF76: =+Zał.1_WPF_bazowy!#REF! ->  | AG76: =+Zał.1_WPF_bazowy!#REF! ->  | AH76: =+Zał.1_WPF_bazowy!#REF! ->  | AI76: =+Zał.1_WPF_bazowy!#REF! ->  | AJ76: =+Zał.1_WPF_bazowy!#REF! ->  | AK76: =+Zał.1_WPF_bazowy!#REF! ->  | AL76: =+Zał.1_WPF_bazowy!#REF! -> 
B77: 12.1.1.1 | D77: - w tym środki określone w art. 5 ust. 1 pkt 2 ustawy wynikające wyłącznie z zawartych umów na realizację programu, projektu lub zadania | E77: =Zał.1_WPF_bazowy!E70 -> 1484838.58 | F77: =Zał.1_WPF_bazowy!F70 -> 2271968.91 | G77: =Zał.1_WPF_bazowy!G70 -> 911911.76 | H77: =Zał.1_WPF_bazowy!H70 -> 911911.76 | I77: =+Zał.1_WPF_bazowy!I70 -> 0 | J77: =+Zał.1_WPF_bazowy!J70 -> 0 | K77: =+Zał.1_WPF_bazowy!K70 -> 0 | L77: =+Zał.1_WPF_bazowy!L70 -> 0 | M77: =+Zał.1_WPF_bazowy!M70 -> 0 | N77: =+Zał.1_WPF_bazowy!N70 -> 0 | O77: =+Zał.1_WPF_bazowy!O70 -> 0 | P77: =+Zał.1_WPF_bazowy!P70 -> 0 | Q77: =+Zał.1_WPF_bazowy!Q70 -> 0 | R77: =+Zał.1_WPF_bazowy!#REF! ->  | S77: =+Zał.1_WPF_bazowy!#REF! ->  | T77: =+Zał.1_WPF_bazowy!#REF! ->  | U77: =+Zał.1_WPF_bazowy!#REF! ->  | V77: =+Zał.1_WPF_bazowy!#REF! ->  | W77: =+Zał.1_WPF_bazowy!#REF! ->  | X77: =+Zał.1_WPF_bazowy!#REF! ->  | Y77: =+Zał.1_WPF_bazowy!#REF! ->  | Z77: =+Zał.1_WPF_bazowy!#REF! ->  | AA77: =+Zał.1_WPF_bazowy!#REF! ->  | AB77: =+Zał.1_WPF_bazowy!#REF! ->  | AC77: =+Zał.1_WPF_bazowy!#REF! ->  | AD77: =+Zał.1_WPF_bazowy!#REF! ->  | AE77: =+Zał.1_WPF_bazowy!#REF! ->  | AF77: =+Zał.1_WPF_bazowy!#REF! ->  | AG77: =+Zał.1_WPF_bazowy!#REF! ->  | AH77: =+Zał.1_WPF_bazowy!#REF! ->  | AI77: =+Zał.1_WPF_bazowy!#REF! ->  | AJ77: =+Zał.1_WPF_bazowy!#REF! ->  | AK77: =+Zał.1_WPF_bazowy!#REF! ->  | AL77: =+Zał.1_WPF_bazowy!#REF! -> 
B78: 12.2 | D78: Dochody majątkowe na programy, projekty lub zadania finansowane z udziałem środków, o których mowa w art. 5 ust. 1 pkt 2 i 3 ustawy | E78: =Zał.1_WPF_bazowy!E71 -> 2951853.09 | F78: =Zał.1_WPF_bazowy!F71 -> 2340381.75 | G78: =Zał.1_WPF_bazowy!G71 -> 83947.5 | H78: =Zał.1_WPF_bazowy!H71 -> 83947.5 | I78: =+Zał.1_WPF_bazowy!I71 -> 0 | J78: =+Zał.1_WPF_bazowy!J71 -> 0 | K78: =+Zał.1_WPF_bazowy!K71 -> 0 | L78: =+Zał.1_WPF_bazowy!L71 -> 0 | M78: =+Zał.1_WPF_bazowy!M71 -> 0 | N78: =+Zał.1_WPF_bazowy!N71 -> 0 | O78: =+Zał.1_WPF_bazowy!O71 -> 0 | P78: =+Zał.1_WPF_bazowy!P71 -> 0 | Q78: =+Zał.1_WPF_bazowy!Q71 -> 0 | R78: =+Zał.1_WPF_bazowy!#REF! ->  | S78: =+Zał.1_WPF_bazowy!#REF! ->  | T78: =+Zał.1_WPF_bazowy!#REF! ->  | U78: =+Zał.1_WPF_bazowy!#REF! ->  | V78: =+Zał.1_WPF_bazowy!#REF! ->  | W78: =+Zał.1_WPF_bazowy!#REF! ->  | X78: =+Zał.1_WPF_bazowy!#REF! ->  | Y78: =+Zał.1_WPF_bazowy!#REF! ->  | Z78: =+Zał.1_WPF_bazowy!#REF! ->  | AA78: =+Zał.1_WPF_bazowy!#REF! ->  | AB78: =+Zał.1_WPF_bazowy!#REF! ->  | AC78: =+Zał.1_WPF_bazowy!#REF! ->  | AD78: =+Zał.1_WPF_bazowy!#REF! ->  | AE78: =+Zał.1_WPF_bazowy!#REF! ->  | AF78: =+Zał.1_WPF_bazowy!#REF! ->  | AG78: =+Zał.1_WPF_bazowy!#REF! ->  | AH78: =+Zał.1_WPF_bazowy!#REF! ->  | AI78: =+Zał.1_WPF_bazowy!#REF! ->  | AJ78: =+Zał.1_WPF_bazowy!#REF! ->  | AK78: =+Zał.1_WPF_bazowy!#REF! ->  | AL78: =+Zał.1_WPF_bazowy!#REF! -> 
B79: 12.2.1 | D79: - w tym środki określone w art. 5 ust. 1 pkt 2 ustawy | E79: =Zał.1_WPF_bazowy!E72 -> 2897484.54 | F79: =Zał.1_WPF_bazowy!F72 -> 2339496.15 | G79: =Zał.1_WPF_bazowy!G72 -> 83947.5 | H79: =Zał.1_WPF_bazowy!H72 -> 83947.5 | I79: =+Zał.1_WPF_bazowy!I72 -> 0 | J79: =+Zał.1_WPF_bazowy!J72 -> 0 | K79: =+Zał.1_WPF_bazowy!K72 -> 0 | L79: =+Zał.1_WPF_bazowy!L72 -> 0 | M79: =+Zał.1_WPF_bazowy!M72 -> 0 | N79: =+Zał.1_WPF_bazowy!N72 -> 0 | O79: =+Zał.1_WPF_bazowy!O72 -> 0 | P79: =+Zał.1_WPF_bazowy!P72 -> 0 | Q79: =+Zał.1_WPF_bazowy!Q72 -> 0 | R79: =+Zał.1_WPF_bazowy!#REF! ->  | S79: =+Zał.1_WPF_bazowy!#REF! ->  | T79: =+Zał.1_WPF_bazowy!#REF! ->  | U79: =+Zał.1_WPF_bazowy!#REF! ->  | V79: =+Zał.1_WPF_bazowy!#REF! ->  | W79: =+Zał.1_WPF_bazowy!#REF! ->  | X79: =+Zał.1_WPF_bazowy!#REF! ->  | Y79: =+Zał.1_WPF_bazowy!#REF! ->  | Z79: =+Zał.1_WPF_bazowy!#REF! ->  | AA79: =+Zał.1_WPF_bazowy!#REF! ->  | AB79: =+Zał.1_WPF_bazowy!#REF! ->  | AC79: =+Zał.1_WPF_bazowy!#REF! ->  | AD79: =+Zał.1_WPF_bazowy!#REF! ->  | AE79: =+Zał.1_WPF_bazowy!#REF! ->  | AF79: =+Zał.1_WPF_bazowy!#REF! ->  | AG79: =+Zał.1_WPF_bazowy!#REF! ->  | AH79: =+Zał.1_WPF_bazowy!#REF! ->  | AI79: =+Zał.1_WPF_bazowy!#REF! ->  | AJ79: =+Zał.1_WPF_bazowy!#REF! ->  | AK79: =+Zał.1_WPF_bazowy!#REF! ->  | AL79: =+Zał.1_WPF_bazowy!#REF! -> 
B80: 12.2.1.1 | D80: - w tym środki określone w art. 5 ust. 1 pkt 2 ustawy wynikające wyłącznie z zawartych umów na realizację programu, projektu lub zadania | E80: =Zał.1_WPF_bazowy!E73 -> 2897484.54 | F80: =Zał.1_WPF_bazowy!F73 -> 2339496.15 | G80: =Zał.1_WPF_bazowy!G73 -> 83947.5 | H80: =Zał.1_WPF_bazowy!H73 -> 83947.5 | I80: =+Zał.1_WPF_bazowy!I73 -> 0 | J80: =+Zał.1_WPF_bazowy!J73 -> 0 | K80: =+Zał.1_WPF_bazowy!K73 -> 0 | L80: =+Zał.1_WPF_bazowy!L73 -> 0 | M80: =+Zał.1_WPF_bazowy!M73 -> 0 | N80: =+Zał.1_WPF_bazowy!N73 -> 0 | O80: =+Zał.1_WPF_bazowy!O73 -> 0 | P80: =+Zał.1_WPF_bazowy!P73 -> 0 | Q80: =+Zał.1_WPF_bazowy!Q73 -> 0 | R80: =+Zał.1_WPF_bazowy!#REF! ->  | S80: =+Zał.1_WPF_bazowy!#REF! ->  | T80: =+Zał.1_WPF_bazowy!#REF! ->  | U80: =+Zał.1_WPF_bazowy!#REF! ->  | V80: =+Zał.1_WPF_bazowy!#REF! ->  | W80: =+Zał.1_WPF_bazowy!#REF! ->  | X80: =+Zał.1_WPF_bazowy!#REF! ->  | Y80: =+Zał.1_WPF_bazowy!#REF! ->  | Z80: =+Zał.1_WPF_bazowy!#REF! ->  | AA80: =+Zał.1_WPF_bazowy!#REF! ->  | AB80: =+Zał.1_WPF_bazowy!#REF! ->  | AC80: =+Zał.1_WPF_bazowy!#REF! ->  | AD80: =+Zał.1_WPF_bazowy!#REF! ->  | AE80: =+Zał.1_WPF_bazowy!#REF! ->  | AF80: =+Zał.1_WPF_bazowy!#REF! ->  | AG80: =+Zał.1_WPF_bazowy!#REF! ->  | AH80: =+Zał.1_WPF_bazowy!#REF! ->  | AI80: =+Zał.1_WPF_bazowy!#REF! ->  | AJ80: =+Zał.1_WPF_bazowy!#REF! ->  | AK80: =+Zał.1_WPF_bazowy!#REF! ->  | AL80: =+Zał.1_WPF_bazowy!#REF! -> 
B81: 12.3 | D81: Wydatki bieżące na programy, projekty lub zadania finansowane z udziałem środków, o których mowa w art. 5 ust. 1 pkt 2 i 3 ustawy | E81: =Zał.1_WPF_bazowy!E74 -> 1714900.4 | F81: =Zał.1_WPF_bazowy!F74 -> 2804189.96 | G81: =Zał.1_WPF_bazowy!G74 -> 988921.26 | H81: =Zał.1_WPF_bazowy!H74 -> 988921.26 | I81: =+Zał.1_WPF_bazowy!I74 -> 0 | J81: =+Zał.1_WPF_bazowy!J74 -> 0 | K81: =+Zał.1_WPF_bazowy!K74 -> 0 | L81: =+Zał.1_WPF_bazowy!L74 -> 0 | M81: =+Zał.1_WPF_bazowy!M74 -> 0 | N81: =+Zał.1_WPF_bazowy!N74 -> 0 | O81: =+Zał.1_WPF_bazowy!O74 -> 0 | P81: =+Zał.1_WPF_bazowy!P74 -> 0 | Q81: =+Zał.1_WPF_bazowy!Q74 -> 0 | R81: =+Zał.1_WPF_bazowy!#REF! ->  | S81: =+Zał.1_WPF_bazowy!#REF! ->  | T81: =+Zał.1_WPF_bazowy!#REF! ->  | U81: =+Zał.1_WPF_bazowy!#REF! ->  | V81: =+Zał.1_WPF_bazowy!#REF! ->  | W81: =+Zał.1_WPF_bazowy!#REF! ->  | X81: =+Zał.1_WPF_bazowy!#REF! ->  | Y81: =+Zał.1_WPF_bazowy!#REF! ->  | Z81: =+Zał.1_WPF_bazowy!#REF! ->  | AA81: =+Zał.1_WPF_bazowy!#REF! ->  | AB81: =+Zał.1_WPF_bazowy!#REF! ->  | AC81: =+Zał.1_WPF_bazowy!#REF! ->  | AD81: =+Zał.1_WPF_bazowy!#REF! ->  | AE81: =+Zał.1_WPF_bazowy!#REF! ->  | AF81: =+Zał.1_WPF_bazowy!#REF! ->  | AG81: =+Zał.1_WPF_bazowy!#REF! ->  | AH81: =+Zał.1_WPF_bazowy!#REF! ->  | AI81: =+Zał.1_WPF_bazowy!#REF! ->  | AJ81: =+Zał.1_WPF_bazowy!#REF! ->  | AK81: =+Zał.1_WPF_bazowy!#REF! ->  | AL81: =+Zał.1_WPF_bazowy!#REF! -> 
B82: 12.3.1 | D82: - w tym finansowane środkami określonymi w art. 5 ust. 1 pkt 2 ustawy | E82: =Zał.1_WPF_bazowy!E75 -> 1466388.17 | F82: =Zał.1_WPF_bazowy!F75 -> 2374365.08 | G82: =Zał.1_WPF_bazowy!G75 -> 834890.96 | H82: =Zał.1_WPF_bazowy!H75 -> 834890.96 | I82: =+Zał.1_WPF_bazowy!I75 -> 0 | J82: =+Zał.1_WPF_bazowy!J75 -> 0 | K82: =+Zał.1_WPF_bazowy!K75 -> 0 | L82: =+Zał.1_WPF_bazowy!L75 -> 0 | M82: =+Zał.1_WPF_bazowy!M75 -> 0 | N82: =+Zał.1_WPF_bazowy!N75 -> 0 | O82: =+Zał.1_WPF_bazowy!O75 -> 0 | P82: =+Zał.1_WPF_bazowy!P75 -> 0 | Q82: =+Zał.1_WPF_bazowy!Q75 -> 0 | R82: =+Zał.1_WPF_bazowy!#REF! ->  | S82: =+Zał.1_WPF_bazowy!#REF! ->  | T82: =+Zał.1_WPF_bazowy!#REF! ->  | U82: =+Zał.1_WPF_bazowy!#REF! ->  | V82: =+Zał.1_WPF_bazowy!#REF! ->  | W82: =+Zał.1_WPF_bazowy!#REF! ->  | X82: =+Zał.1_WPF_bazowy!#REF! ->  | Y82: =+Zał.1_WPF_bazowy!#REF! ->  | Z82: =+Zał.1_WPF_bazowy!#REF! ->  | AA82: =+Zał.1_WPF_bazowy!#REF! ->  | AB82: =+Zał.1_WPF_bazowy!#REF! ->  | AC82: =+Zał.1_WPF_bazowy!#REF! ->  | AD82: =+Zał.1_WPF_bazowy!#REF! ->  | AE82: =+Zał.1_WPF_bazowy!#REF! ->  | AF82: =+Zał.1_WPF_bazowy!#REF! ->  | AG82: =+Zał.1_WPF_bazowy!#REF! ->  | AH82: =+Zał.1_WPF_bazowy!#REF! ->  | AI82: =+Zał.1_WPF_bazowy!#REF! ->  | AJ82: =+Zał.1_WPF_bazowy!#REF! ->  | AK82: =+Zał.1_WPF_bazowy!#REF! ->  | AL82: =+Zał.1_WPF_bazowy!#REF! -> 
B83: 12.3.2 | D83: Wydatki bieżące na realizację programu, projektu lub zadania wynikające wyłącznie z zawartych umów z podmiotem dysponującym środkami, o których mowa w art. 5 ust. 1 pkt 2 ustawy | E83: =Zał.1_WPF_bazowy!E76 -> 1714900.4 | F83: =Zał.1_WPF_bazowy!F76 -> 2804189.96 | G83: =Zał.1_WPF_bazowy!G76 -> 988921.26 | H83: =Zał.1_WPF_bazowy!H76 -> 988921.26 | I83: =+Zał.1_WPF_bazowy!I76 -> 0 | J83: =+Zał.1_WPF_bazowy!J76 -> 0 | K83: =+Zał.1_WPF_bazowy!K76 -> 0 | L83: =+Zał.1_WPF_bazowy!L76 -> 0 | M83: =+Zał.1_WPF_bazowy!M76 -> 0 | N83: =+Zał.1_WPF_bazowy!N76 -> 0 | O83: =+Zał.1_WPF_bazowy!O76 -> 0 | P83: =+Zał.1_WPF_bazowy!P76 -> 0 | Q83: =+Zał.1_WPF_bazowy!Q76 -> 0 | R83: =+Zał.1_WPF_bazowy!#REF! ->  | S83: =+Zał.1_WPF_bazowy!#REF! ->  | T83: =+Zał.1_WPF_bazowy!#REF! ->  | U83: =+Zał.1_WPF_bazowy!#REF! ->  | V83: =+Zał.1_WPF_bazowy!#REF! ->  | W83: =+Zał.1_WPF_bazowy!#REF! ->  | X83: =+Zał.1_WPF_bazowy!#REF! ->  | Y83: =+Zał.1_WPF_bazowy!#REF! ->  | Z83: =+Zał.1_WPF_bazowy!#REF! ->  | AA83: =+Zał.1_WPF_bazowy!#REF! ->  | AB83: =+Zał.1_WPF_bazowy!#REF! ->  | AC83: =+Zał.1_WPF_bazowy!#REF! ->  | AD83: =+Zał.1_WPF_bazowy!#REF! ->  | AE83: =+Zał.1_WPF_bazowy!#REF! ->  | AF83: =+Zał.1_WPF_bazowy!#REF! ->  | AG83: =+Zał.1_WPF_bazowy!#REF! ->  | AH83: =+Zał.1_WPF_bazowy!#REF! ->  | AI83: =+Zał.1_WPF_bazowy!#REF! ->  | AJ83: =+Zał.1_WPF_bazowy!#REF! ->  | AK83: =+Zał.1_WPF_bazowy!#REF! ->  | AL83: =+Zał.1_WPF_bazowy!#REF! -> 
B84: 12.4 | D84: Wydatki majątkowe na programy, projekty lub zadania finansowane z udziałem środków, o których mowa w art. 5 ust. 1 pkt 2 i 3 ustawy | E84: =Zał.1_WPF_bazowy!E77 -> 579470.19 | F84: =Zał.1_WPF_bazowy!F77 -> 191094 | G84: =Zał.1_WPF_bazowy!G77 -> 27150 | H84: =Zał.1_WPF_bazowy!H77 -> 27150 | I84: =+Zał.1_WPF_bazowy!I77 -> 0 | J84: =+Zał.1_WPF_bazowy!J77 -> 0 | K84: =+Zał.1_WPF_bazowy!K77 -> 0 | L84: =+Zał.1_WPF_bazowy!L77 -> 0 | M84: =+Zał.1_WPF_bazowy!M77 -> 0 | N84: =+Zał.1_WPF_bazowy!N77 -> 0 | O84: =+Zał.1_WPF_bazowy!O77 -> 0 | P84: =+Zał.1_WPF_bazowy!P77 -> 0 | Q84: =+Zał.1_WPF_bazowy!Q77 -> 0 | R84: =+Zał.1_WPF_bazowy!#REF! ->  | S84: =+Zał.1_WPF_bazowy!#REF! ->  | T84: =+Zał.1_WPF_bazowy!#REF! ->  | U84: =+Zał.1_WPF_bazowy!#REF! ->  | V84: =+Zał.1_WPF_bazowy!#REF! ->  | W84: =+Zał.1_WPF_bazowy!#REF! ->  | X84: =+Zał.1_WPF_bazowy!#REF! ->  | Y84: =+Zał.1_WPF_bazowy!#REF! ->  | Z84: =+Zał.1_WPF_bazowy!#REF! ->  | AA84: =+Zał.1_WPF_bazowy!#REF! ->  | AB84: =+Zał.1_WPF_bazowy!#REF! ->  | AC84: =+Zał.1_WPF_bazowy!#REF! ->  | AD84: =+Zał.1_WPF_bazowy!#REF! ->  | AE84: =+Zał.1_WPF_bazowy!#REF! ->  | AF84: =+Zał.1_WPF_bazowy!#REF! ->  | AG84: =+Zał.1_WPF_bazowy!#REF! ->  | AH84: =+Zał.1_WPF_bazowy!#REF! ->  | AI84: =+Zał.1_WPF_bazowy!#REF! ->  | AJ84: =+Zał.1_WPF_bazowy!#REF! ->  | AK84: =+Zał.1_WPF_bazowy!#REF! ->  | AL84: =+Zał.1_WPF_bazowy!#REF! -> 
B85: 12.4.1 | D85: - w tym finansowane środkami określonymi w art. 5 ust. 1 pkt 2 ustawy | E85: =Zał.1_WPF_bazowy!E78 -> 428821.64 | F85: =Zał.1_WPF_bazowy!F78 -> 134139.9 | G85: =Zał.1_WPF_bazowy!G78 -> 27150 | H85: =Zał.1_WPF_bazowy!H78 -> 27150 | I85: =+Zał.1_WPF_bazowy!I78 -> 0 | J85: =+Zał.1_WPF_bazowy!J78 -> 0 | K85: =+Zał.1_WPF_bazowy!K78 -> 0 | L85: =+Zał.1_WPF_bazowy!L78 -> 0 | M85: =+Zał.1_WPF_bazowy!M78 -> 0 | N85: =+Zał.1_WPF_bazowy!N78 -> 0 | O85: =+Zał.1_WPF_bazowy!O78 -> 0 | P85: =+Zał.1_WPF_bazowy!P78 -> 0 | Q85: =+Zał.1_WPF_bazowy!Q78 -> 0 | R85: =+Zał.1_WPF_bazowy!#REF! ->  | S85: =+Zał.1_WPF_bazowy!#REF! ->  | T85: =+Zał.1_WPF_bazowy!#REF! ->  | U85: =+Zał.1_WPF_bazowy!#REF! ->  | V85: =+Zał.1_WPF_bazowy!#REF! ->  | W85: =+Zał.1_WPF_bazowy!#REF! ->  | X85: =+Zał.1_WPF_bazowy!#REF! ->  | Y85: =+Zał.1_WPF_bazowy!#REF! ->  | Z85: =+Zał.1_WPF_bazowy!#REF! ->  | AA85: =+Zał.1_WPF_bazowy!#REF! ->  | AB85: =+Zał.1_WPF_bazowy!#REF! ->  | AC85: =+Zał.1_WPF_bazowy!#REF! ->  | AD85: =+Zał.1_WPF_bazowy!#REF! ->  | AE85: =+Zał.1_WPF_bazowy!#REF! ->  | AF85: =+Zał.1_WPF_bazowy!#REF! ->  | AG85: =+Zał.1_WPF_bazowy!#REF! ->  | AH85: =+Zał.1_WPF_bazowy!#REF! ->  | AI85: =+Zał.1_WPF_bazowy!#REF! ->  | AJ85: =+Zał.1_WPF_bazowy!#REF! ->  | AK85: =+Zał.1_WPF_bazowy!#REF! ->  | AL85: =+Zał.1_WPF_bazowy!#REF! -> 
B86: 12.4.2 | D86: Wydatki majątkowe na realizację programu, projektu lub zadania wynikające wyłącznie z zawartych umów z podmiotem dysponującym środkami, o których mowa w art. 5 ust. 1 pkt 2 ustawy | E86: =Zał.1_WPF_bazowy!E79 -> 579470.19 | F86: =Zał.1_WPF_bazowy!F79 -> 191094 | G86: =Zał.1_WPF_bazowy!G79 -> 27150 | H86: =Zał.1_WPF_bazowy!H79 -> 27150 | I86: =+Zał.1_WPF_bazowy!I79 -> 0 | J86: =+Zał.1_WPF_bazowy!J79 -> 0 | K86: =+Zał.1_WPF_bazowy!K79 -> 0 | L86: =+Zał.1_WPF_bazowy!L79 -> 0 | M86: =+Zał.1_WPF_bazowy!M79 -> 0 | N86: =+Zał.1_WPF_bazowy!N79 -> 0 | O86: =+Zał.1_WPF_bazowy!O79 -> 0 | P86: =+Zał.1_WPF_bazowy!P79 -> 0 | Q86: =+Zał.1_WPF_bazowy!Q79 -> 0 | R86: =+Zał.1_WPF_bazowy!#REF! ->  | S86: =+Zał.1_WPF_bazowy!#REF! ->  | T86: =+Zał.1_WPF_bazowy!#REF! ->  | U86: =+Zał.1_WPF_bazowy!#REF! ->  | V86: =+Zał.1_WPF_bazowy!#REF! ->  | W86: =+Zał.1_WPF_bazowy!#REF! ->  | X86: =+Zał.1_WPF_bazowy!#REF! ->  | Y86: =+Zał.1_WPF_bazowy!#REF! ->  | Z86: =+Zał.1_WPF_bazowy!#REF! ->  | AA86: =+Zał.1_WPF_bazowy!#REF! ->  | AB86: =+Zał.1_WPF_bazowy!#REF! ->  | AC86: =+Zał.1_WPF_bazowy!#REF! ->  | AD86: =+Zał.1_WPF_bazowy!#REF! ->  | AE86: =+Zał.1_WPF_bazowy!#REF! ->  | AF86: =+Zał.1_WPF_bazowy!#REF! ->  | AG86: =+Zał.1_WPF_bazowy!#REF! ->  | AH86: =+Zał.1_WPF_bazowy!#REF! ->  | AI86: =+Zał.1_WPF_bazowy!#REF! ->  | AJ86: =+Zał.1_WPF_bazowy!#REF! ->  | AK86: =+Zał.1_WPF_bazowy!#REF! ->  | AL86: =+Zał.1_WPF_bazowy!#REF! -> 
B87: 12.5 | D87: Wydatki na wkład krajowy w związku z umową na realizację programu, projektu lub zadania finansowanego z udziałem środków, o których mowa w art. 5 ust. 1 pkt 2 ustawy bez względu na stopień finansowania tymi środkami | E87: =Zał.1_WPF_bazowy!E80 -> 0 | F87: =Zał.1_WPF_bazowy!F80 -> 0 | G87: =Zał.1_WPF_bazowy!G80 -> 0 | H87: =Zał.1_WPF_bazowy!H80 -> 0 | I87: =+Zał.1_WPF_bazowy!I80 -> 0 | J87: =+Zał.1_WPF_bazowy!J80 -> 0 | K87: =+Zał.1_WPF_bazowy!K80 -> 0 | L87: =+Zał.1_WPF_bazowy!L80 -> 0 | M87: =+Zał.1_WPF_bazowy!M80 -> 0 | N87: =+Zał.1_WPF_bazowy!N80 -> 0 | O87: =+Zał.1_WPF_bazowy!O80 -> 0 | P87: =+Zał.1_WPF_bazowy!P80 -> 0 | Q87: =+Zał.1_WPF_bazowy!Q80 -> 0 | R87: =+Zał.1_WPF_bazowy!#REF! ->  | S87: =+Zał.1_WPF_bazowy!#REF! ->  | T87: =+Zał.1_WPF_bazowy!#REF! ->  | U87: =+Zał.1_WPF_bazowy!#REF! ->  | V87: =+Zał.1_WPF_bazowy!#REF! ->  | W87: =+Zał.1_WPF_bazowy!#REF! ->  | X87: =+Zał.1_WPF_bazowy!#REF! ->  | Y87: =+Zał.1_WPF_bazowy!#REF! ->  | Z87: =+Zał.1_WPF_bazowy!#REF! ->  | AA87: =+Zał.1_WPF_bazowy!#REF! ->  | AB87: =+Zał.1_WPF_bazowy!#REF! ->  | AC87: =+Zał.1_WPF_bazowy!#REF! ->  | AD87: =+Zał.1_WPF_bazowy!#REF! ->  | AE87: =+Zał.1_WPF_bazowy!#REF! ->  | AF87: =+Zał.1_WPF_bazowy!#REF! ->  | AG87: =+Zał.1_WPF_bazowy!#REF! ->  | AH87: =+Zał.1_WPF_bazowy!#REF! ->  | AI87: =+Zał.1_WPF_bazowy!#REF! ->  | AJ87: =+Zał.1_WPF_bazowy!#REF! ->  | AK87: =+Zał.1_WPF_bazowy!#REF! ->  | AL87: =+Zał.1_WPF_bazowy!#REF! -> 
B88: 12.5.1 | D88: w tym w związku z już zawartą umową na realizację programu, projektu lub zadania | E88: =Zał.1_WPF_bazowy!E81 -> 0 | F88: =Zał.1_WPF_bazowy!F81 -> 0 | G88: =Zał.1_WPF_bazowy!G81 -> 0 | H88: =Zał.1_WPF_bazowy!H81 -> 0 | I88: =+Zał.1_WPF_bazowy!I81 -> 0 | J88: =+Zał.1_WPF_bazowy!J81 -> 0 | K88: =+Zał.1_WPF_bazowy!K81 -> 0 | L88: =+Zał.1_WPF_bazowy!L81 -> 0 | M88: =+Zał.1_WPF_bazowy!M81 -> 0 | N88: =+Zał.1_WPF_bazowy!N81 -> 0 | O88: =+Zał.1_WPF_bazowy!O81 -> 0 | P88: =+Zał.1_WPF_bazowy!P81 -> 0 | Q88: =+Zał.1_WPF_bazowy!Q81 -> 0 | R88: =+Zał.1_WPF_bazowy!#REF! ->  | S88: =+Zał.1_WPF_bazowy!#REF! ->  | T88: =+Zał.1_WPF_bazowy!#REF! ->  | U88: =+Zał.1_WPF_bazowy!#REF! ->  | V88: =+Zał.1_WPF_bazowy!#REF! ->  | W88: =+Zał.1_WPF_bazowy!#REF! ->  | X88: =+Zał.1_WPF_bazowy!#REF! ->  | Y88: =+Zał.1_WPF_bazowy!#REF! ->  | Z88: =+Zał.1_WPF_bazowy!#REF! ->  | AA88: =+Zał.1_WPF_bazowy!#REF! ->  | AB88: =+Zał.1_WPF_bazowy!#REF! ->  | AC88: =+Zał.1_WPF_bazowy!#REF! ->  | AD88: =+Zał.1_WPF_bazowy!#REF! ->  | AE88: =+Zał.1_WPF_bazowy!#REF! ->  | AF88: =+Zał.1_WPF_bazowy!#REF! ->  | AG88: =+Zał.1_WPF_bazowy!#REF! ->  | AH88: =+Zał.1_WPF_bazowy!#REF! ->  | AI88: =+Zał.1_WPF_bazowy!#REF! ->  | AJ88: =+Zał.1_WPF_bazowy!#REF! ->  | AK88: =+Zał.1_WPF_bazowy!#REF! ->  | AL88: =+Zał.1_WPF_bazowy!#REF! -> 
B89: 12.6 | D89: Wydatki na wkład krajowy w związku z zawartą po dniu 1 stycznia 2013 r. umową na realizację programu, projektu lub zadania finansowanego w co najmniej 60% środkami, o których mowa w art. 5 ust. 1 pkt 2 ustawy | E89: =Zał.1_WPF_bazowy!E82 -> 0 | F89: =Zał.1_WPF_bazowy!F82 -> 0 | G89: =Zał.1_WPF_bazowy!G82 -> 0 | H89: =Zał.1_WPF_bazowy!H82 -> 0 | I89: =+Zał.1_WPF_bazowy!I82 -> 0 | J89: =+Zał.1_WPF_bazowy!J82 -> 0 | K89: =+Zał.1_WPF_bazowy!K82 -> 0 | L89: =+Zał.1_WPF_bazowy!L82 -> 0 | M89: =+Zał.1_WPF_bazowy!M82 -> 0 | N89: =+Zał.1_WPF_bazowy!N82 -> 0 | O89: =+Zał.1_WPF_bazowy!O82 -> 0 | P89: =+Zał.1_WPF_bazowy!P82 -> 0 | Q89: =+Zał.1_WPF_bazowy!Q82 -> 0 | R89: =+Zał.1_WPF_bazowy!#REF! ->  | S89: =+Zał.1_WPF_bazowy!#REF! ->  | T89: =+Zał.1_WPF_bazowy!#REF! ->  | U89: =+Zał.1_WPF_bazowy!#REF! ->  | V89: =+Zał.1_WPF_bazowy!#REF! ->  | W89: =+Zał.1_WPF_bazowy!#REF! ->  | X89: =+Zał.1_WPF_bazowy!#REF! ->  | Y89: =+Zał.1_WPF_bazowy!#REF! ->  | Z89: =+Zał.1_WPF_bazowy!#REF! ->  | AA89: =+Zał.1_WPF_bazowy!#REF! ->  | AB89: =+Zał.1_WPF_bazowy!#REF! ->  | AC89: =+Zał.1_WPF_bazowy!#REF! ->  | AD89: =+Zał.1_WPF_bazowy!#REF! ->  | AE89: =+Zał.1_WPF_bazowy!#REF! ->  | AF89: =+Zał.1_WPF_bazowy!#REF! ->  | AG89: =+Zał.1_WPF_bazowy!#REF! ->  | AH89: =+Zał.1_WPF_bazowy!#REF! ->  | AI89: =+Zał.1_WPF_bazowy!#REF! ->  | AJ89: =+Zał.1_WPF_bazowy!#REF! ->  | AK89: =+Zał.1_WPF_bazowy!#REF! ->  | AL89: =+Zał.1_WPF_bazowy!#REF! -> 
B90: 12.6.1 | D90: w tym w związku z już zawartą umową na realizację programu, projektu lub zadania | E90: =Zał.1_WPF_bazowy!E83 -> 0 | F90: =Zał.1_WPF_bazowy!F83 -> 0 | G90: =Zał.1_WPF_bazowy!G83 -> 0 | H90: =Zał.1_WPF_bazowy!H83 -> 0 | I90: =+Zał.1_WPF_bazowy!I83 -> 0 | J90: =+Zał.1_WPF_bazowy!J83 -> 0 | K90: =+Zał.1_WPF_bazowy!K83 -> 0 | L90: =+Zał.1_WPF_bazowy!L83 -> 0 | M90: =+Zał.1_WPF_bazowy!M83 -> 0 | N90: =+Zał.1_WPF_bazowy!N83 -> 0 | O90: =+Zał.1_WPF_bazowy!O83 -> 0 | P90: =+Zał.1_WPF_bazowy!P83 -> 0 | Q90: =+Zał.1_WPF_bazowy!Q83 -> 0 | R90: =+Zał.1_WPF_bazowy!#REF! ->  | S90: =+Zał.1_WPF_bazowy!#REF! ->  | T90: =+Zał.1_WPF_bazowy!#REF! ->  | U90: =+Zał.1_WPF_bazowy!#REF! ->  | V90: =+Zał.1_WPF_bazowy!#REF! ->  | W90: =+Zał.1_WPF_bazowy!#REF! ->  | X90: =+Zał.1_WPF_bazowy!#REF! ->  | Y90: =+Zał.1_WPF_bazowy!#REF! ->  | Z90: =+Zał.1_WPF_bazowy!#REF! ->  | AA90: =+Zał.1_WPF_bazowy!#REF! ->  | AB90: =+Zał.1_WPF_bazowy!#REF! ->  | AC90: =+Zał.1_WPF_bazowy!#REF! ->  | AD90: =+Zał.1_WPF_bazowy!#REF! ->  | AE90: =+Zał.1_WPF_bazowy!#REF! ->  | AF90: =+Zał.1_WPF_bazowy!#REF! ->  | AG90: =+Zał.1_WPF_bazowy!#REF! ->  | AH90: =+Zał.1_WPF_bazowy!#REF! ->  | AI90: =+Zał.1_WPF_bazowy!#REF! ->  | AJ90: =+Zał.1_WPF_bazowy!#REF! ->  | AK90: =+Zał.1_WPF_bazowy!#REF! ->  | AL90: =+Zał.1_WPF_bazowy!#REF! -> 
B91: 12.7 | D91: Przychody z tytułu kredytów, pożyczek, emisji papierów wartościowych powstające w związku z umową na realizację programu, projektu lub zadania finansowanego z udziałem środków, o których mowa w art. 5 ust. 1 pkt 2 ustawy bez względu na stopień finansowania tymi środkami | E91: =Zał.1_WPF_bazowy!E84 -> 0 | F91: =Zał.1_WPF_bazowy!F84 -> 0 | G91: =Zał.1_WPF_bazowy!G84 -> 0 | H91: =Zał.1_WPF_bazowy!H84 -> 0 | I91: =+Zał.1_WPF_bazowy!I84 -> 0 | J91: =+Zał.1_WPF_bazowy!J84 -> 0 | K91: =+Zał.1_WPF_bazowy!K84 -> 0 | L91: =+Zał.1_WPF_bazowy!L84 -> 0 | M91: =+Zał.1_WPF_bazowy!M84 -> 0 | N91: =+Zał.1_WPF_bazowy!N84 -> 0 | O91: =+Zał.1_WPF_bazowy!O84 -> 0 | P91: =+Zał.1_WPF_bazowy!P84 -> 0 | Q91: =+Zał.1_WPF_bazowy!Q84 -> 0 | R91: =+Zał.1_WPF_bazowy!#REF! ->  | S91: =+Zał.1_WPF_bazowy!#REF! ->  | T91: =+Zał.1_WPF_bazowy!#REF! ->  | U91: =+Zał.1_WPF_bazowy!#REF! ->  | V91: =+Zał.1_WPF_bazowy!#REF! ->  | W91: =+Zał.1_WPF_bazowy!#REF! ->  | X91: =+Zał.1_WPF_bazowy!#REF! ->  | Y91: =+Zał.1_WPF_bazowy!#REF! ->  | Z91: =+Zał.1_WPF_bazowy!#REF! ->  | AA91: =+Zał.1_WPF_bazowy!#REF! ->  | AB91: =+Zał.1_WPF_bazowy!#REF! ->  | AC91: =+Zał.1_WPF_bazowy!#REF! ->  | AD91: =+Zał.1_WPF_bazowy!#REF! ->  | AE91: =+Zał.1_WPF_bazowy!#REF! ->  | AF91: =+Zał.1_WPF_bazowy!#REF! ->  | AG91: =+Zał.1_WPF_bazowy!#REF! ->  | AH91: =+Zał.1_WPF_bazowy!#REF! ->  | AI91: =+Zał.1_WPF_bazowy!#REF! ->  | AJ91: =+Zał.1_WPF_bazowy!#REF! ->  | AK91: =+Zał.1_WPF_bazowy!#REF! ->  | AL91: =+Zał.1_WPF_bazowy!#REF! -> 
B92: 12.7.1 | D92: w tym w związku z już zawartą umową na realizację programu, projektu lub zadania | E92: =Zał.1_WPF_bazowy!E85 -> 0 | F92: =Zał.1_WPF_bazowy!F85 -> 0 | G92: =Zał.1_WPF_bazowy!G85 -> 0 | H92: =Zał.1_WPF_bazowy!H85 -> 0 | I92: =+Zał.1_WPF_bazowy!I85 -> 0 | J92: =+Zał.1_WPF_bazowy!J85 -> 0 | K92: =+Zał.1_WPF_bazowy!K85 -> 0 | L92: =+Zał.1_WPF_bazowy!L85 -> 0 | M92: =+Zał.1_WPF_bazowy!M85 -> 0 | N92: =+Zał.1_WPF_bazowy!N85 -> 0 | O92: =+Zał.1_WPF_bazowy!O85 -> 0 | P92: =+Zał.1_WPF_bazowy!P85 -> 0 | Q92: =+Zał.1_WPF_bazowy!Q85 -> 0 | R92: =+Zał.1_WPF_bazowy!#REF! ->  | S92: =+Zał.1_WPF_bazowy!#REF! ->  | T92: =+Zał.1_WPF_bazowy!#REF! ->  | U92: =+Zał.1_WPF_bazowy!#REF! ->  | V92: =+Zał.1_WPF_bazowy!#REF! ->  | W92: =+Zał.1_WPF_bazowy!#REF! ->  | X92: =+Zał.1_WPF_bazowy!#REF! ->  | Y92: =+Zał.1_WPF_bazowy!#REF! ->  | Z92: =+Zał.1_WPF_bazowy!#REF! ->  | AA92: =+Zał.1_WPF_bazowy!#REF! ->  | AB92: =+Zał.1_WPF_bazowy!#REF! ->  | AC92: =+Zał.1_WPF_bazowy!#REF! ->  | AD92: =+Zał.1_WPF_bazowy!#REF! ->  | AE92: =+Zał.1_WPF_bazowy!#REF! ->  | AF92: =+Zał.1_WPF_bazowy!#REF! ->  | AG92: =+Zał.1_WPF_bazowy!#REF! ->  | AH92: =+Zał.1_WPF_bazowy!#REF! ->  | AI92: =+Zał.1_WPF_bazowy!#REF! ->  | AJ92: =+Zał.1_WPF_bazowy!#REF! ->  | AK92: =+Zał.1_WPF_bazowy!#REF! ->  | AL92: =+Zał.1_WPF_bazowy!#REF! -> 
B93: 12.8 | D93: Przychody z tytułu kredytów, pożyczek, emisji papierów wartościowych powstające w związku z zawartą po dniu 1 stycznia 2013 r. umową na realizację programu, projektu lub zadania finansowanego w co najmniej 60% środkami, o których mowa w art. 5 ust. 1 pkt 2 ustawy | E93: =Zał.1_WPF_bazowy!E86 -> 0 | F93: =Zał.1_WPF_bazowy!F86 -> 0 | G93: =Zał.1_WPF_bazowy!G86 -> 0 | H93: =Zał.1_WPF_bazowy!H86 -> 0 | I93: =+Zał.1_WPF_bazowy!I86 -> 0 | J93: =+Zał.1_WPF_bazowy!J86 -> 0 | K93: =+Zał.1_WPF_bazowy!K86 -> 0 | L93: =+Zał.1_WPF_bazowy!L86 -> 0 | M93: =+Zał.1_WPF_bazowy!M86 -> 0 | N93: =+Zał.1_WPF_bazowy!N86 -> 0 | O93: =+Zał.1_WPF_bazowy!O86 -> 0 | P93: =+Zał.1_WPF_bazowy!P86 -> 0 | Q93: =+Zał.1_WPF_bazowy!Q86 -> 0 | R93: =+Zał.1_WPF_bazowy!#REF! ->  | S93: =+Zał.1_WPF_bazowy!#REF! ->  | T93: =+Zał.1_WPF_bazowy!#REF! ->  | U93: =+Zał.1_WPF_bazowy!#REF! ->  | V93: =+Zał.1_WPF_bazowy!#REF! ->  | W93: =+Zał.1_WPF_bazowy!#REF! ->  | X93: =+Zał.1_WPF_bazowy!#REF! ->  | Y93: =+Zał.1_WPF_bazowy!#REF! ->  | Z93: =+Zał.1_WPF_bazowy!#REF! ->  | AA93: =+Zał.1_WPF_bazowy!#REF! ->  | AB93: =+Zał.1_WPF_bazowy!#REF! ->  | AC93: =+Zał.1_WPF_bazowy!#REF! ->  | AD93: =+Zał.1_WPF_bazowy!#REF! ->  | AE93: =+Zał.1_WPF_bazowy!#REF! ->  | AF93: =+Zał.1_WPF_bazowy!#REF! ->  | AG93: =+Zał.1_WPF_bazowy!#REF! ->  | AH93: =+Zał.1_WPF_bazowy!#REF! ->  | AI93: =+Zał.1_WPF_bazowy!#REF! ->  | AJ93: =+Zał.1_WPF_bazowy!#REF! ->  | AK93: =+Zał.1_WPF_bazowy!#REF! ->  | AL93: =+Zał.1_WPF_bazowy!#REF! -> 
B94: 12.8.1 | D94: w tym w związku z już zawartą umową na realizację programu, projektu lub zadania | E94: =Zał.1_WPF_bazowy!E87 -> 0 | F94: =Zał.1_WPF_bazowy!F87 -> 0 | G94: =Zał.1_WPF_bazowy!G87 -> 0 | H94: =Zał.1_WPF_bazowy!H87 -> 0 | I94: =+Zał.1_WPF_bazowy!I87 -> 0 | J94: =+Zał.1_WPF_bazowy!J87 -> 0 | K94: =+Zał.1_WPF_bazowy!K87 -> 0 | L94: =+Zał.1_WPF_bazowy!L87 -> 0 | M94: =+Zał.1_WPF_bazowy!M87 -> 0 | N94: =+Zał.1_WPF_bazowy!N87 -> 0 | O94: =+Zał.1_WPF_bazowy!O87 -> 0 | P94: =+Zał.1_WPF_bazowy!P87 -> 0 | Q94: =+Zał.1_WPF_bazowy!Q87 -> 0 | R94: =+Zał.1_WPF_bazowy!#REF! ->  | S94: =+Zał.1_WPF_bazowy!#REF! ->  | T94: =+Zał.1_WPF_bazowy!#REF! ->  | U94: =+Zał.1_WPF_bazowy!#REF! ->  | V94: =+Zał.1_WPF_bazowy!#REF! ->  | W94: =+Zał.1_WPF_bazowy!#REF! ->  | X94: =+Zał.1_WPF_bazowy!#REF! ->  | Y94: =+Zał.1_WPF_bazowy!#REF! ->  | Z94: =+Zał.1_WPF_bazowy!#REF! ->  | AA94: =+Zał.1_WPF_bazowy!#REF! ->  | AB94: =+Zał.1_WPF_bazowy!#REF! ->  | AC94: =+Zał.1_WPF_bazowy!#REF! ->  | AD94: =+Zał.1_WPF_bazowy!#REF! ->  | AE94: =+Zał.1_WPF_bazowy!#REF! ->  | AF94: =+Zał.1_WPF_bazowy!#REF! ->  | AG94: =+Zał.1_WPF_bazowy!#REF! ->  | AH94: =+Zał.1_WPF_bazowy!#REF! ->  | AI94: =+Zał.1_WPF_bazowy!#REF! ->  | AJ94: =+Zał.1_WPF_bazowy!#REF! ->  | AK94: =+Zał.1_WPF_bazowy!#REF! ->  | AL94: =+Zał.1_WPF_bazowy!#REF! -> 
B95: 13 | D95: Kwoty dotyczące przejęcia i spłaty zobowiązań po samodzielnych publicznych zakładach opieki zdrowotnej oraz pokrycia ujemnego wyniku | E95: x | F95: x | G95: x | H95: x | I95: x | J95: x | K95: x | L95: x | M95: x | N95: x | O95: x | P95: x | Q95: x | R95: x | S95: x | T95: x | U95: x | V95: x | W95: x | X95: x | Y95: x | Z95: x | AA95: x | AB95: x | AC95: x | AD95: x | AE95: x | AF95: x | AG95: x | AH95: x | AI95: x | AJ95: x | AK95: x | AL95: x
B96: 13.1 | D96: Kwota zobowiązań wynikających z przejęcia przez jednostkę samorządu terytorialnego zobowiązań po likwidowanych i przekształcanych samodzielnych zakładach opieki zdrowotnej | E96: =Zał.1_WPF_bazowy!E89 -> 0 | F96: =Zał.1_WPF_bazowy!F89 -> 0 | G96: =Zał.1_WPF_bazowy!G89 -> 0 | H96: =Zał.1_WPF_bazowy!H89 -> 0 | I96: =+IF(I10<>0,H96-(I98+I99+I100+I101),0) -> 0 | J96: 0 | K96: 0 | L96: 0 | M96: 0 | N96: 0 | O96: 0 | P96: 0 | Q96: 0
B97: 13.2 | D97: Dochody budżetowe z tytułu dotacji celowej z budżetu państwa, o której mowa w art. 196 ustawy z dnia 15 kwietnia 2011 r. o działalności leczniczej (Dz.U. Nr 112, poz. 654, z późn. zm.) | E97: =Zał.1_WPF_bazowy!E90 -> 0 | F97: =Zał.1_WPF_bazowy!F90 -> 0 | G97: =Zał.1_WPF_bazowy!G90 -> 0 | H97: =Zał.1_WPF_bazowy!H90 -> 0 | I97: =+Zał.1_WPF_bazowy!I90 -> 0 | J97: =+Zał.1_WPF_bazowy!J90 -> 0 | K97: =+Zał.1_WPF_bazowy!K90 -> 0 | L97: =+Zał.1_WPF_bazowy!L90 -> 0 | M97: =+Zał.1_WPF_bazowy!M90 -> 0 | N97: =+Zał.1_WPF_bazowy!N90 -> 0 | O97: =+Zał.1_WPF_bazowy!O90 -> 0 | P97: =+Zał.1_WPF_bazowy!P90 -> 0 | Q97: =+Zał.1_WPF_bazowy!Q90 -> 0 | R97: =+Zał.1_WPF_bazowy!#REF! ->  | S97: =+Zał.1_WPF_bazowy!#REF! ->  | T97: =+Zał.1_WPF_bazowy!#REF! ->  | U97: =+Zał.1_WPF_bazowy!#REF! ->  | V97: =+Zał.1_WPF_bazowy!#REF! ->  | W97: =+Zał.1_WPF_bazowy!#REF! ->  | X97: =+Zał.1_WPF_bazowy!#REF! ->  | Y97: =+Zał.1_WPF_bazowy!#REF! ->  | Z97: =+Zał.1_WPF_bazowy!#REF! ->  | AA97: =+Zał.1_WPF_bazowy!#REF! ->  | AB97: =+Zał.1_WPF_bazowy!#REF! ->  | AC97: =+Zał.1_WPF_bazowy!#REF! ->  | AD97: =+Zał.1_WPF_bazowy!#REF! ->  | AE97: =+Zał.1_WPF_bazowy!#REF! ->  | AF97: =+Zał.1_WPF_bazowy!#REF! ->  | AG97: =+Zał.1_WPF_bazowy!#REF! ->  | AH97: =+Zał.1_WPF_bazowy!#REF! ->  | AI97: =+Zał.1_WPF_bazowy!#REF! ->  | AJ97: =+Zał.1_WPF_bazowy!#REF! ->  | AK97: =+Zał.1_WPF_bazowy!#REF! ->  | AL97: =+Zał.1_WPF_bazowy!#REF! -> 
B98: 13.3 | D98: Wysokość zobowiązań podlegających umorzeniu, o którym mowa w art. 190 ustawy o działalności leczniczej | E98: =Zał.1_WPF_bazowy!E91 -> 0 | F98: =Zał.1_WPF_bazowy!F91 -> 0 | G98: =Zał.1_WPF_bazowy!G91 -> 0 | H98: =Zał.1_WPF_bazowy!H91 -> 0 | I98: =+Zał.1_WPF_bazowy!I91 -> 0 | J98: =+Zał.1_WPF_bazowy!J91 -> 0 | K98: =+Zał.1_WPF_bazowy!K91 -> 0 | L98: =+Zał.1_WPF_bazowy!L91 -> 0 | M98: =+Zał.1_WPF_bazowy!M91 -> 0 | N98: =+Zał.1_WPF_bazowy!N91 -> 0 | O98: =+Zał.1_WPF_bazowy!O91 -> 0 | P98: =+Zał.1_WPF_bazowy!P91 -> 0 | Q98: =+Zał.1_WPF_bazowy!Q91 -> 0 | R98: =+Zał.1_WPF_bazowy!#REF! ->  | S98: =+Zał.1_WPF_bazowy!#REF! ->  | T98: =+Zał.1_WPF_bazowy!#REF! ->  | U98: =+Zał.1_WPF_bazowy!#REF! ->  | V98: =+Zał.1_WPF_bazowy!#REF! ->  | W98: =+Zał.1_WPF_bazowy!#REF! ->  | X98: =+Zał.1_WPF_bazowy!#REF! ->  | Y98: =+Zał.1_WPF_bazowy!#REF! ->  | Z98: =+Zał.1_WPF_bazowy!#REF! ->  | AA98: =+Zał.1_WPF_bazowy!#REF! ->  | AB98: =+Zał.1_WPF_bazowy!#REF! ->  | AC98: =+Zał.1_WPF_bazowy!#REF! ->  | AD98: =+Zał.1_WPF_bazowy!#REF! ->  | AE98: =+Zał.1_WPF_bazowy!#REF! ->  | AF98: =+Zał.1_WPF_bazowy!#REF! ->  | AG98: =+Zał.1_WPF_bazowy!#REF! ->  | AH98: =+Zał.1_WPF_bazowy!#REF! ->  | AI98: =+Zał.1_WPF_bazowy!#REF! ->  | AJ98: =+Zał.1_WPF_bazowy!#REF! ->  | AK98: =+Zał.1_WPF_bazowy!#REF! ->  | AL98: =+Zał.1_WPF_bazowy!#REF! -> 
B99: 13.4 | D99: Wydatki na spłatę przejętych zobowiązań samodzielnego publicznego zakładu opieki zdrowotnej przekształconego na zasadach określonych w przepisach o działalności leczniczej | E99: =Zał.1_WPF_bazowy!E92 -> 0 | F99: =Zał.1_WPF_bazowy!F92 -> 0 | G99: =Zał.1_WPF_bazowy!G92 -> 0 | H99: =Zał.1_WPF_bazowy!H92 -> 0 | I99: =+Zał.1_WPF_bazowy!I92 -> 0 | J99: =+Zał.1_WPF_bazowy!J92 -> 0 | K99: =+Zał.1_WPF_bazowy!K92 -> 0 | L99: =+Zał.1_WPF_bazowy!L92 -> 0 | M99: =+Zał.1_WPF_bazowy!M92 -> 0 | N99: =+Zał.1_WPF_bazowy!N92 -> 0 | O99: =+Zał.1_WPF_bazowy!O92 -> 0 | P99: =+Zał.1_WPF_bazowy!P92 -> 0 | Q99: =+Zał.1_WPF_bazowy!Q92 -> 0 | R99: =+Zał.1_WPF_bazowy!#REF! ->  | S99: =+Zał.1_WPF_bazowy!#REF! ->  | T99: =+Zał.1_WPF_bazowy!#REF! ->  | U99: =+Zał.1_WPF_bazowy!#REF! ->  | V99: =+Zał.1_WPF_bazowy!#REF! ->  | W99: =+Zał.1_WPF_bazowy!#REF! ->  | X99: =+Zał.1_WPF_bazowy!#REF! ->  | Y99: =+Zał.1_WPF_bazowy!#REF! ->  | Z99: =+Zał.1_WPF_bazowy!#REF! ->  | AA99: =+Zał.1_WPF_bazowy!#REF! ->  | AB99: =+Zał.1_WPF_bazowy!#REF! ->  | AC99: =+Zał.1_WPF_bazowy!#REF! ->  | AD99: =+Zał.1_WPF_bazowy!#REF! ->  | AE99: =+Zał.1_WPF_bazowy!#REF! ->  | AF99: =+Zał.1_WPF_bazowy!#REF! ->  | AG99: =+Zał.1_WPF_bazowy!#REF! ->  | AH99: =+Zał.1_WPF_bazowy!#REF! ->  | AI99: =+Zał.1_WPF_bazowy!#REF! ->  | AJ99: =+Zał.1_WPF_bazowy!#REF! ->  | AK99: =+Zał.1_WPF_bazowy!#REF! ->  | AL99: =+Zał.1_WPF_bazowy!#REF! -> 
B100: 13.5 | D100: Wydatki na spłatę przejętych zobowiązań samodzielnego publicznego zakładu opieki zdrowotnej likwidowanego na zasadach określonych w przepisach o działalności leczniczej | E100: =Zał.1_WPF_bazowy!E93 -> 0 | F100: =Zał.1_WPF_bazowy!F93 -> 0 | G100: =Zał.1_WPF_bazowy!G93 -> 0 | H100: =Zał.1_WPF_bazowy!H93 -> 0 | I100: =+Zał.1_WPF_bazowy!I93 -> 0 | J100: =+Zał.1_WPF_bazowy!J93 -> 0 | K100: =+Zał.1_WPF_bazowy!K93 -> 0 | L100: =+Zał.1_WPF_bazowy!L93 -> 0 | M100: =+Zał.1_WPF_bazowy!M93 -> 0 | N100: =+Zał.1_WPF_bazowy!N93 -> 0 | O100: =+Zał.1_WPF_bazowy!O93 -> 0 | P100: =+Zał.1_WPF_bazowy!P93 -> 0 | Q100: =+Zał.1_WPF_bazowy!Q93 -> 0 | R100: =+Zał.1_WPF_bazowy!#REF! ->  | S100: =+Zał.1_WPF_bazowy!#REF! ->  | T100: =+Zał.1_WPF_bazowy!#REF! ->  | U100: =+Zał.1_WPF_bazowy!#REF! ->  | V100: =+Zał.1_WPF_bazowy!#REF! ->  | W100: =+Zał.1_WPF_bazowy!#REF! ->  | X100: =+Zał.1_WPF_bazowy!#REF! ->  | Y100: =+Zał.1_WPF_bazowy!#REF! ->  | Z100: =+Zał.1_WPF_bazowy!#REF! ->  | AA100: =+Zał.1_WPF_bazowy!#REF! ->  | AB100: =+Zał.1_WPF_bazowy!#REF! ->  | AC100: =+Zał.1_WPF_bazowy!#REF! ->  | AD100: =+Zał.1_WPF_bazowy!#REF! ->  | AE100: =+Zał.1_WPF_bazowy!#REF! ->  | AF100: =+Zał.1_WPF_bazowy!#REF! ->  | AG100: =+Zał.1_WPF_bazowy!#REF! ->  | AH100: =+Zał.1_WPF_bazowy!#REF! ->  | AI100: =+Zał.1_WPF_bazowy!#REF! ->  | AJ100: =+Zał.1_WPF_bazowy!#REF! ->  | AK100: =+Zał.1_WPF_bazowy!#REF! ->  | AL100: =+Zał.1_WPF_bazowy!#REF! -> 
B101: 13.6 | D101: Wydatki na spłatę zobowiązań samodzielnego publicznego zakładu opieki zdrowotnej przejętych do końca 2011 r. na podstawie przepisów o zakładach opieki zdrowotnej | E101: =Zał.1_WPF_bazowy!E94 -> 0 | F101: =Zał.1_WPF_bazowy!F94 -> 0 | G101: =Zał.1_WPF_bazowy!G94 -> 0 | H101: =Zał.1_WPF_bazowy!H94 -> 0 | I101: =+Zał.1_WPF_bazowy!I94 -> 0 | J101: =+Zał.1_WPF_bazowy!J94 -> 0 | K101: =+Zał.1_WPF_bazowy!K94 -> 0 | L101: =+Zał.1_WPF_bazowy!L94 -> 0 | M101: =+Zał.1_WPF_bazowy!M94 -> 0 | N101: =+Zał.1_WPF_bazowy!N94 -> 0 | O101: =+Zał.1_WPF_bazowy!O94 -> 0 | P101: =+Zał.1_WPF_bazowy!P94 -> 0 | Q101: =+Zał.1_WPF_bazowy!Q94 -> 0 | R101: =+Zał.1_WPF_bazowy!#REF! ->  | S101: =+Zał.1_WPF_bazowy!#REF! ->  | T101: =+Zał.1_WPF_bazowy!#REF! ->  | U101: =+Zał.1_WPF_bazowy!#REF! ->  | V101: =+Zał.1_WPF_bazowy!#REF! ->  | W101: =+Zał.1_WPF_bazowy!#REF! ->  | X101: =+Zał.1_WPF_bazowy!#REF! ->  | Y101: =+Zał.1_WPF_bazowy!#REF! ->  | Z101: =+Zał.1_WPF_bazowy!#REF! ->  | AA101: =+Zał.1_WPF_bazowy!#REF! ->  | AB101: =+Zał.1_WPF_bazowy!#REF! ->  | AC101: =+Zał.1_WPF_bazowy!#REF! ->  | AD101: =+Zał.1_WPF_bazowy!#REF! ->  | AE101: =+Zał.1_WPF_bazowy!#REF! ->  | AF101: =+Zał.1_WPF_bazowy!#REF! ->  | AG101: =+Zał.1_WPF_bazowy!#REF! ->  | AH101: =+Zał.1_WPF_bazowy!#REF! ->  | AI101: =+Zał.1_WPF_bazowy!#REF! ->  | AJ101: =+Zał.1_WPF_bazowy!#REF! ->  | AK101: =+Zał.1_WPF_bazowy!#REF! ->  | AL101: =+Zał.1_WPF_bazowy!#REF! -> 
B102: 13.7 | D102: Wydatki bieżące na pokrycie ujemnego wyniku finansowego samodzielnego publicznego zakładu opieki zdrowotnej | E102: =Zał.1_WPF_bazowy!E95 -> 0 | F102: =Zał.1_WPF_bazowy!F95 -> 0 | G102: =Zał.1_WPF_bazowy!G95 -> 0 | H102: =Zał.1_WPF_bazowy!H95 -> 0 | I102: =+Zał.1_WPF_bazowy!I95 -> 0 | J102: =+Zał.1_WPF_bazowy!J95 -> 0 | K102: =+Zał.1_WPF_bazowy!K95 -> 0 | L102: =+Zał.1_WPF_bazowy!L95 -> 0 | M102: =+Zał.1_WPF_bazowy!M95 -> 0 | N102: =+Zał.1_WPF_bazowy!N95 -> 0 | O102: =+Zał.1_WPF_bazowy!O95 -> 0 | P102: =+Zał.1_WPF_bazowy!P95 -> 0 | Q102: =+Zał.1_WPF_bazowy!Q95 -> 0 | R102: =+Zał.1_WPF_bazowy!#REF! ->  | S102: =+Zał.1_WPF_bazowy!#REF! ->  | T102: =+Zał.1_WPF_bazowy!#REF! ->  | U102: =+Zał.1_WPF_bazowy!#REF! ->  | V102: =+Zał.1_WPF_bazowy!#REF! ->  | W102: =+Zał.1_WPF_bazowy!#REF! ->  | X102: =+Zał.1_WPF_bazowy!#REF! ->  | Y102: =+Zał.1_WPF_bazowy!#REF! ->  | Z102: =+Zał.1_WPF_bazowy!#REF! ->  | AA102: =+Zał.1_WPF_bazowy!#REF! ->  | AB102: =+Zał.1_WPF_bazowy!#REF! ->  | AC102: =+Zał.1_WPF_bazowy!#REF! ->  | AD102: =+Zał.1_WPF_bazowy!#REF! ->  | AE102: =+Zał.1_WPF_bazowy!#REF! ->  | AF102: =+Zał.1_WPF_bazowy!#REF! ->  | AG102: =+Zał.1_WPF_bazowy!#REF! ->  | AH102: =+Zał.1_WPF_bazowy!#REF! ->  | AI102: =+Zał.1_WPF_bazowy!#REF! ->  | AJ102: =+Zał.1_WPF_bazowy!#REF! ->  | AK102: =+Zał.1_WPF_bazowy!#REF! ->  | AL102: =+Zał.1_WPF_bazowy!#REF! -> 
A103: x | B103: 14 | D103: Dane uzupełniające o długu i jego spłacie | E103: x | F103: x | G103: x | H103: x | I103: x | J103: x | K103: x | L103: x | M103: x | N103: x | O103: x | P103: x | Q103: x | R103: x | S103: x | T103: x | U103: x | V103: x | W103: x | X103: x | Y103: x | Z103: x | AA103: x | AB103: x | AC103: x | AD103: x | AE103: x | AF103: x | AG103: x | AH103: x | AI103: x | AJ103: x | AK103: x | AL103: x
A104: x | B104: 14.1 | D104: Spłaty rat kapitałowych oraz wykup papierów wartościowych, o których mowa w pkt. 5.1., wynikające wyłącznie z tytułu zobowiązań już zaciągniętych | E104: =Zał.1_WPF_bazowy!E97 -> 4709034.88 | F104: =Zał.1_WPF_bazowy!F97 -> 2026525.28 | G104: =Zał.1_WPF_bazowy!G97 -> 915692 | H104: =Zał.1_WPF_bazowy!H97 -> 915692 | I104: =+Zał.1_WPF_bazowy!I97 -> 1215692 | J104: =+Zał.1_WPF_bazowy!J97 -> 1478204 | K104: =+Zał.1_WPF_bazowy!K97 -> 1678204 | L104: =+Zał.1_WPF_bazowy!L97 -> 1860004 | M104: =+Zał.1_WPF_bazowy!M97 -> 2210004 | N104: =+Zał.1_WPF_bazowy!N97 -> 2210004 | O104: =+Zał.1_WPF_bazowy!O97 -> 2250004 | P104: =+Zał.1_WPF_bazowy!P97 -> 2418000 | Q104: =+Zał.1_WPF_bazowy!Q97 -> 1250000 | R104: =+Zał.1_WPF_bazowy!#REF! ->  | S104: =+Zał.1_WPF_bazowy!#REF! ->  | T104: =+Zał.1_WPF_bazowy!#REF! ->  | U104: =+Zał.1_WPF_bazowy!#REF! ->  | V104: =+Zał.1_WPF_bazowy!#REF! ->  | W104: =+Zał.1_WPF_bazowy!#REF! ->  | X104: =+Zał.1_WPF_bazowy!#REF! ->  | Y104: =+Zał.1_WPF_bazowy!#REF! ->  | Z104: =+Zał.1_WPF_bazowy!#REF! ->  | AA104: =+Zał.1_WPF_bazowy!#REF! ->  | AB104: =+Zał.1_WPF_bazowy!#REF! ->  | AC104: =+Zał.1_WPF_bazowy!#REF! ->  | AD104: =+Zał.1_WPF_bazowy!#REF! ->  | AE104: =+Zał.1_WPF_bazowy!#REF! ->  | AF104: =+Zał.1_WPF_bazowy!#REF! ->  | AG104: =+Zał.1_WPF_bazowy!#REF! ->  | AH104: =+Zał.1_WPF_bazowy!#REF! ->  | AI104: =+Zał.1_WPF_bazowy!#REF! ->  | AJ104: =+Zał.1_WPF_bazowy!#REF! ->  | AK104: =+Zał.1_WPF_bazowy!#REF! ->  | AL104: =+Zał.1_WPF_bazowy!#REF! -> 
A105: x | B105: 14.2 | D105: Kwota długu, którego planowana spłata dokona się z wydatków budżetu | E105: =Zał.1_WPF_bazowy!E98 -> 0 | F105: =Zał.1_WPF_bazowy!F98 -> 0 | G105: =Zał.1_WPF_bazowy!G98 -> 0 | H105: =Zał.1_WPF_bazowy!H98 -> 0 | I105: =+Zał.1_WPF_bazowy!I98 -> 0 | J105: =+Zał.1_WPF_bazowy!J98 -> 0 | K105: =+Zał.1_WPF_bazowy!K98 -> 0 | L105: =+Zał.1_WPF_bazowy!L98 -> 0 | M105: =+Zał.1_WPF_bazowy!M98 -> 0 | N105: =+Zał.1_WPF_bazowy!N98 -> 0 | O105: =+Zał.1_WPF_bazowy!O98 -> 0 | P105: =+Zał.1_WPF_bazowy!P98 -> 0 | Q105: =+Zał.1_WPF_bazowy!Q98 -> 0 | R105: =+Zał.1_WPF_bazowy!#REF! ->  | S105: =+Zał.1_WPF_bazowy!#REF! ->  | T105: =+Zał.1_WPF_bazowy!#REF! ->  | U105: =+Zał.1_WPF_bazowy!#REF! ->  | V105: =+Zał.1_WPF_bazowy!#REF! ->  | W105: =+Zał.1_WPF_bazowy!#REF! ->  | X105: =+Zał.1_WPF_bazowy!#REF! ->  | Y105: =+Zał.1_WPF_bazowy!#REF! ->  | Z105: =+Zał.1_WPF_bazowy!#REF! ->  | AA105: =+Zał.1_WPF_bazowy!#REF! ->  | AB105: =+Zał.1_WPF_bazowy!#REF! ->  | AC105: =+Zał.1_WPF_bazowy!#REF! ->  | AD105: =+Zał.1_WPF_bazowy!#REF! ->  | AE105: =+Zał.1_WPF_bazowy!#REF! ->  | AF105: =+Zał.1_WPF_bazowy!#REF! ->  | AG105: =+Zał.1_WPF_bazowy!#REF! ->  | AH105: =+Zał.1_WPF_bazowy!#REF! ->  | AI105: =+Zał.1_WPF_bazowy!#REF! ->  | AJ105: =+Zał.1_WPF_bazowy!#REF! ->  | AK105: =+Zał.1_WPF_bazowy!#REF! ->  | AL105: =+Zał.1_WPF_bazowy!#REF! -> 
A106: x | B106: 14.3 | D106: Wydatki zmniejszające dług, w tym | E106: =Zał.1_WPF_bazowy!E99 -> 0 | F106: =Zał.1_WPF_bazowy!F99 -> 0 | G106: =Zał.1_WPF_bazowy!G99 -> 0 | H106: =Zał.1_WPF_bazowy!H99 -> 0 | I106: =+Zał.1_WPF_bazowy!I99 -> 0 | J106: =+Zał.1_WPF_bazowy!J99 -> 0 | K106: =+Zał.1_WPF_bazowy!K99 -> 0 | L106: =+Zał.1_WPF_bazowy!L99 -> 0 | M106: =+Zał.1_WPF_bazowy!M99 -> 0 | N106: =+Zał.1_WPF_bazowy!N99 -> 0 | O106: =+Zał.1_WPF_bazowy!O99 -> 0 | P106: =+Zał.1_WPF_bazowy!P99 -> 0 | Q106: =+Zał.1_WPF_bazowy!Q99 -> 0 | R106: =+Zał.1_WPF_bazowy!#REF! ->  | S106: =+Zał.1_WPF_bazowy!#REF! ->  | T106: =+Zał.1_WPF_bazowy!#REF! ->  | U106: =+Zał.1_WPF_bazowy!#REF! ->  | V106: =+Zał.1_WPF_bazowy!#REF! ->  | W106: =+Zał.1_WPF_bazowy!#REF! ->  | X106: =+Zał.1_WPF_bazowy!#REF! ->  | Y106: =+Zał.1_WPF_bazowy!#REF! ->  | Z106: =+Zał.1_WPF_bazowy!#REF! ->  | AA106: =+Zał.1_WPF_bazowy!#REF! ->  | AB106: =+Zał.1_WPF_bazowy!#REF! ->  | AC106: =+Zał.1_WPF_bazowy!#REF! ->  | AD106: =+Zał.1_WPF_bazowy!#REF! ->  | AE106: =+Zał.1_WPF_bazowy!#REF! ->  | AF106: =+Zał.1_WPF_bazowy!#REF! ->  | AG106: =+Zał.1_WPF_bazowy!#REF! ->  | AH106: =+Zał.1_WPF_bazowy!#REF! ->  | AI106: =+Zał.1_WPF_bazowy!#REF! ->  | AJ106: =+Zał.1_WPF_bazowy!#REF! ->  | AK106: =+Zał.1_WPF_bazowy!#REF! ->  | AL106: =+Zał.1_WPF_bazowy!#REF! -> 
A107: x | B107: 14.3.1 | D107: spłata zobowiązań wymagalnych z lat poprzednich, innych niż w pkt 14.3.3 | E107: =Zał.1_WPF_bazowy!E100 -> 0 | F107: =Zał.1_WPF_bazowy!F100 -> 0 | G107: =Zał.1_WPF_bazowy!G100 -> 0 | H107: =Zał.1_WPF_bazowy!H100 -> 0 | I107: =+Zał.1_WPF_bazowy!I100 -> 0 | J107: =+Zał.1_WPF_bazowy!J100 -> 0 | K107: =+Zał.1_WPF_bazowy!K100 -> 0 | L107: =+Zał.1_WPF_bazowy!L100 -> 0 | M107: =+Zał.1_WPF_bazowy!M100 -> 0 | N107: =+Zał.1_WPF_bazowy!N100 -> 0 | O107: =+Zał.1_WPF_bazowy!O100 -> 0 | P107: =+Zał.1_WPF_bazowy!P100 -> 0 | Q107: =+Zał.1_WPF_bazowy!Q100 -> 0 | R107: =+Zał.1_WPF_bazowy!#REF! ->  | S107: =+Zał.1_WPF_bazowy!#REF! ->  | T107: =+Zał.1_WPF_bazowy!#REF! ->  | U107: =+Zał.1_WPF_bazowy!#REF! ->  | V107: =+Zał.1_WPF_bazowy!#REF! ->  | W107: =+Zał.1_WPF_bazowy!#REF! ->  | X107: =+Zał.1_WPF_bazowy!#REF! ->  | Y107: =+Zał.1_WPF_bazowy!#REF! ->  | Z107: =+Zał.1_WPF_bazowy!#REF! ->  | AA107: =+Zał.1_WPF_bazowy!#REF! ->  | AB107: =+Zał.1_WPF_bazowy!#REF! ->  | AC107: =+Zał.1_WPF_bazowy!#REF! ->  | AD107: =+Zał.1_WPF_bazowy!#REF! ->  | AE107: =+Zał.1_WPF_bazowy!#REF! ->  | AF107: =+Zał.1_WPF_bazowy!#REF! ->  | AG107: =+Zał.1_WPF_bazowy!#REF! ->  | AH107: =+Zał.1_WPF_bazowy!#REF! ->  | AI107: =+Zał.1_WPF_bazowy!#REF! ->  | AJ107: =+Zał.1_WPF_bazowy!#REF! ->  | AK107: =+Zał.1_WPF_bazowy!#REF! ->  | AL107: =+Zał.1_WPF_bazowy!#REF! -> 
A108: x | B108: 14.3.2 | D108: związane z umowami zaliczanymi do tytułów dłużnych wliczanych do państwowego długu publicznego | E108: =Zał.1_WPF_bazowy!E101 -> 0 | F108: =Zał.1_WPF_bazowy!F101 -> 0 | G108: =Zał.1_WPF_bazowy!G101 -> 0 | H108: =Zał.1_WPF_bazowy!H101 -> 0 | I108: =+Zał.1_WPF_bazowy!I101 -> 0 | J108: =+Zał.1_WPF_bazowy!J101 -> 0 | K108: =+Zał.1_WPF_bazowy!K101 -> 0 | L108: =+Zał.1_WPF_bazowy!L101 -> 0 | M108: =+Zał.1_WPF_bazowy!M101 -> 0 | N108: =+Zał.1_WPF_bazowy!N101 -> 0 | O108: =+Zał.1_WPF_bazowy!O101 -> 0 | P108: =+Zał.1_WPF_bazowy!P101 -> 0 | Q108: =+Zał.1_WPF_bazowy!Q101 -> 0 | R108: =+Zał.1_WPF_bazowy!#REF! ->  | S108: =+Zał.1_WPF_bazowy!#REF! ->  | T108: =+Zał.1_WPF_bazowy!#REF! ->  | U108: =+Zał.1_WPF_bazowy!#REF! ->  | V108: =+Zał.1_WPF_bazowy!#REF! ->  | W108: =+Zał.1_WPF_bazowy!#REF! ->  | X108: =+Zał.1_WPF_bazowy!#REF! ->  | Y108: =+Zał.1_WPF_bazowy!#REF! ->  | Z108: =+Zał.1_WPF_bazowy!#REF! ->  | AA108: =+Zał.1_WPF_bazowy!#REF! ->  | AB108: =+Zał.1_WPF_bazowy!#REF! ->  | AC108: =+Zał.1_WPF_bazowy!#REF! ->  | AD108: =+Zał.1_WPF_bazowy!#REF! ->  | AE108: =+Zał.1_WPF_bazowy!#REF! ->  | AF108: =+Zał.1_WPF_bazowy!#REF! ->  | AG108: =+Zał.1_WPF_bazowy!#REF! ->  | AH108: =+Zał.1_WPF_bazowy!#REF! ->  | AI108: =+Zał.1_WPF_bazowy!#REF! ->  | AJ108: =+Zał.1_WPF_bazowy!#REF! ->  | AK108: =+Zał.1_WPF_bazowy!#REF! ->  | AL108: =+Zał.1_WPF_bazowy!#REF! -> 
A109: x | B109: 14.3.3 | D109: wypłaty z tytułu wymagalnych poręczeń i gwarancji | E109: =Zał.1_WPF_bazowy!E102 -> 0 | F109: =Zał.1_WPF_bazowy!F102 -> 0 | G109: =Zał.1_WPF_bazowy!G102 -> 0 | H109: =Zał.1_WPF_bazowy!H102 -> 0 | I109: =+Zał.1_WPF_bazowy!I102 -> 0 | J109: =+Zał.1_WPF_bazowy!J102 -> 0 | K109: =+Zał.1_WPF_bazowy!K102 -> 0 | L109: =+Zał.1_WPF_bazowy!L102 -> 0 | M109: =+Zał.1_WPF_bazowy!M102 -> 0 | N109: =+Zał.1_WPF_bazowy!N102 -> 0 | O109: =+Zał.1_WPF_bazowy!O102 -> 0 | P109: =+Zał.1_WPF_bazowy!P102 -> 0 | Q109: =+Zał.1_WPF_bazowy!Q102 -> 0 | R109: =+Zał.1_WPF_bazowy!#REF! ->  | S109: =+Zał.1_WPF_bazowy!#REF! ->  | T109: =+Zał.1_WPF_bazowy!#REF! ->  | U109: =+Zał.1_WPF_bazowy!#REF! ->  | V109: =+Zał.1_WPF_bazowy!#REF! ->  | W109: =+Zał.1_WPF_bazowy!#REF! ->  | X109: =+Zał.1_WPF_bazowy!#REF! ->  | Y109: =+Zał.1_WPF_bazowy!#REF! ->  | Z109: =+Zał.1_WPF_bazowy!#REF! ->  | AA109: =+Zał.1_WPF_bazowy!#REF! ->  | AB109: =+Zał.1_WPF_bazowy!#REF! ->  | AC109: =+Zał.1_WPF_bazowy!#REF! ->  | AD109: =+Zał.1_WPF_bazowy!#REF! ->  | AE109: =+Zał.1_WPF_bazowy!#REF! ->  | AF109: =+Zał.1_WPF_bazowy!#REF! ->  | AG109: =+Zał.1_WPF_bazowy!#REF! ->  | AH109: =+Zał.1_WPF_bazowy!#REF! ->  | AI109: =+Zał.1_WPF_bazowy!#REF! ->  | AJ109: =+Zał.1_WPF_bazowy!#REF! ->  | AK109: =+Zał.1_WPF_bazowy!#REF! ->  | AL109: =+Zał.1_WPF_bazowy!#REF! -> 
A110: x | B110: 14.4 | D110: Wynik operacji niekasowych wpływających na kwotę długu ( m.in. umorzenia, różnice kursowe) | E110: =Zał.1_WPF_bazowy!E103 -> 0 | F110: =Zał.1_WPF_bazowy!F103 -> 0 | G110: =Zał.1_WPF_bazowy!G103 -> 0 | H110: =Zał.1_WPF_bazowy!H103 -> 0 | I110: =+Zał.1_WPF_bazowy!I103 -> 0 | J110: =+Zał.1_WPF_bazowy!J103 -> 0 | K110: =+Zał.1_WPF_bazowy!K103 -> 0 | L110: =+Zał.1_WPF_bazowy!L103 -> 0 | M110: =+Zał.1_WPF_bazowy!M103 -> 0 | N110: =+Zał.1_WPF_bazowy!N103 -> 0 | O110: =+Zał.1_WPF_bazowy!O103 -> 0 | P110: =+Zał.1_WPF_bazowy!P103 -> 0 | Q110: =+Zał.1_WPF_bazowy!Q103 -> 0 | R110: =+Zał.1_WPF_bazowy!#REF! ->  | S110: =+Zał.1_WPF_bazowy!#REF! ->  | T110: =+Zał.1_WPF_bazowy!#REF! ->  | U110: =+Zał.1_WPF_bazowy!#REF! ->  | V110: =+Zał.1_WPF_bazowy!#REF! ->  | W110: =+Zał.1_WPF_bazowy!#REF! ->  | X110: =+Zał.1_WPF_bazowy!#REF! ->  | Y110: =+Zał.1_WPF_bazowy!#REF! ->  | Z110: =+Zał.1_WPF_bazowy!#REF! ->  | AA110: =+Zał.1_WPF_bazowy!#REF! ->  | AB110: =+Zał.1_WPF_bazowy!#REF! ->  | AC110: =+Zał.1_WPF_bazowy!#REF! ->  | AD110: =+Zał.1_WPF_bazowy!#REF! ->  | AE110: =+Zał.1_WPF_bazowy!#REF! ->  | AF110: =+Zał.1_WPF_bazowy!#REF! ->  | AG110: =+Zał.1_WPF_bazowy!#REF! ->  | AH110: =+Zał.1_WPF_bazowy!#REF! ->  | AI110: =+Zał.1_WPF_bazowy!#REF! ->  | AJ110: =+Zał.1_WPF_bazowy!#REF! ->  | AK110: =+Zał.1_WPF_bazowy!#REF! ->  | AL110: =+Zał.1_WPF_bazowy!#REF! -> 
B111: 15 | D111: Dane dotyczące emitowanych obligacji przychodowych | E111: x | F111: x | G111: x | H111: x | I111: x | J111: x | K111: x | L111: x | M111: x | N111: x | O111: x | P111: x | Q111: x | R111: x | S111: x | T111: x | U111: x | V111: x | W111: x | X111: x | Y111: x | Z111: x | AA111: x | AB111: x | AC111: x | AD111: x | AE111: x | AF111: x | AG111: x | AH111: x | AI111: x | AJ111: x | AK111: x | AL111: x
B112: 15.1 | D112: Środki z przedsięwzięcia gromadzone na rachunku bankowym, w tym: | E112: =Zał.1_WPF_bazowy!E105 -> 0 | F112: =Zał.1_WPF_bazowy!F105 -> 0 | G112: =Zał.1_WPF_bazowy!G105 -> 0 | H112: =Zał.1_WPF_bazowy!H105 -> 0 | I112: =+Zał.1_WPF_bazowy!I105 -> 0 | J112: =+Zał.1_WPF_bazowy!J105 -> 0 | K112: =+Zał.1_WPF_bazowy!K105 -> 0 | L112: =+Zał.1_WPF_bazowy!L105 -> 0 | M112: =+Zał.1_WPF_bazowy!M105 -> 0 | N112: =+Zał.1_WPF_bazowy!N105 -> 0 | O112: =+Zał.1_WPF_bazowy!O105 -> 0 | P112: =+Zał.1_WPF_bazowy!P105 -> 0 | Q112: =+Zał.1_WPF_bazowy!Q105 -> 0 | R112: =+Zał.1_WPF_bazowy!#REF! ->  | S112: =+Zał.1_WPF_bazowy!#REF! ->  | T112: =+Zał.1_WPF_bazowy!#REF! ->  | U112: =+Zał.1_WPF_bazowy!#REF! ->  | V112: =+Zał.1_WPF_bazowy!#REF! ->  | W112: =+Zał.1_WPF_bazowy!#REF! ->  | X112: =+Zał.1_WPF_bazowy!#REF! ->  | Y112: =+Zał.1_WPF_bazowy!#REF! ->  | Z112: =+Zał.1_WPF_bazowy!#REF! ->  | AA112: =+Zał.1_WPF_bazowy!#REF! ->  | AB112: =+Zał.1_WPF_bazowy!#REF! ->  | AC112: =+Zał.1_WPF_bazowy!#REF! ->  | AD112: =+Zał.1_WPF_bazowy!#REF! ->  | AE112: =+Zał.1_WPF_bazowy!#REF! ->  | AF112: =+Zał.1_WPF_bazowy!#REF! ->  | AG112: =+Zał.1_WPF_bazowy!#REF! ->  | AH112: =+Zał.1_WPF_bazowy!#REF! ->  | AI112: =+Zał.1_WPF_bazowy!#REF! ->  | AJ112: =+Zał.1_WPF_bazowy!#REF! ->  | AK112: =+Zał.1_WPF_bazowy!#REF! ->  | AL112: =+Zał.1_WPF_bazowy!#REF! -> 
A113: x | B113: 15.1.1 | D113: środki na zaspokojenie roszczeń obligatariuszy | E113: =Zał.1_WPF_bazowy!E106 -> 0 | F113: =Zał.1_WPF_bazowy!F106 -> 0 | G113: =Zał.1_WPF_bazowy!G106 -> 0 | H113: =Zał.1_WPF_bazowy!H106 -> 0 | I113: =+Zał.1_WPF_bazowy!I106 -> 0 | J113: =+Zał.1_WPF_bazowy!J106 -> 0 | K113: =+Zał.1_WPF_bazowy!K106 -> 0 | L113: =+Zał.1_WPF_bazowy!L106 -> 0 | M113: =+Zał.1_WPF_bazowy!M106 -> 0 | N113: =+Zał.1_WPF_bazowy!N106 -> 0 | O113: =+Zał.1_WPF_bazowy!O106 -> 0 | P113: =+Zał.1_WPF_bazowy!P106 -> 0 | Q113: =+Zał.1_WPF_bazowy!Q106 -> 0 | R113: =+Zał.1_WPF_bazowy!#REF! ->  | S113: =+Zał.1_WPF_bazowy!#REF! ->  | T113: =+Zał.1_WPF_bazowy!#REF! ->  | U113: =+Zał.1_WPF_bazowy!#REF! ->  | V113: =+Zał.1_WPF_bazowy!#REF! ->  | W113: =+Zał.1_WPF_bazowy!#REF! ->  | X113: =+Zał.1_WPF_bazowy!#REF! ->  | Y113: =+Zał.1_WPF_bazowy!#REF! ->  | Z113: =+Zał.1_WPF_bazowy!#REF! ->  | AA113: =+Zał.1_WPF_bazowy!#REF! ->  | AB113: =+Zał.1_WPF_bazowy!#REF! ->  | AC113: =+Zał.1_WPF_bazowy!#REF! ->  | AD113: =+Zał.1_WPF_bazowy!#REF! ->  | AE113: =+Zał.1_WPF_bazowy!#REF! ->  | AF113: =+Zał.1_WPF_bazowy!#REF! ->  | AG113: =+Zał.1_WPF_bazowy!#REF! ->  | AH113: =+Zał.1_WPF_bazowy!#REF! ->  | AI113: =+Zał.1_WPF_bazowy!#REF! ->  | AJ113: =+Zał.1_WPF_bazowy!#REF! ->  | AK113: =+Zał.1_WPF_bazowy!#REF! ->  | AL113: =+Zał.1_WPF_bazowy!#REF! -> 
A114: x | B114: 15.2 | D114: Wydatki bieżące z tytułu świadczenia emitenta należnego obligatariuszom, nieuwzględniane w limicie spłaty zobowiązań, o którym mowa w art. 243 ustawy | E114: =Zał.1_WPF_bazowy!E107 -> 0 | F114: =Zał.1_WPF_bazowy!F107 -> 0 | G114: =Zał.1_WPF_bazowy!G107 -> 0 | H114: =Zał.1_WPF_bazowy!H107 -> 0 | I114: =+Zał.1_WPF_bazowy!I107 -> 0 | J114: =+Zał.1_WPF_bazowy!J107 -> 0 | K114: =+Zał.1_WPF_bazowy!K107 -> 0 | L114: =+Zał.1_WPF_bazowy!L107 -> 0 | M114: =+Zał.1_WPF_bazowy!M107 -> 0 | N114: =+Zał.1_WPF_bazowy!N107 -> 0 | O114: =+Zał.1_WPF_bazowy!O107 -> 0 | P114: =+Zał.1_WPF_bazowy!P107 -> 0 | Q114: =+Zał.1_WPF_bazowy!Q107 -> 0 | R114: =+Zał.1_WPF_bazowy!#REF! ->  | S114: =+Zał.1_WPF_bazowy!#REF! ->  | T114: =+Zał.1_WPF_bazowy!#REF! ->  | U114: =+Zał.1_WPF_bazowy!#REF! ->  | V114: =+Zał.1_WPF_bazowy!#REF! ->  | W114: =+Zał.1_WPF_bazowy!#REF! ->  | X114: =+Zał.1_WPF_bazowy!#REF! ->  | Y114: =+Zał.1_WPF_bazowy!#REF! ->  | Z114: =+Zał.1_WPF_bazowy!#REF! ->  | AA114: =+Zał.1_WPF_bazowy!#REF! ->  | AB114: =+Zał.1_WPF_bazowy!#REF! ->  | AC114: =+Zał.1_WPF_bazowy!#REF! ->  | AD114: =+Zał.1_WPF_bazowy!#REF! ->  | AE114: =+Zał.1_WPF_bazowy!#REF! ->  | AF114: =+Zał.1_WPF_bazowy!#REF! ->  | AG114: =+Zał.1_WPF_bazowy!#REF! ->  | AH114: =+Zał.1_WPF_bazowy!#REF! ->  | AI114: =+Zał.1_WPF_bazowy!#REF! ->  | AJ114: =+Zał.1_WPF_bazowy!#REF! ->  | AK114: =+Zał.1_WPF_bazowy!#REF! ->  | AL114: =+Zał.1_WPF_bazowy!#REF! -> 
B115: 16 | D115: Stopień niezachowania relacji określonych w art. 242-244 ustawy (dotyczy tylko JST objętych procedurą z art. 240a lub 240b) | E115: x | F115: x | G115: x | H115: x | I115: x | J115: x | K115: x | L115: x | M115: x | N115: x | O115: x | P115: x | Q115: x | R115: x | S115: x | T115: x | U115: x | V115: x | W115: x | X115: x | Y115: x | Z115: x | AA115: x | AB115: x | AC115: x | AD115: x | AE115: x | AF115: x | AG115: x | AH115: x | AI115: x | AJ115: x | AK115: x | AL115: x
B116: 16.1 | D116: Stopień niezachowania relacji zrównoważenia wydatków bieżących, o której mowa w poz. 8.2 | E116: x | F116: x | G116: x | H116: x | I116: =+IF(I52<0,I52,"") ->  | J116: =+IF(J52<0,J52,"") -> 
A117: x | B117: 16.2 | D117: Stopień niezachowania wskaźnika spłaty zobowiązań, o którym mowa w poz. 9.7 | E117: x | F117: x | G117: x | H117: x | I117: =IF(I57<=I59,"",I59- I57) ->  | J117: =IF(J57<=J59,"",J59- J57) -> 
A118: x | B118: 16.3 | D118: Stopień niezachowania wskaźnika spłaty zobowiązań, o którym mowa w poz. 9.7.1 | E118: x | F118: x | G118: x | H118: x | I118: =IF(I57<=I60,"",I60-I57) ->  | J118: =IF(J57<=J60,"",J60-J57) -> 
B124: Weryfikacja wybranych danych wykazanych w tabeli Wieloletnia Prognoza Finansowa
D125: Reguła formalna
D126: Reguła rachunkowa
D127: Reguła logiczna
D128: Reguły kontrolne
C129: [1.1] + [4.1] + [4.2] >= ([2.1] - [2.1.2]) | D129: Spełnienie wskaźnika z art. 242 | E129: x | F129: x | G129: x | H129: x | I129: =IF(ROUND(I11+I33+I35,2)>=ROUND(I22-I25,2),"TAK","NIE") -> TAK | J129: TAK | K129: TAK | L129: TAK | M129: TAK | N129: TAK | O129: TAK | P129: TAK | Q129: TAK
C130: [13.3] = 0 (dla lat 2014 i wyższych) | D130: Umorzenie zobowiązań, o którym mowa w art. 190 ustawy o działalności leczniczej nie wykracza poza ustawowy okres | E130: x | F130: x | G130: x | H130: x | I130: x | J130: x | K130: =IF(K98=0,"TAK","BŁĄD") -> TAK | L130: TAK | M130: TAK | N130: TAK | O130: TAK | P130: TAK | Q130: TAK
C131: [1] + [4] - [2] - [5] = 0 | D131: Kontrola poprawności zbilansowania budżetu | E131: x | F131: x | G131: x | H131: x | I131: =IF(ROUND(I10+I32-I21-I41,2)=0,"OK",ROUND(I10+I32-I21-I41,2)) -> OK | J131: OK | K131: OK | L131: OK | M131: OK | N131: OK | O131: OK | P131: OK | Q131: OK
C132: [6]"n" = [6]"n-1" + [4.3]"n" - [5.1]"n" + ([14.2]"n"-[14.2]"n-1") + [14.4] | D132: Kontrola poprawności wyliczenia kwoty długu | E132: x | F132: x | G132: x | H132: x | I132: =+IF(ROUND(H48+I37-I42+(I105-H105)+I110-I48,2)=0,"OK",ROUND(H48+I37-I42+(I105-H105)+I110-I48,2)) -> OK | J132: OK | K132: OK | L132: OK | M132: OK | N132: OK | O132: OK | P132: OK | Q132: OK
C133: [14.2] "n" = ( [14.2] "n-1" - [14.3] "n" ) | D133: Analiza zmiany kwoty długu spłacanego wydatkami budżetu - wartości różne od zera wymagają objaśnienia - wartości większe od zera wskazują na powstanie w roku prognozy nowego długu tego typu - wartości mniejsze od zera co do zasady nie powinny wystąpić | E133: x | F133: x | G133: x | H133: x | I133: =+IF(H105=0,"N/D",IF(ROUND(I105+I106-H105,2)=0,"OK",ROUND(I105+I106-H105,2))) -> N/D | J133: N/D | K133: N/D | L133: N/D | M133: N/D | N133: N/D | O133: N/D | P133: N/D | Q133: N/D | R133: N/D
C134: [13.1] "n" - ( [13.3] + [13.4] + [13.5] + [13.6] ) "n" = [13.1] "n-1" | D134: Porównanie na koniec roku prognozy stanu zobowiązań przejętych przez jst po likwidowanych i przekształcanych SP ZOZ z wydatkami i umorzeniami poniesionymi na ten cel ze stanem zobowiązań z okresu N-1 | E134: x | F134: x | G134: x | H134: x | I134: =+IF(H96=0,"N/D",IF(ROUND(I96+(I98+I99+I100+I101)-H96,2)=0,"OK",ROUND(I96+(I98+I99+I100+I101)-H96,2))) -> N/D | J134: N/D | K134: N/D | L134: N/D | M134: N/D | N134: N/D | O134: N/D | P134: N/D | Q134: N/D | R134: N/D
C135: jeśli [3] < 0 to sprawdź czy [4.1.1] + [4.2.1] + [4.3.1] + [4.4.1] + [3] = 0 | D135: Kontrola poprawności wykazania źródeł pokrycia deficytu | E135: x | F135: x | G135: x | H135: x | I135: =IF(I31<0,IF(ROUND(I34+I36+I38+I40+I31,2)=0,"OK",ROUND(I34+I36+I38+I40+I31,2)),"N/D") -> N/D | J135: N/D | K135: N/D | L135: N/D | M135: N/D | N135: N/D | O135: N/D | P135: N/D | Q135: N/D
C136: jeśli [3] >= 0 to sprawdź czy [4.1.1]=0 i [4.2.1]=0 i [4.3.1]=0 i [4.4.1] = 0 | D136: Kontrola poprawności niewykazania źródeł pokrycia deficytu przy nadwyżce budżetu | E136: x | F136: x | G136: x | H136: x | I136: =IF(I31>=0,IF(ROUND(I34+I36+I38+I40,2)=0,"OK",ROUND(I34+I36+I38+I40,2)),"N/D") -> OK | J136: OK | K136: OK | L136: OK | M136: OK | N136: OK | O136: OK | P136: OK | Q136: OK
C137: [1.1.3] >= [1.1.3.1] | D137: Reguła logiczna: [1.1.3] >= [1.1.3.1] | E137: x | F137: x | G137: x | H137: x | I137: =IF(I14>=I15,"OK","BŁĄD") -> OK | J137: OK | K137: OK | L137: OK | M137: OK | N137: OK | O137: OK | P137: OK | Q137: OK
C138: [1.1.5] >= [13.2] | D138: Reguła logiczna: [1.1.5] >= [13.2] | E138: x | F138: x | G138: x | H138: x | I138: =IF(I17>=I97,"OK","BŁĄD") -> OK | J138: OK | K138: OK | L138: OK | M138: OK | N138: OK | O138: OK | P138: OK | Q138: OK
C139: [1.1] >= ([1.1.1] + [1.1.2] + [1.1.3] + [1.1.4] + [1.1.5]) | D139: Reguła logiczna: [1.1] >= ([1.1.1] + [1.1.2] + [1.1.3] + [1.1.4] + [1.1.5]) | E139: x | F139: x | G139: x | H139: x | I139: =IF(I11>=I12+I13+I14+I16+I17,"OK","BŁĄD") -> OK | J139: OK | K139: OK | L139: OK | M139: OK | N139: OK | O139: OK | P139: OK | Q139: OK
C140: [1.1] >= [12.1] | D140: Reguła logiczna: [1.1] >= [12.1] | E140: x | F140: x | G140: x | H140: x | I140: =IF(I11>=I75,"OK","BŁĄD") -> OK | J140: OK | K140: OK | L140: OK | M140: OK | N140: OK | O140: OK | P140: OK | Q140: OK
C141: [1.2] >= [1.2.1] | D141: Reguła logiczna: [1.2] >= [1.2.1] | E141: x | F141: x | G141: x | H141: x | I141: =IF(I18>=I19,"OK","BŁĄD") -> OK | J141: OK | K141: OK | L141: OK | M141: OK | N141: OK | O141: OK | P141: OK | Q141: OK
C142: [1.2] >= [1.2.2] | D142: Reguła logiczna: [1.2] >= [1.2.2] | E142: x | F142: x | G142: x | H142: x | I142: =IF(I18>=I20,"OK","BŁĄD") -> OK | J142: OK | K142: OK | L142: OK | M142: OK | N142: OK | O142: OK | P142: OK | Q142: OK
C143: [1.2] >= [12.2] | D143: Reguła logiczna: [1.2] >= [12.2] | E143: x | F143: x | G143: x | H143: x | I143: =IF(I18>=I78,"OK","BŁĄD") -> OK | J143: OK | K143: OK | L143: OK | M143: OK | N143: OK | O143: OK | P143: OK | Q143: OK
D144: Reguła logiczna: jeżeli [3] >0 to [10] = [3] | E144: x | F144: x | G144: x | H144: x | I144: =+IF(I31>0,IF(I31=I63,"OK","Błąd"),"N/D") -> N/D | J144: OK | K144: OK | L144: OK | M144: OK | N144: OK | O144: OK | P144: OK | Q144: OK
C145: [10] >= [10.1] | D145: Reguła logiczna: [10] >= [10.1] | E145: x | F145: x | G145: x | H145: x | I145: =IF(I63>=I64,"OK","BŁĄD") -> OK | J145: OK | K145: OK | L145: OK | M145: OK | N145: OK | O145: OK | P145: OK | Q145: OK
C146: jeśli [10] > 0 to powinno być [10.1] > 0 | D146: Reguła logiczna: jeżeli [10] > 0 to [10.1] >0 | E146: x | F146: x | G146: x | H146: x | I146: =IF(I63>0,IF(I64>0,"OK","BŁĄD"),"N/D") -> N/D | J146: OK | K146: OK | L146: OK | M146: OK | N146: OK | O146: OK | P146: OK | Q146: OK
C147: [12.1] >= [12.1.1] | D147: Reguła logiczna: [12.1] >= [12.1.1] | E147: x | F147: x | G147: x | H147: x | I147: =IF(I75>=I76,"OK","BŁĄD") -> OK | J147: OK | K147: OK | L147: OK | M147: OK | N147: OK | O147: OK | P147: OK | Q147: OK
C148: [12.1.1] >= [12.1.1.1] | D148: Reguła logiczna: [12.1.1] >= [12.1.1.1] | E148: x | F148: x | G148: x | H148: x | I148: =IF(I76>=I77,"OK","BŁĄD") -> OK | J148: OK | K148: OK | L148: OK | M148: OK | N148: OK | O148: OK | P148: OK | Q148: OK
C149: [12.2] >= [12.2.1] | D149: Reguła logiczna: [12.2] >= [12.2.1] | E149: x | F149: x | G149: x | H149: x | I149: =IF(I78>=I79,"OK","BŁĄD") -> OK | J149: OK | K149: OK | L149: OK | M149: OK | N149: OK | O149: OK | P149: OK | Q149: OK
C150: [12.2.1] >= [12.2.1.1] | D150: Reguła logiczna: [12.2.1] >= [12.2.1.1] | E150: x | F150: x | G150: x | H150: x | I150: =IF(I79>=I80,"OK","BŁĄD") -> OK | J150: OK | K150: OK | L150: OK | M150: OK | N150: OK | O150: OK | P150: OK | Q150: OK
C151: [12.3] >= [12.3.1] | D151: Reguła logiczna: [12.3] >= [12.3.1] | E151: x | F151: x | G151: x | H151: x | I151: =IF(I81>=I82,"OK","BŁĄD") -> OK | J151: OK | K151: OK | L151: OK | M151: OK | N151: OK | O151: OK | P151: OK | Q151: OK
C152: [12.3] >= [12.3.2] | D152: Reguła logiczna: [12.3] >= [12.3.2] | E152: x | F152: x | G152: x | H152: x | I152: =IF(I81>=I83,"OK","BŁĄD") -> OK | J152: OK | K152: OK | L152: OK | M152: OK | N152: OK | O152: OK | P152: OK | Q152: OK
C153: [12.4] >= [12.4.1] | D153: Reguła logiczna: [12.4] >= [12.4.1] | E153: x | F153: x | G153: x | H153: x | I153: =IF(I84>=I85,"OK","BŁĄD") -> OK | J153: OK | K153: OK | L153: OK | M153: OK | N153: OK | O153: OK | P153: OK | Q153: OK
C154: [12.4] >= [12.4.2] | D154: Reguła logiczna: [12.4] >= [12.4.2] | E154: x | F154: x | G154: x | H154: x | I154: =IF(I84>=I86,"OK","BŁĄD") -> OK | J154: OK | K154: OK | L154: OK | M154: OK | N154: OK | O154: OK | P154: OK | Q154: OK
C155: [12.4] >= [12.4.1] | D155: Reguła logiczna: [12.5] >= [12.5.1] | E155: x | F155: x | G155: x | H155: x | I155: =IF(I87>=I88,"OK","BŁĄD") -> OK | J155: =IF(J87>=J88,"OK","BŁĄD") -> OK | K155: OK | L155: OK | M155: OK | N155: OK | O155: OK | P155: OK | Q155: OK
C156: [12.4] >= [12.4.1] | D156: Reguła logiczna: [12.6] >= [12.6.1] | E156: x | F156: x | G156: x | H156: x | I156: =IF(I89>=I90,"OK","BŁĄD") -> OK | J156: =IF(J89>=J90,"OK","BŁĄD") -> OK | K156: OK | L156: OK | M156: OK | N156: OK | O156: OK | P156: OK | Q156: OK
C157: [12.4] >= [12.4.1] | D157: Reguła logiczna: [12.7] >= [12.7.1] | E157: x | F157: x | G157: x | H157: x | I157: =IF(I91>=I92,"OK","BŁĄD") -> OK | J157: =IF(J91>=J92,"OK","BŁĄD") -> OK | K157: OK | L157: OK | M157: OK | N157: OK | O157: OK | P157: OK | Q157: OK
C158: [12.4] >= [12.4.1] | D158: Reguła logiczna: [12.8] >= [12.8.1] | E158: x | F158: x | G158: x | H158: x | I158: =IF(I93>=I94,"OK","BŁĄD") -> OK | J158: =IF(J93>=J94,"OK","BŁĄD") -> OK | K158: OK | L158: OK | M158: OK | N158: OK | O158: OK | P158: OK | Q158: OK
C159: [13.1] >= [13.3] | D159: Reguła logiczna: [13.1] >= [13.3] | E159: x | F159: x | G159: x | H159: x | I159: =IF(I96>=I98,"OK","BŁĄD") -> OK | J159: OK | K159: OK | L159: OK | M159: OK | N159: OK | O159: OK | P159: OK | Q159: OK
C160: [13.4] >= [2.1.2] | D160: Reguła logiczna: [13.4] >= [2.1.2] | E160: x | F160: x | G160: x | H160: x | I160: =IF(I99>=I25,"OK","BŁĄD") -> OK | J160: OK | K160: OK | L160: OK | M160: OK | N160: OK | O160: OK | P160: OK | Q160: OK
C161: [14.3] >= [14.3.1] + [14.3.2] + [14.3.3] | D161: Reguła logiczna: [14.3] >= [14.3.1] + [14.3.2] + [14.3.3] | E161: x | F161: x | G161: x | H161: x | I161: =IF(I106>=(I107+I108+I109),"OK","BŁĄD") -> OK | J161: OK | K161: OK | L161: OK | M161: OK | N161: OK | O161: OK | P161: OK | Q161: OK
C162: [13.1] >= [13.3] | D162: Reguła logiczna: [15.1] >= [15.1.1] | E162: x | F162: x | G162: x | H162: x | I162: =IF(I112>=I113,"OK","BŁĄD") -> OK | J162: =IF(J112>=J113,"OK","BŁĄD") -> OK | K162: OK | L162: OK | M162: OK | N162: OK | O162: OK | P162: OK | Q162: OK
C163: [2.1.1] >= [2.1.1.1] | D163: Reguła logiczna: [2.1.1] >= [2.1.1.1] | E163: x | F163: x | G163: x | H163: x | I163: =IF(I23>=I24,"OK","BŁĄD") -> OK | J163: OK | K163: OK | L163: OK | M163: OK | N163: OK | O163: OK | P163: OK | Q163: OK
C164: [2.1.1] >= [14.3.3] | D164: Reguła logiczna: [2.1.1] >= [14.3.3] | E164: x | F164: x | G164: x | H164: x | I164: =IF(I23>=I109,"OK","BŁĄD") -> OK | J164: OK | K164: OK | L164: OK | M164: OK | N164: OK | O164: OK | P164: OK | Q164: OK
C165: [2.1.3] >= [2.1.3.1] | D165: Reguła logiczna: [2.1.3] >= [2.1.3.1] | E165: x | F165: x | G165: x | H165: x | I165: =IF(I26>=I27,"OK","BŁĄD") -> OK | J165: OK | K165: OK | L165: OK | M165: OK | N165: OK | O165: OK | P165: OK | Q165: OK
C166: [2.1.3] >= [2.1.3.1] | D166: Reguła logiczna: [2.1.3.1] >= [2.1.3.1.1]+[2.1.3.1.2] | E166: x | F166: x | G166: x | H166: x | I166: =IF(I27>=(I28+I29),"OK","BŁĄD") -> OK | J166: =IF(J27>=J28,"OK","BŁĄD") -> OK | K166: OK | L166: OK | M166: OK | N166: OK | O166: OK | P166: OK | Q166: OK
C167: [2.1] >= ([2.1.1] + [2.1.2] + [2.1.3]) | D167: Reguła logiczna: [2.1] >= ([2.1.1] + [2.1.2] + [2.1.3]) | E167: x | F167: x | G167: x | H167: x | I167: =IF(I22>=(I23+I25+I26),"OK","BŁĄD") -> OK | J167: OK | K167: OK | L167: OK | M167: OK | N167: OK | O167: OK | P167: OK | Q167: OK
C168: [2.1] >= [11.1] | D168: Reguła logiczna: [2.1] >= [11.1] | E168: x | F168: x | G168: x | H168: x | I168: =IF(I22>=I66,"OK","BŁĄD") -> OK | J168: OK | K168: OK | L168: OK | M168: OK | N168: OK | O168: OK | P168: OK | Q168: OK
C169: [2.1] >= [11.3.1] | D169: Reguła logiczna: [2.1] >= [11.3.1] | E169: x | F169: x | G169: x | H169: x | I169: =IF(I22>=I69,"OK","BŁĄD") -> OK | J169: OK | K169: OK | L169: OK | M169: OK | N169: OK | O169: OK | P169: OK | Q169: OK
C170: [2.1] >= [12.3] | D170: Reguła logiczna: [2.1] >= [12.3] | E170: x | F170: x | G170: x | H170: x | I170: =IF(I22>=I81,"OK","BŁĄD") -> OK | J170: OK | K170: OK | L170: OK | M170: OK | N170: OK | O170: OK | P170: OK | Q170: OK
C171: [2.1] >= [13.7] | D171: Reguła logiczna: [2.1] >= [13.7] | E171: x | F171: x | G171: x | H171: x | I171: =IF(I22>=I102,"OK","BŁĄD") -> OK | J171: OK | K171: OK | L171: OK | M171: OK | N171: OK | O171: OK | P171: OK | Q171: OK
C172: [2.2] >= [11.3.2] | D172: Reguła logiczna: [2.2] >= [11.3.2] | E172: x | F172: x | G172: x | H172: x | I172: =IF(I30>=I70,"OK","BŁĄD") -> OK | J172: OK | K172: OK | L172: OK | M172: OK | N172: OK | O172: OK | P172: OK | Q172: OK
C173: [2.2] >= [11.4] + [11.5] | D173: Reguła logiczna: [2.2] >= [11.4] + [11.5] | E173: x | F173: x | G173: x | H173: x | I173: =IF(I30>=I71+I72,"OK","BŁĄD") -> OK | J173: OK | K173: OK | L173: OK | M173: OK | N173: OK | O173: OK | P173: OK | Q173: OK
C174: [2.2] >= [11.6] | D174: Reguła logiczna: [2.2] >= [11.6] | E174: x | F174: x | G174: x | H174: x | I174: =IF(I30>=I73,"OK","BŁĄD") -> OK | J174: OK | K174: OK | L174: OK | M174: OK | N174: OK | O174: OK | P174: OK | Q174: OK
C175: [2.2] >= [12.4] | D175: Reguła logiczna: [2.2] >= [12.4] | E175: x | F175: x | G175: x | H175: x | I175: =IF(I30>=I84,"OK","BŁĄD") -> OK | J175: OK | K175: OK | L175: OK | M175: OK | N175: OK | O175: OK | P175: OK | Q175: OK
C176: [4.1] >= [4.1.1] | D176: Reguła logiczna: [4.1] >= [4.1.1] | E176: x | F176: x | G176: x | H176: x | I176: =IF(I33>=I34,"OK","BŁĄD") -> OK | J176: OK | K176: OK | L176: OK | M176: OK | N176: OK | O176: OK | P176: OK | Q176: OK
C177: [4.2] >= [4.2.1] | D177: Reguła logiczna: [4.2] >= [4.2.1] | E177: x | F177: x | G177: x | H177: x | I177: =IF(I35>=I36,"OK","BŁĄD") -> OK | J177: OK | K177: OK | L177: OK | M177: OK | N177: OK | O177: OK | P177: OK | Q177: OK
C178: [4.3] >= [4.3.1] | D178: Reguła logiczna: [4.3] >= [4.3.1] | E178: x | F178: x | G178: x | H178: x | I178: =IF(I37>=I38,"OK","BŁĄD") -> OK | J178: OK | K178: OK | L178: OK | M178: OK | N178: OK | O178: OK | P178: OK | Q178: OK
C179: [4.4] >= [4.4.1] | D179: Reguła logiczna: [4.4] >= [4.4.1] | E179: x | F179: x | G179: x | H179: x | I179: =IF(I39>=I40,"OK","BŁĄD") -> OK | J179: OK | K179: OK | L179: OK | M179: OK | N179: OK | O179: OK | P179: OK | Q179: OK
C180: [5.1] >= [5.1.1] | D180: Reguła logiczna: [5.1] >= [5.1.1] | E180: x | F180: x | G180: x | H180: x | I180: =IF(I42>=I43,"OK","BŁĄD") -> OK | J180: OK | K180: OK | L180: OK | M180: OK | N180: OK | O180: OK | P180: OK | Q180: OK
C181: [5.1] >= [10.1] | D181: Reguła logiczna: [5.1] >= [10.1] | E181: x | F181: x | G181: x | H181: x | I181: =IF(I42>=I64,"OK","BŁĄD") -> OK | J181: OK | K181: OK | L181: OK | M181: OK | N181: OK | O181: OK | P181: OK | Q181: OK
C182: [5.1] >= [14.1] | D182: Reguła logiczna: [5.1] >= [14.1] | E182: x | F182: x | G182: x | H182: x | I182: =IF(I42>=I104,"OK","BŁĄD") -> OK | J182: OK | K182: OK | L182: OK | M182: OK | N182: OK | O182: OK | P182: OK | Q182: OK
C183: [6] >=[7] | D183: Reguła logiczna: [6] >=[7] | E183: x | F183: x | G183: x | H183: x | I183: =IF(I48>=I49,"OK","BŁĄD") -> OK | J183: OK | K183: OK | L183: OK | M183: OK | N183: OK | O183: OK | P183: OK | Q183: OK
C184: [6] >= [14.2] | D184: Reguła logiczna: [6] >= [14.2] | E184: x | F184: x | G184: x | H184: x | I184: =IF(I48>=I105,"OK","BŁĄD") -> OK | J184: OK | K184: OK | L184: OK | M184: OK | N184: OK | O184: OK | P184: OK | Q184: OK
C185: 7>=13.1 | D185: Reguła logiczna: 7>=13.1 | E185: x | F185: x | G185: x | H185: x | I185: =IF(I49>=I96,"OK","BŁĄD") -> OK | J185: OK | K185: OK | L185: OK | M185: OK | N185: OK | O185: OK | P185: OK | Q185: OK
C186: jeżeli [2.1.3] <> 0 to [2.1.3.1] <> 0 | D186: Reguła logiczna: jeżeli [2.1.3] <> 0 to [2.1.3.1] <> 0 | E186: x | F186: x | G186: x | H186: x | I186: =IF(I26<>0,IF(I27<>0,"OK","BŁĄD"),"N/D") -> OK | J186: OK | K186: OK | L186: OK | M186: OK | N186: OK | O186: OK | P186: OK | Q186: OK
D188: Kontrola poprawności podstawowych kwot
D189: Dochody ogółem = bieżące + majątkowe | E189: =E11+E18 -> 36897999.47 | F189: 38775186.08 | G189: 36552514.89 | H189: 36552514.89 | I189: 32174588 | J189: 33100000 | K189: 34100000 | L189: 35100000 | M189: 36100000 | N189: 37100000 | O189: 38100000 | P189: 39100000 | Q189: 40100000
D190: Wydatki ogółem = bieżące + majątkowe | E190: =E22+E30 -> 37003938.3 | F190: 37365699.93 | G190: 42482913.27 | H190: 42482913.27 | I190: 32174588 | J190: 31621796 | K190: 32421796 | L190: 33239996 | M190: 33889996 | N190: 34889996 | O190: 35849996 | P190: 36682000 | Q190: 36681616
D191: Wynik budżetu = dochody ogółem - wydatki ogółem | E191: =E10-E21 -> -105938.83 | F191: 1409486.15 | G191: -5930398.38 | H191: -5930398.38 | I191: 0 | J191: 1478204 | K191: 1678204 | L191: 1860004 | M191: 2210004 | N191: 2210004 | O191: 2250004 | P191: 2418000 | Q191: 3418384
D192: Wyliczenie kwoty długu | E192: x | F192: =E48+F37-F42+(F105-E105)+F110 -> 15984842.88 | G192: x | H192: =F48+H37-H42+(H105-F105)+H110 -> 17522808 | I192: =H48+I37-I42+(I105-H105)+I110 -> 17522808 | J192: 16044604 | K192: 14366400 | L192: 12506396 | M192: 10296392 | N192: 8086388 | O192: 5836384 | P192: 3418384 | Q192: 0
D193: Wyliczenie zobowiązań wynikających z przejęcia przez jst zobowiązań po likwidowanych i przekształcanych SZOZ | E193: x | F193: =E96-(F98+F99+F100+F101) -> 0 | G193: x | H193: =F96-(H98+H99+H100+H101) -> 0 | I193: =H96-(I98+I99+I100+I101) -> 0 | J193: 0 | K193: 0 | L193: 0 | M193: 0 | N193: 0 | O193: 0 | P193: 0 | Q193: 0
D195: Analiza ryzyka niespełnienia wskaźnika z art. 243
D196: Analiza składowych wzoru wskaźnika z art. 243
D197: 0 | E197: =+"różnica mniejsza od "&TEXT(D197*100,"0,0")&"%" -> różnica mniejsza od 0,0%
D198: 0.005 | E198: =+"różnica mniejsza od "&TEXT(D198*100,"0,0")&"%" -> różnica mniejsza od 0,5%
D199: 0.01 | E199: =+"różnica mniejsza od "&TEXT(D199*100,"0,0")&"%" -> różnica mniejsza od 1,0%
D200: max. limit spłat (planistyczny) - (R+O)/D (bez wyłączeń) | E200: x | F200: x | G200: x | H200: x | I200: =+IF(I10=0,"",I59-I54) -> 0.006966666667 | J200: 0.003966666667 | K200: 0.003633333333 | L200: 0.01793333333 | M200: 0.02446666667 | N200: 0.04 | O200: 0.0539 | P200: 0.0635 | Q200: 0.05216666667
D201: max. limit spłat (planistyczny) - (R+O)/D (z wyłączeniami) | E201: x | F201: x | G201: x | H201: x | I201: =+IF(I10=0,"",I59-I55) -> 0.006966666667 | J201: 0.003966666667 | K201: 0.003633333333 | L201: 0.01793333333 | M201: 0.02446666667 | N201: 0.04 | O201: 0.0539 | P201: 0.0635 | Q201: 0.05216666667
D202: max. limit spłat (wg wykonania) - (R+O)/D (bez wyłączeń) | E202: x | F202: x | G202: x | H202: x | I202: =+IF(I10=0,"",I60-I54) -> 0.007 | J202: 0.004 | K202: 0.0036 | L202: 0.0179 | M202: 0.0245 | N202: 0.04 | O202: 0.0539 | P202: 0.0635 | Q202: 0.0522
D203: max. limit spłat (wg wykonania) - (R+O)/D (z wyłączeniami) | E203: x | F203: x | G203: x | H203: x | I203: =+IF(I10=0,"",I60-I55) -> 0.007 | J203: 0.004 | K203: 0.0036 | L203: 0.0179 | M203: 0.0245 | N203: 0.04 | O203: 0.0539 | P203: 0.0635 | Q203: 0.0522

Sheet definicja (hidden)
C2: dane z eWPF
C3: dane z Rb
B9: Lp. | C9: Wyszczególnienie | D9: 0 | E9: 0 | F9: =+E9+1 -> 1 | G9: =+F9+1 -> 2 | H9: 3 | I9: 4 | J9: 5 | K9: 6 | L9: 7 | M9: 8 | N9: 9 | O9: 10 | P9: =+O9+1 -> 11 | Q9: 12 | R9: 13 | S9: 14 | T9: 15 | U9: 16 | V9: 17 | W9: 18 | X9: 19 | Y9: 20 | Z9: 21 | AA9: 22 | AB9: 23 | AC9: 24 | AD9: 25 | AE9: 26 | AF9: 27 | AG9: =+AF9+1 -> 28 | AH9: =+AG9+1 -> 29
A10: 10 | B10: 1 | C10: Dochody ogółem | D10: =+"rokwzgl="&D$9&" i lp="&$A10 -> rokwzgl=0 i lp=10 | E10: rokwzgl=0 i lp=10 | F10: rokwzgl=1 i lp=10 | G10: rokwzgl=2 i lp=10 | H10: rokwzgl=3 i lp=10 | I10: rokwzgl=4 i lp=10 | J10: rokwzgl=5 i lp=10 | K10: rokwzgl=6 i lp=10 | L10: rokwzgl=7 i lp=10 | M10: rokwzgl=8 i lp=10 | N10: =+"rokwzgl="&N$9&" i lp="&$A10 -> rokwzgl=9 i lp=10 | O10: rokwzgl=10 i lp=10 | P10: rokwzgl=11 i lp=10 | Q10: rokwzgl=12 i lp=10 | R10: rokwzgl=13 i lp=10 | S10: rokwzgl=14 i lp=10 | T10: rokwzgl=15 i lp=10 | U10: rokwzgl=16 i lp=10 | V10: rokwzgl=17 i lp=10 | W10: rokwzgl=18 i lp=10 | X10: =+"rokwzgl="&X$9&" i lp="&$A10 -> rokwzgl=19 i lp=10 | Y10: rokwzgl=20 i lp=10 | Z10: rokwzgl=21 i lp=10 | AA10: rokwzgl=22 i lp=10 | AB10: rokwzgl=23 i lp=10 | AC10: rokwzgl=24 i lp=10 | AD10: rokwzgl=25 i lp=10 | AE10: rokwzgl=26 i lp=10 | AF10: rokwzgl=27 i lp=10 | AG10: rokwzgl=28 i lp=10 | AH10: rokwzgl=29 i lp=10
A11: 20 | B11: 1.1 | C11: Dochody bieżące | D11: rokwzgl=0 i lp=20 | E11: rokwzgl=0 i lp=20 | F11: rokwzgl=1 i lp=20 | G11: rokwzgl=2 i lp=20 | H11: rokwzgl=3 i lp=20 | I11: rokwzgl=4 i lp=20 | J11: rokwzgl=5 i lp=20 | K11: rokwzgl=6 i lp=20 | L11: rokwzgl=7 i lp=20 | M11: rokwzgl=8 i lp=20 | N11: rokwzgl=9 i lp=20 | O11: rokwzgl=10 i lp=20 | P11: rokwzgl=11 i lp=20 | Q11: rokwzgl=12 i lp=20 | R11: rokwzgl=13 i lp=20 | S11: rokwzgl=14 i lp=20 | T11: rokwzgl=15 i lp=20 | U11: rokwzgl=16 i lp=20 | V11: rokwzgl=17 i lp=20 | W11: rokwzgl=18 i lp=20 | X11: rokwzgl=19 i lp=20 | Y11: rokwzgl=20 i lp=20 | Z11: rokwzgl=21 i lp=20 | AA11: rokwzgl=22 i lp=20 | AB11: rokwzgl=23 i lp=20 | AC11: rokwzgl=24 i lp=20 | AD11: rokwzgl=25 i lp=20 | AE11: rokwzgl=26 i lp=20 | AF11: rokwzgl=27 i lp=20 | AG11: rokwzgl=28 i lp=20 | AH11: rokwzgl=29 i lp=20
A12: 30 | B12: 1.1.1 | C12: dochody z tytułu udziału we wpływach z podatku dochodowego od osób fizycznych | D12: rokwzgl=0 i lp=30 | E12: rokwzgl=0 i lp=30 | F12: rokwzgl=1 i lp=30 | G12: rokwzgl=2 i lp=30 | H12: rokwzgl=3 i lp=30 | I12: rokwzgl=4 i lp=30 | J12: rokwzgl=5 i lp=30 | K12: rokwzgl=6 i lp=30 | L12: rokwzgl=7 i lp=30 | M12: rokwzgl=8 i lp=30 | N12: rokwzgl=9 i lp=30 | O12: rokwzgl=10 i lp=30 | P12: rokwzgl=11 i lp=30 | Q12: rokwzgl=12 i lp=30 | R12: rokwzgl=13 i lp=30 | S12: rokwzgl=14 i lp=30 | T12: rokwzgl=15 i lp=30 | U12: rokwzgl=16 i lp=30 | V12: rokwzgl=17 i lp=30 | W12: rokwzgl=18 i lp=30 | X12: rokwzgl=19 i lp=30 | Y12: rokwzgl=20 i lp=30 | Z12: rokwzgl=21 i lp=30 | AA12: rokwzgl=22 i lp=30 | AB12: rokwzgl=23 i lp=30 | AC12: rokwzgl=24 i lp=30 | AD12: rokwzgl=25 i lp=30 | AE12: rokwzgl=26 i lp=30 | AF12: rokwzgl=27 i lp=30 | AG12: rokwzgl=28 i lp=30 | AH12: rokwzgl=29 i lp=30
A13: 40 | B13: 1.1.2 | C13: dochody z tytułu udziału we wpływach z podatku dochodowego od osób prawnych | D13: rokwzgl=0 i lp=40 | E13: rokwzgl=0 i lp=40 | F13: rokwzgl=1 i lp=40 | G13: rokwzgl=2 i lp=40 | H13: rokwzgl=3 i lp=40 | I13: rokwzgl=4 i lp=40 | J13: rokwzgl=5 i lp=40 | K13: rokwzgl=6 i lp=40 | L13: rokwzgl=7 i lp=40 | M13: rokwzgl=8 i lp=40 | N13: rokwzgl=9 i lp=40 | O13: rokwzgl=10 i lp=40 | P13: rokwzgl=11 i lp=40 | Q13: rokwzgl=12 i lp=40 | R13: rokwzgl=13 i lp=40 | S13: rokwzgl=14 i lp=40 | T13: rokwzgl=15 i lp=40 | U13: rokwzgl=16 i lp=40 | V13: rokwzgl=17 i lp=40 | W13: rokwzgl=18 i lp=40 | X13: rokwzgl=19 i lp=40 | Y13: rokwzgl=20 i lp=40 | Z13: rokwzgl=21 i lp=40 | AA13: rokwzgl=22 i lp=40 | AB13: rokwzgl=23 i lp=40 | AC13: rokwzgl=24 i lp=40 | AD13: rokwzgl=25 i lp=40 | AE13: rokwzgl=26 i lp=40 | AF13: rokwzgl=27 i lp=40 | AG13: rokwzgl=28 i lp=40 | AH13: rokwzgl=29 i lp=40
A14: 50 | B14: 1.1.3 | C14: podatki i opłaty | D14: rokwzgl=0 i lp=50 | E14: rokwzgl=0 i lp=50 | F14: rokwzgl=1 i lp=50 | G14: rokwzgl=2 i lp=50 | H14: rokwzgl=3 i lp=50 | I14: rokwzgl=4 i lp=50 | J14: rokwzgl=5 i lp=50 | K14: rokwzgl=6 i lp=50 | L14: rokwzgl=7 i lp=50 | M14: rokwzgl=8 i lp=50 | N14: rokwzgl=9 i lp=50 | O14: rokwzgl=10 i lp=50 | P14: rokwzgl=11 i lp=50 | Q14: rokwzgl=12 i lp=50 | R14: rokwzgl=13 i lp=50 | S14: rokwzgl=14 i lp=50 | T14: rokwzgl=15 i lp=50 | U14: rokwzgl=16 i lp=50 | V14: rokwzgl=17 i lp=50 | W14: rokwzgl=18 i lp=50 | X14: rokwzgl=19 i lp=50 | Y14: rokwzgl=20 i lp=50 | Z14: rokwzgl=21 i lp=50 | AA14: rokwzgl=22 i lp=50 | AB14: rokwzgl=23 i lp=50 | AC14: rokwzgl=24 i lp=50 | AD14: rokwzgl=25 i lp=50 | AE14: rokwzgl=26 i lp=50 | AF14: rokwzgl=27 i lp=50 | AG14: rokwzgl=28 i lp=50 | AH14: rokwzgl=29 i lp=50
A15: 60 | B15: 1.1.3.1 | C15: z podatku od nieruchomości | D15: rokwzgl=0 i lp=60 | E15: rokwzgl=0 i lp=60 | F15: rokwzgl=1 i lp=60 | G15: rokwzgl=2 i lp=60 | H15: rokwzgl=3 i lp=60 | I15: rokwzgl=4 i lp=60 | J15: rokwzgl=5 i lp=60 | K15: rokwzgl=6 i lp=60 | L15: rokwzgl=7 i lp=60 | M15: rokwzgl=8 i lp=60 | N15: rokwzgl=9 i lp=60 | O15: rokwzgl=10 i lp=60 | P15: rokwzgl=11 i lp=60 | Q15: rokwzgl=12 i lp=60 | R15: rokwzgl=13 i lp=60 | S15: rokwzgl=14 i lp=60 | T15: rokwzgl=15 i lp=60 | U15: rokwzgl=16 i lp=60 | V15: rokwzgl=17 i lp=60 | W15: rokwzgl=18 i lp=60 | X15: rokwzgl=19 i lp=60 | Y15: rokwzgl=20 i lp=60 | Z15: rokwzgl=21 i lp=60 | AA15: rokwzgl=22 i lp=60 | AB15: rokwzgl=23 i lp=60 | AC15: rokwzgl=24 i lp=60 | AD15: rokwzgl=25 i lp=60 | AE15: rokwzgl=26 i lp=60 | AF15: rokwzgl=27 i lp=60 | AG15: rokwzgl=28 i lp=60 | AH15: rokwzgl=29 i lp=60
A16: 70 | B16: 1.1.4 | C16: z subwencji ogólnej | D16: rokwzgl=0 i lp=70 | E16: rokwzgl=0 i lp=70 | F16: rokwzgl=1 i lp=70 | G16: rokwzgl=2 i lp=70 | H16: rokwzgl=3 i lp=70 | I16: rokwzgl=4 i lp=70 | J16: rokwzgl=5 i lp=70 | K16: rokwzgl=6 i lp=70 | L16: rokwzgl=7 i lp=70 | M16: rokwzgl=8 i lp=70 | N16: rokwzgl=9 i lp=70 | O16: rokwzgl=10 i lp=70 | P16: rokwzgl=11 i lp=70 | Q16: rokwzgl=12 i lp=70 | R16: rokwzgl=13 i lp=70 | S16: rokwzgl=14 i lp=70 | T16: rokwzgl=15 i lp=70 | U16: rokwzgl=16 i lp=70 | V16: rokwzgl=17 i lp=70 | W16: rokwzgl=18 i lp=70 | X16: rokwzgl=19 i lp=70 | Y16: rokwzgl=20 i lp=70 | Z16: rokwzgl=21 i lp=70 | AA16: rokwzgl=22 i lp=70 | AB16: rokwzgl=23 i lp=70 | AC16: rokwzgl=24 i lp=70 | AD16: rokwzgl=25 i lp=70 | AE16: rokwzgl=26 i lp=70 | AF16: rokwzgl=27 i lp=70 | AG16: rokwzgl=28 i lp=70 | AH16: rokwzgl=29 i lp=70
A17: 80 | B17: 1.1.5 | C17: z tytułu dotacji i środków przeznaczonych na cele bieżące | D17: rokwzgl=0 i lp=80 | E17: rokwzgl=0 i lp=80 | F17: rokwzgl=1 i lp=80 | G17: rokwzgl=2 i lp=80 | H17: rokwzgl=3 i lp=80 | I17: rokwzgl=4 i lp=80 | J17: rokwzgl=5 i lp=80 | K17: rokwzgl=6 i lp=80 | L17: rokwzgl=7 i lp=80 | M17: rokwzgl=8 i lp=80 | N17: rokwzgl=9 i lp=80 | O17: rokwzgl=10 i lp=80 | P17: rokwzgl=11 i lp=80 | Q17: rokwzgl=12 i lp=80 | R17: rokwzgl=13 i lp=80 | S17: rokwzgl=14 i lp=80 | T17: rokwzgl=15 i lp=80 | U17: rokwzgl=16 i lp=80 | V17: rokwzgl=17 i lp=80 | W17: rokwzgl=18 i lp=80 | X17: rokwzgl=19 i lp=80 | Y17: rokwzgl=20 i lp=80 | Z17: rokwzgl=21 i lp=80 | AA17: rokwzgl=22 i lp=80 | AB17: rokwzgl=23 i lp=80 | AC17: rokwzgl=24 i lp=80 | AD17: rokwzgl=25 i lp=80 | AE17: rokwzgl=26 i lp=80 | AF17: rokwzgl=27 i lp=80 | AG17: rokwzgl=28 i lp=80 | AH17: rokwzgl=29 i lp=80
A18: 90 | B18: 1.2 | C18: Dochody majątkowe, w tym | D18: rokwzgl=0 i lp=90 | E18: rokwzgl=0 i lp=90 | F18: rokwzgl=1 i lp=90 | G18: rokwzgl=2 i lp=90 | H18: rokwzgl=3 i lp=90 | I18: rokwzgl=4 i lp=90 | J18: rokwzgl=5 i lp=90 | K18: rokwzgl=6 i lp=90 | L18: rokwzgl=7 i lp=90 | M18: rokwzgl=8 i lp=90 | N18: rokwzgl=9 i lp=90 | O18: rokwzgl=10 i lp=90 | P18: rokwzgl=11 i lp=90 | Q18: rokwzgl=12 i lp=90 | R18: rokwzgl=13 i lp=90 | S18: rokwzgl=14 i lp=90 | T18: rokwzgl=15 i lp=90 | U18: rokwzgl=16 i lp=90 | V18: rokwzgl=17 i lp=90 | W18: rokwzgl=18 i lp=90 | X18: rokwzgl=19 i lp=90 | Y18: rokwzgl=20 i lp=90 | Z18: rokwzgl=21 i lp=90 | AA18: rokwzgl=22 i lp=90 | AB18: rokwzgl=23 i lp=90 | AC18: rokwzgl=24 i lp=90 | AD18: rokwzgl=25 i lp=90 | AE18: rokwzgl=26 i lp=90 | AF18: rokwzgl=27 i lp=90 | AG18: rokwzgl=28 i lp=90 | AH18: rokwzgl=29 i lp=90
A19: 100 | B19: 1.2.1 | C19: ze sprzedaży majątku | D19: rokwzgl=0 i lp=100 | E19: rokwzgl=0 i lp=100 | F19: rokwzgl=1 i lp=100 | G19: rokwzgl=2 i lp=100 | H19: rokwzgl=3 i lp=100 | I19: rokwzgl=4 i lp=100 | J19: rokwzgl=5 i lp=100 | K19: rokwzgl=6 i lp=100 | L19: rokwzgl=7 i lp=100 | M19: rokwzgl=8 i lp=100 | N19: rokwzgl=9 i lp=100 | O19: rokwzgl=10 i lp=100 | P19: rokwzgl=11 i lp=100 | Q19: rokwzgl=12 i lp=100 | R19: rokwzgl=13 i lp=100 | S19: rokwzgl=14 i lp=100 | T19: rokwzgl=15 i lp=100 | U19: rokwzgl=16 i lp=100 | V19: rokwzgl=17 i lp=100 | W19: rokwzgl=18 i lp=100 | X19: rokwzgl=19 i lp=100 | Y19: rokwzgl=20 i lp=100 | Z19: rokwzgl=21 i lp=100 | AA19: rokwzgl=22 i lp=100 | AB19: rokwzgl=23 i lp=100 | AC19: rokwzgl=24 i lp=100 | AD19: rokwzgl=25 i lp=100 | AE19: rokwzgl=26 i lp=100 | AF19: rokwzgl=27 i lp=100 | AG19: rokwzgl=28 i lp=100 | AH19: rokwzgl=29 i lp=100
A20: 110 | B20: 1.2.2 | C20: z tytułu dotacji oraz środków przeznaczonych na inwestycje | D20: =+"rokwzgl="&D$9&" i lp="&$A20 -> rokwzgl=0 i lp=110 | E20: rokwzgl=0 i lp=110 | F20: rokwzgl=1 i lp=110 | G20: rokwzgl=2 i lp=110 | H20: rokwzgl=3 i lp=110 | I20: rokwzgl=4 i lp=110 | J20: rokwzgl=5 i lp=110 | K20: rokwzgl=6 i lp=110 | L20: rokwzgl=7 i lp=110 | M20: rokwzgl=8 i lp=110 | N20: =+"rokwzgl="&N$9&" i lp="&$A20 -> rokwzgl=9 i lp=110 | O20: rokwzgl=10 i lp=110 | P20: rokwzgl=11 i lp=110 | Q20: rokwzgl=12 i lp=110 | R20: rokwzgl=13 i lp=110 | S20: rokwzgl=14 i lp=110 | T20: rokwzgl=15 i lp=110 | U20: rokwzgl=16 i lp=110 | V20: rokwzgl=17 i lp=110 | W20: rokwzgl=18 i lp=110 | X20: =+"rokwzgl="&X$9&" i lp="&$A20 -> rokwzgl=19 i lp=110 | Y20: rokwzgl=20 i lp=110 | Z20: rokwzgl=21 i lp=110 | AA20: rokwzgl=22 i lp=110 | AB20: rokwzgl=23 i lp=110 | AC20: rokwzgl=24 i lp=110 | AD20: rokwzgl=25 i lp=110 | AE20: rokwzgl=26 i lp=110 | AF20: rokwzgl=27 i lp=110 | AG20: rokwzgl=28 i lp=110 | AH20: rokwzgl=29 i lp=110
A21: 120 | B21: 2 | C21: Wydatki ogółem | D21: rokwzgl=0 i lp=120 | E21: rokwzgl=0 i lp=120 | F21: rokwzgl=1 i lp=120 | G21: rokwzgl=2 i lp=120 | H21: rokwzgl=3 i lp=120 | I21: rokwzgl=4 i lp=120 | J21: rokwzgl=5 i lp=120 | K21: rokwzgl=6 i lp=120 | L21: rokwzgl=7 i lp=120 | M21: rokwzgl=8 i lp=120 | N21: rokwzgl=9 i lp=120 | O21: rokwzgl=10 i lp=120 | P21: rokwzgl=11 i lp=120 | Q21: rokwzgl=12 i lp=120 | R21: rokwzgl=13 i lp=120 | S21: rokwzgl=14 i lp=120 | T21: rokwzgl=15 i lp=120 | U21: rokwzgl=16 i lp=120 | V21: rokwzgl=17 i lp=120 | W21: rokwzgl=18 i lp=120 | X21: rokwzgl=19 i lp=120 | Y21: rokwzgl=20 i lp=120 | Z21: rokwzgl=21 i lp=120 | AA21: rokwzgl=22 i lp=120 | AB21: rokwzgl=23 i lp=120 | AC21: rokwzgl=24 i lp=120 | AD21: rokwzgl=25 i lp=120 | AE21: rokwzgl=26 i lp=120 | AF21: rokwzgl=27 i lp=120 | AG21: rokwzgl=28 i lp=120 | AH21: rokwzgl=29 i lp=120
A22: 130 | B22: 2.1 | C22: Wydatki bieżące, w tym: | D22: rokwzgl=0 i lp=130 | E22: rokwzgl=0 i lp=130 | F22: rokwzgl=1 i lp=130 | G22: rokwzgl=2 i lp=130 | H22: rokwzgl=3 i lp=130 | I22: rokwzgl=4 i lp=130 | J22: rokwzgl=5 i lp=130 | K22: rokwzgl=6 i lp=130 | L22: rokwzgl=7 i lp=130 | M22: rokwzgl=8 i lp=130 | N22: rokwzgl=9 i lp=130 | O22: rokwzgl=10 i lp=130 | P22: rokwzgl=11 i lp=130 | Q22: rokwzgl=12 i lp=130 | R22: rokwzgl=13 i lp=130 | S22: rokwzgl=14 i lp=130 | T22: rokwzgl=15 i lp=130 | U22: rokwzgl=16 i lp=130 | V22: rokwzgl=17 i lp=130 | W22: rokwzgl=18 i lp=130 | X22: rokwzgl=19 i lp=130 | Y22: rokwzgl=20 i lp=130 | Z22: rokwzgl=21 i lp=130 | AA22: rokwzgl=22 i lp=130 | AB22: rokwzgl=23 i lp=130 | AC22: rokwzgl=24 i lp=130 | AD22: rokwzgl=25 i lp=130 | AE22: rokwzgl=26 i lp=130 | AF22: rokwzgl=27 i lp=130 | AG22: rokwzgl=28 i lp=130 | AH22: rokwzgl=29 i lp=130
A23: 140 | B23: 2.1.1 | C23: z tytułu poręczeń i gwarancji | D23: rokwzgl=0 i lp=140 | E23: rokwzgl=0 i lp=140 | F23: rokwzgl=1 i lp=140 | G23: rokwzgl=2 i lp=140 | H23: rokwzgl=3 i lp=140 | I23: rokwzgl=4 i lp=140 | J23: rokwzgl=5 i lp=140 | K23: rokwzgl=6 i lp=140 | L23: rokwzgl=7 i lp=140 | M23: rokwzgl=8 i lp=140 | N23: rokwzgl=9 i lp=140 | O23: rokwzgl=10 i lp=140 | P23: rokwzgl=11 i lp=140 | Q23: rokwzgl=12 i lp=140 | R23: rokwzgl=13 i lp=140 | S23: rokwzgl=14 i lp=140 | T23: rokwzgl=15 i lp=140 | U23: rokwzgl=16 i lp=140 | V23: rokwzgl=17 i lp=140 | W23: rokwzgl=18 i lp=140 | X23: rokwzgl=19 i lp=140 | Y23: rokwzgl=20 i lp=140 | Z23: rokwzgl=21 i lp=140 | AA23: rokwzgl=22 i lp=140 | AB23: rokwzgl=23 i lp=140 | AC23: rokwzgl=24 i lp=140 | AD23: rokwzgl=25 i lp=140 | AE23: rokwzgl=26 i lp=140 | AF23: rokwzgl=27 i lp=140 | AG23: rokwzgl=28 i lp=140 | AH23: rokwzgl=29 i lp=140
A24: 150 | B24: 2.1.1.1 | C24: w tym: gwarancje i poręczenia podlegające wyłączeniu z limitu spłaty zobowiązań, o którym mowa w art. 243 ustawy | D24: rokwzgl=0 i lp=150 | E24: rokwzgl=0 i lp=150 | F24: rokwzgl=1 i lp=150 | G24: rokwzgl=2 i lp=150 | H24: rokwzgl=3 i lp=150 | I24: rokwzgl=4 i lp=150 | J24: rokwzgl=5 i lp=150 | K24: rokwzgl=6 i lp=150 | L24: rokwzgl=7 i lp=150 | M24: rokwzgl=8 i lp=150 | N24: rokwzgl=9 i lp=150 | O24: rokwzgl=10 i lp=150 | P24: rokwzgl=11 i lp=150 | Q24: rokwzgl=12 i lp=150 | R24: rokwzgl=13 i lp=150 | S24: rokwzgl=14 i lp=150 | T24: rokwzgl=15 i lp=150 | U24: rokwzgl=16 i lp=150 | V24: rokwzgl=17 i lp=150 | W24: rokwzgl=18 i lp=150 | X24: rokwzgl=19 i lp=150 | Y24: rokwzgl=20 i lp=150 | Z24: rokwzgl=21 i lp=150 | AA24: rokwzgl=22 i lp=150 | AB24: rokwzgl=23 i lp=150 | AC24: rokwzgl=24 i lp=150 | AD24: rokwzgl=25 i lp=150 | AE24: rokwzgl=26 i lp=150 | AF24: rokwzgl=27 i lp=150 | AG24: rokwzgl=28 i lp=150 | AH24: rokwzgl=29 i lp=150
A25: 160 | B25: 2.1.2 | C25: na spłatę przejętych zobowiązań samodzielnego publicznego zakładu opieki zdrowotnej przekształconego na zasadach określonych w przepisach o działalności leczniczej, w wysokości w jakiej nie podlegają sfinansowaniu dotacją z budżetu państwa | D25: rokwzgl=0 i lp=160 | E25: rokwzgl=0 i lp=160 | F25: rokwzgl=1 i lp=160 | G25: rokwzgl=2 i lp=160 | H25: rokwzgl=3 i lp=160 | I25: rokwzgl=4 i lp=160 | J25: rokwzgl=5 i lp=160 | K25: rokwzgl=6 i lp=160 | L25: rokwzgl=7 i lp=160 | M25: rokwzgl=8 i lp=160 | N25: rokwzgl=9 i lp=160 | O25: rokwzgl=10 i lp=160 | P25: rokwzgl=11 i lp=160 | Q25: rokwzgl=12 i lp=160 | R25: rokwzgl=13 i lp=160 | S25: rokwzgl=14 i lp=160 | T25: rokwzgl=15 i lp=160 | U25: rokwzgl=16 i lp=160 | V25: rokwzgl=17 i lp=160 | W25: rokwzgl=18 i lp=160 | X25: rokwzgl=19 i lp=160 | Y25: rokwzgl=20 i lp=160 | Z25: rokwzgl=21 i lp=160 | AA25: rokwzgl=22 i lp=160 | AB25: rokwzgl=23 i lp=160 | AC25: rokwzgl=24 i lp=160 | AD25: rokwzgl=25 i lp=160 | AE25: rokwzgl=26 i lp=160 | AF25: rokwzgl=27 i lp=160 | AG25: rokwzgl=28 i lp=160 | AH25: rokwzgl=29 i lp=160
A26: 170 | B26: 2.1.3 | C26: wydatki na obsługę długu, w tym: | D26: rokwzgl=0 i lp=170 | E26: rokwzgl=0 i lp=170 | F26: rokwzgl=1 i lp=170 | G26: rokwzgl=2 i lp=170 | H26: rokwzgl=3 i lp=170 | I26: rokwzgl=4 i lp=170 | J26: rokwzgl=5 i lp=170 | K26: rokwzgl=6 i lp=170 | L26: rokwzgl=7 i lp=170 | M26: rokwzgl=8 i lp=170 | N26: rokwzgl=9 i lp=170 | O26: rokwzgl=10 i lp=170 | P26: rokwzgl=11 i lp=170 | Q26: rokwzgl=12 i lp=170 | R26: rokwzgl=13 i lp=170 | S26: rokwzgl=14 i lp=170 | T26: rokwzgl=15 i lp=170 | U26: rokwzgl=16 i lp=170 | V26: rokwzgl=17 i lp=170 | W26: rokwzgl=18 i lp=170 | X26: rokwzgl=19 i lp=170 | Y26: rokwzgl=20 i lp=170 | Z26: rokwzgl=21 i lp=170 | AA26: rokwzgl=22 i lp=170 | AB26: rokwzgl=23 i lp=170 | AC26: rokwzgl=24 i lp=170 | AD26: rokwzgl=25 i lp=170 | AE26: rokwzgl=26 i lp=170 | AF26: rokwzgl=27 i lp=170 | AG26: rokwzgl=28 i lp=170 | AH26: rokwzgl=29 i lp=170
A27: 180 | B27: 2.1.3.1 | C27: odsetki i dyskonto określone w art. 243 ust. 1 ustawy, w tym: | D27: rokwzgl=0 i lp=180 | E27: rokwzgl=0 i lp=180 | F27: rokwzgl=1 i lp=180 | G27: rokwzgl=2 i lp=180 | H27: rokwzgl=3 i lp=180 | I27: rokwzgl=4 i lp=180 | J27: rokwzgl=5 i lp=180 | K27: rokwzgl=6 i lp=180 | L27: rokwzgl=7 i lp=180 | M27: rokwzgl=8 i lp=180 | N27: rokwzgl=9 i lp=180 | O27: rokwzgl=10 i lp=180 | P27: rokwzgl=11 i lp=180 | Q27: rokwzgl=12 i lp=180 | R27: rokwzgl=13 i lp=180 | S27: rokwzgl=14 i lp=180 | T27: rokwzgl=15 i lp=180 | U27: rokwzgl=16 i lp=180 | V27: rokwzgl=17 i lp=180 | W27: rokwzgl=18 i lp=180 | X27: rokwzgl=19 i lp=180 | Y27: rokwzgl=20 i lp=180 | Z27: rokwzgl=21 i lp=180 | AA27: rokwzgl=22 i lp=180 | AB27: rokwzgl=23 i lp=180 | AC27: rokwzgl=24 i lp=180 | AD27: rokwzgl=25 i lp=180 | AE27: rokwzgl=26 i lp=180 | AF27: rokwzgl=27 i lp=180 | AG27: rokwzgl=28 i lp=180 | AH27: rokwzgl=29 i lp=180
A28: 182 | B28: 2.1.3.1.1 | C28: odsetki i dyskonto podlegające wyłączeniu z limitu spłaty zobowiązań, o którym mowa w art. 243 ustawy, w terminie nie dłuższym niż 90 dni po zakończeniu programu, projektu lub zadania i otrzymaniu refundacji z tych środków (bez odsetek i dyskonta od zobowiązań na wkład krajowy) | D28: rokwzgl=0 i lp=182 | E28: rokwzgl=0 i lp=182 | F28: rokwzgl=1 i lp=182 | G28: rokwzgl=2 i lp=182 | H28: rokwzgl=3 i lp=182 | I28: rokwzgl=4 i lp=182 | J28: rokwzgl=5 i lp=182 | K28: rokwzgl=6 i lp=182 | L28: rokwzgl=7 i lp=182 | M28: rokwzgl=8 i lp=182 | N28: rokwzgl=9 i lp=182 | O28: rokwzgl=10 i lp=182 | P28: rokwzgl=11 i lp=182 | Q28: rokwzgl=12 i lp=182 | R28: rokwzgl=13 i lp=182 | S28: rokwzgl=14 i lp=182 | T28: rokwzgl=15 i lp=182 | U28: rokwzgl=16 i lp=182 | V28: rokwzgl=17 i lp=182 | W28: rokwzgl=18 i lp=182 | X28: rokwzgl=19 i lp=182 | Y28: rokwzgl=20 i lp=182 | Z28: rokwzgl=21 i lp=182 | AA28: rokwzgl=22 i lp=182 | AB28: rokwzgl=23 i lp=182 | AC28: rokwzgl=24 i lp=182 | AD28: rokwzgl=25 i lp=182 | AE28: rokwzgl=26 i lp=182 | AF28: rokwzgl=27 i lp=182 | AG28: rokwzgl=28 i lp=182 | AH28: rokwzgl=29 i lp=182
A29: 184 | B29: 2.1.3.1.2 | C29: odsetki i dyskonto podlegające wyłączeniu z limitu spłaty zobowiązań, o którym mowa w art. 243 ustawy, z tytułu zobowiązań zaciągniętych na wkład krajowy | D29: rokwzgl=0 i lp=184 | E29: rokwzgl=0 i lp=184 | F29: rokwzgl=1 i lp=184 | G29: rokwzgl=2 i lp=184 | H29: rokwzgl=3 i lp=184 | I29: rokwzgl=4 i lp=184 | J29: rokwzgl=5 i lp=184 | K29: rokwzgl=6 i lp=184 | L29: rokwzgl=7 i lp=184 | M29: rokwzgl=8 i lp=184 | N29: rokwzgl=9 i lp=184 | O29: rokwzgl=10 i lp=184 | P29: rokwzgl=11 i lp=184 | Q29: rokwzgl=12 i lp=184 | R29: rokwzgl=13 i lp=184 | S29: rokwzgl=14 i lp=184 | T29: rokwzgl=15 i lp=184 | U29: rokwzgl=16 i lp=184 | V29: rokwzgl=17 i lp=184 | W29: rokwzgl=18 i lp=184 | X29: rokwzgl=19 i lp=184 | Y29: rokwzgl=20 i lp=184 | Z29: rokwzgl=21 i lp=184 | AA29: rokwzgl=22 i lp=184 | AB29: rokwzgl=23 i lp=184 | AC29: rokwzgl=24 i lp=184 | AD29: rokwzgl=25 i lp=184 | AE29: rokwzgl=26 i lp=184 | AF29: rokwzgl=27 i lp=184 | AG29: rokwzgl=28 i lp=184 | AH29: rokwzgl=29 i lp=184
A30: 190 | B30: 2.2 | C30: Wydatki majątkowe | D30: rokwzgl=0 i lp=190 | E30: rokwzgl=0 i lp=190 | F30: rokwzgl=1 i lp=190 | G30: rokwzgl=2 i lp=190 | H30: rokwzgl=3 i lp=190 | I30: rokwzgl=4 i lp=190 | J30: rokwzgl=5 i lp=190 | K30: rokwzgl=6 i lp=190 | L30: rokwzgl=7 i lp=190 | M30: rokwzgl=8 i lp=190 | N30: rokwzgl=9 i lp=190 | O30: rokwzgl=10 i lp=190 | P30: rokwzgl=11 i lp=190 | Q30: rokwzgl=12 i lp=190 | R30: rokwzgl=13 i lp=190 | S30: rokwzgl=14 i lp=190 | T30: rokwzgl=15 i lp=190 | U30: rokwzgl=16 i lp=190 | V30: rokwzgl=17 i lp=190 | W30: rokwzgl=18 i lp=190 | X30: rokwzgl=19 i lp=190 | Y30: rokwzgl=20 i lp=190 | Z30: rokwzgl=21 i lp=190 | AA30: rokwzgl=22 i lp=190 | AB30: rokwzgl=23 i lp=190 | AC30: rokwzgl=24 i lp=190 | AD30: rokwzgl=25 i lp=190 | AE30: rokwzgl=26 i lp=190 | AF30: rokwzgl=27 i lp=190 | AG30: rokwzgl=28 i lp=190 | AH30: rokwzgl=29 i lp=190
A31: 200 | B31: 3 | C31: Wynik budżetu | D31: rokwzgl=0 i lp=200 | E31: rokwzgl=0 i lp=200 | F31: rokwzgl=1 i lp=200 | G31: rokwzgl=2 i lp=200 | H31: rokwzgl=3 i lp=200 | I31: rokwzgl=4 i lp=200 | J31: rokwzgl=5 i lp=200 | K31: rokwzgl=6 i lp=200 | L31: rokwzgl=7 i lp=200 | M31: rokwzgl=8 i lp=200 | N31: rokwzgl=9 i lp=200 | O31: rokwzgl=10 i lp=200 | P31: rokwzgl=11 i lp=200 | Q31: rokwzgl=12 i lp=200 | R31: rokwzgl=13 i lp=200 | S31: rokwzgl=14 i lp=200 | T31: rokwzgl=15 i lp=200 | U31: rokwzgl=16 i lp=200 | V31: rokwzgl=17 i lp=200 | W31: rokwzgl=18 i lp=200 | X31: rokwzgl=19 i lp=200 | Y31: rokwzgl=20 i lp=200 | Z31: rokwzgl=21 i lp=200 | AA31: rokwzgl=22 i lp=200 | AB31: rokwzgl=23 i lp=200 | AC31: rokwzgl=24 i lp=200 | AD31: rokwzgl=25 i lp=200 | AE31: rokwzgl=26 i lp=200 | AF31: rokwzgl=27 i lp=200 | AG31: rokwzgl=28 i lp=200 | AH31: rokwzgl=29 i lp=200
A32: 210 | B32: 4 | C32: Przychody budżetu | D32: rokwzgl=0 i lp=210 | E32: rokwzgl=0 i lp=210 | F32: rokwzgl=1 i lp=210 | G32: rokwzgl=2 i lp=210 | H32: rokwzgl=3 i lp=210 | I32: rokwzgl=4 i lp=210 | J32: rokwzgl=5 i lp=210 | K32: rokwzgl=6 i lp=210 | L32: rokwzgl=7 i lp=210 | M32: rokwzgl=8 i lp=210 | N32: rokwzgl=9 i lp=210 | O32: rokwzgl=10 i lp=210 | P32: rokwzgl=11 i lp=210 | Q32: rokwzgl=12 i lp=210 | R32: rokwzgl=13 i lp=210 | S32: rokwzgl=14 i lp=210 | T32: rokwzgl=15 i lp=210 | U32: rokwzgl=16 i lp=210 | V32: rokwzgl=17 i lp=210 | W32: rokwzgl=18 i lp=210 | X32: rokwzgl=19 i lp=210 | Y32: rokwzgl=20 i lp=210 | Z32: rokwzgl=21 i lp=210 | AA32: rokwzgl=22 i lp=210 | AB32: rokwzgl=23 i lp=210 | AC32: rokwzgl=24 i lp=210 | AD32: rokwzgl=25 i lp=210 | AE32: rokwzgl=26 i lp=210 | AF32: rokwzgl=27 i lp=210 | AG32: rokwzgl=28 i lp=210 | AH32: rokwzgl=29 i lp=210
A33: 220 | B33: 4.1 | C33: Nadwyżka budżetowa z lat ubiegłych | D33: rokwzgl=0 i lp=220 | E33: rokwzgl=0 i lp=220 | F33: rokwzgl=1 i lp=220 | G33: rokwzgl=2 i lp=220 | H33: rokwzgl=3 i lp=220 | I33: rokwzgl=4 i lp=220 | J33: rokwzgl=5 i lp=220 | K33: rokwzgl=6 i lp=220 | L33: rokwzgl=7 i lp=220 | M33: rokwzgl=8 i lp=220 | N33: rokwzgl=9 i lp=220 | O33: rokwzgl=10 i lp=220 | P33: rokwzgl=11 i lp=220 | Q33: rokwzgl=12 i lp=220 | R33: rokwzgl=13 i lp=220 | S33: rokwzgl=14 i lp=220 | T33: rokwzgl=15 i lp=220 | U33: rokwzgl=16 i lp=220 | V33: rokwzgl=17 i lp=220 | W33: rokwzgl=18 i lp=220 | X33: rokwzgl=19 i lp=220 | Y33: rokwzgl=20 i lp=220 | Z33: rokwzgl=21 i lp=220 | AA33: rokwzgl=22 i lp=220 | AB33: rokwzgl=23 i lp=220 | AC33: rokwzgl=24 i lp=220 | AD33: rokwzgl=25 i lp=220 | AE33: rokwzgl=26 i lp=220 | AF33: rokwzgl=27 i lp=220 | AG33: rokwzgl=28 i lp=220 | AH33: rokwzgl=29 i lp=220
A34: 230 | B34: 4.1.1 | C34: w tym na pokrycie deficytu budżetu | D34: rokwzgl=0 i lp=230 | E34: rokwzgl=0 i lp=230 | F34: rokwzgl=1 i lp=230 | G34: rokwzgl=2 i lp=230 | H34: rokwzgl=3 i lp=230 | I34: rokwzgl=4 i lp=230 | J34: rokwzgl=5 i lp=230 | K34: rokwzgl=6 i lp=230 | L34: rokwzgl=7 i lp=230 | M34: rokwzgl=8 i lp=230 | N34: rokwzgl=9 i lp=230 | O34: rokwzgl=10 i lp=230 | P34: rokwzgl=11 i lp=230 | Q34: rokwzgl=12 i lp=230 | R34: rokwzgl=13 i lp=230 | S34: rokwzgl=14 i lp=230 | T34: rokwzgl=15 i lp=230 | U34: rokwzgl=16 i lp=230 | V34: rokwzgl=17 i lp=230 | W34: rokwzgl=18 i lp=230 | X34: rokwzgl=19 i lp=230 | Y34: rokwzgl=20 i lp=230 | Z34: rokwzgl=21 i lp=230 | AA34: rokwzgl=22 i lp=230 | AB34: rokwzgl=23 i lp=230 | AC34: rokwzgl=24 i lp=230 | AD34: rokwzgl=25 i lp=230 | AE34: rokwzgl=26 i lp=230 | AF34: rokwzgl=27 i lp=230 | AG34: rokwzgl=28 i lp=230 | AH34: rokwzgl=29 i lp=230
A35: 240 | B35: 4.2 | C35: Wolne środki, o których mowa w art. 217 ust.2 pkt 6 ustawy | D35: rokwzgl=0 i lp=240 | E35: rokwzgl=0 i lp=240 | F35: rokwzgl=1 i lp=240 | G35: rokwzgl=2 i lp=240 | H35: rokwzgl=3 i lp=240 | I35: rokwzgl=4 i lp=240 | J35: rokwzgl=5 i lp=240 | K35: rokwzgl=6 i lp=240 | L35: rokwzgl=7 i lp=240 | M35: rokwzgl=8 i lp=240 | N35: rokwzgl=9 i lp=240 | O35: rokwzgl=10 i lp=240 | P35: rokwzgl=11 i lp=240 | Q35: rokwzgl=12 i lp=240 | R35: rokwzgl=13 i lp=240 | S35: rokwzgl=14 i lp=240 | T35: rokwzgl=15 i lp=240 | U35: rokwzgl=16 i lp=240 | V35: rokwzgl=17 i lp=240 | W35: rokwzgl=18 i lp=240 | X35: rokwzgl=19 i lp=240 | Y35: rokwzgl=20 i lp=240 | Z35: rokwzgl=21 i lp=240 | AA35: rokwzgl=22 i lp=240 | AB35: rokwzgl=23 i lp=240 | AC35: rokwzgl=24 i lp=240 | AD35: rokwzgl=25 i lp=240 | AE35: rokwzgl=26 i lp=240 | AF35: rokwzgl=27 i lp=240 | AG35: rokwzgl=28 i lp=240 | AH35: rokwzgl=29 i lp=240
A36: 250 | B36: 4.2.1 | C36: w tym na pokrycie deficytu budżetu | D36: =+"rokwzgl="&D$9&" i lp="&$A36 -> rokwzgl=0 i lp=250 | E36: rokwzgl=0 i lp=250 | F36: rokwzgl=1 i lp=250 | G36: rokwzgl=2 i lp=250 | H36: rokwzgl=3 i lp=250 | I36: rokwzgl=4 i lp=250 | J36: rokwzgl=5 i lp=250 | K36: rokwzgl=6 i lp=250 | L36: rokwzgl=7 i lp=250 | M36: rokwzgl=8 i lp=250 | N36: =+"rokwzgl="&N$9&" i lp="&$A36 -> rokwzgl=9 i lp=250 | O36: rokwzgl=10 i lp=250 | P36: rokwzgl=11 i lp=250 | Q36: rokwzgl=12 i lp=250 | R36: rokwzgl=13 i lp=250 | S36: rokwzgl=14 i lp=250 | T36: rokwzgl=15 i lp=250 | U36: rokwzgl=16 i lp=250 | V36: rokwzgl=17 i lp=250 | W36: rokwzgl=18 i lp=250 | X36: =+"rokwzgl="&X$9&" i lp="&$A36 -> rokwzgl=19 i lp=250 | Y36: rokwzgl=20 i lp=250 | Z36: rokwzgl=21 i lp=250 | AA36: rokwzgl=22 i lp=250 | AB36: rokwzgl=23 i lp=250 | AC36: rokwzgl=24 i lp=250 | AD36: rokwzgl=25 i lp=250 | AE36: rokwzgl=26 i lp=250 | AF36: rokwzgl=27 i lp=250 | AG36: rokwzgl=28 i lp=250 | AH36: rokwzgl=29 i lp=250
A37: 260 | B37: 4.3 | C37: Kredyty, pożyczki, emisja papierów wartościowych | D37: rokwzgl=0 i lp=260 | E37: rokwzgl=0 i lp=260 | F37: rokwzgl=1 i lp=260 | G37: rokwzgl=2 i lp=260 | H37: rokwzgl=3 i lp=260 | I37: rokwzgl=4 i lp=260 | J37: rokwzgl=5 i lp=260 | K37: rokwzgl=6 i lp=260 | L37: rokwzgl=7 i lp=260 | M37: rokwzgl=8 i lp=260 | N37: rokwzgl=9 i lp=260 | O37: rokwzgl=10 i lp=260 | P37: rokwzgl=11 i lp=260 | Q37: rokwzgl=12 i lp=260 | R37: rokwzgl=13 i lp=260 | S37: rokwzgl=14 i lp=260 | T37: rokwzgl=15 i lp=260 | U37: rokwzgl=16 i lp=260 | V37: rokwzgl=17 i lp=260 | W37: rokwzgl=18 i lp=260 | X37: rokwzgl=19 i lp=260 | Y37: rokwzgl=20 i lp=260 | Z37: rokwzgl=21 i lp=260 | AA37: rokwzgl=22 i lp=260 | AB37: rokwzgl=23 i lp=260 | AC37: rokwzgl=24 i lp=260 | AD37: rokwzgl=25 i lp=260 | AE37: rokwzgl=26 i lp=260 | AF37: rokwzgl=27 i lp=260 | AG37: rokwzgl=28 i lp=260 | AH37: rokwzgl=29 i lp=260
A38: 270 | B38: 4.3.1 | C38: w tym na pokrycie deficytu budżetu | D38: rokwzgl=0 i lp=270 | E38: rokwzgl=0 i lp=270 | F38: rokwzgl=1 i lp=270 | G38: rokwzgl=2 i lp=270 | H38: rokwzgl=3 i lp=270 | I38: rokwzgl=4 i lp=270 | J38: rokwzgl=5 i lp=270 | K38: rokwzgl=6 i lp=270 | L38: rokwzgl=7 i lp=270 | M38: rokwzgl=8 i lp=270 | N38: rokwzgl=9 i lp=270 | O38: rokwzgl=10 i lp=270 | P38: rokwzgl=11 i lp=270 | Q38: rokwzgl=12 i lp=270 | R38: rokwzgl=13 i lp=270 | S38: rokwzgl=14 i lp=270 | T38: rokwzgl=15 i lp=270 | U38: rokwzgl=16 i lp=270 | V38: rokwzgl=17 i lp=270 | W38: rokwzgl=18 i lp=270 | X38: rokwzgl=19 i lp=270 | Y38: rokwzgl=20 i lp=270 | Z38: rokwzgl=21 i lp=270 | AA38: rokwzgl=22 i lp=270 | AB38: rokwzgl=23 i lp=270 | AC38: rokwzgl=24 i lp=270 | AD38: rokwzgl=25 i lp=270 | AE38: rokwzgl=26 i lp=270 | AF38: rokwzgl=27 i lp=270 | AG38: rokwzgl=28 i lp=270 | AH38: rokwzgl=29 i lp=270
A39: 280 | B39: 4.4 | C39: Inne przychody niezwiązane z zaciągnięciem długu | D39: rokwzgl=0 i lp=280 | E39: rokwzgl=0 i lp=280 | F39: rokwzgl=1 i lp=280 | G39: rokwzgl=2 i lp=280 | H39: rokwzgl=3 i lp=280 | I39: rokwzgl=4 i lp=280 | J39: rokwzgl=5 i lp=280 | K39: rokwzgl=6 i lp=280 | L39: rokwzgl=7 i lp=280 | M39: rokwzgl=8 i lp=280 | N39: rokwzgl=9 i lp=280 | O39: rokwzgl=10 i lp=280 | P39: rokwzgl=11 i lp=280 | Q39: rokwzgl=12 i lp=280 | R39: rokwzgl=13 i lp=280 | S39: rokwzgl=14 i lp=280 | T39: rokwzgl=15 i lp=280 | U39: rokwzgl=16 i lp=280 | V39: rokwzgl=17 i lp=280 | W39: rokwzgl=18 i lp=280 | X39: rokwzgl=19 i lp=280 | Y39: rokwzgl=20 i lp=280 | Z39: rokwzgl=21 i lp=280 | AA39: rokwzgl=22 i lp=280 | AB39: rokwzgl=23 i lp=280 | AC39: rokwzgl=24 i lp=280 | AD39: rokwzgl=25 i lp=280 | AE39: rokwzgl=26 i lp=280 | AF39: rokwzgl=27 i lp=280 | AG39: rokwzgl=28 i lp=280 | AH39: rokwzgl=29 i lp=280
A40: 290 | B40: 4.4.1 | C40: w tym na pokrycie deficytu budżetu | D40: rokwzgl=0 i lp=290 | E40: rokwzgl=0 i lp=290 | F40: rokwzgl=1 i lp=290 | G40: rokwzgl=2 i lp=290 | H40: rokwzgl=3 i lp=290 | I40: rokwzgl=4 i lp=290 | J40: rokwzgl=5 i lp=290 | K40: rokwzgl=6 i lp=290 | L40: rokwzgl=7 i lp=290 | M40: rokwzgl=8 i lp=290 | N40: rokwzgl=9 i lp=290 | O40: rokwzgl=10 i lp=290 | P40: rokwzgl=11 i lp=290 | Q40: rokwzgl=12 i lp=290 | R40: rokwzgl=13 i lp=290 | S40: rokwzgl=14 i lp=290 | T40: rokwzgl=15 i lp=290 | U40: rokwzgl=16 i lp=290 | V40: rokwzgl=17 i lp=290 | W40: rokwzgl=18 i lp=290 | X40: rokwzgl=19 i lp=290 | Y40: rokwzgl=20 i lp=290 | Z40: rokwzgl=21 i lp=290 | AA40: rokwzgl=22 i lp=290 | AB40: rokwzgl=23 i lp=290 | AC40: rokwzgl=24 i lp=290 | AD40: rokwzgl=25 i lp=290 | AE40: rokwzgl=26 i lp=290 | AF40: rokwzgl=27 i lp=290 | AG40: rokwzgl=28 i lp=290 | AH40: rokwzgl=29 i lp=290
A41: 300 | B41: 5 | C41: Rozchody budżetu | D41: rokwzgl=0 i lp=300 | E41: rokwzgl=0 i lp=300 | F41: rokwzgl=1 i lp=300 | G41: rokwzgl=2 i lp=300 | H41: rokwzgl=3 i lp=300 | I41: rokwzgl=4 i lp=300 | J41: rokwzgl=5 i lp=300 | K41: rokwzgl=6 i lp=300 | L41: rokwzgl=7 i lp=300 | M41: rokwzgl=8 i lp=300 | N41: rokwzgl=9 i lp=300 | O41: rokwzgl=10 i lp=300 | P41: rokwzgl=11 i lp=300 | Q41: rokwzgl=12 i lp=300 | R41: rokwzgl=13 i lp=300 | S41: rokwzgl=14 i lp=300 | T41: rokwzgl=15 i lp=300 | U41: rokwzgl=16 i lp=300 | V41: rokwzgl=17 i lp=300 | W41: rokwzgl=18 i lp=300 | X41: rokwzgl=19 i lp=300 | Y41: rokwzgl=20 i lp=300 | Z41: rokwzgl=21 i lp=300 | AA41: rokwzgl=22 i lp=300 | AB41: rokwzgl=23 i lp=300 | AC41: rokwzgl=24 i lp=300 | AD41: rokwzgl=25 i lp=300 | AE41: rokwzgl=26 i lp=300 | AF41: rokwzgl=27 i lp=300 | AG41: rokwzgl=28 i lp=300 | AH41: rokwzgl=29 i lp=300
A42: 310 | B42: 5.1 | C42: Spłaty rat kapitałowych kredytów i pożyczek oraz wykup papierów wartościowych | D42: rokwzgl=0 i lp=310 | E42: rokwzgl=0 i lp=310 | F42: rokwzgl=1 i lp=310 | G42: rokwzgl=2 i lp=310 | H42: rokwzgl=3 i lp=310 | I42: rokwzgl=4 i lp=310 | J42: rokwzgl=5 i lp=310 | K42: rokwzgl=6 i lp=310 | L42: rokwzgl=7 i lp=310 | M42: rokwzgl=8 i lp=310 | N42: rokwzgl=9 i lp=310 | O42: rokwzgl=10 i lp=310 | P42: rokwzgl=11 i lp=310 | Q42: rokwzgl=12 i lp=310 | R42: rokwzgl=13 i lp=310 | S42: rokwzgl=14 i lp=310 | T42: rokwzgl=15 i lp=310 | U42: rokwzgl=16 i lp=310 | V42: rokwzgl=17 i lp=310 | W42: rokwzgl=18 i lp=310 | X42: rokwzgl=19 i lp=310 | Y42: rokwzgl=20 i lp=310 | Z42: rokwzgl=21 i lp=310 | AA42: rokwzgl=22 i lp=310 | AB42: rokwzgl=23 i lp=310 | AC42: rokwzgl=24 i lp=310 | AD42: rokwzgl=25 i lp=310 | AE42: rokwzgl=26 i lp=310 | AF42: rokwzgl=27 i lp=310 | AG42: rokwzgl=28 i lp=310 | AH42: rokwzgl=29 i lp=310
A43: 320 | B43: 5.1.1 | C43: w tym łączna kwota przypadających na dany rok kwot ustawowych wyłączeń z limitu spłaty zobowiązań, o którym mowa w art. 243 ustawy, z tego: | D43: rokwzgl=0 i lp=320 | E43: rokwzgl=0 i lp=320 | F43: rokwzgl=1 i lp=320 | G43: rokwzgl=2 i lp=320 | H43: rokwzgl=3 i lp=320 | I43: rokwzgl=4 i lp=320 | J43: rokwzgl=5 i lp=320 | K43: rokwzgl=6 i lp=320 | L43: rokwzgl=7 i lp=320 | M43: rokwzgl=8 i lp=320 | N43: rokwzgl=9 i lp=320 | O43: rokwzgl=10 i lp=320 | P43: rokwzgl=11 i lp=320 | Q43: rokwzgl=12 i lp=320 | R43: rokwzgl=13 i lp=320 | S43: rokwzgl=14 i lp=320 | T43: rokwzgl=15 i lp=320 | U43: rokwzgl=16 i lp=320 | V43: rokwzgl=17 i lp=320 | W43: rokwzgl=18 i lp=320 | X43: rokwzgl=19 i lp=320 | Y43: rokwzgl=20 i lp=320 | Z43: rokwzgl=21 i lp=320 | AA43: rokwzgl=22 i lp=320 | AB43: rokwzgl=23 i lp=320 | AC43: rokwzgl=24 i lp=320 | AD43: rokwzgl=25 i lp=320 | AE43: rokwzgl=26 i lp=320 | AF43: rokwzgl=27 i lp=320 | AG43: rokwzgl=28 i lp=320 | AH43: rokwzgl=29 i lp=320
A44: 332 | B44: 5.1.1.1 | C44: kwota przypadających na dany rok kwot ustawowych wyłączeń określonych w art. 243 ust. 3 ustawy | D44: rokwzgl=0 i lp=332 | E44: rokwzgl=0 i lp=332 | F44: rokwzgl=1 i lp=332 | G44: rokwzgl=2 i lp=332 | H44: rokwzgl=3 i lp=332 | I44: rokwzgl=4 i lp=332 | J44: rokwzgl=5 i lp=332 | K44: rokwzgl=6 i lp=332 | L44: rokwzgl=7 i lp=332 | M44: rokwzgl=8 i lp=332 | N44: rokwzgl=9 i lp=332 | O44: rokwzgl=10 i lp=332 | P44: rokwzgl=11 i lp=332 | Q44: rokwzgl=12 i lp=332 | R44: rokwzgl=13 i lp=332 | S44: rokwzgl=14 i lp=332 | T44: rokwzgl=15 i lp=332 | U44: rokwzgl=16 i lp=332 | V44: rokwzgl=17 i lp=332 | W44: rokwzgl=18 i lp=332 | X44: rokwzgl=19 i lp=332 | Y44: rokwzgl=20 i lp=332 | Z44: rokwzgl=21 i lp=332 | AA44: rokwzgl=22 i lp=332 | AB44: rokwzgl=23 i lp=332 | AC44: rokwzgl=24 i lp=332 | AD44: rokwzgl=25 i lp=332 | AE44: rokwzgl=26 i lp=332 | AF44: rokwzgl=27 i lp=332 | AG44: rokwzgl=28 i lp=332 | AH44: rokwzgl=29 i lp=332
A45: 334 | B45: 5.1.1.2 | C45: kwota przypadających na dany rok kwot ustawowych wyłączeń określonych w art. 243 ust. 3a ustawy | D45: rokwzgl=0 i lp=334 | E45: rokwzgl=0 i lp=334 | F45: rokwzgl=1 i lp=334 | G45: rokwzgl=2 i lp=334 | H45: rokwzgl=3 i lp=334 | I45: rokwzgl=4 i lp=334 | J45: rokwzgl=5 i lp=334 | K45: rokwzgl=6 i lp=334 | L45: rokwzgl=7 i lp=334 | M45: rokwzgl=8 i lp=334 | N45: rokwzgl=9 i lp=334 | O45: rokwzgl=10 i lp=334 | P45: rokwzgl=11 i lp=334 | Q45: rokwzgl=12 i lp=334 | R45: rokwzgl=13 i lp=334 | S45: rokwzgl=14 i lp=334 | T45: rokwzgl=15 i lp=334 | U45: rokwzgl=16 i lp=334 | V45: rokwzgl=17 i lp=334 | W45: rokwzgl=18 i lp=334 | X45: rokwzgl=19 i lp=334 | Y45: rokwzgl=20 i lp=334 | Z45: rokwzgl=21 i lp=334 | AA45: rokwzgl=22 i lp=334 | AB45: rokwzgl=23 i lp=334 | AC45: rokwzgl=24 i lp=334 | AD45: rokwzgl=25 i lp=334 | AE45: rokwzgl=26 i lp=334 | AF45: rokwzgl=27 i lp=334 | AG45: rokwzgl=28 i lp=334 | AH45: rokwzgl=29 i lp=334
A46: 336 | B46: 5.1.1.3 | C46: kwota przypadających na dany rok kwot ustawowych wyłączeń innych niż określone w art. 243 ustawy | D46: =+"rokwzgl="&D$9&" i lp="&$A46 -> rokwzgl=0 i lp=336 | E46: rokwzgl=0 i lp=336 | F46: rokwzgl=1 i lp=336 | G46: rokwzgl=2 i lp=336 | H46: rokwzgl=3 i lp=336 | I46: rokwzgl=4 i lp=336 | J46: rokwzgl=5 i lp=336 | K46: rokwzgl=6 i lp=336 | L46: rokwzgl=7 i lp=336 | M46: rokwzgl=8 i lp=336 | N46: =+"rokwzgl="&N$9&" i lp="&$A46 -> rokwzgl=9 i lp=336 | O46: rokwzgl=10 i lp=336 | P46: rokwzgl=11 i lp=336 | Q46: rokwzgl=12 i lp=336 | R46: rokwzgl=13 i lp=336 | S46: rokwzgl=14 i lp=336 | T46: rokwzgl=15 i lp=336 | U46: rokwzgl=16 i lp=336 | V46: rokwzgl=17 i lp=336 | W46: rokwzgl=18 i lp=336 | X46: =+"rokwzgl="&X$9&" i lp="&$A46 -> rokwzgl=19 i lp=336 | Y46: rokwzgl=20 i lp=336 | Z46: rokwzgl=21 i lp=336 | AA46: rokwzgl=22 i lp=336 | AB46: rokwzgl=23 i lp=336 | AC46: rokwzgl=24 i lp=336 | AD46: rokwzgl=25 i lp=336 | AE46: rokwzgl=26 i lp=336 | AF46: rokwzgl=27 i lp=336 | AG46: rokwzgl=28 i lp=336 | AH46: rokwzgl=29 i lp=336
A47: 340 | B47: 5.2 | C47: Inne rozchody niezwiązane ze spłatą długu | D47: rokwzgl=0 i lp=340 | E47: rokwzgl=0 i lp=340 | F47: rokwzgl=1 i lp=340 | G47: rokwzgl=2 i lp=340 | H47: rokwzgl=3 i lp=340 | I47: rokwzgl=4 i lp=340 | J47: rokwzgl=5 i lp=340 | K47: rokwzgl=6 i lp=340 | L47: rokwzgl=7 i lp=340 | M47: rokwzgl=8 i lp=340 | N47: rokwzgl=9 i lp=340 | O47: rokwzgl=10 i lp=340 | P47: rokwzgl=11 i lp=340 | Q47: rokwzgl=12 i lp=340 | R47: rokwzgl=13 i lp=340 | S47: rokwzgl=14 i lp=340 | T47: rokwzgl=15 i lp=340 | U47: rokwzgl=16 i lp=340 | V47: rokwzgl=17 i lp=340 | W47: rokwzgl=18 i lp=340 | X47: rokwzgl=19 i lp=340 | Y47: rokwzgl=20 i lp=340 | Z47: rokwzgl=21 i lp=340 | AA47: rokwzgl=22 i lp=340 | AB47: rokwzgl=23 i lp=340 | AC47: rokwzgl=24 i lp=340 | AD47: rokwzgl=25 i lp=340 | AE47: rokwzgl=26 i lp=340 | AF47: rokwzgl=27 i lp=340 | AG47: rokwzgl=28 i lp=340 | AH47: rokwzgl=29 i lp=340
A48: 350 | B48: 6 | C48: Kwota długu | D48: rokwzgl=0 i lp=350 | E48: rokwzgl=0 i lp=350 | F48: rokwzgl=1 i lp=350 | G48: rokwzgl=2 i lp=350 | H48: rokwzgl=3 i lp=350 | I48: rokwzgl=4 i lp=350 | J48: rokwzgl=5 i lp=350 | K48: rokwzgl=6 i lp=350 | L48: rokwzgl=7 i lp=350 | M48: rokwzgl=8 i lp=350 | N48: rokwzgl=9 i lp=350 | O48: rokwzgl=10 i lp=350 | P48: rokwzgl=11 i lp=350 | Q48: rokwzgl=12 i lp=350 | R48: rokwzgl=13 i lp=350 | S48: rokwzgl=14 i lp=350 | T48: rokwzgl=15 i lp=350 | U48: rokwzgl=16 i lp=350 | V48: rokwzgl=17 i lp=350 | W48: rokwzgl=18 i lp=350 | X48: rokwzgl=19 i lp=350 | Y48: rokwzgl=20 i lp=350 | Z48: rokwzgl=21 i lp=350 | AA48: rokwzgl=22 i lp=350 | AB48: rokwzgl=23 i lp=350 | AC48: rokwzgl=24 i lp=350 | AD48: rokwzgl=25 i lp=350 | AE48: rokwzgl=26 i lp=350 | AF48: rokwzgl=27 i lp=350 | AG48: rokwzgl=28 i lp=350 | AH48: rokwzgl=29 i lp=350
A49: 400 | B49: 7 | C49: Kwota zobowiązań wynikających z przejęcia przez jednostkę samorządu terytorialnego zobowiązań po likwidowanych i przekształcanych jednostkach zaliczanych do sektora finansów publicznych | D49: rokwzgl=0 i lp=400 | E49: rokwzgl=0 i lp=400 | F49: rokwzgl=1 i lp=400 | G49: rokwzgl=2 i lp=400 | H49: rokwzgl=3 i lp=400 | I49: rokwzgl=4 i lp=400 | J49: rokwzgl=5 i lp=400 | K49: rokwzgl=6 i lp=400 | L49: rokwzgl=7 i lp=400 | M49: rokwzgl=8 i lp=400 | N49: rokwzgl=9 i lp=400 | O49: rokwzgl=10 i lp=400 | P49: rokwzgl=11 i lp=400 | Q49: rokwzgl=12 i lp=400 | R49: rokwzgl=13 i lp=400 | S49: rokwzgl=14 i lp=400 | T49: rokwzgl=15 i lp=400 | U49: rokwzgl=16 i lp=400 | V49: rokwzgl=17 i lp=400 | W49: rokwzgl=18 i lp=400 | X49: rokwzgl=19 i lp=400 | Y49: rokwzgl=20 i lp=400 | Z49: rokwzgl=21 i lp=400 | AA49: rokwzgl=22 i lp=400 | AB49: rokwzgl=23 i lp=400 | AC49: rokwzgl=24 i lp=400 | AD49: rokwzgl=25 i lp=400 | AE49: rokwzgl=26 i lp=400 | AF49: rokwzgl=27 i lp=400 | AG49: rokwzgl=28 i lp=400 | AH49: rokwzgl=29 i lp=400
A50: 410 | B50: 8 | C50: Relacja zrównoważenia wydatków bieżących, o której mowa w art. 242 ustawy | D50: rokwzgl=0 i lp=410 | E50: rokwzgl=0 i lp=410 | F50: rokwzgl=1 i lp=410 | G50: rokwzgl=2 i lp=410 | H50: rokwzgl=3 i lp=410 | I50: rokwzgl=4 i lp=410 | J50: rokwzgl=5 i lp=410 | K50: rokwzgl=6 i lp=410 | L50: rokwzgl=7 i lp=410 | M50: rokwzgl=8 i lp=410 | N50: rokwzgl=9 i lp=410 | O50: rokwzgl=10 i lp=410 | P50: rokwzgl=11 i lp=410 | Q50: rokwzgl=12 i lp=410 | R50: rokwzgl=13 i lp=410 | S50: rokwzgl=14 i lp=410 | T50: rokwzgl=15 i lp=410 | U50: rokwzgl=16 i lp=410 | V50: rokwzgl=17 i lp=410 | W50: rokwzgl=18 i lp=410 | X50: rokwzgl=19 i lp=410 | Y50: rokwzgl=20 i lp=410 | Z50: rokwzgl=21 i lp=410 | AA50: rokwzgl=22 i lp=410 | AB50: rokwzgl=23 i lp=410 | AC50: rokwzgl=24 i lp=410 | AD50: rokwzgl=25 i lp=410 | AE50: rokwzgl=26 i lp=410 | AF50: rokwzgl=27 i lp=410 | AG50: rokwzgl=28 i lp=410 | AH50: rokwzgl=29 i lp=410
A51: 420 | B51: 8.1 | C51: Różnica między dochodami bieżącymi a wydatkami bieżącymi | D51: rokwzgl=0 i lp=420 | E51: rokwzgl=0 i lp=420 | F51: rokwzgl=1 i lp=420 | G51: rokwzgl=2 i lp=420 | H51: rokwzgl=3 i lp=420 | I51: rokwzgl=4 i lp=420 | J51: rokwzgl=5 i lp=420 | K51: rokwzgl=6 i lp=420 | L51: rokwzgl=7 i lp=420 | M51: rokwzgl=8 i lp=420 | N51: rokwzgl=9 i lp=420 | O51: rokwzgl=10 i lp=420 | P51: rokwzgl=11 i lp=420 | Q51: rokwzgl=12 i lp=420 | R51: rokwzgl=13 i lp=420 | S51: rokwzgl=14 i lp=420 | T51: rokwzgl=15 i lp=420 | U51: rokwzgl=16 i lp=420 | V51: rokwzgl=17 i lp=420 | W51: rokwzgl=18 i lp=420 | X51: rokwzgl=19 i lp=420 | Y51: rokwzgl=20 i lp=420 | Z51: rokwzgl=21 i lp=420 | AA51: rokwzgl=22 i lp=420 | AB51: rokwzgl=23 i lp=420 | AC51: rokwzgl=24 i lp=420 | AD51: rokwzgl=25 i lp=420 | AE51: rokwzgl=26 i lp=420 | AF51: rokwzgl=27 i lp=420 | AG51: rokwzgl=28 i lp=420 | AH51: rokwzgl=29 i lp=420
A52: 430 | B52: 8.2 | C52: Różnica między dochodami bieżącymi, skorygowanymi o środki a wydatkami bieżącymi, pomniejszonymi o wydatki | D52: rokwzgl=0 i lp=430 | E52: rokwzgl=0 i lp=430 | F52: rokwzgl=1 i lp=430 | G52: rokwzgl=2 i lp=430 | H52: rokwzgl=3 i lp=430 | I52: rokwzgl=4 i lp=430 | J52: rokwzgl=5 i lp=430 | K52: rokwzgl=6 i lp=430 | L52: rokwzgl=7 i lp=430 | M52: rokwzgl=8 i lp=430 | N52: rokwzgl=9 i lp=430 | O52: rokwzgl=10 i lp=430 | P52: rokwzgl=11 i lp=430 | Q52: rokwzgl=12 i lp=430 | R52: rokwzgl=13 i lp=430 | S52: rokwzgl=14 i lp=430 | T52: rokwzgl=15 i lp=430 | U52: rokwzgl=16 i lp=430 | V52: rokwzgl=17 i lp=430 | W52: rokwzgl=18 i lp=430 | X52: rokwzgl=19 i lp=430 | Y52: rokwzgl=20 i lp=430 | Z52: rokwzgl=21 i lp=430 | AA52: rokwzgl=22 i lp=430 | AB52: rokwzgl=23 i lp=430 | AC52: rokwzgl=24 i lp=430 | AD52: rokwzgl=25 i lp=430 | AE52: rokwzgl=26 i lp=430 | AF52: rokwzgl=27 i lp=430 | AG52: rokwzgl=28 i lp=430 | AH52: rokwzgl=29 i lp=430
A53: 440 | B53: 9 | C53: Wskaźnik spłaty zobowiązań | D53: rokwzgl=0 i lp=440 | E53: rokwzgl=0 i lp=440 | F53: rokwzgl=1 i lp=440 | G53: rokwzgl=2 i lp=440 | H53: rokwzgl=3 i lp=440 | I53: rokwzgl=4 i lp=440 | J53: rokwzgl=5 i lp=440 | K53: rokwzgl=6 i lp=440 | L53: rokwzgl=7 i lp=440 | M53: rokwzgl=8 i lp=440 | N53: rokwzgl=9 i lp=440 | O53: rokwzgl=10 i lp=440 | P53: rokwzgl=11 i lp=440 | Q53: rokwzgl=12 i lp=440 | R53: rokwzgl=13 i lp=440 | S53: rokwzgl=14 i lp=440 | T53: rokwzgl=15 i lp=440 | U53: rokwzgl=16 i lp=440 | V53: rokwzgl=17 i lp=440 | W53: rokwzgl=18 i lp=440 | X53: rokwzgl=19 i lp=440 | Y53: rokwzgl=20 i lp=440 | Z53: rokwzgl=21 i lp=440 | AA53: rokwzgl=22 i lp=440 | AB53: rokwzgl=23 i lp=440 | AC53: rokwzgl=24 i lp=440 | AD53: rokwzgl=25 i lp=440 | AE53: rokwzgl=26 i lp=440 | AF53: rokwzgl=27 i lp=440 | AG53: rokwzgl=28 i lp=440 | AH53: rokwzgl=29 i lp=440
A54: 470 | B54: 9.1 | C54: Wskaźnik planowanej łącznej kwoty spłaty zobowiązań, o której mowa w art. 243 ust. 1 ustawy do dochodów, bez uwzględnienia zobowiązań związku współtworzonego przez jednostkę samorządu terytorialnego i bez uwzględnienia ustawowych wyłączeń przypadających na dany rok. | D54: rokwzgl=0 i lp=470 | E54: rokwzgl=0 i lp=470 | F54: rokwzgl=1 i lp=470 | G54: rokwzgl=2 i lp=470 | H54: rokwzgl=3 i lp=470 | I54: rokwzgl=4 i lp=470 | J54: rokwzgl=5 i lp=470 | K54: rokwzgl=6 i lp=470 | L54: rokwzgl=7 i lp=470 | M54: rokwzgl=8 i lp=470 | N54: rokwzgl=9 i lp=470 | O54: rokwzgl=10 i lp=470 | P54: rokwzgl=11 i lp=470 | Q54: rokwzgl=12 i lp=470 | R54: rokwzgl=13 i lp=470 | S54: rokwzgl=14 i lp=470 | T54: rokwzgl=15 i lp=470 | U54: rokwzgl=16 i lp=470 | V54: rokwzgl=17 i lp=470 | W54: rokwzgl=18 i lp=470 | X54: rokwzgl=19 i lp=470 | Y54: rokwzgl=20 i lp=470 | Z54: rokwzgl=21 i lp=470 | AA54: rokwzgl=22 i lp=470 | AB54: rokwzgl=23 i lp=470 | AC54: rokwzgl=24 i lp=470 | AD54: rokwzgl=25 i lp=470 | AE54: rokwzgl=26 i lp=470 | AF54: rokwzgl=27 i lp=470 | AG54: rokwzgl=28 i lp=470 | AH54: rokwzgl=29 i lp=470
A55: 480 | B55: 9.2 | C55: Wskaźnik planowanej łącznej kwoty spłaty zobowiązań, o której mowa w art. 243 ust. 1 ustawy do dochodów, bez uwzględnienia zobowiązań związku współtworzonego przez jednostkę samorządu terytorialnego, po uwzględnieniu ustawowych wyłączeń przypadających na dany rok. | D55: rokwzgl=0 i lp=480 | E55: rokwzgl=0 i lp=480 | F55: rokwzgl=1 i lp=480 | G55: rokwzgl=2 i lp=480 | H55: rokwzgl=3 i lp=480 | I55: rokwzgl=4 i lp=480 | J55: rokwzgl=5 i lp=480 | K55: rokwzgl=6 i lp=480 | L55: rokwzgl=7 i lp=480 | M55: rokwzgl=8 i lp=480 | N55: rokwzgl=9 i lp=480 | O55: rokwzgl=10 i lp=480 | P55: rokwzgl=11 i lp=480 | Q55: rokwzgl=12 i lp=480 | R55: rokwzgl=13 i lp=480 | S55: rokwzgl=14 i lp=480 | T55: rokwzgl=15 i lp=480 | U55: rokwzgl=16 i lp=480 | V55: rokwzgl=17 i lp=480 | W55: rokwzgl=18 i lp=480 | X55: rokwzgl=19 i lp=480 | Y55: rokwzgl=20 i lp=480 | Z55: rokwzgl=21 i lp=480 | AA55: rokwzgl=22 i lp=480 | AB55: rokwzgl=23 i lp=480 | AC55: rokwzgl=24 i lp=480 | AD55: rokwzgl=25 i lp=480 | AE55: rokwzgl=26 i lp=480 | AF55: rokwzgl=27 i lp=480 | AG55: rokwzgl=28 i lp=480 | AH55: rokwzgl=29 i lp=480
A56: 490 | B56: 9.3 | C56: Kwota zobowiązań związku współtworzonego przez jednostkę samorządu terytorialnego przypadających do spłaty w danym roku budżetowym, podlegająca doliczeniu zgodnie z art. 244 ustawy | D56: =+"rokwzgl="&D$9&" i lp="&$A56 -> rokwzgl=0 i lp=490 | E56: rokwzgl=0 i lp=490 | F56: rokwzgl=1 i lp=490 | G56: rokwzgl=2 i lp=490 | H56: rokwzgl=3 i lp=490 | I56: rokwzgl=4 i lp=490 | J56: rokwzgl=5 i lp=490 | K56: rokwzgl=6 i lp=490 | L56: rokwzgl=7 i lp=490 | M56: rokwzgl=8 i lp=490 | N56: =+"rokwzgl="&N$9&" i lp="&$A56 -> rokwzgl=9 i lp=490 | O56: rokwzgl=10 i lp=490 | P56: rokwzgl=11 i lp=490 | Q56: rokwzgl=12 i lp=490 | R56: rokwzgl=13 i lp=490 | S56: rokwzgl=14 i lp=490 | T56: rokwzgl=15 i lp=490 | U56: rokwzgl=16 i lp=490 | V56: rokwzgl=17 i lp=490 | W56: rokwzgl=18 i lp=490 | X56: =+"rokwzgl="&X$9&" i lp="&$A56 -> rokwzgl=19 i lp=490 | Y56: rokwzgl=20 i lp=490 | Z56: rokwzgl=21 i lp=490 | AA56: rokwzgl=22 i lp=490 | AB56: rokwzgl=23 i lp=490 | AC56: rokwzgl=24 i lp=490 | AD56: rokwzgl=25 i lp=490 | AE56: rokwzgl=26 i lp=490 | AF56: rokwzgl=27 i lp=490 | AG56: rokwzgl=28 i lp=490 | AH56: rokwzgl=29 i lp=490
A57: 500 | B57: 9.4 | C57: Wskaźnik planowanej łącznej kwoty spłaty zobowiązań, o której mowa w art. 243 ust. 1 ustawy do dochodów, po uwzględnieniu zobowiązań związku współtworzonego przez jednostkę samorządu terytorialnego oraz po uwzględnieniu ustawowych wyłączeń przypadających na dany rok | D57: rokwzgl=0 i lp=500 | E57: rokwzgl=0 i lp=500 | F57: rokwzgl=1 i lp=500 | G57: rokwzgl=2 i lp=500 | H57: rokwzgl=3 i lp=500 | I57: rokwzgl=4 i lp=500 | J57: rokwzgl=5 i lp=500 | K57: rokwzgl=6 i lp=500 | L57: rokwzgl=7 i lp=500 | M57: rokwzgl=8 i lp=500 | N57: rokwzgl=9 i lp=500 | O57: rokwzgl=10 i lp=500 | P57: rokwzgl=11 i lp=500 | Q57: rokwzgl=12 i lp=500 | R57: rokwzgl=13 i lp=500 | S57: rokwzgl=14 i lp=500 | T57: rokwzgl=15 i lp=500 | U57: rokwzgl=16 i lp=500 | V57: rokwzgl=17 i lp=500 | W57: rokwzgl=18 i lp=500 | X57: rokwzgl=19 i lp=500 | Y57: rokwzgl=20 i lp=500 | Z57: rokwzgl=21 i lp=500 | AA57: rokwzgl=22 i lp=500 | AB57: rokwzgl=23 i lp=500 | AC57: rokwzgl=24 i lp=500 | AD57: rokwzgl=25 i lp=500 | AE57: rokwzgl=26 i lp=500 | AF57: rokwzgl=27 i lp=500 | AG57: rokwzgl=28 i lp=500 | AH57: rokwzgl=29 i lp=500
A58: 508 | B58: 9.5 | C58: Wskaźnik dochodów bieżących powiększonych o dochody ze sprzedaży majątku oraz pomniejszonych o wydatki bieżące, do dochodów budżetu, ustalony dla danego roku (wskaźnik jednoroczny) | D58: rokwzgl=0 i lp=508 | E58: rokwzgl=0 i lp=508 | F58: rokwzgl=1 i lp=508 | G58: rokwzgl=2 i lp=508 | H58: rokwzgl=3 i lp=508 | I58: rokwzgl=4 i lp=508 | J58: rokwzgl=5 i lp=508 | K58: rokwzgl=6 i lp=508 | L58: rokwzgl=7 i lp=508 | M58: rokwzgl=8 i lp=508 | N58: rokwzgl=9 i lp=508 | O58: rokwzgl=10 i lp=508 | P58: rokwzgl=11 i lp=508 | Q58: rokwzgl=12 i lp=508 | R58: rokwzgl=13 i lp=508 | S58: rokwzgl=14 i lp=508 | T58: rokwzgl=15 i lp=508 | U58: rokwzgl=16 i lp=508 | V58: rokwzgl=17 i lp=508 | W58: rokwzgl=18 i lp=508 | X58: rokwzgl=19 i lp=508 | Y58: rokwzgl=20 i lp=508 | Z58: rokwzgl=21 i lp=508 | AA58: rokwzgl=22 i lp=508 | AB58: rokwzgl=23 i lp=508 | AC58: rokwzgl=24 i lp=508 | AD58: rokwzgl=25 i lp=508 | AE58: rokwzgl=26 i lp=508 | AF58: rokwzgl=27 i lp=508 | AG58: rokwzgl=28 i lp=508 | AH58: rokwzgl=29 i lp=508
A59: 510 | B59: 9.6 | C59: Dopuszczalny wskaźnik spłaty zobowiązań określony w art. 243 ustawy, po uwzględnieniu ustawowych wyłączeń , obliczony w oparciu o plan 3 kwartału roku poprzedzającego pierwszy rok prognozy (wskaźnik ustalony w oparciu o średnią arytmetyczną z 3 poprzednich lat) | D59: rokwzgl=0 i lp=510 | E59: rokwzgl=0 i lp=510 | F59: rokwzgl=1 i lp=510 | G59: rokwzgl=2 i lp=510 | H59: rokwzgl=3 i lp=510 | I59: rokwzgl=4 i lp=510 | J59: rokwzgl=5 i lp=510 | K59: rokwzgl=6 i lp=510 | L59: rokwzgl=7 i lp=510 | M59: rokwzgl=8 i lp=510 | N59: rokwzgl=9 i lp=510 | O59: rokwzgl=10 i lp=510 | P59: rokwzgl=11 i lp=510 | Q59: rokwzgl=12 i lp=510 | R59: rokwzgl=13 i lp=510 | S59: rokwzgl=14 i lp=510 | T59: rokwzgl=15 i lp=510 | U59: rokwzgl=16 i lp=510 | V59: rokwzgl=17 i lp=510 | W59: rokwzgl=18 i lp=510 | X59: rokwzgl=19 i lp=510 | Y59: rokwzgl=20 i lp=510 | Z59: rokwzgl=21 i lp=510 | AA59: rokwzgl=22 i lp=510 | AB59: rokwzgl=23 i lp=510 | AC59: rokwzgl=24 i lp=510 | AD59: rokwzgl=25 i lp=510 | AE59: rokwzgl=26 i lp=510 | AF59: rokwzgl=27 i lp=510 | AG59: rokwzgl=28 i lp=510 | AH59: rokwzgl=29 i lp=510
A60: 520 | B60: 9.6.1 | C60: Dopuszczalny wskaźnik spłaty zobowiązań określony w art. 243 ustawy, po uwzględnieniu ustawowych wyłączeń, obliczony w oparciu o wykonanie roku poprzedzającego pierwszy rok prognozy (wskaźnik ustalony w oparciu o średnią arytmetyczną z 3 poprzednich lat) | D60: rokwzgl=0 i lp=520 | E60: rokwzgl=0 i lp=520 | F60: rokwzgl=1 i lp=520 | G60: rokwzgl=2 i lp=520 | H60: rokwzgl=3 i lp=520 | I60: rokwzgl=4 i lp=520 | J60: rokwzgl=5 i lp=520 | K60: rokwzgl=6 i lp=520 | L60: rokwzgl=7 i lp=520 | M60: rokwzgl=8 i lp=520 | N60: rokwzgl=9 i lp=520 | O60: rokwzgl=10 i lp=520 | P60: rokwzgl=11 i lp=520 | Q60: rokwzgl=12 i lp=520 | R60: rokwzgl=13 i lp=520 | S60: rokwzgl=14 i lp=520 | T60: rokwzgl=15 i lp=520 | U60: rokwzgl=16 i lp=520 | V60: rokwzgl=17 i lp=520 | W60: rokwzgl=18 i lp=520 | X60: rokwzgl=19 i lp=520 | Y60: rokwzgl=20 i lp=520 | Z60: rokwzgl=21 i lp=520 | AA60: rokwzgl=22 i lp=520 | AB60: rokwzgl=23 i lp=520 | AC60: rokwzgl=24 i lp=520 | AD60: rokwzgl=25 i lp=520 | AE60: rokwzgl=26 i lp=520 | AF60: rokwzgl=27 i lp=520 | AG60: rokwzgl=28 i lp=520 | AH60: rokwzgl=29 i lp=520
A61: 530 | B61: 9.7 | C61: Informacja o spełnieniu wskaźnika spłaty zobowiązań określonego w art. 243 ustawy, po uwzględnieniu zobowiązań związku współtworzonego przez jednostkę samorządu terytorialnego oraz po uwzględnieniu ustawowych wyłączeń, obliczonego w oparciu o plan 3 kwartałów roku poprzedzającego rok budżetowy | D61: rokwzgl=0 i lp=530 | E61: rokwzgl=0 i lp=530 | F61: rokwzgl=1 i lp=530 | G61: rokwzgl=2 i lp=530 | H61: rokwzgl=3 i lp=530 | I61: rokwzgl=4 i lp=530 | J61: rokwzgl=5 i lp=530 | K61: rokwzgl=6 i lp=530 | L61: rokwzgl=7 i lp=530 | M61: rokwzgl=8 i lp=530 | N61: rokwzgl=9 i lp=530 | O61: rokwzgl=10 i lp=530 | P61: rokwzgl=11 i lp=530 | Q61: rokwzgl=12 i lp=530 | R61: rokwzgl=13 i lp=530 | S61: rokwzgl=14 i lp=530 | T61: rokwzgl=15 i lp=530 | U61: rokwzgl=16 i lp=530 | V61: rokwzgl=17 i lp=530 | W61: rokwzgl=18 i lp=530 | X61: rokwzgl=19 i lp=530 | Y61: rokwzgl=20 i lp=530 | Z61: rokwzgl=21 i lp=530 | AA61: rokwzgl=22 i lp=530 | AB61: rokwzgl=23 i lp=530 | AC61: rokwzgl=24 i lp=530 | AD61: rokwzgl=25 i lp=530 | AE61: rokwzgl=26 i lp=530 | AF61: rokwzgl=27 i lp=530 | AG61: rokwzgl=28 i lp=530 | AH61: rokwzgl=29 i lp=530
A62: 540 | B62: 9.7.1 | C62: Informacja o spełnieniu wskaźnika spłaty zobowiązań określonego w art. 243 ustawy, po uwzględnieniu zobowiązań związku współtworzonego przez jednostkę samorządu terytorialnego oraz po uwzględnieniu ustawowych wyłączeń, obliczonego w oparciu o wykonanie roku poprzedzającego rok budżetowy | D62: rokwzgl=0 i lp=540 | E62: rokwzgl=0 i lp=540 | F62: rokwzgl=1 i lp=540 | G62: rokwzgl=2 i lp=540 | H62: rokwzgl=3 i lp=540 | I62: rokwzgl=4 i lp=540 | J62: rokwzgl=5 i lp=540 | K62: rokwzgl=6 i lp=540 | L62: rokwzgl=7 i lp=540 | M62: rokwzgl=8 i lp=540 | N62: rokwzgl=9 i lp=540 | O62: rokwzgl=10 i lp=540 | P62: rokwzgl=11 i lp=540 | Q62: rokwzgl=12 i lp=540 | R62: rokwzgl=13 i lp=540 | S62: rokwzgl=14 i lp=540 | T62: rokwzgl=15 i lp=540 | U62: rokwzgl=16 i lp=540 | V62: rokwzgl=17 i lp=540 | W62: rokwzgl=18 i lp=540 | X62: rokwzgl=19 i lp=540 | Y62: rokwzgl=20 i lp=540 | Z62: rokwzgl=21 i lp=540 | AA62: rokwzgl=22 i lp=540 | AB62: rokwzgl=23 i lp=540 | AC62: rokwzgl=24 i lp=540 | AD62: rokwzgl=25 i lp=540 | AE62: rokwzgl=26 i lp=540 | AF62: rokwzgl=27 i lp=540 | AG62: rokwzgl=28 i lp=540 | AH62: rokwzgl=29 i lp=540
A63: 550 | B63: 10 | C63: Przeznaczenie prognozowanej nadwyżki budżetowej, w tym na: | D63: rokwzgl=0 i lp=550 | E63: rokwzgl=0 i lp=550 | F63: rokwzgl=1 i lp=550 | G63: rokwzgl=2 i lp=550 | H63: rokwzgl=3 i lp=550 | I63: rokwzgl=4 i lp=550 | J63: rokwzgl=5 i lp=550 | K63: rokwzgl=6 i lp=550 | L63: rokwzgl=7 i lp=550 | M63: rokwzgl=8 i lp=550 | N63: rokwzgl=9 i lp=550 | O63: rokwzgl=10 i lp=550 | P63: rokwzgl=11 i lp=550 | Q63: rokwzgl=12 i lp=550 | R63: rokwzgl=13 i lp=550 | S63: rokwzgl=14 i lp=550 | T63: rokwzgl=15 i lp=550 | U63: rokwzgl=16 i lp=550 | V63: rokwzgl=17 i lp=550 | W63: rokwzgl=18 i lp=550 | X63: rokwzgl=19 i lp=550 | Y63: rokwzgl=20 i lp=550 | Z63: rokwzgl=21 i lp=550 | AA63: rokwzgl=22 i lp=550 | AB63: rokwzgl=23 i lp=550 | AC63: rokwzgl=24 i lp=550 | AD63: rokwzgl=25 i lp=550 | AE63: rokwzgl=26 i lp=550 | AF63: rokwzgl=27 i lp=550 | AG63: rokwzgl=28 i lp=550 | AH63: rokwzgl=29 i lp=550
A64: 560 | B64: 10.1 | C64: Spłaty kredytów, pożyczek i wykup papierów wartościowych | D64: rokwzgl=0 i lp=560 | E64: rokwzgl=0 i lp=560 | F64: rokwzgl=1 i lp=560 | G64: rokwzgl=2 i lp=560 | H64: rokwzgl=3 i lp=560 | I64: rokwzgl=4 i lp=560 | J64: rokwzgl=5 i lp=560 | K64: rokwzgl=6 i lp=560 | L64: rokwzgl=7 i lp=560 | M64: rokwzgl=8 i lp=560 | N64: rokwzgl=9 i lp=560 | O64: rokwzgl=10 i lp=560 | P64: rokwzgl=11 i lp=560 | Q64: rokwzgl=12 i lp=560 | R64: rokwzgl=13 i lp=560 | S64: rokwzgl=14 i lp=560 | T64: rokwzgl=15 i lp=560 | U64: rokwzgl=16 i lp=560 | V64: rokwzgl=17 i lp=560 | W64: rokwzgl=18 i lp=560 | X64: rokwzgl=19 i lp=560 | Y64: rokwzgl=20 i lp=560 | Z64: rokwzgl=21 i lp=560 | AA64: rokwzgl=22 i lp=560 | AB64: rokwzgl=23 i lp=560 | AC64: rokwzgl=24 i lp=560 | AD64: rokwzgl=25 i lp=560 | AE64: rokwzgl=26 i lp=560 | AF64: rokwzgl=27 i lp=560 | AG64: rokwzgl=28 i lp=560 | AH64: rokwzgl=29 i lp=560
A65: 570 | B65: 11 | C65: Informacje uzupełniające o wybranych rodzajach wydatków budżetowych | D65: rokwzgl=0 i lp=570 | E65: rokwzgl=0 i lp=570 | F65: rokwzgl=1 i lp=570 | G65: rokwzgl=2 i lp=570 | H65: rokwzgl=3 i lp=570 | I65: rokwzgl=4 i lp=570 | J65: rokwzgl=5 i lp=570 | K65: rokwzgl=6 i lp=570 | L65: rokwzgl=7 i lp=570 | M65: rokwzgl=8 i lp=570 | N65: rokwzgl=9 i lp=570 | O65: rokwzgl=10 i lp=570 | P65: rokwzgl=11 i lp=570 | Q65: rokwzgl=12 i lp=570 | R65: rokwzgl=13 i lp=570 | S65: rokwzgl=14 i lp=570 | T65: rokwzgl=15 i lp=570 | U65: rokwzgl=16 i lp=570 | V65: rokwzgl=17 i lp=570 | W65: rokwzgl=18 i lp=570 | X65: rokwzgl=19 i lp=570 | Y65: rokwzgl=20 i lp=570 | Z65: rokwzgl=21 i lp=570 | AA65: rokwzgl=22 i lp=570 | AB65: rokwzgl=23 i lp=570 | AC65: rokwzgl=24 i lp=570 | AD65: rokwzgl=25 i lp=570 | AE65: rokwzgl=26 i lp=570 | AF65: rokwzgl=27 i lp=570 | AG65: rokwzgl=28 i lp=570 | AH65: rokwzgl=29 i lp=570
A66: 580 | B66: 11.1 | C66: Wydatki bieżące na wynagrodzenia i składki od nich naliczane | D66: =+"rokwzgl="&D$9&" i lp="&$A66 -> rokwzgl=0 i lp=580 | E66: rokwzgl=0 i lp=580 | F66: rokwzgl=1 i lp=580 | G66: rokwzgl=2 i lp=580 | H66: rokwzgl=3 i lp=580 | I66: rokwzgl=4 i lp=580 | J66: rokwzgl=5 i lp=580 | K66: rokwzgl=6 i lp=580 | L66: rokwzgl=7 i lp=580 | M66: rokwzgl=8 i lp=580 | N66: =+"rokwzgl="&N$9&" i lp="&$A66 -> rokwzgl=9 i lp=580 | O66: rokwzgl=10 i lp=580 | P66: rokwzgl=11 i lp=580 | Q66: rokwzgl=12 i lp=580 | R66: rokwzgl=13 i lp=580 | S66: rokwzgl=14 i lp=580 | T66: rokwzgl=15 i lp=580 | U66: rokwzgl=16 i lp=580 | V66: rokwzgl=17 i lp=580 | W66: rokwzgl=18 i lp=580 | X66: =+"rokwzgl="&X$9&" i lp="&$A66 -> rokwzgl=19 i lp=580 | Y66: rokwzgl=20 i lp=580 | Z66: rokwzgl=21 i lp=580 | AA66: rokwzgl=22 i lp=580 | AB66: rokwzgl=23 i lp=580 | AC66: rokwzgl=24 i lp=580 | AD66: rokwzgl=25 i lp=580 | AE66: rokwzgl=26 i lp=580 | AF66: rokwzgl=27 i lp=580 | AG66: rokwzgl=28 i lp=580 | AH66: rokwzgl=29 i lp=580
A67: 590 | B67: 11.2 | C67: Wydatki związane z funkcjonowaniem organów jednostki samorządu terytorialnego | D67: rokwzgl=0 i lp=590 | E67: rokwzgl=0 i lp=590 | F67: rokwzgl=1 i lp=590 | G67: rokwzgl=2 i lp=590 | H67: rokwzgl=3 i lp=590 | I67: rokwzgl=4 i lp=590 | J67: rokwzgl=5 i lp=590 | K67: rokwzgl=6 i lp=590 | L67: rokwzgl=7 i lp=590 | M67: rokwzgl=8 i lp=590 | N67: rokwzgl=9 i lp=590 | O67: rokwzgl=10 i lp=590 | P67: rokwzgl=11 i lp=590 | Q67: rokwzgl=12 i lp=590 | R67: rokwzgl=13 i lp=590 | S67: rokwzgl=14 i lp=590 | T67: rokwzgl=15 i lp=590 | U67: rokwzgl=16 i lp=590 | V67: rokwzgl=17 i lp=590 | W67: rokwzgl=18 i lp=590 | X67: rokwzgl=19 i lp=590 | Y67: rokwzgl=20 i lp=590 | Z67: rokwzgl=21 i lp=590 | AA67: rokwzgl=22 i lp=590 | AB67: rokwzgl=23 i lp=590 | AC67: rokwzgl=24 i lp=590 | AD67: rokwzgl=25 i lp=590 | AE67: rokwzgl=26 i lp=590 | AF67: rokwzgl=27 i lp=590 | AG67: rokwzgl=28 i lp=590 | AH67: rokwzgl=29 i lp=590
A68: 600 | B68: 11.3 | C68: Wydatki objęte limitem, o którym mowa w art. 226 ust. 3 pkt 4 ustawy | D68: rokwzgl=0 i lp=600 | E68: rokwzgl=0 i lp=600 | F68: rokwzgl=1 i lp=600 | G68: rokwzgl=2 i lp=600 | H68: rokwzgl=3 i lp=600 | I68: rokwzgl=4 i lp=600 | J68: rokwzgl=5 i lp=600 | K68: rokwzgl=6 i lp=600 | L68: rokwzgl=7 i lp=600 | M68: rokwzgl=8 i lp=600 | N68: rokwzgl=9 i lp=600 | O68: rokwzgl=10 i lp=600 | P68: rokwzgl=11 i lp=600 | Q68: rokwzgl=12 i lp=600 | R68: rokwzgl=13 i lp=600 | S68: rokwzgl=14 i lp=600 | T68: rokwzgl=15 i lp=600 | U68: rokwzgl=16 i lp=600 | V68: rokwzgl=17 i lp=600 | W68: rokwzgl=18 i lp=600 | X68: rokwzgl=19 i lp=600 | Y68: rokwzgl=20 i lp=600 | Z68: rokwzgl=21 i lp=600 | AA68: rokwzgl=22 i lp=600 | AB68: rokwzgl=23 i lp=600 | AC68: rokwzgl=24 i lp=600 | AD68: rokwzgl=25 i lp=600 | AE68: rokwzgl=26 i lp=600 | AF68: rokwzgl=27 i lp=600 | AG68: rokwzgl=28 i lp=600 | AH68: rokwzgl=29 i lp=600
A69: 610 | B69: 11.3.1 | C69: bieżące | D69: rokwzgl=0 i lp=610 | E69: rokwzgl=0 i lp=610 | F69: rokwzgl=1 i lp=610 | G69: rokwzgl=2 i lp=610 | H69: rokwzgl=3 i lp=610 | I69: rokwzgl=4 i lp=610 | J69: rokwzgl=5 i lp=610 | K69: rokwzgl=6 i lp=610 | L69: rokwzgl=7 i lp=610 | M69: rokwzgl=8 i lp=610 | N69: rokwzgl=9 i lp=610 | O69: rokwzgl=10 i lp=610 | P69: rokwzgl=11 i lp=610 | Q69: rokwzgl=12 i lp=610 | R69: rokwzgl=13 i lp=610 | S69: rokwzgl=14 i lp=610 | T69: rokwzgl=15 i lp=610 | U69: rokwzgl=16 i lp=610 | V69: rokwzgl=17 i lp=610 | W69: rokwzgl=18 i lp=610 | X69: rokwzgl=19 i lp=610 | Y69: rokwzgl=20 i lp=610 | Z69: rokwzgl=21 i lp=610 | AA69: rokwzgl=22 i lp=610 | AB69: rokwzgl=23 i lp=610 | AC69: rokwzgl=24 i lp=610 | AD69: rokwzgl=25 i lp=610 | AE69: rokwzgl=26 i lp=610 | AF69: rokwzgl=27 i lp=610 | AG69: rokwzgl=28 i lp=610 | AH69: rokwzgl=29 i lp=610
A70: 620 | B70: 11.3.2 | C70: majątkowe | D70: rokwzgl=0 i lp=620 | E70: rokwzgl=0 i lp=620 | F70: rokwzgl=1 i lp=620 | G70: rokwzgl=2 i lp=620 | H70: rokwzgl=3 i lp=620 | I70: rokwzgl=4 i lp=620 | J70: rokwzgl=5 i lp=620 | K70: rokwzgl=6 i lp=620 | L70: rokwzgl=7 i lp=620 | M70: rokwzgl=8 i lp=620 | N70: rokwzgl=9 i lp=620 | O70: rokwzgl=10 i lp=620 | P70: rokwzgl=11 i lp=620 | Q70: rokwzgl=12 i lp=620 | R70: rokwzgl=13 i lp=620 | S70: rokwzgl=14 i lp=620 | T70: rokwzgl=15 i lp=620 | U70: rokwzgl=16 i lp=620 | V70: rokwzgl=17 i lp=620 | W70: rokwzgl=18 i lp=620 | X70: rokwzgl=19 i lp=620 | Y70: rokwzgl=20 i lp=620 | Z70: rokwzgl=21 i lp=620 | AA70: rokwzgl=22 i lp=620 | AB70: rokwzgl=23 i lp=620 | AC70: rokwzgl=24 i lp=620 | AD70: rokwzgl=25 i lp=620 | AE70: rokwzgl=26 i lp=620 | AF70: rokwzgl=27 i lp=620 | AG70: rokwzgl=28 i lp=620 | AH70: rokwzgl=29 i lp=620
A71: 630 | B71: 11.4 | C71: Wydatki inwestycyjne kontynuowane | D71: rokwzgl=0 i lp=630 | E71: rokwzgl=0 i lp=630 | F71: rokwzgl=1 i lp=630 | G71: rokwzgl=2 i lp=630 | H71: rokwzgl=3 i lp=630 | I71: rokwzgl=4 i lp=630 | J71: rokwzgl=5 i lp=630 | K71: rokwzgl=6 i lp=630 | L71: rokwzgl=7 i lp=630 | M71: rokwzgl=8 i lp=630 | N71: rokwzgl=9 i lp=630 | O71: rokwzgl=10 i lp=630 | P71: rokwzgl=11 i lp=630 | Q71: rokwzgl=12 i lp=630 | R71: rokwzgl=13 i lp=630 | S71: rokwzgl=14 i lp=630 | T71: rokwzgl=15 i lp=630 | U71: rokwzgl=16 i lp=630 | V71: rokwzgl=17 i lp=630 | W71: rokwzgl=18 i lp=630 | X71: rokwzgl=19 i lp=630 | Y71: rokwzgl=20 i lp=630 | Z71: rokwzgl=21 i lp=630 | AA71: rokwzgl=22 i lp=630 | AB71: rokwzgl=23 i lp=630 | AC71: rokwzgl=24 i lp=630 | AD71: rokwzgl=25 i lp=630 | AE71: rokwzgl=26 i lp=630 | AF71: rokwzgl=27 i lp=630 | AG71: rokwzgl=28 i lp=630 | AH71: rokwzgl=29 i lp=630
A72: 640 | B72: 11.5 | C72: Nowe wydatki inwestycyjne | D72: rokwzgl=0 i lp=640 | E72: rokwzgl=0 i lp=640 | F72: rokwzgl=1 i lp=640 | G72: rokwzgl=2 i lp=640 | H72: rokwzgl=3 i lp=640 | I72: rokwzgl=4 i lp=640 | J72: rokwzgl=5 i lp=640 | K72: rokwzgl=6 i lp=640 | L72: rokwzgl=7 i lp=640 | M72: rokwzgl=8 i lp=640 | N72: rokwzgl=9 i lp=640 | O72: rokwzgl=10 i lp=640 | P72: rokwzgl=11 i lp=640 | Q72: rokwzgl=12 i lp=640 | R72: rokwzgl=13 i lp=640 | S72: rokwzgl=14 i lp=640 | T72: rokwzgl=15 i lp=640 | U72: rokwzgl=16 i lp=640 | V72: rokwzgl=17 i lp=640 | W72: rokwzgl=18 i lp=640 | X72: rokwzgl=19 i lp=640 | Y72: rokwzgl=20 i lp=640 | Z72: rokwzgl=21 i lp=640 | AA72: rokwzgl=22 i lp=640 | AB72: rokwzgl=23 i lp=640 | AC72: rokwzgl=24 i lp=640 | AD72: rokwzgl=25 i lp=640 | AE72: rokwzgl=26 i lp=640 | AF72: rokwzgl=27 i lp=640 | AG72: rokwzgl=28 i lp=640 | AH72: rokwzgl=29 i lp=640
A73: 650 | B73: 11.6 | C73: Wydatki majątkowe w formie dotacji | D73: rokwzgl=0 i lp=650 | E73: rokwzgl=0 i lp=650 | F73: rokwzgl=1 i lp=650 | G73: rokwzgl=2 i lp=650 | H73: rokwzgl=3 i lp=650 | I73: rokwzgl=4 i lp=650 | J73: rokwzgl=5 i lp=650 | K73: rokwzgl=6 i lp=650 | L73: rokwzgl=7 i lp=650 | M73: rokwzgl=8 i lp=650 | N73: rokwzgl=9 i lp=650 | O73: rokwzgl=10 i lp=650 | P73: rokwzgl=11 i lp=650 | Q73: rokwzgl=12 i lp=650 | R73: rokwzgl=13 i lp=650 | S73: rokwzgl=14 i lp=650 | T73: rokwzgl=15 i lp=650 | U73: rokwzgl=16 i lp=650 | V73: rokwzgl=17 i lp=650 | W73: rokwzgl=18 i lp=650 | X73: rokwzgl=19 i lp=650 | Y73: rokwzgl=20 i lp=650 | Z73: rokwzgl=21 i lp=650 | AA73: rokwzgl=22 i lp=650 | AB73: rokwzgl=23 i lp=650 | AC73: rokwzgl=24 i lp=650 | AD73: rokwzgl=25 i lp=650 | AE73: rokwzgl=26 i lp=650 | AF73: rokwzgl=27 i lp=650 | AG73: rokwzgl=28 i lp=650 | AH73: rokwzgl=29 i lp=650
A74: 660 | B74: 12 | C74: Finansowanie programów, projektów lub zadań realizowanych z udziałem środków, o których mowa w art. 5 ust. 1 pkt 2 i 3 ustawy | D74: rokwzgl=0 i lp=660 | E74: rokwzgl=0 i lp=660 | F74: rokwzgl=1 i lp=660 | G74: rokwzgl=2 i lp=660 | H74: rokwzgl=3 i lp=660 | I74: rokwzgl=4 i lp=660 | J74: rokwzgl=5 i lp=660 | K74: rokwzgl=6 i lp=660 | L74: rokwzgl=7 i lp=660 | M74: rokwzgl=8 i lp=660 | N74: rokwzgl=9 i lp=660 | O74: rokwzgl=10 i lp=660 | P74: rokwzgl=11 i lp=660 | Q74: rokwzgl=12 i lp=660 | R74: rokwzgl=13 i lp=660 | S74: rokwzgl=14 i lp=660 | T74: rokwzgl=15 i lp=660 | U74: rokwzgl=16 i lp=660 | V74: rokwzgl=17 i lp=660 | W74: rokwzgl=18 i lp=660 | X74: rokwzgl=19 i lp=660 | Y74: rokwzgl=20 i lp=660 | Z74: rokwzgl=21 i lp=660 | AA74: rokwzgl=22 i lp=660 | AB74: rokwzgl=23 i lp=660 | AC74: rokwzgl=24 i lp=660 | AD74: rokwzgl=25 i lp=660 | AE74: rokwzgl=26 i lp=660 | AF74: rokwzgl=27 i lp=660 | AG74: rokwzgl=28 i lp=660 | AH74: rokwzgl=29 i lp=660
A75: 670 | B75: 12.1 | C75: Dochody bieżące na programy, projekty lub zadania finansowane z udziałem środków, o których mowa w art. 5 ust. 1 pkt 2 i 3 ustawy | D75: rokwzgl=0 i lp=670 | E75: rokwzgl=0 i lp=670 | F75: rokwzgl=1 i lp=670 | G75: rokwzgl=2 i lp=670 | H75: rokwzgl=3 i lp=670 | I75: rokwzgl=4 i lp=670 | J75: rokwzgl=5 i lp=670 | K75: rokwzgl=6 i lp=670 | L75: rokwzgl=7 i lp=670 | M75: rokwzgl=8 i lp=670 | N75: rokwzgl=9 i lp=670 | O75: rokwzgl=10 i lp=670 | P75: rokwzgl=11 i lp=670 | Q75: rokwzgl=12 i lp=670 | R75: rokwzgl=13 i lp=670 | S75: rokwzgl=14 i lp=670 | T75: rokwzgl=15 i lp=670 | U75: rokwzgl=16 i lp=670 | V75: rokwzgl=17 i lp=670 | W75: rokwzgl=18 i lp=670 | X75: rokwzgl=19 i lp=670 | Y75: rokwzgl=20 i lp=670 | Z75: rokwzgl=21 i lp=670 | AA75: rokwzgl=22 i lp=670 | AB75: rokwzgl=23 i lp=670 | AC75: rokwzgl=24 i lp=670 | AD75: rokwzgl=25 i lp=670 | AE75: rokwzgl=26 i lp=670 | AF75: rokwzgl=27 i lp=670 | AG75: rokwzgl=28 i lp=670 | AH75: rokwzgl=29 i lp=670
A76: 680 | B76: 12.1.1 | C76: - w tym środki określone w art. 5 ust. 1 pkt 2 ustawy | D76: =+"rokwzgl="&D$9&" i lp="&$A76 -> rokwzgl=0 i lp=680 | E76: rokwzgl=0 i lp=680 | F76: rokwzgl=1 i lp=680 | G76: rokwzgl=2 i lp=680 | H76: rokwzgl=3 i lp=680 | I76: rokwzgl=4 i lp=680 | J76: rokwzgl=5 i lp=680 | K76: rokwzgl=6 i lp=680 | L76: rokwzgl=7 i lp=680 | M76: rokwzgl=8 i lp=680 | N76: rokwzgl=9 i lp=680 | O76: rokwzgl=10 i lp=680 | P76: rokwzgl=11 i lp=680 | Q76: rokwzgl=12 i lp=680 | R76: rokwzgl=13 i lp=680 | S76: rokwzgl=14 i lp=680 | T76: rokwzgl=15 i lp=680 | U76: rokwzgl=16 i lp=680 | V76: rokwzgl=17 i lp=680 | W76: rokwzgl=18 i lp=680 | X76: rokwzgl=19 i lp=680 | Y76: rokwzgl=20 i lp=680 | Z76: rokwzgl=21 i lp=680 | AA76: rokwzgl=22 i lp=680 | AB76: rokwzgl=23 i lp=680 | AC76: rokwzgl=24 i lp=680 | AD76: rokwzgl=25 i lp=680 | AE76: rokwzgl=26 i lp=680 | AF76: rokwzgl=27 i lp=680 | AG76: rokwzgl=28 i lp=680 | AH76: =+"rokwzgl="&AH$9&" i lp="&$A76 -> rokwzgl=29 i lp=680
A77: 690 | B77: 12.1.1.1 | C77: - w tym środki określone w art. 5 ust. 1 pkt 2 ustawy wynikające wyłącznie z zawartych umów na realizację programu, projektu lub zadania | D77: =+"rokwzgl="&D$9&" i lp="&$A77 -> rokwzgl=0 i lp=690 | E77: =+"rokwzgl="&E$9&" i lp="&$A77 -> rokwzgl=0 i lp=690 | F77: =+"rokwzgl="&F$9&" i lp="&$A77 -> rokwzgl=1 i lp=690 | G77: =+"rokwzgl="&G$9&" i lp="&$A77 -> rokwzgl=2 i lp=690 | H77: =+"rokwzgl="&H$9&" i lp="&$A77 -> rokwzgl=3 i lp=690 | I77: =+"rokwzgl="&I$9&" i lp="&$A77 -> rokwzgl=4 i lp=690 | J77: rokwzgl=5 i lp=690 | K77: rokwzgl=6 i lp=690 | L77: rokwzgl=7 i lp=690 | M77: rokwzgl=8 i lp=690 | N77: rokwzgl=9 i lp=690 | O77: rokwzgl=10 i lp=690 | P77: rokwzgl=11 i lp=690 | Q77: rokwzgl=12 i lp=690 | R77: rokwzgl=13 i lp=690 | S77: rokwzgl=14 i lp=690 | T77: rokwzgl=15 i lp=690 | U77: rokwzgl=16 i lp=690 | V77: rokwzgl=17 i lp=690 | W77: rokwzgl=18 i lp=690 | X77: rokwzgl=19 i lp=690 | Y77: rokwzgl=20 i lp=690 | Z77: rokwzgl=21 i lp=690 | AA77: rokwzgl=22 i lp=690 | AB77: rokwzgl=23 i lp=690 | AC77: rokwzgl=24 i lp=690 | AD77: rokwzgl=25 i lp=690 | AE77: rokwzgl=26 i lp=690 | AF77: rokwzgl=27 i lp=690 | AG77: rokwzgl=28 i lp=690 | AH77: rokwzgl=29 i lp=690
A78: 700 | B78: 12.2 | C78: Dochody majątkowe na programy, projekty lub zadania finansowane z udziałem środków, o których mowa w art. 5 ust. 1 pkt 2 i 3 ustawy | D78: =+"rokwzgl="&D$9&" i lp="&$A78 -> rokwzgl=0 i lp=700 | E78: rokwzgl=0 i lp=700 | F78: rokwzgl=1 i lp=700 | G78: rokwzgl=2 i lp=700 | H78: rokwzgl=3 i lp=700 | I78: rokwzgl=4 i lp=700 | J78: rokwzgl=5 i lp=700 | K78: rokwzgl=6 i lp=700 | L78: rokwzgl=7 i lp=700 | M78: rokwzgl=8 i lp=700 | N78: rokwzgl=9 i lp=700 | O78: rokwzgl=10 i lp=700 | P78: rokwzgl=11 i lp=700 | Q78: rokwzgl=12 i lp=700 | R78: rokwzgl=13 i lp=700 | S78: rokwzgl=14 i lp=700 | T78: rokwzgl=15 i lp=700 | U78: rokwzgl=16 i lp=700 | V78: rokwzgl=17 i lp=700 | W78: rokwzgl=18 i lp=700 | X78: rokwzgl=19 i lp=700 | Y78: rokwzgl=20 i lp=700 | Z78: rokwzgl=21 i lp=700 | AA78: rokwzgl=22 i lp=700 | AB78: rokwzgl=23 i lp=700 | AC78: rokwzgl=24 i lp=700 | AD78: rokwzgl=25 i lp=700 | AE78: rokwzgl=26 i lp=700 | AF78: rokwzgl=27 i lp=700 | AG78: rokwzgl=28 i lp=700 | AH78: rokwzgl=29 i lp=700
A79: 710 | B79: 12.2.1 | C79: - w tym środki określone w art. 5 ust. 1 pkt 2 ustawy | D79: rokwzgl=0 i lp=710 | E79: rokwzgl=0 i lp=710 | F79: rokwzgl=1 i lp=710 | G79: rokwzgl=2 i lp=710 | H79: rokwzgl=3 i lp=710 | I79: rokwzgl=4 i lp=710 | J79: rokwzgl=5 i lp=710 | K79: rokwzgl=6 i lp=710 | L79: rokwzgl=7 i lp=710 | M79: rokwzgl=8 i lp=710 | N79: rokwzgl=9 i lp=710 | O79: rokwzgl=10 i lp=710 | P79: rokwzgl=11 i lp=710 | Q79: rokwzgl=12 i lp=710 | R79: rokwzgl=13 i lp=710 | S79: rokwzgl=14 i lp=710 | T79: rokwzgl=15 i lp=710 | U79: rokwzgl=16 i lp=710 | V79: rokwzgl=17 i lp=710 | W79: rokwzgl=18 i lp=710 | X79: rokwzgl=19 i lp=710 | Y79: rokwzgl=20 i lp=710 | Z79: rokwzgl=21 i lp=710 | AA79: rokwzgl=22 i lp=710 | AB79: rokwzgl=23 i lp=710 | AC79: rokwzgl=24 i lp=710 | AD79: rokwzgl=25 i lp=710 | AE79: rokwzgl=26 i lp=710 | AF79: rokwzgl=27 i lp=710 | AG79: rokwzgl=28 i lp=710 | AH79: rokwzgl=29 i lp=710
A80: 720 | B80: 12.2.1.1 | C80: - w tym środki określone w art. 5 ust. 1 pkt 2 ustawy wynikające wyłącznie z zawartych umów na realizację programu, projektu lub zadania | D80: rokwzgl=0 i lp=720 | E80: rokwzgl=0 i lp=720 | F80: rokwzgl=1 i lp=720 | G80: rokwzgl=2 i lp=720 | H80: rokwzgl=3 i lp=720 | I80: rokwzgl=4 i lp=720 | J80: rokwzgl=5 i lp=720 | K80: rokwzgl=6 i lp=720 | L80: rokwzgl=7 i lp=720 | M80: rokwzgl=8 i lp=720 | N80: rokwzgl=9 i lp=720 | O80: rokwzgl=10 i lp=720 | P80: rokwzgl=11 i lp=720 | Q80: rokwzgl=12 i lp=720 | R80: rokwzgl=13 i lp=720 | S80: rokwzgl=14 i lp=720 | T80: rokwzgl=15 i lp=720 | U80: rokwzgl=16 i lp=720 | V80: rokwzgl=17 i lp=720 | W80: rokwzgl=18 i lp=720 | X80: rokwzgl=19 i lp=720 | Y80: rokwzgl=20 i lp=720 | Z80: rokwzgl=21 i lp=720 | AA80: rokwzgl=22 i lp=720 | AB80: rokwzgl=23 i lp=720 | AC80: rokwzgl=24 i lp=720 | AD80: rokwzgl=25 i lp=720 | AE80: rokwzgl=26 i lp=720 | AF80: rokwzgl=27 i lp=720 | AG80: rokwzgl=28 i lp=720 | AH80: rokwzgl=29 i lp=720
A81: 730 | B81: 12.3 | C81: Wydatki bieżące na programy, projekty lub zadania finansowane z udziałem środków, o których mowa w art. 5 ust. 1 pkt 2 i 3 ustawy | D81: rokwzgl=0 i lp=730 | E81: rokwzgl=0 i lp=730 | F81: rokwzgl=1 i lp=730 | G81: rokwzgl=2 i lp=730 | H81: rokwzgl=3 i lp=730 | I81: rokwzgl=4 i lp=730 | J81: rokwzgl=5 i lp=730 | K81: rokwzgl=6 i lp=730 | L81: rokwzgl=7 i lp=730 | M81: rokwzgl=8 i lp=730 | N81: rokwzgl=9 i lp=730 | O81: rokwzgl=10 i lp=730 | P81: rokwzgl=11 i lp=730 | Q81: rokwzgl=12 i lp=730 | R81: rokwzgl=13 i lp=730 | S81: rokwzgl=14 i lp=730 | T81: rokwzgl=15 i lp=730 | U81: rokwzgl=16 i lp=730 | V81: rokwzgl=17 i lp=730 | W81: rokwzgl=18 i lp=730 | X81: rokwzgl=19 i lp=730 | Y81: rokwzgl=20 i lp=730 | Z81: rokwzgl=21 i lp=730 | AA81: rokwzgl=22 i lp=730 | AB81: rokwzgl=23 i lp=730 | AC81: rokwzgl=24 i lp=730 | AD81: rokwzgl=25 i lp=730 | AE81: rokwzgl=26 i lp=730 | AF81: rokwzgl=27 i lp=730 | AG81: rokwzgl=28 i lp=730 | AH81: rokwzgl=29 i lp=730
A82: 740 | B82: 12.3.1 | C82: - w tym finansowane środkami określonymi w art. 5 ust. 1 pkt 2 ustawy | D82: rokwzgl=0 i lp=740 | E82: rokwzgl=0 i lp=740 | F82: rokwzgl=1 i lp=740 | G82: rokwzgl=2 i lp=740 | H82: rokwzgl=3 i lp=740 | I82: rokwzgl=4 i lp=740 | J82: rokwzgl=5 i lp=740 | K82: rokwzgl=6 i lp=740 | L82: rokwzgl=7 i lp=740 | M82: rokwzgl=8 i lp=740 | N82: rokwzgl=9 i lp=740 | O82: rokwzgl=10 i lp=740 | P82: rokwzgl=11 i lp=740 | Q82: rokwzgl=12 i lp=740 | R82: rokwzgl=13 i lp=740 | S82: rokwzgl=14 i lp=740 | T82: rokwzgl=15 i lp=740 | U82: rokwzgl=16 i lp=740 | V82: rokwzgl=17 i lp=740 | W82: rokwzgl=18 i lp=740 | X82: rokwzgl=19 i lp=740 | Y82: rokwzgl=20 i lp=740 | Z82: rokwzgl=21 i lp=740 | AA82: rokwzgl=22 i lp=740 | AB82: rokwzgl=23 i lp=740 | AC82: rokwzgl=24 i lp=740 | AD82: rokwzgl=25 i lp=740 | AE82: rokwzgl=26 i lp=740 | AF82: rokwzgl=27 i lp=740 | AG82: rokwzgl=28 i lp=740 | AH82: rokwzgl=29 i lp=740
A83: 750 | B83: 12.3.2 | C83: Wydatki bieżące na realizację programu, projektu lub zadania wynikające wyłącznie z zawartych umów z podmiotem dysponującym środkami, o których mowa w art. 5 ust. 1 pkt 2 ustawy | D83: rokwzgl=0 i lp=750 | E83: rokwzgl=0 i lp=750 | F83: rokwzgl=1 i lp=750 | G83: rokwzgl=2 i lp=750 | H83: rokwzgl=3 i lp=750 | I83: rokwzgl=4 i lp=750 | J83: rokwzgl=5 i lp=750 | K83: rokwzgl=6 i lp=750 | L83: rokwzgl=7 i lp=750 | M83: rokwzgl=8 i lp=750 | N83: rokwzgl=9 i lp=750 | O83: rokwzgl=10 i lp=750 | P83: rokwzgl=11 i lp=750 | Q83: rokwzgl=12 i lp=750 | R83: rokwzgl=13 i lp=750 | S83: rokwzgl=14 i lp=750 | T83: rokwzgl=15 i lp=750 | U83: rokwzgl=16 i lp=750 | V83: rokwzgl=17 i lp=750 | W83: rokwzgl=18 i lp=750 | X83: rokwzgl=19 i lp=750 | Y83: rokwzgl=20 i lp=750 | Z83: rokwzgl=21 i lp=750 | AA83: rokwzgl=22 i lp=750 | AB83: rokwzgl=23 i lp=750 | AC83: rokwzgl=24 i lp=750 | AD83: rokwzgl=25 i lp=750 | AE83: rokwzgl=26 i lp=750 | AF83: rokwzgl=27 i lp=750 | AG83: rokwzgl=28 i lp=750 | AH83: rokwzgl=29 i lp=750
A84: 760 | B84: 12.4 | C84: Wydatki majątkowe na programy, projekty lub zadania finansowane z udziałem środków, o których mowa w art. 5 ust. 1 pkt 2 i 3 ustawy | D84: rokwzgl=0 i lp=760 | E84: rokwzgl=0 i lp=760 | F84: rokwzgl=1 i lp=760 | G84: rokwzgl=2 i lp=760 | H84: rokwzgl=3 i lp=760 | I84: rokwzgl=4 i lp=760 | J84: rokwzgl=5 i lp=760 | K84: rokwzgl=6 i lp=760 | L84: rokwzgl=7 i lp=760 | M84: rokwzgl=8 i lp=760 | N84: rokwzgl=9 i lp=760 | O84: rokwzgl=10 i lp=760 | P84: rokwzgl=11 i lp=760 | Q84: rokwzgl=12 i lp=760 | R84: rokwzgl=13 i lp=760 | S84: rokwzgl=14 i lp=760 | T84: rokwzgl=15 i lp=760 | U84: rokwzgl=16 i lp=760 | V84: rokwzgl=17 i lp=760 | W84: rokwzgl=18 i lp=760 | X84: rokwzgl=19 i lp=760 | Y84: rokwzgl=20 i lp=760 | Z84: rokwzgl=21 i lp=760 | AA84: rokwzgl=22 i lp=760 | AB84: rokwzgl=23 i lp=760 | AC84: rokwzgl=24 i lp=760 | AD84: rokwzgl=25 i lp=760 | AE84: rokwzgl=26 i lp=760 | AF84: rokwzgl=27 i lp=760 | AG84: rokwzgl=28 i lp=760 | AH84: rokwzgl=29 i lp=760
A85: 761 | B85: 12.4.1 | C85: - w tym finansowane środkami określonymi w art. 5 ust. 1 pkt 2 ustawy | D85: rokwzgl=0 i lp=761 | E85: rokwzgl=0 i lp=761 | F85: rokwzgl=1 i lp=761 | G85: rokwzgl=2 i lp=761 | H85: rokwzgl=3 i lp=761 | I85: rokwzgl=4 i lp=761 | J85: rokwzgl=5 i lp=761 | K85: rokwzgl=6 i lp=761 | L85: rokwzgl=7 i lp=761 | M85: rokwzgl=8 i lp=761 | N85: rokwzgl=9 i lp=761 | O85: rokwzgl=10 i lp=761 | P85: rokwzgl=11 i lp=761 | Q85: rokwzgl=12 i lp=761 | R85: rokwzgl=13 i lp=761 | S85: rokwzgl=14 i lp=761 | T85: rokwzgl=15 i lp=761 | U85: rokwzgl=16 i lp=761 | V85: rokwzgl=17 i lp=761 | W85: rokwzgl=18 i lp=761 | X85: rokwzgl=19 i lp=761 | Y85: rokwzgl=20 i lp=761 | Z85: rokwzgl=21 i lp=761 | AA85: rokwzgl=22 i lp=761 | AB85: rokwzgl=23 i lp=761 | AC85: rokwzgl=24 i lp=761 | AD85: rokwzgl=25 i lp=761 | AE85: rokwzgl=26 i lp=761 | AF85: rokwzgl=27 i lp=761 | AG85: rokwzgl=28 i lp=761 | AH85: rokwzgl=29 i lp=761
A86: 762 | B86: 12.4.2 | C86: Wydatki majątkowe na realizację programu, projektu lub zadania wynikające wyłącznie z zawartych umów z podmiotem dysponującym środkami, o których mowa w art. 5 ust. 1 pkt 2 ustawy | D86: rokwzgl=0 i lp=762 | E86: rokwzgl=0 i lp=762 | F86: rokwzgl=1 i lp=762 | G86: rokwzgl=2 i lp=762 | H86: rokwzgl=3 i lp=762 | I86: rokwzgl=4 i lp=762 | J86: rokwzgl=5 i lp=762 | K86: rokwzgl=6 i lp=762 | L86: rokwzgl=7 i lp=762 | M86: rokwzgl=8 i lp=762 | N86: rokwzgl=9 i lp=762 | O86: rokwzgl=10 i lp=762 | P86: rokwzgl=11 i lp=762 | Q86: rokwzgl=12 i lp=762 | R86: rokwzgl=13 i lp=762 | S86: rokwzgl=14 i lp=762 | T86: rokwzgl=15 i lp=762 | U86: rokwzgl=16 i lp=762 | V86: rokwzgl=17 i lp=762 | W86: rokwzgl=18 i lp=762 | X86: rokwzgl=19 i lp=762 | Y86: rokwzgl=20 i lp=762 | Z86: rokwzgl=21 i lp=762 | AA86: rokwzgl=22 i lp=762 | AB86: rokwzgl=23 i lp=762 | AC86: rokwzgl=24 i lp=762 | AD86: rokwzgl=25 i lp=762 | AE86: rokwzgl=26 i lp=762 | AF86: rokwzgl=27 i lp=762 | AG86: rokwzgl=28 i lp=762 | AH86: rokwzgl=29 i lp=762
A87: 763 | B87: 12.5 | C87: Wydatki na wkład krajowy w związku z umową na realizację programu, projektu lub zadania finansowanego z udziałem środków, o których mowa w art. 5 ust. 1 pkt 2 ustawy bez względu na stopień finansowania tymi środkami | D87: rokwzgl=0 i lp=763 | E87: rokwzgl=0 i lp=763 | F87: rokwzgl=1 i lp=763 | G87: rokwzgl=2 i lp=763 | H87: rokwzgl=3 i lp=763 | I87: rokwzgl=4 i lp=763 | J87: rokwzgl=5 i lp=763 | K87: rokwzgl=6 i lp=763 | L87: rokwzgl=7 i lp=763 | M87: rokwzgl=8 i lp=763 | N87: rokwzgl=9 i lp=763 | O87: rokwzgl=10 i lp=763 | P87: rokwzgl=11 i lp=763 | Q87: rokwzgl=12 i lp=763 | R87: rokwzgl=13 i lp=763 | S87: rokwzgl=14 i lp=763 | T87: rokwzgl=15 i lp=763 | U87: rokwzgl=16 i lp=763 | V87: rokwzgl=17 i lp=763 | W87: rokwzgl=18 i lp=763 | X87: rokwzgl=19 i lp=763 | Y87: rokwzgl=20 i lp=763 | Z87: rokwzgl=21 i lp=763 | AA87: rokwzgl=22 i lp=763 | AB87: rokwzgl=23 i lp=763 | AC87: rokwzgl=24 i lp=763 | AD87: rokwzgl=25 i lp=763 | AE87: rokwzgl=26 i lp=763 | AF87: rokwzgl=27 i lp=763 | AG87: rokwzgl=28 i lp=763 | AH87: rokwzgl=29 i lp=763
A88: 764 | B88: 12.5.1 | C88: w tym w związku z już zawartą umową na realizację programu, projektu lub zadania | D88: rokwzgl=0 i lp=764 | E88: rokwzgl=0 i lp=764 | F88: rokwzgl=1 i lp=764 | G88: rokwzgl=2 i lp=764 | H88: rokwzgl=3 i lp=764 | I88: rokwzgl=4 i lp=764 | J88: rokwzgl=5 i lp=764 | K88: rokwzgl=6 i lp=764 | L88: rokwzgl=7 i lp=764 | M88: rokwzgl=8 i lp=764 | N88: rokwzgl=9 i lp=764 | O88: rokwzgl=10 i lp=764 | P88: rokwzgl=11 i lp=764 | Q88: rokwzgl=12 i lp=764 | R88: rokwzgl=13 i lp=764 | S88: rokwzgl=14 i lp=764 | T88: rokwzgl=15 i lp=764 | U88: rokwzgl=16 i lp=764 | V88: rokwzgl=17 i lp=764 | W88: rokwzgl=18 i lp=764 | X88: rokwzgl=19 i lp=764 | Y88: rokwzgl=20 i lp=764 | Z88: rokwzgl=21 i lp=764 | AA88: rokwzgl=22 i lp=764 | AB88: rokwzgl=23 i lp=764 | AC88: rokwzgl=24 i lp=764 | AD88: rokwzgl=25 i lp=764 | AE88: rokwzgl=26 i lp=764 | AF88: rokwzgl=27 i lp=764 | AG88: rokwzgl=28 i lp=764 | AH88: rokwzgl=29 i lp=764
A89: 765 | B89: 12.6 | C89: Wydatki na wkład krajowy w związku z zawartą po dniu 1 stycznia 2013 r. umową na realizację programu, projektu lub zadania finansowanego w co najmniej 60% środkami, o których mowa w art. 5 ust. 1 pkt 2 ustawy | D89: rokwzgl=0 i lp=765 | E89: rokwzgl=0 i lp=765 | F89: rokwzgl=1 i lp=765 | G89: rokwzgl=2 i lp=765 | H89: rokwzgl=3 i lp=765 | I89: rokwzgl=4 i lp=765 | J89: rokwzgl=5 i lp=765 | K89: rokwzgl=6 i lp=765 | L89: rokwzgl=7 i lp=765 | M89: rokwzgl=8 i lp=765 | N89: rokwzgl=9 i lp=765 | O89: rokwzgl=10 i lp=765 | P89: rokwzgl=11 i lp=765 | Q89: rokwzgl=12 i lp=765 | R89: rokwzgl=13 i lp=765 | S89: rokwzgl=14 i lp=765 | T89: rokwzgl=15 i lp=765 | U89: rokwzgl=16 i lp=765 | V89: rokwzgl=17 i lp=765 | W89: rokwzgl=18 i lp=765 | X89: rokwzgl=19 i lp=765 | Y89: rokwzgl=20 i lp=765 | Z89: rokwzgl=21 i lp=765 | AA89: rokwzgl=22 i lp=765 | AB89: rokwzgl=23 i lp=765 | AC89: rokwzgl=24 i lp=765 | AD89: rokwzgl=25 i lp=765 | AE89: rokwzgl=26 i lp=765 | AF89: rokwzgl=27 i lp=765 | AG89: rokwzgl=28 i lp=765 | AH89: rokwzgl=29 i lp=765
A90: 766 | B90: 12.6.1 | C90: w tym w związku z już zawartą umową na realizację programu, projektu lub zadania | D90: rokwzgl=0 i lp=766 | E90: rokwzgl=0 i lp=766 | F90: rokwzgl=1 i lp=766 | G90: rokwzgl=2 i lp=766 | H90: rokwzgl=3 i lp=766 | I90: rokwzgl=4 i lp=766 | J90: rokwzgl=5 i lp=766 | K90: rokwzgl=6 i lp=766 | L90: rokwzgl=7 i lp=766 | M90: rokwzgl=8 i lp=766 | N90: rokwzgl=9 i lp=766 | O90: rokwzgl=10 i lp=766 | P90: rokwzgl=11 i lp=766 | Q90: rokwzgl=12 i lp=766 | R90: rokwzgl=13 i lp=766 | S90: rokwzgl=14 i lp=766 | T90: rokwzgl=15 i lp=766 | U90: rokwzgl=16 i lp=766 | V90: rokwzgl=17 i lp=766 | W90: rokwzgl=18 i lp=766 | X90: rokwzgl=19 i lp=766 | Y90: rokwzgl=20 i lp=766 | Z90: rokwzgl=21 i lp=766 | AA90: rokwzgl=22 i lp=766 | AB90: rokwzgl=23 i lp=766 | AC90: rokwzgl=24 i lp=766 | AD90: rokwzgl=25 i lp=766 | AE90: rokwzgl=26 i lp=766 | AF90: rokwzgl=27 i lp=766 | AG90: rokwzgl=28 i lp=766 | AH90: rokwzgl=29 i lp=766
A91: 767 | B91: 12.7 | C91: Przychody z tytułu kredytów, pożyczek, emisji papierów wartościowych powstające w związku z umową na realizację programu, projektu lub zadania finansowanego z udziałem środków, o których mowa w art. 5 ust. 1 pkt 2 ustawy bez względu na stopień finansowania tymi środkami | D91: rokwzgl=0 i lp=767 | E91: rokwzgl=0 i lp=767 | F91: rokwzgl=1 i lp=767 | G91: rokwzgl=2 i lp=767 | H91: rokwzgl=3 i lp=767 | I91: rokwzgl=4 i lp=767 | J91: rokwzgl=5 i lp=767 | K91: rokwzgl=6 i lp=767 | L91: rokwzgl=7 i lp=767 | M91: rokwzgl=8 i lp=767 | N91: rokwzgl=9 i lp=767 | O91: rokwzgl=10 i lp=767 | P91: rokwzgl=11 i lp=767 | Q91: rokwzgl=12 i lp=767 | R91: rokwzgl=13 i lp=767 | S91: rokwzgl=14 i lp=767 | T91: rokwzgl=15 i lp=767 | U91: rokwzgl=16 i lp=767 | V91: rokwzgl=17 i lp=767 | W91: rokwzgl=18 i lp=767 | X91: rokwzgl=19 i lp=767 | Y91: rokwzgl=20 i lp=767 | Z91: rokwzgl=21 i lp=767 | AA91: rokwzgl=22 i lp=767 | AB91: rokwzgl=23 i lp=767 | AC91: rokwzgl=24 i lp=767 | AD91: rokwzgl=25 i lp=767 | AE91: rokwzgl=26 i lp=767 | AF91: rokwzgl=27 i lp=767 | AG91: rokwzgl=28 i lp=767 | AH91: rokwzgl=29 i lp=767
A92: 768 | B92: 12.7.1 | C92: w tym w związku z już zawartą umową na realizację programu, projektu lub zadania | D92: rokwzgl=0 i lp=768 | E92: rokwzgl=0 i lp=768 | F92: rokwzgl=1 i lp=768 | G92: rokwzgl=2 i lp=768 | H92: rokwzgl=3 i lp=768 | I92: rokwzgl=4 i lp=768 | J92: rokwzgl=5 i lp=768 | K92: rokwzgl=6 i lp=768 | L92: rokwzgl=7 i lp=768 | M92: rokwzgl=8 i lp=768 | N92: rokwzgl=9 i lp=768 | O92: rokwzgl=10 i lp=768 | P92: rokwzgl=11 i lp=768 | Q92: rokwzgl=12 i lp=768 | R92: rokwzgl=13 i lp=768 | S92: rokwzgl=14 i lp=768 | T92: rokwzgl=15 i lp=768 | U92: rokwzgl=16 i lp=768 | V92: rokwzgl=17 i lp=768 | W92: rokwzgl=18 i lp=768 | X92: rokwzgl=19 i lp=768 | Y92: rokwzgl=20 i lp=768 | Z92: rokwzgl=21 i lp=768 | AA92: rokwzgl=22 i lp=768 | AB92: rokwzgl=23 i lp=768 | AC92: rokwzgl=24 i lp=768 | AD92: rokwzgl=25 i lp=768 | AE92: rokwzgl=26 i lp=768 | AF92: rokwzgl=27 i lp=768 | AG92: rokwzgl=28 i lp=768 | AH92: rokwzgl=29 i lp=768
A93: 769 | B93: 12.8 | C93: Przychody z tytułu kredytów, pożyczek, emisji papierów wartościowych powstające w związku z zawartą po dniu 1 stycznia 2013 r. umową na realizację programu, projektu lub zadania finansowanego w co najmniej 60% środkami, o których mowa w art. 5 ust. 1 pkt 2 ustawy | D93: rokwzgl=0 i lp=769 | E93: rokwzgl=0 i lp=769 | F93: rokwzgl=1 i lp=769 | G93: rokwzgl=2 i lp=769 | H93: rokwzgl=3 i lp=769 | I93: rokwzgl=4 i lp=769 | J93: rokwzgl=5 i lp=769 | K93: rokwzgl=6 i lp=769 | L93: rokwzgl=7 i lp=769 | M93: rokwzgl=8 i lp=769 | N93: rokwzgl=9 i lp=769 | O93: rokwzgl=10 i lp=769 | P93: rokwzgl=11 i lp=769 | Q93: rokwzgl=12 i lp=769 | R93: rokwzgl=13 i lp=769 | S93: rokwzgl=14 i lp=769 | T93: rokwzgl=15 i lp=769 | U93: rokwzgl=16 i lp=769 | V93: rokwzgl=17 i lp=769 | W93: rokwzgl=18 i lp=769 | X93: rokwzgl=19 i lp=769 | Y93: rokwzgl=20 i lp=769 | Z93: rokwzgl=21 i lp=769 | AA93: rokwzgl=22 i lp=769 | AB93: rokwzgl=23 i lp=769 | AC93: rokwzgl=24 i lp=769 | AD93: rokwzgl=25 i lp=769 | AE93: rokwzgl=26 i lp=769 | AF93: rokwzgl=27 i lp=769 | AG93: rokwzgl=28 i lp=769 | AH93: rokwzgl=29 i lp=769
A94: 770 | B94: 12.8.1 | C94: w tym w związku z już zawartą umową na realizację programu, projektu lub zadania | D94: rokwzgl=0 i lp=770 | E94: rokwzgl=0 i lp=770 | F94: rokwzgl=1 i lp=770 | G94: rokwzgl=2 i lp=770 | H94: rokwzgl=3 i lp=770 | I94: rokwzgl=4 i lp=770 | J94: rokwzgl=5 i lp=770 | K94: rokwzgl=6 i lp=770 | L94: rokwzgl=7 i lp=770 | M94: rokwzgl=8 i lp=770 | N94: rokwzgl=9 i lp=770 | O94: rokwzgl=10 i lp=770 | P94: rokwzgl=11 i lp=770 | Q94: rokwzgl=12 i lp=770 | R94: rokwzgl=13 i lp=770 | S94: rokwzgl=14 i lp=770 | T94: rokwzgl=15 i lp=770 | U94: rokwzgl=16 i lp=770 | V94: rokwzgl=17 i lp=770 | W94: rokwzgl=18 i lp=770 | X94: rokwzgl=19 i lp=770 | Y94: rokwzgl=20 i lp=770 | Z94: rokwzgl=21 i lp=770 | AA94: rokwzgl=22 i lp=770 | AB94: rokwzgl=23 i lp=770 | AC94: rokwzgl=24 i lp=770 | AD94: rokwzgl=25 i lp=770 | AE94: rokwzgl=26 i lp=770 | AF94: rokwzgl=27 i lp=770 | AG94: rokwzgl=28 i lp=770 | AH94: rokwzgl=29 i lp=770
A95: 790 | B95: 13 | C95: Kwoty dotyczące przejęcia i spłaty zobowiązań po samodzielnych publicznych zakładach opieki zdrowotnej oraz pokrycia ujemnego wyniku | D95: rokwzgl=0 i lp=790 | E95: rokwzgl=0 i lp=790 | F95: rokwzgl=1 i lp=790 | G95: rokwzgl=2 i lp=790 | H95: rokwzgl=3 i lp=790 | I95: rokwzgl=4 i lp=790 | J95: rokwzgl=5 i lp=790 | K95: rokwzgl=6 i lp=790 | L95: rokwzgl=7 i lp=790 | M95: rokwzgl=8 i lp=790 | N95: rokwzgl=9 i lp=790 | O95: rokwzgl=10 i lp=790 | P95: rokwzgl=11 i lp=790 | Q95: rokwzgl=12 i lp=790 | R95: rokwzgl=13 i lp=790 | S95: rokwzgl=14 i lp=790 | T95: rokwzgl=15 i lp=790 | U95: rokwzgl=16 i lp=790 | V95: rokwzgl=17 i lp=790 | W95: rokwzgl=18 i lp=790 | X95: rokwzgl=19 i lp=790 | Y95: rokwzgl=20 i lp=790 | Z95: rokwzgl=21 i lp=790 | AA95: rokwzgl=22 i lp=790 | AB95: rokwzgl=23 i lp=790 | AC95: rokwzgl=24 i lp=790 | AD95: rokwzgl=25 i lp=790 | AE95: rokwzgl=26 i lp=790 | AF95: rokwzgl=27 i lp=790 | AG95: rokwzgl=28 i lp=790 | AH95: rokwzgl=29 i lp=790
A96: 800 | B96: 13.1 | C96: Kwota zobowiązań wynikających z przejęcia przez jednostkę samorządu terytorialnego zobowiązań po likwidowanych i przekształcanych samodzielnych zakładach opieki zdrowotnej | D96: rokwzgl=0 i lp=800 | E96: rokwzgl=0 i lp=800 | F96: rokwzgl=1 i lp=800 | G96: rokwzgl=2 i lp=800 | H96: rokwzgl=3 i lp=800 | I96: rokwzgl=4 i lp=800 | J96: rokwzgl=5 i lp=800 | K96: rokwzgl=6 i lp=800 | L96: rokwzgl=7 i lp=800 | M96: rokwzgl=8 i lp=800 | N96: rokwzgl=9 i lp=800 | O96: rokwzgl=10 i lp=800 | P96: rokwzgl=11 i lp=800 | Q96: rokwzgl=12 i lp=800 | R96: rokwzgl=13 i lp=800 | S96: rokwzgl=14 i lp=800 | T96: rokwzgl=15 i lp=800 | U96: rokwzgl=16 i lp=800 | V96: rokwzgl=17 i lp=800 | W96: rokwzgl=18 i lp=800 | X96: rokwzgl=19 i lp=800 | Y96: rokwzgl=20 i lp=800 | Z96: rokwzgl=21 i lp=800 | AA96: rokwzgl=22 i lp=800 | AB96: rokwzgl=23 i lp=800 | AC96: rokwzgl=24 i lp=800 | AD96: rokwzgl=25 i lp=800 | AE96: rokwzgl=26 i lp=800 | AF96: rokwzgl=27 i lp=800 | AG96: rokwzgl=28 i lp=800 | AH96: rokwzgl=29 i lp=800
A97: 810 | B97: 13.2 | C97: Dochody budżetowe z tytułu dotacji celowej z budżetu państwa, o której mowa w art. 196 ustawy z dnia 15 kwietnia 2011 r. o działalności leczniczej (Dz.U. Nr 112, poz. 654, z późn. zm.) | D97: rokwzgl=0 i lp=810 | E97: rokwzgl=0 i lp=810 | F97: rokwzgl=1 i lp=810 | G97: rokwzgl=2 i lp=810 | H97: rokwzgl=3 i lp=810 | I97: rokwzgl=4 i lp=810 | J97: rokwzgl=5 i lp=810 | K97: rokwzgl=6 i lp=810 | L97: rokwzgl=7 i lp=810 | M97: rokwzgl=8 i lp=810 | N97: rokwzgl=9 i lp=810 | O97: rokwzgl=10 i lp=810 | P97: rokwzgl=11 i lp=810 | Q97: rokwzgl=12 i lp=810 | R97: rokwzgl=13 i lp=810 | S97: rokwzgl=14 i lp=810 | T97: rokwzgl=15 i lp=810 | U97: rokwzgl=16 i lp=810 | V97: rokwzgl=17 i lp=810 | W97: rokwzgl=18 i lp=810 | X97: rokwzgl=19 i lp=810 | Y97: rokwzgl=20 i lp=810 | Z97: rokwzgl=21 i lp=810 | AA97: rokwzgl=22 i lp=810 | AB97: rokwzgl=23 i lp=810 | AC97: rokwzgl=24 i lp=810 | AD97: rokwzgl=25 i lp=810 | AE97: rokwzgl=26 i lp=810 | AF97: rokwzgl=27 i lp=810 | AG97: rokwzgl=28 i lp=810 | AH97: rokwzgl=29 i lp=810
A98: 820 | B98: 13.3 | C98: Wysokość zobowiązań podlegających umorzeniu, o którym mowa w art. 190 ustawy o działalności leczniczej | D98: rokwzgl=0 i lp=820 | E98: rokwzgl=0 i lp=820 | F98: rokwzgl=1 i lp=820 | G98: rokwzgl=2 i lp=820 | H98: rokwzgl=3 i lp=820 | I98: rokwzgl=4 i lp=820 | J98: rokwzgl=5 i lp=820 | K98: rokwzgl=6 i lp=820 | L98: rokwzgl=7 i lp=820 | M98: rokwzgl=8 i lp=820 | N98: rokwzgl=9 i lp=820 | O98: rokwzgl=10 i lp=820 | P98: rokwzgl=11 i lp=820 | Q98: rokwzgl=12 i lp=820 | R98: rokwzgl=13 i lp=820 | S98: rokwzgl=14 i lp=820 | T98: rokwzgl=15 i lp=820 | U98: rokwzgl=16 i lp=820 | V98: rokwzgl=17 i lp=820 | W98: rokwzgl=18 i lp=820 | X98: rokwzgl=19 i lp=820 | Y98: rokwzgl=20 i lp=820 | Z98: rokwzgl=21 i lp=820 | AA98: rokwzgl=22 i lp=820 | AB98: rokwzgl=23 i lp=820 | AC98: rokwzgl=24 i lp=820 | AD98: rokwzgl=25 i lp=820 | AE98: rokwzgl=26 i lp=820 | AF98: rokwzgl=27 i lp=820 | AG98: rokwzgl=28 i lp=820 | AH98: rokwzgl=29 i lp=820
